Workbook

Sheet Read me
B1: Warning: this file has lots of links between sheets. Be careful, do not loose them before you get a result!
A3: I. | B3: Creation of the dynamic structure (the Structural Harmony Chart (Summary! sheet))
A4: 1 | B4: Download data of your interest (precipitation and temperature data are the minimal requirements).
B5: Substitute the current data with your own corresponding data in Data sheet: dais with traces of precipitation are marked as 1;
A7: 2 | B7: Estimate the value of precipitation traces
B8: If you know the sensitivity of the measuring tool, you can put it in Precip!E1 (cell E1 of the Precip sheet) instead traces (T) without any other actions.
B9: OR: Put the formula of E1-0.01 into the cell Precip!C3; put values from 0.05 to 0.25 one by one into Precip!E1 to find, which one of them gives the highest frequency in the cell D3
B10: When the value of T is assessed, put it in the cell Precip!E1
A12: 3 | B12: Estimation of the base components of each variable (eccept for the water quality)
B13: In each variable's sheet run Macro1 in order to obtaine the frequency function (cells p8:r50). Place the sought value in C3.
B14: The sought value for temperature is the highest one within the highest frequency interval. For all other variables the sought value is the lowest one within the highest frequency interval,
B15: or simply the one corresponding the highest frequency.
O16: Table 1. The universal SHC (the attractor)
A17: 4 | B17: Estimation of Ki for the "tension releasing" point (Precip!E4). | P17: Ki | Q17: Base
B18: In the cell Precip!E4 find such a value, which provide F5=G2 or they are as close as possible. variable | O18: zero tension | P18: -0.618 | Q18: =P18*-0.382+0.7631 -> 0.999176
B19: If Ki >= 1.5, the tension releasing point has Ki as X coordinate and the base component share in Precip!L4 is its Y coordinate | P19: -0.6 | Q19: =P19*-0.382+0.7631 -> 0.9923
B20: If this value of K1 is less than 1.5, for further water quality assessment, the ideal base-line (Table 1) can be used. | P20: -0.55 | Q20: 0.9732
P21: -0.5 | Q21: 0.9541
A22: 5 | B22: Creation of the Structural Harmony Chart | P22: -0.45 | Q22: 0.935
B23: For each variable, Ki (the cell E4) is estimated according with the base component (cell L4) using the ideal base-line | P23: -0.4 | Q23: 0.9159
B24: with correction to the Ki of the real tension releasing point | P24: -0.35 | Q24: 0.8968
B25: The R2 of the base line has to be more than 0.999 | P25: -0.3 | Q25: 0.8777
P26: -0.25 | Q26: 0.8586
A27: II. | B27: Estimation of daily concentrations in accordance with the transport capacity of flow | P27: -0.2 | Q27: 0.8395
A28: 1 | B28: Downloading the quality data | P28: -0.15 | Q28: 0.8204
B29: Download the quality data (date, time and concentrations) into three corresponding columns of Qual_data sheet, | P29: -0.1 | Q29: 0.8013
B30: linking the corresponding discharges and their components from Flow sheet, | P30: -0.05 | Q30: 0.7822
B31: highliting the lines of different components by different colors, and placing different seasons concentrations in different columns, | P31: 0 | Q31: 0.7631
B32: estimating the criterion for season change in the cell Model!O19 | P32: 0.05 | Q32: 0.744
P33: 0.1 | Q33: 0.7249
A34: 2 | B34: Estimation of the concentration-flow ratios | P34: 0.15 | Q34: 0.7058
B35: Copy and paste the quality block into the Sorted! sheet and sort it by the flow component. | P35: 0.2 | Q35: 0.6867
B36: All formulas for the relations assessment are given in different blocks (check the charts). | P36: 0.25 | Q36: 0.6676
B37: Final parameters for calculations are linked from Model! Sheet and their set is found in the result of the model calibration | P37: 0.3 | Q37: 0.6485
P38: 0.35 | Q38: 0.6294
A39: 3 | B39: Calibration of the model | P39: 0.4 | Q39: 0.6103
B40: Calibration of the model occures every time of its use | P40: 0.45 | Q40: 0.5912
B41: A little advice: start from the base component and finish with the storm one. Good luck! | P41: 0.5 | Q41: 0.5721
P42: 0.55 | Q42: 0.553
A43: 4 | B43: When you are satisfied with the modeling, go to the sheets Conc-sep and Load_sep and place both qualitative dinamics on the SHC: | P43: 0.6 | Q43: 0.5339
B44: run Macro1 to assess the base components, and estimate Ki (the cell E4) in accordance with their base components (the cell L4) | P44: 0.65 | Q44: 0.5148
P45: 0.7 | Q45: 0.4957
A46: III. | B46: Statistical analysis (Correl! sheet) | P46: 0.75 | Q46: 0.4766
B47: Copy and paste the values and format of the block Correl!AL741:AM767 to the block Correl!AN741:AO767, and then range it by AN; | P47: 0.8 | Q47: 0.4575
B48: Copy and paste the values and format of the block Correl!AL770:AM798 to the block Correl!AN770:AM798, range it by AN, and then copy | P48: 0.85 | Q48: 0.4384
B49: the format to the block Correl!AP741:AQ767 | P49: 0.9 | Q49: 0.4193
B50: Copy the format from Correl!AN741:AQ767 to the block Summary!U4:X30 | P50: 0.95 | Q50: 0.4002
B51: Do the same with the blocks Correl!K811:L819 and Correl!K800:L808: copy their values and formats to the blocks Correl!M811:N819 and Correl!M800:M808 and | O51: equilibrium | P51: 1 | Q51: 0.3811
P52: 1.1 | Q52: 0.3429
B53: range them, then copy the format of the block M811:N819 to the O800:P808; copy the format of the block Correl!m800:p808 to Summary!U33:X41 | P53: 1.2 | Q53: 0.3047
B54: You can do any other statistical analysis of the structurated set of used data - this is your choice! | P54: 1.3 | Q54: 0.2665
P55: 1.4 | Q55: 0.2283
A56: IV. | B56: Summaries of the analysis | P56: 1.5 | Q56: 0.1901
B57: All summaries are presented in the sheet Summary! and the risk analysis is given in the Risk! sheet | P57: 1.6 | Q57: 0.1519
B58: To assess impact, put the limiting concentration (MAK, AL or other) in the cell Summary!D3 - calculation will be done automatically | P58: 1.7 | Q58: 0.1137
P59: 1.8 | Q59: 0.0755
B60: The next step is interpretation of all these results. | P60: 1.9 | Q60: 0.0373
O61: tension releasing | P61: 2 | Q61: -0.0009

Sheet Correl
A1: =Data!A1 -> Credit R. at Norval
A7: =Data!A7 -> Date | B7: Temp_T | C7: Temp_B | D7: Temp_I | E7: Temp_S | F7: Prec_T | G7: Prec_B | H7: Prec_I | I7: Prec_S | J7: Humid_T | K7: Humid_B | L7: Humid_I | M7: Humid_S | N7: WinDir_T | O7: WinDir_B | P7: WinDir_I | Q7: WinDir_S | R7: Wind_T | S7: Wind_B | T7: Wind_I | U7: Wind_S | V7: Pressure_T | W7: Pressure_B | X7: Pressure_I | Y7: Pressure_S | Z7: Snow_T | AA7: Snow_B | AB7: Snow_I | AC7: Snow_S | AD7: LevelNorval_T | AE7: LevelNorval_B | AF7: LevelNorval_I | AG7: LevelNorval_S | AH7: Cl_c_T | AI7: Cl_c_B | AJ7: Cl_c_I | AK7: Cl_c_S
A8: =Data!A8 -> 2004-01-01 | B8: =Data!B8 -> 0.6 | C8: =Temp!C8 -> 0.6 | D8: =Temp!$E8-C8 -> 0 | E8: =B8-Temp!$E8 -> 0 | F8: =Data!I8 -> 1 | G8: =Precip!C8 -> 0.14 | H8: =Precip!$E8-G8 -> 0.86 | I8: =F8-Precip!$E8 -> 0 | J8: =Data!D8 -> 87 | K8: =Humid!C8 -> 87 | L8: =Humid!$E8-K8 -> 0 | M8: =J8-Humid!$E8 -> 0 | N8: =Data!E8 -> 209.6 | O8: =WinD!C8 -> 209.6 | P8: =WinD!$E8-O8 -> 0 | Q8: =N8-WinD!$E8 -> 0 | R8: =Data!F8 -> 5.6 | S8: =Win!C8 -> 5.6 | T8: =Win!$E8-S8 -> 0 | U8: =R8-Win!$E8 -> 0 | V8: =Data!H8 -> 99.1 | W8: =Pressure!C8 -> 99.1 | X8: =Pressure!$E8-W8 -> 0 | Y8: =V8-Pressure!$E8 -> 0 | Z8: =Snow!B8 -> 0 | AA8: =Snow!C8 -> 0 | AB8: =Snow!$E8-AA8 -> 0 | AC8: =Z8-Snow!$E8 -> 0 | AD8: =Level!B8 -> 4.017 | AE8: =Level!C8 -> 4.017 | AF8: =Level!$E8-AE8 -> 0 | AG8: =AD8-Level!$E8 -> 0 | AH8: =Conc_sep!B8 -> 72.17071772 | AI8: =Conc_sep!C8 -> 72.17071772 | AJ8: =Conc_sep!$E8-AI8 -> 0 | AK8: =AH8-Conc_sep!$E8 -> 0
A9: =Data!A9 -> 2004-01-02 | B9: =Data!B9 -> -8.7 | C9: =Temp!C9 -> -8.7 | D9: =Temp!$E9-C9 -> 0 | E9: =B9-Temp!$E9 -> 0 | F9: =Data!I9 -> 0 | G9: =Precip!C9 -> 0.15 | H9: =Precip!$E9-G9 -> 0 | I9: =F9-Precip!$E9 -> -0.15 | J9: =Data!D9 -> 74.4 | K9: =Humid!C9 -> 74.4 | L9: =Humid!$E9-K9 -> 0 | M9: =J9-Humid!$E9 -> 0 | N9: =Data!E9 -> 325.8 | O9: =WinD!C9 -> 243.6 | P9: =WinD!$E9-O9 -> 13.02848139 | Q9: =N9-WinD!$E9 -> 69.17151861 | R9: =Data!F9 -> 5 | S9: =Win!C9 -> 5 | T9: =Win!$E9-S9 -> 0 | U9: =R9-Win!$E9 -> 0 | V9: =Data!H9 -> 99.9 | W9: =Pressure!C9 -> 99.37 | X9: =Pressure!$E9-W9 -> 0.1034614698 | Y9: =V9-Pressure!$E9 -> 0.4265385302 | Z9: =Snow!B9 -> 0 | AA9: =Snow!C9 -> 0 | AB9: =Snow!$E9-AA9 -> 0 | AC9: =Z9-Snow!$E9 -> 0 | AD9: =Level!B9 -> 3.978 | AE9: =Level!C9 -> 3.978 | AF9: =Level!$E9-AE9 -> 0 | AG9: =AD9-Level!$E9 -> 0 | AH9: =Conc_sep!B9 -> 67.69825919 | AI9: =Conc_sep!C9 -> 67.69825919 | AJ9: =Conc_sep!$E9-AI9 -> 0 | AK9: =AH9-Conc_sep!$E9 -> 0
A10: =Data!A10 -> 2004-01-03 | B10: =Data!B10 -> -12.6 | C10: =Temp!C10 -> -12.6 | D10: =Temp!$E10-C10 -> 0 | E10: =B10-Temp!$E10 -> 0 | F10: =Data!I10 -> 1.4 | G10: =Precip!C10 -> 0.29 | H10: =Precip!$E10-G10 -> 0.9181166859 | I10: =F10-Precip!$E10 -> 0.1918833141 | J10: =Data!D10 -> 77.3 | K10: =Humid!C10 -> 76.7 | L10: =Humid!$E10-K10 -> 0.6 | M10: =J10-Humid!$E10 -> 0 | N10: =Data!E10 -> 132.9 | O10: =WinD!C10 -> 132.9 | P10: =WinD!$E10-O10 -> 0 | Q10: =N10-WinD!$E10 -> 0 | R10: =Data!F10 -> 4.9 | S10: =Win!C10 -> 4.9 | T10: =Win!$E10-S10 -> 0 | U10: =R10-Win!$E10 -> 0 | V10: =Data!H10 -> 100.1 | W10: =Pressure!C10 -> 99.64 | X10: =Pressure!$E10-W10 -> 0.2069229397 | Y10: =V10-Pressure!$E10 -> 0.2530770603 | Z10: =Snow!B10 -> 0 | AA10: =Snow!C10 -> 0 | AB10: =Snow!$E10-AA10 -> 0 | AC10: =Z10-Snow!$E10 -> 0 | AD10: =Level!B10 -> 4.057 | AE10: =Level!C10 -> 3.988 | AF10: =Level!$E10-AE10 -> 0.02525920632 | AG10: =AD10-Level!$E10 -> 0.04374079368 | AH10: =Conc_sep!B10 -> 88.47794116 | AI10: =Conc_sep!C10 -> 69.24825919 | AJ10: =Conc_sep!$E10-AI10 -> 0.7478238652 | AK10: =AH10-Conc_sep!$E10 -> 18.48185811
A11: =Data!A11 -> 2004-01-04 | B11: =Data!B11 -> -9.8 | C11: =Temp!C11 -> -11.41 | D11: =Temp!$E11-C11 -> 0.6363478542 | E11: =B11-Temp!$E11 -> 0.9736521458 | F11: =Data!I11 -> 0 | G11: =Precip!C11 -> 0.15 | H11: =Precip!$E11-G11 -> 0 | I11: =F11-Precip!$E11 -> -0.15 | J11: =Data!D11 -> 74.4 | K11: =Humid!C11 -> 74.4 | L11: =Humid!$E11-K11 -> 0 | M11: =J11-Humid!$E11 -> 0 | N11: =Data!E11 -> 298.3 | O11: =WinD!C11 -> 166.9 | P11: =WinD!$E11-O11 -> 13.02848139 | Q11: =N11-WinD!$E11 -> 118.3715186 | R11: =Data!F11 -> 7.2 | S11: =Win!C11 -> 5.37 | T11: =Win!$E11-S11 -> 0.5643558928 | U11: =R11-Win!$E11 -> 1.265644107 | V11: =Data!H11 -> 98.7 | W11: =Pressure!C11 -> 98.7 | X11: =Pressure!$E11-W11 -> 0 | Y11: =V11-Pressure!$E11 -> 0 | Z11: =Snow!B11 -> 2 | AA11: =Snow!C11 -> 0.81 | AB11: =Snow!$E11-AA11 -> 0.7204902064 | AC11: =Z11-Snow!$E11 -> 0.4695097936 | AD11: =Level!B11 -> 4.102 | AE11: =Level!C11 -> 3.998 | AF11: =Level!$E11-AE11 -> 0.05051841263 | AG11: =AD11-Level!$E11 -> 0.05348158737 | AH11: =Conc_sep!B11 -> 91.583292 | AI11: =Conc_sep!C11 -> 70.79825919 | AJ11: =Conc_sep!$E11-AI11 -> 1.49564773 | AK11: =AH11-Conc_sep!$E11 -> 19.28938509
A12: =Data!A12 -> 2004-01-05 | B12: =Data!B12 -> -11.9 | C12: =Temp!C12 -> -11.9 | D12: =Temp!$E12-C12 -> 0 | E12: =B12-Temp!$E12 -> 0 | F12: =Data!I12 -> 0.2 | G12: =Precip!C12 -> 0.2 | H12: =Precip!$E12-G12 -> 0 | I12: =F12-Precip!$E12 -> 0 | J12: =Data!D12 -> 70.8 | K12: =Humid!C12 -> 70.8 | L12: =Humid!$E12-K12 -> 0 | M12: =J12-Humid!$E12 -> 0 | N12: =Data!E12 -> 279.2 | O12: =WinD!C12 -> 200.9 | P12: =WinD!$E12-O12 -> 26.05696277 | Q12: =N12-WinD!$E12 -> 52.24303723 | R12: =Data!F12 -> 6.4 | S12: =Win!C12 -> 5.84 | T12: =Win!$E12-S12 -> 0.56 | U12: =R12-Win!$E12 -> 0 | V12: =Data!H12 -> 99.4 | W12: =Pressure!C12 -> 98.97 | X12: =Pressure!$E12-W12 -> 0.1034614698 | Y12: =V12-Pressure!$E12 -> 0.3265385302 | Z12: =Snow!B12 -> 2 | AA12: =Snow!C12 -> 1.62 | AB12: =Snow!$E12-AA12 -> 0.38 | AC12: =Z12-Snow!$E12 -> 0 | AD12: =Level!B12 -> 4.023 | AE12: =Level!C12 -> 4.008 | AF12: =Level!$E12-AE12 -> 0.015 | AG12: =AD12-Level!$E12 -> 0 | AH12: =Conc_sep!B12 -> 75.97305396 | AI12: =Conc_sep!C12 -> 72.34825919 | AJ12: =Conc_sep!$E12-AI12 -> 2.243471596 | AK12: =AH12-Conc_sep!$E12 -> 1.381323179
A13: =Data!A13 -> 2004-01-06 | B13: =Data!B13 -> -16 | C13: =Temp!C13 -> -16 | D13: =Temp!$E13-C13 -> 0 | E13: =B13-Temp!$E13 -> 0 | F13: =Data!I13 -> 3 | G13: =Precip!C13 -> 0.34 | H13: =Precip!$E13-G13 -> 0.9181166859 | I13: =F13-Precip!$E13 -> 1.741883314 | J13: =Data!D13 -> 80.9 | K13: =Humid!C13 -> 73.1 | L13: =Humid!$E13-K13 -> 2.045836389 | M13: =J13-Humid!$E13 -> 5.754163611 | N13: =Data!E13 -> 104.6 | O13: =WinD!C13 -> 104.6 | P13: =WinD!$E13-O13 -> 0 | Q13: =N13-WinD!$E13 -> 0 | R13: =Data!F13 -> 6.2 | S13: =Win!C13 -> 6.2 | T13: =Win!$E13-S13 -> 0 | U13: =R13-Win!$E13 -> 0 | V13: =Data!H13 -> 100 | W13: =Pressure!C13 -> 99.24 | X13: =Pressure!$E13-W13 -> 0.2069229397 | Y13: =V13-Pressure!$E13 -> 0.5530770603 | Z13: =Snow!B13 -> 2 | AA13: =Snow!C13 -> 2 | AB13: =Snow!$E13-AA13 -> 0 | AC13: =Z13-Snow!$E13 -> 0 | AD13: =Level!B13 -> 3.956 | AE13: =Level!C13 -> 3.956 | AF13: =Level!$E13-AE13 -> 0 | AG13: =AD13-Level!$E13 -> 0 | AH13: =Conc_sep!B13 -> 72.61410788 | AI13: =Conc_sep!C13 -> 72.61410788 | AJ13: =Conc_sep!$E13-AI13 -> 0 | AK13: =AH13-Conc_sep!$E13 -> 0
A14: =Data!A14 -> 2004-01-07 | B14: =Data!B14 -> -15.4 | C14: =Temp!C14 -> -15.4 | D14: =Temp!$E14-C14 -> 0 | E14: =B14-Temp!$E14 -> 0 | F14: =Data!I14 -> 1.8 | G14: =Precip!C14 -> 0.48 | H14: =Precip!$E14-G14 -> 1.32 | I14: =F14-Precip!$E14 -> 0 | J14: =Data!D14 -> 78.2 | K14: =Humid!C14 -> 75.4 | L14: =Humid!$E14-K14 -> 2.8 | M14: =J14-Humid!$E14 -> 0 | N14: =Data!E14 -> 31.7 | O14: =WinD!C14 -> 31.7 | P14: =WinD!$E14-O14 -> 0 | Q14: =N14-WinD!$E14 -> 0 | R14: =Data!F14 -> 6.3 | S14: =Win!C14 -> 6.3 | T14: =Win!$E14-S14 -> 0 | U14: =R14-Win!$E14 -> 0 | V14: =Data!H14 -> 99.7 | W14: =Pressure!C14 -> 99.51 | X14: =Pressure!$E14-W14 -> 0.19 | Y14: =V14-Pressure!$E14 -> 0 | Z14: =Snow!B14 -> 5 | AA14: =Snow!C14 -> 2.81 | AB14: =Snow!$E14-AA14 -> 0.7204902064 | AC14: =Z14-Snow!$E14 -> 1.469509794 | AD14: =Level!B14 -> 3.911 | AE14: =Level!C14 -> 3.911 | AF14: =Level!$E14-AE14 -> 0 | AG14: =AD14-Level!$E14 -> 0 | AH14: =Conc_sep!B14 -> 85.15815085 | AI14: =Conc_sep!C14 -> 74.16410788 | AJ14: =Conc_sep!$E14-AI14 -> 0.7478238652 | AK14: =AH14-Conc_sep!$E14 -> 10.2462191
A15: =Data!A15 -> 2004-01-08 | B15: =Data!B15 -> -13.2 | C15: =Temp!C15 -> -14.21 | D15: =Temp!$E15-C15 -> 0.6363478542 | E15: =B15-Temp!$E15 -> 0.3736521458 | F15: =Data!I15 -> 1.6 | G15: =Precip!C15 -> 0.62 | H15: =Precip!$E15-G15 -> 0.98 | I15: =F15-Precip!$E15 -> 0 | J15: =Data!D15 -> 84.3 | K15: =Humid!C15 -> 77.7 | L15: =Humid!$E15-K15 -> 4.845836389 | M15: =J15-Humid!$E15 -> 1.754163611 | N15: =Data!E15 -> 298.3 | O15: =WinD!C15 -> 65.7 | P15: =WinD!$E15-O15 -> 13.02848139 | Q15: =N15-WinD!$E15 -> 219.5715186 | R15: =Data!F15 -> 4.5 | S15: =Win!C15 -> 4.5 | T15: =Win!$E15-S15 -> 0 | U15: =R15-Win!$E15 -> 0 | V15: =Data!H15 -> 99.3 | W15: =Pressure!C15 -> 99.3 | X15: =Pressure!$E15-W15 -> 0 | Y15: =V15-Pressure!$E15 -> 0 | Z15: =Snow!B15 -> 8 | AA15: =Snow!C15 -> 3.62 | AB15: =Snow!$E15-AA15 -> 1.440980413 | AC15: =Z15-Snow!$E15 -> 2.939019587 | AD15: =Level!B15 -> 3.939 | AE15: =Level!C15 -> 3.921 | AF15: =Level!$E15-AE15 -> 0.018 | AG15: =AD15-Level!$E15 -> 0 | AH15: =Conc_sep!B15 -> 96.68508287 | AI15: =Conc_sep!C15 -> 75.71410788 | AJ15: =Conc_sep!$E15-AI15 -> 1.49564773 | AK15: =AH15-Conc_sep!$E15 -> 19.47532726
A16: =Data!A16 -> 2004-01-09 | B16: =Data!B16 -> -17.8 | C16: =Temp!C16 -> -17.8 | D16: =Temp!$E16-C16 -> 0 | E16: =B16-Temp!$E16 -> 0 | F16: =Data!I16 -> 0 | G16: =Precip!C16 -> 0 | H16: =Precip!$E16-G16 -> 0 | I16: =F16-Precip!$E16 -> 0 | J16: =Data!D16 -> 68.1 | K16: =Humid!C16 -> 68.1 | L16: =Humid!$E16-K16 -> 0 | M16: =J16-Humid!$E16 -> 0 | N16: =Data!E16 -> 223.8 | O16: =WinD!C16 -> 99.7 | P16: =WinD!$E16-O16 -> 26.05696277 | Q16: =N16-WinD!$E16 -> 98.04303723 | R16: =Data!F16 -> 2.1 | S16: =Win!C16 -> 2.1 | T16: =Win!$E16-S16 -> 0 | U16: =R16-Win!$E16 -> 0 | V16: =Data!H16 -> 100.8 | W16: =Pressure!C16 -> 99.57 | X16: =Pressure!$E16-W16 -> 0.1034614698 | Y16: =V16-Pressure!$E16 -> 1.12653853 | Z16: =Snow!B16 -> 10 | AA16: =Snow!C16 -> 4.43 | AB16: =Snow!$E16-AA16 -> 2.161470619 | AC16: =Z16-Snow!$E16 -> 3.408529381 | AD16: =Level!B16 -> 3.915 | AE16: =Level!C16 -> 3.915 | AF16: =Level!$E16-AE16 -> 0 | AG16: =AD16-Level!$E16 -> 0 | AH16: =Conc_sep!B16 -> 107.6923077 | AI16: =Conc_sep!C16 -> 77.26410788 | AJ16: =Conc_sep!$E16-AI16 -> 2.243471596 | AK16: =AH16-Conc_sep!$E16 -> 28.18472821
A17: =Data!A17 -> 2004-01-10 | B17: =Data!B17 -> -14.9 | C17: =Temp!C17 -> -16.61 | D17: =Temp!$E17-C17 -> 0.6363478542 | E17: =B17-Temp!$E17 -> 1.073652146 | F17: =Data!I17 -> 0.2 | G17: =Precip!C17 -> 0.14 | H17: =Precip!$E17-G17 -> 0.06 | I17: =F17-Precip!$E17 -> 0 | J17: =Data!D17 -> 71.9 | K17: =Humid!C17 -> 70.4 | L17: =Humid!$E17-K17 -> 1.5 | M17: =J17-Humid!$E17 -> 0 | N17: =Data!E17 -> 198.8 | O17: =WinD!C17 -> 133.7 | P17: =WinD!$E17-O17 -> 39.08544416 | Q17: =N17-WinD!$E17 -> 26.01455584 | R17: =Data!F17 -> 3 | S17: =Win!C17 -> 2.57 | T17: =Win!$E17-S17 -> 0.43 | U17: =R17-Win!$E17 -> 0 | V17: =Data!H17 -> 101.7 | W17: =Pressure!C17 -> 99.84 | X17: =Pressure!$E17-W17 -> 0.2069229397 | Y17: =V17-Pressure!$E17 -> 1.65307706 | Z17: =Snow!B17 -> 9 | AA17: =Snow!C17 -> 5.24 | AB17: =Snow!$E17-AA17 -> 2.881960826 | AC17: =Z17-Snow!$E17 -> 0.8780391743 | AD17: =Level!B17 -> 3.974 | AE17: =Level!C17 -> 3.925 | AF17: =Level!$E17-AE17 -> 0.02525920632 | AG17: =AD17-Level!$E17 -> 0.02374079368 | AH17: =Conc_sep!B17 -> 116.6666667 | AI17: =Conc_sep!C17 -> 78.81410788 | AJ17: =Conc_sep!$E17-AI17 -> 2.991295461 | AK17: =AH17-Conc_sep!$E17 -> 34.86126332
A18: =Data!A18 -> 2004-01-11 | B18: =Data!B18 -> -2.9 | C18: =Temp!C18 -> -15.42 | D18: =Temp!$E18-C18 -> 1.272695708 | E18: =B18-Temp!$E18 -> 11.24730429 | F18: =Data!I18 -> 1.4 | G18: =Precip!C18 -> 0.28 | H18: =Precip!$E18-G18 -> 0.9781166859 | I18: =F18-Precip!$E18 -> 0.1418833141 | J18: =Data!D18 -> 80.8 | K18: =Humid!C18 -> 72.7 | L18: =Humid!$E18-K18 -> 3.545836389 | M18: =J18-Humid!$E18 -> 4.554163611 | N18: =Data!E18 -> 237.5 | O18: =WinD!C18 -> 167.7 | P18: =WinD!$E18-O18 -> 52.11392555 | Q18: =N18-WinD!$E18 -> 17.68607445 | R18: =Data!F18 -> 4.5 | S18: =Win!C18 -> 3.04 | T18: =Win!$E18-S18 -> 0.9943558928 | U18: =R18-Win!$E18 -> 0.4656441072 | V18: =Data!H18 -> 100.4 | W18: =Pressure!C18 -> 100.11 | X18: =Pressure!$E18-W18 -> 0.29 | Y18: =V18-Pressure!$E18 -> 0 | Z18: =Snow!B18 -> 9 | AA18: =Snow!C18 -> 6.05 | AB18: =Snow!$E18-AA18 -> 2.95 | AC18: =Z18-Snow!$E18 -> 0 | AD18: =Level!B18 -> 4.042 | AE18: =Level!C18 -> 3.935 | AF18: =Level!$E18-AE18 -> 0.05051841263 | AG18: =AD18-Level!$E18 -> 0.05648158737 | AH18: =Conc_sep!B18 -> 120.6896552 | AI18: =Conc_sep!C18 -> 80.36410788 | AJ18: =Conc_sep!$E18-AI18 -> 3.739119326 | AK18: =AH18-Conc_sep!$E18 -> 36.58642796
A19: =Data!A19 -> 2004-01-12 | B19: =Data!B19 -> -7.8 | C19: =Temp!C19 -> -14.23 | D19: =Temp!$E19-C19 -> 1.909043563 | E19: =B19-Temp!$E19 -> 4.520956437 | F19: =Data!I19 -> 0 | G19: =Precip!C19 -> 0.15 | H19: =Precip!$E19-G19 -> 0 | I19: =F19-Precip!$E19 -> -0.15 | J19: =Data!D19 -> 85.3 | K19: =Humid!C19 -> 75 | L19: =Humid!$E19-K19 -> 5.591672777 | M19: =J19-Humid!$E19 -> 4.708327223 | N19: =Data!E19 -> 199.6 | O19: =WinD!C19 -> 199.6 | P19: =WinD!$E19-O19 -> 0 | Q19: =N19-WinD!$E19 -> 0 | R19: =Data!F19 -> 2.6 | S19: =Win!C19 -> 2.6 | T19: =Win!$E19-S19 -> 0 | U19: =R19-Win!$E19 -> 0 | V19: =Data!H19 -> 99.9 | W19: =Pressure!C19 -> 99.9 | X19: =Pressure!$E19-W19 -> 0 | Y19: =V19-Pressure!$E19 -> 0 | Z19: =Snow!B19 -> 8 | AA19: =Snow!C19 -> 6.86 | AB19: =Snow!$E19-AA19 -> 1.14 | AC19: =Z19-Snow!$E19 -> 0 | AD19: =Level!B19 -> 4.043 | AE19: =Level!C19 -> 3.945 | AF19: =Level!$E19-AE19 -> 0.07577761895 | AG19: =AD19-Level!$E19 -> 0.02222238105 | AH19: =Conc_sep!B19 -> 119.8630137 | AI19: =Conc_sep!C19 -> 81.91410788 | AJ19: =Conc_sep!$E19-AI19 -> 4.486943191 | AK19: =AH19-Conc_sep!$E19 -> 33.46196262
A20: =Data!A20 -> 2004-01-13 | B20: =Data!B20 -> -3.6 | C20: =Temp!C20 -> -13.04 | D20: =Temp!$E20-C20 -> 2.545391417 | E20: =B20-Temp!$E20 -> 6.894608583 | F20: =Data!I20 -> 0.2 | G20: =Precip!C20 -> 0.2 | H20: =Precip!$E20-G20 -> 0 | I20: =F20-Precip!$E20 -> 0 | J20: =Data!D20 -> 80 | K20: =Humid!C20 -> 77.3 | L20: =Humid!$E20-K20 -> 2.7 | M20: =J20-Humid!$E20 -> 0 | N20: =Data!E20 -> 286.3 | O20: =WinD!C20 -> 233.6 | P20: =WinD!$E20-O20 -> 13.02848139 | Q20: =N20-WinD!$E20 -> 39.67151861 | R20: =Data!F20 -> 4 | S20: =Win!C20 -> 3.07 | T20: =Win!$E20-S20 -> 0.5643558928 | U20: =R20-Win!$E20 -> 0.3656441072 | V20: =Data!H20 -> 98.9 | W20: =Pressure!C20 -> 98.9 | X20: =Pressure!$E20-W20 -> 0 | Y20: =V20-Pressure!$E20 -> 0 | Z20: =Snow!B20 -> 6 | AA20: =Snow!C20 -> 6 | AB20: =Snow!$E20-AA20 -> 0 | AC20: =Z20-Snow!$E20 -> 0 | AD20: =Level!B20 -> 4.008 | AE20: =Level!C20 -> 3.955 | AF20: =Level!$E20-AE20 -> 0.053 | AG20: =AD20-Level!$E20 -> 0 | AH20: =Conc_sep!B20 -> 118.6440678 | AI20: =Conc_sep!C20 -> 83.46410788 | AJ20: =Conc_sep!$E20-AI20 -> 5.234767056 | AK20: =AH20-Conc_sep!$E20 -> 29.94519286
A21: =Data!A21 -> 2004-01-14 | B21: =Data!B21 -> -13.2 | C21: =Temp!C21 -> -13.2 | D21: =Temp!$E21-C21 -> 0 | E21: =B21-Temp!$E21 -> 0 | F21: =Data!I21 -> 0.2 | G21: =Precip!C21 -> 0.2 | H21: =Precip!$E21-G21 -> 0 | I21: =F21-Precip!$E21 -> 0 | J21: =Data!D21 -> 69.9 | K21: =Humid!C21 -> 69.9 | L21: =Humid!$E21-K21 -> 0 | M21: =J21-Humid!$E21 -> 0 | N21: =Data!E21 -> 336.7 | O21: =WinD!C21 -> 267.6 | P21: =WinD!$E21-O21 -> 26.05696277 | Q21: =N21-WinD!$E21 -> 43.04303723 | R21: =Data!F21 -> 6.1 | S21: =Win!C21 -> 3.54 | T21: =Win!$E21-S21 -> 1.128711786 | U21: =R21-Win!$E21 -> 1.431288214 | V21: =Data!H21 -> 98.6 | W21: =Pressure!C21 -> 98.6 | X21: =Pressure!$E21-W21 -> 0 | Y21: =V21-Pressure!$E21 -> 0 | Z21: =Snow!B21 -> 6 | AA21: =Snow!C21 -> 6 | AB21: =Snow!$E21-AA21 -> 0 | AC21: =Z21-Snow!$E21 -> 0 | AD21: =Level!B21 -> 4.045 | AE21: =Level!C21 -> 3.965 | AF21: =Level!$E21-AE21 -> 0.07825920632 | AG21: =AD21-Level!$E21 -> 0.001740793684 | AH21: =Conc_sep!B21 -> 120.6896552 | AI21: =Conc_sep!C21 -> 85.01410788 | AJ21: =Conc_sep!$E21-AI21 -> 5.982590922 | AK21: =AH21-Conc_sep!$E21 -> 29.69295637
A22: =Data!A22 -> 2004-01-15 | B22: =Data!B22 -> -23.8 | C22: =Temp!C22 -> -23.8 | D22: =Temp!$E22-C22 -> 0 | E22: =B22-Temp!$E22 -> 0 | F22: =Data!I22 -> 0 | G22: =Precip!C22 -> 0 | H22: =Precip!$E22-G22 -> 0 | I22: =F22-Precip!$E22 -> 0 | J22: =Data!D22 -> 59.7 | K22: =Humid!C22 -> 59.7 | L22: =Humid!$E22-K22 -> 0 | M22: =J22-Humid!$E22 -> 0 | N22: =Data!E22 -> 307.1 | O22: =WinD!C22 -> 301.6 | P22: =WinD!$E22-O22 -> 5.5 | Q22: =N22-WinD!$E22 -> 0 | R22: =Data!F22 -> 5.9 | S22: =Win!C22 -> 4.01 | T22: =Win!$E22-S22 -> 1.693067678 | U22: =R22-Win!$E22 -> 0.1969323216 | V22: =Data!H22 -> 99.6 | W22: =Pressure!C22 -> 98.87 | X22: =Pressure!$E22-W22 -> 0.1034614698 | Y22: =V22-Pressure!$E22 -> 0.6265385302 | Z22: =Snow!B22 -> 6 | AA22: =Snow!C22 -> 6 | AB22: =Snow!$E22-AA22 -> 0 | AC22: =Z22-Snow!$E22 -> 0 | AD22: =Level!B22 -> 4.136 | AE22: =Level!C22 -> 3.975 | AF22: =Level!$E22-AE22 -> 0.1035184126 | AG22: =AD22-Level!$E22 -> 0.05748158737 | AH22: =Conc_sep!B22 -> 121.9512195 | AI22: =Conc_sep!C22 -> 86.56410788 | AJ22: =Conc_sep!$E22-AI22 -> 6.730414787 | AK22: =AH22-Conc_sep!$E22 -> 28.65669684
A23: =Data!A23 -> 2004-01-16 | B23: =Data!B23 -> -21.3 | C23: =Temp!C23 -> -22.61 | D23: =Temp!$E23-C23 -> 0.6363478542 | E23: =B23-Temp!$E23 -> 0.6736521458 | F23: =Data!I23 -> 7.4 | G23: =Precip!C23 -> 0.14 | H23: =Precip!$E23-G23 -> 0.9181166859 | I23: =F23-Precip!$E23 -> 6.341883314 | J23: =Data!D23 -> 65.6 | K23: =Humid!C23 -> 62 | L23: =Humid!$E23-K23 -> 2.045836389 | M23: =J23-Humid!$E23 -> 1.554163611 | N23: =Data!E23 -> 179.6 | O23: =WinD!C23 -> 179.6 | P23: =WinD!$E23-O23 -> 0 | Q23: =N23-WinD!$E23 -> 0 | R23: =Data!F23 -> 2.7 | S23: =Win!C23 -> 2.7 | T23: =Win!$E23-S23 -> 0 | U23: =R23-Win!$E23 -> 0 | V23: =Data!H23 -> 101 | W23: =Pressure!C23 -> 99.14 | X23: =Pressure!$E23-W23 -> 0.2069229397 | Y23: =V23-Pressure!$E23 -> 1.65307706 | Z23: =Snow!B23 -> 6 | AA23: =Snow!C23 -> 6 | AB23: =Snow!$E23-AA23 -> 0 | AC23: =Z23-Snow!$E23 -> 0 | AD23: =Level!B23 -> 4.208 | AE23: =Level!C23 -> 3.985 | AF23: =Level!$E23-AE23 -> 0.1287776189 | AG23: =AD23-Level!$E23 -> 0.09422238105 | AH23: =Conc_sep!B23 -> 123.6749117 | AI23: =Conc_sep!C23 -> 88.11410788 | AJ23: =Conc_sep!$E23-AI23 -> 7.478238652 | AK23: =AH23-Conc_sep!$E23 -> 28.08256513
A24: =Data!A24 -> 2004-01-17 | B24: =Data!B24 -> -9.7 | C24: =Temp!C24 -> -21.42 | D24: =Temp!$E24-C24 -> 1.272695708 | E24: =B24-Temp!$E24 -> 10.44730429 | F24: =Data!I24 -> 7.6 | G24: =Precip!C24 -> 0.28 | H24: =Precip!$E24-G24 -> 1.836233372 | I24: =F24-Precip!$E24 -> 5.483766628 | J24: =Data!D24 -> 79.6 | K24: =Humid!C24 -> 64.3 | L24: =Humid!$E24-K24 -> 4.091672777 | M24: =J24-Humid!$E24 -> 11.20832722 | N24: =Data!E24 -> 212.5 | O24: =WinD!C24 -> 212.5 | P24: =WinD!$E24-O24 -> 0 | Q24: =N24-WinD!$E24 -> 0 | R24: =Data!F24 -> 5.6 | S24: =Win!C24 -> 3.17 | T24: =Win!$E24-S24 -> 0.5643558928 | U24: =R24-Win!$E24 -> 1.865644107 | V24: =Data!H24 -> 99.1 | W24: =Pressure!C24 -> 99.1 | X24: =Pressure!$E24-W24 -> 0 | Y24: =V24-Pressure!$E24 -> 0 | Z24: =Snow!B24 -> 21 | AA24: =Snow!C24 -> 6.81 | AB24: =Snow!$E24-AA24 -> 0.7204902064 | AC24: =Z24-Snow!$E24 -> 13.46950979 | AD24: =Level!B24 -> 4.234 | AE24: =Level!C24 -> 3.995 | AF24: =Level!$E24-AE24 -> 0.1540368253 | AG24: =AD24-Level!$E24 -> 0.08496317473 | AH24: =Conc_sep!B24 -> 125 | AI24: =Conc_sep!C24 -> 89.66410788 | AJ24: =Conc_sep!$E24-AI24 -> 8.226062517 | AK24: =AH24-Conc_sep!$E24 -> 27.1098296
A25: =Data!A25 -> 2004-01-18 | B25: =Data!B25 -> -18.6 | C25: =Temp!C25 -> -20.23 | D25: =Temp!$E25-C25 -> 1.63 | E25: =B25-Temp!$E25 -> 0 | F25: =Data!I25 -> 0 | G25: =Precip!C25 -> 0.15 | H25: =Precip!$E25-G25 -> 0 | I25: =F25-Precip!$E25 -> -0.15 | J25: =Data!D25 -> 68.6 | K25: =Humid!C25 -> 66.6 | L25: =Humid!$E25-K25 -> 2 | M25: =J25-Humid!$E25 -> 0 | N25: =Data!E25 -> 250.4 | O25: =WinD!C25 -> 246.5 | P25: =WinD!$E25-O25 -> 3.9 | Q25: =N25-WinD!$E25 -> 0 | R25: =Data!F25 -> 8.9 | S25: =Win!C25 -> 3.64 | T25: =Win!$E25-S25 -> 1.128711786 | U25: =R25-Win!$E25 -> 4.131288214 | V25: =Data!H25 -> 99.4 | W25: =Pressure!C25 -> 99.37 | X25: =Pressure!$E25-W25 -> 0.03 | Y25: =V25-Pressure!$E25 -> 0 | Z25: =Snow!B25 -> 22 | AA25: =Snow!C25 -> 7.62 | AB25: =Snow!$E25-AA25 -> 1.440980413 | AC25: =Z25-Snow!$E25 -> 12.93901959 | AD25: =Level!B25 -> 4.207 | AE25: =Level!C25 -> 4.005 | AF25: =Level!$E25-AE25 -> 0.1792960316 | AG25: =AD25-Level!$E25 -> 0.02270396842 | AH25: =Conc_sep!B25 -> 126.3537906 | AI25: =Conc_sep!C25 -> 91.21410788 | AJ25: =Conc_sep!$E25-AI25 -> 8.973886382 | AK25: =AH25-Conc_sep!$E25 -> 26.16579635
A26: =Data!A26 -> 2004-01-19 | B26: =Data!B26 -> -21.6 | C26: =Temp!C26 -> -21.6 | D26: =Temp!$E26-C26 -> 0 | E26: =B26-Temp!$E26 -> 0 | F26: =Data!I26 -> 0 | G26: =Precip!C26 -> 0.15 | H26: =Precip!$E26-G26 -> 0 | I26: =F26-Precip!$E26 -> -0.15 | J26: =Data!D26 -> 64.9 | K26: =Humid!C26 -> 64.9 | L26: =Humid!$E26-K26 -> 0 | M26: =J26-Humid!$E26 -> 0 | N26: =Data!E26 -> 241.3 | O26: =WinD!C26 -> 241.3 | P26: =WinD!$E26-O26 -> 0 | Q26: =N26-WinD!$E26 -> 0 | R26: =Data!F26 -> 8.3 | S26: =Win!C26 -> 4.11 | T26: =Win!$E26-S26 -> 1.693067678 | U26: =R26-Win!$E26 -> 2.496932322 | V26: =Data!H26 -> 100.8 | W26: =Pressure!C26 -> 99.64 | X26: =Pressure!$E26-W26 -> 0.1334614698 | Y26: =V26-Pressure!$E26 -> 1.02653853 | Z26: =Snow!B26 -> 21 | AA26: =Snow!C26 -> 8.43 | AB26: =Snow!$E26-AA26 -> 2.161470619 | AC26: =Z26-Snow!$E26 -> 10.40852938 | AD26: =Level!B26 -> 4.164 | AE26: =Level!C26 -> 4.015 | AF26: =Level!$E26-AE26 -> 0.149 | AG26: =AD26-Level!$E26 -> 0 | AH26: =Conc_sep!B26 -> 127.7372263 | AI26: =Conc_sep!C26 -> 92.76410788 | AJ26: =Conc_sep!$E26-AI26 -> 9.721710248 | AK26: =AH26-Conc_sep!$E26 -> 25.25140815
A27: =Data!A27 -> 2004-01-20 | B27: =Data!B27 -> -18.4 | C27: =Temp!C27 -> -20.41 | D27: =Temp!$E27-C27 -> 0.6363478542 | E27: =B27-Temp!$E27 -> 1.373652146 | F27: =Data!I27 -> 0 | G27: =Precip!C27 -> 0.15 | H27: =Precip!$E27-G27 -> 0 | I27: =F27-Precip!$E27 -> -0.15 | J27: =Data!D27 -> 67.3 | K27: =Humid!C27 -> 67.2 | L27: =Humid!$E27-K27 -> 0.1 | M27: =J27-Humid!$E27 -> 0 | N27: =Data!E27 -> 246.7 | O27: =WinD!C27 -> 246.7 | P27: =WinD!$E27-O27 -> 0 | Q27: =N27-WinD!$E27 -> 0 | R27: =Data!F27 -> 6.2 | S27: =Win!C27 -> 4.58 | T27: =Win!$E27-S27 -> 1.62 | U27: =R27-Win!$E27 -> 0 | V27: =Data!H27 -> 101.3 | W27: =Pressure!C27 -> 99.91 | X27: =Pressure!$E27-W27 -> 0.2369229397 | Y27: =V27-Pressure!$E27 -> 1.15307706 | Z27: =Snow!B27 -> 20 | AA27: =Snow!C27 -> 9.24 | AB27: =Snow!$E27-AA27 -> 2.881960826 | AC27: =Z27-Snow!$E27 -> 7.878039174 | AD27: =Level!B27 -> 4.14 | AE27: =Level!C27 -> 4.025 | AF27: =Level!$E27-AE27 -> 0.115 | AG27: =AD27-Level!$E27 -> 0 | AH27: =Conc_sep!B27 -> 129.1512915 | AI27: =Conc_sep!C27 -> 94.31410788 | AJ27: =Conc_sep!$E27-AI27 -> 10.46953411 | AK27: =AH27-Conc_sep!$E27 -> 24.36764952
A28: =Data!A28 -> 2004-01-21 | B28: =Data!B28 -> -12.9 | C28: =Temp!C28 -> -19.22 | D28: =Temp!$E28-C28 -> 1.272695708 | E28: =B28-Temp!$E28 -> 5.047304292 | F28: =Data!I28 -> 0 | G28: =Precip!C28 -> 0.15 | H28: =Precip!$E28-G28 -> 0 | I28: =F28-Precip!$E28 -> -0.15 | J28: =Data!D28 -> 71.1 | K28: =Humid!C28 -> 69.5 | L28: =Humid!$E28-K28 -> 1.6 | M28: =J28-Humid!$E28 -> 0 | N28: =Data!E28 -> 225 | O28: =WinD!C28 -> 225 | P28: =WinD!$E28-O28 -> 0 | Q28: =N28-WinD!$E28 -> 0 | R28: =Data!F28 -> 6.7 | S28: =Win!C28 -> 5.05 | T28: =Win!$E28-S28 -> 1.65 | U28: =R28-Win!$E28 -> 0 | V28: =Data!H28 -> 100.6 | W28: =Pressure!C28 -> 100.18 | X28: =Pressure!$E28-W28 -> 0.3403844095 | Y28: =V28-Pressure!$E28 -> 0.0796155905 | Z28: =Snow!B28 -> 20 | AA28: =Snow!C28 -> 10.05 | AB28: =Snow!$E28-AA28 -> 3.602451032 | AC28: =Z28-Snow!$E28 -> 6.347548968 | AD28: =Level!B28 -> 4.114 | AE28: =Level!C28 -> 4.035 | AF28: =Level!$E28-AE28 -> 0.079 | AG28: =AD28-Level!$E28 -> 0 | AH28: =Conc_sep!B28 -> 130.1115242 | AI28: =Conc_sep!C28 -> 95.86410788 | AJ28: =Conc_sep!$E28-AI28 -> 11.21735798 | AK28: =AH28-Conc_sep!$E28 -> 23.0300583
A29: =Data!A29 -> 2004-01-22 | B29: =Data!B29 -> -9.6 | C29: =Temp!C29 -> -18.03 | D29: =Temp!$E29-C29 -> 1.909043563 | E29: =B29-Temp!$E29 -> 6.520956437 | F29: =Data!I29 -> 0.2 | G29: =Precip!C29 -> 0.2 | H29: =Precip!$E29-G29 -> 0 | I29: =F29-Precip!$E29 -> 0 | J29: =Data!D29 -> 68.5 | K29: =Humid!C29 -> 68.5 | L29: =Humid!$E29-K29 -> 0 | M29: =J29-Humid!$E29 -> 0 | N29: =Data!E29 -> 238.3 | O29: =WinD!C29 -> 238.3 | P29: =WinD!$E29-O29 -> 0 | Q29: =N29-WinD!$E29 -> 0 | R29: =Data!F29 -> 5.7 | S29: =Win!C29 -> 5.52 | T29: =Win!$E29-S29 -> 0.18 | U29: =R29-Win!$E29 -> 0 | V29: =Data!H29 -> 100.2 | W29: =Pressure!C29 -> 100.2 | X29: =Pressure!$E29-W29 -> 0 | Y29: =V29-Pressure!$E29 -> 0 | Z29: =Snow!B29 -> 19 | AA29: =Snow!C29 -> 10.86 | AB29: =Snow!$E29-AA29 -> 4.322941238 | AC29: =Z29-Snow!$E29 -> 3.817058762 | AD29: =Level!B29 -> 4.143 | AE29: =Level!C29 -> 4.045 | AF29: =Level!$E29-AE29 -> 0.098 | AG29: =AD29-Level!$E29 -> 0 | AH29: =Conc_sep!B29 -> 131.5789474 | AI29: =Conc_sep!C29 -> 97.41410788 | AJ29: =Conc_sep!$E29-AI29 -> 11.96518184 | AK29: =AH29-Conc_sep!$E29 -> 22.19965764
A30: =Data!A30 -> 2004-01-23 | B30: =Data!B30 -> -4.9 | C30: =Temp!C30 -> -16.84 | D30: =Temp!$E30-C30 -> 2.545391417 | E30: =B30-Temp!$E30 -> 9.394608583 | F30: =Data!I30 -> 1.2 | G30: =Precip!C30 -> 0.34 | H30: =Precip!$E30-G30 -> 0.86 | I30: =F30-Precip!$E30 -> 0 | J30: =Data!D30 -> 87.8 | K30: =Humid!C30 -> 70.8 | L30: =Humid!$E30-K30 -> 2.045836389 | M30: =J30-Humid!$E30 -> 14.95416361 | N30: =Data!E30 -> 122.1 | O30: =WinD!C30 -> 122.1 | P30: =WinD!$E30-O30 -> 0 | Q30: =N30-WinD!$E30 -> 0 | R30: =Data!F30 -> 2.2 | S30: =Win!C30 -> 2.2 | T30: =Win!$E30-S30 -> 0 | U30: =R30-Win!$E30 -> 0 | V30: =Data!H30 -> 99.4 | W30: =Pressure!C30 -> 99.4 | X30: =Pressure!$E30-W30 -> 0 | Y30: =V30-Pressure!$E30 -> 0 | Z30: =Snow!B30 -> 18 | AA30: =Snow!C30 -> 11.67 | AB30: =Snow!$E30-AA30 -> 5.043431445 | AC30: =Z30-Snow!$E30 -> 1.286568555 | AD30: =Level!B30 -> 4.114 | AE30: =Level!C30 -> 4.055 | AF30: =Level!$E30-AE30 -> 0.059 | AG30: =AD30-Level!$E30 -> 0 | AH30: =Conc_sep!B30 -> 133.0798479 | AI30: =Conc_sep!C30 -> 98.96410788 | AJ30: =Conc_sep!$E30-AI30 -> 12.71300571 | AK30: =AH30-Conc_sep!$E30 -> 21.40273432
A31: =Data!A31 -> 2004-01-24 | B31: =Data!B31 -> -1.1 | C31: =Temp!C31 -> -15.65 | D31: =Temp!$E31-C31 -> 3.181739271 | E31: =B31-Temp!$E31 -> 11.36826073 | F31: =Data!I31 -> 0 | G31: =Precip!C31 -> 0.15 | H31: =Precip!$E31-G31 -> 0 | I31: =F31-Precip!$E31 -> -0.15 | J31: =Data!D31 -> 81.8 | K31: =Humid!C31 -> 73.1 | L31: =Humid!$E31-K31 -> 4.091672777 | M31: =J31-Humid!$E31 -> 4.608327223 | N31: =Data!E31 -> 283.3 | O31: =WinD!C31 -> 156.1 | P31: =WinD!$E31-O31 -> 13.02848139 | Q31: =N31-WinD!$E31 -> 114.1715186 | R31: =Data!F31 -> 5.8 | S31: =Win!C31 -> 2.67 | T31: =Win!$E31-S31 -> 0.5643558928 | U31: =R31-Win!$E31 -> 2.565644107 | V31: =Data!H31 -> 99.7 | W31: =Pressure!C31 -> 99.67 | X31: =Pressure!$E31-W31 -> 0.03 | Y31: =V31-Pressure!$E31 -> 0 | Z31: =Snow!B31 -> 10 | AA31: =Snow!C31 -> 10 | AB31: =Snow!$E31-AA31 -> 0 | AC31: =Z31-Snow!$E31 -> 0 | AD31: =Level!B31 -> 4.107 | AE31: =Level!C31 -> 4.065 | AF31: =Level!$E31-AE31 -> 0.042 | AG31: =AD31-Level!$E31 -> 0 | AH31: =Conc_sep!B31 -> 134.0996169 | AI31: =Conc_sep!C31 -> 100.5141079 | AJ31: =Conc_sep!$E31-AI31 -> 13.46082957 | AK31: =AH31-Conc_sep!$E31 -> 20.1246794
A32: =Data!A32 -> 2004-01-25 | B32: =Data!B32 -> -9.4 | C32: =Temp!C32 -> -14.46 | D32: =Temp!$E32-C32 -> 3.818087125 | E32: =B32-Temp!$E32 -> 1.241912875 | F32: =Data!I32 -> 1.4 | G32: =Precip!C32 -> 0.29 | H32: =Precip!$E32-G32 -> 0.9181166859 | I32: =F32-Precip!$E32 -> 0.1918833141 | J32: =Data!D32 -> 71.3 | K32: =Humid!C32 -> 71.3 | L32: =Humid!$E32-K32 -> 0 | M32: =J32-Humid!$E32 -> 0 | N32: =Data!E32 -> 74.2 | O32: =WinD!C32 -> 74.2 | P32: =WinD!$E32-O32 -> 0 | Q32: =N32-WinD!$E32 -> 0 | R32: =Data!F32 -> 5 | S32: =Win!C32 -> 3.14 | T32: =Win!$E32-S32 -> 1.128711786 | U32: =R32-Win!$E32 -> 0.7312882144 | V32: =Data!H32 -> 100.8 | W32: =Pressure!C32 -> 99.94 | X32: =Pressure!$E32-W32 -> 0.1334614698 | Y32: =V32-Pressure!$E32 -> 0.7265385302 | Z32: =Snow!B32 -> 9 | AA32: =Snow!C32 -> 9 | AB32: =Snow!$E32-AA32 -> 0 | AC32: =Z32-Snow!$E32 -> 0 | AD32: =Level!B32 -> 4.071 | AE32: =Level!C32 -> 4.071 | AF32: =Level!$E32-AE32 -> 0 | AG32: =AD32-Level!$E32 -> 0 | AH32: =Conc_sep!B32 -> 135.1351351 | AI32: =Conc_sep!C32 -> 102.0641079 | AJ32: =Conc_sep!$E32-AI32 -> 14.20865344 | AK32: =AH32-Conc_sep!$E32 -> 18.86237381
A33: =Data!A33 -> 2004-01-26 | B33: =Data!B33 -> -18.9 | C33: =Temp!C33 -> -18.9 | D33: =Temp!$E33-C33 -> 0 | E33: =B33-Temp!$E33 -> 0 | F33: =Data!I33 -> 0.4 | G33: =Precip!C33 -> 0.4 | H33: =Precip!$E33-G33 -> 0 | I33: =F33-Precip!$E33 -> 0 | J33: =Data!D33 -> 69.1 | K33: =Humid!C33 -> 69.1 | L33: =Humid!$E33-K33 -> 0 | M33: =J33-Humid!$E33 -> 0 | N33: =Data!E33 -> 40.8 | O33: =WinD!C33 -> 40.8 | P33: =WinD!$E33-O33 -> 0 | Q33: =N33-WinD!$E33 -> 0 | R33: =Data!F33 -> 6.9 | S33: =Win!C33 -> 3.61 | T33: =Win!$E33-S33 -> 1.693067678 | U33: =R33-Win!$E33 -> 1.596932322 | V33: =Data!H33 -> 101.7 | W33: =Pressure!C33 -> 100.21 | X33: =Pressure!$E33-W33 -> 0.2369229397 | Y33: =V33-Pressure!$E33 -> 1.25307706 | Z33: =Snow!B33 -> 11 | AA33: =Snow!C33 -> 9.81 | AB33: =Snow!$E33-AA33 -> 0.7204902064 | AC33: =Z33-Snow!$E33 -> 0.4695097936 | AD33: =Level!B33 -> 4.085 | AE33: =Level!C33 -> 4.081 | AF33: =Level!$E33-AE33 -> 0.004 | AG33: =AD33-Level!$E33 -> 0 | AH33: =Conc_sep!B33 -> 135.6589147 | AI33: =Conc_sep!C33 -> 103.6141079 | AJ33: =Conc_sep!$E33-AI33 -> 14.9564773 | AK33: =AH33-Conc_sep!$E33 -> 17.08832954
A34: =Data!A34 -> 2004-01-27 | B34: =Data!B34 -> -10.3 | C34: =Temp!C34 -> -17.71 | D34: =Temp!$E34-C34 -> 0.6363478542 | E34: =B34-Temp!$E34 -> 6.773652146 | F34: =Data!I34 -> 16.4 | G34: =Precip!C34 -> 0.54 | H34: =Precip!$E34-G34 -> 0.9181166859 | I34: =F34-Precip!$E34 -> 14.94188331 | J34: =Data!D34 -> 82.5 | K34: =Humid!C34 -> 71.4 | L34: =Humid!$E34-K34 -> 2.045836389 | M34: =J34-Humid!$E34 -> 9.054163611 | N34: =Data!E34 -> 72.9 | O34: =WinD!C34 -> 72.9 | P34: =WinD!$E34-O34 -> 0 | Q34: =N34-WinD!$E34 -> 0 | R34: =Data!F34 -> 6.3 | S34: =Win!C34 -> 4.08 | T34: =Win!$E34-S34 -> 2.22 | U34: =R34-Win!$E34 -> 0 | V34: =Data!H34 -> 100.6 | W34: =Pressure!C34 -> 100.48 | X34: =Pressure!$E34-W34 -> 0.12 | Y34: =V34-Pressure!$E34 -> 0 | Z34: =Snow!B34 -> 12 | AA34: =Snow!C34 -> 10.62 | AB34: =Snow!$E34-AA34 -> 1.38 | AC34: =Z34-Snow!$E34 -> 0 | AD34: =Level!B34 -> 4.073 | AE34: =Level!C34 -> 4.073 | AF34: =Level!$E34-AE34 -> 0 | AG34: =AD34-Level!$E34 -> 0 | AH34: =Conc_sep!B34 -> 136.71875 | AI34: =Conc_sep!C34 -> 105.1641079 | AJ34: =Conc_sep!$E34-AI34 -> 15.70430117 | AK34: =AH34-Conc_sep!$E34 -> 15.85034095
A35: =Data!A35 -> 2004-01-28 | B35: =Data!B35 -> 1.8 | C35: =Temp!C35 -> -16.52 | D35: =Temp!$E35-C35 -> 1.272695708 | E35: =B35-Temp!$E35 -> 17.04730429 | F35: =Data!I35 -> 15.2 | G35: =Precip!C35 -> 0.68 | H35: =Precip!$E35-G35 -> 1.836233372 | I35: =F35-Precip!$E35 -> 12.68376663 | J35: =Data!D35 -> 91.4 | K35: =Humid!C35 -> 73.7 | L35: =Humid!$E35-K35 -> 4.091672777 | M35: =J35-Humid!$E35 -> 13.60832722 | N35: =Data!E35 -> 165.4 | O35: =WinD!C35 -> 106.9 | P35: =WinD!$E35-O35 -> 13.02848139 | Q35: =N35-WinD!$E35 -> 45.47151861 | R35: =Data!F35 -> 5.2 | S35: =Win!C35 -> 4.55 | T35: =Win!$E35-S35 -> 0.65 | U35: =R35-Win!$E35 -> 0 | V35: =Data!H35 -> 98 | W35: =Pressure!C35 -> 98 | X35: =Pressure!$E35-W35 -> 0 | Y35: =V35-Pressure!$E35 -> 0 | Z35: =Snow!B35 -> 7 | AA35: =Snow!C35 -> 7 | AB35: =Snow!$E35-AA35 -> 0 | AC35: =Z35-Snow!$E35 -> 0 | AD35: =Level!B35 -> 4.08 | AE35: =Level!C35 -> 4.08 | AF35: =Level!$E35-AE35 -> 0 | AG35: =AD35-Level!$E35 -> 0 | AH35: =Conc_sep!B35 -> 137.254902 | AI35: =Conc_sep!C35 -> 106.7141079 | AJ35: =Conc_sep!$E35-AI35 -> 16.45212503 | AK35: =AH35-Conc_sep!$E35 -> 14.08866904
A36: =Data!A36 -> 2004-01-29 | B36: =Data!B36 -> -8.6 | C36: =Temp!C36 -> -15.33 | D36: =Temp!$E36-C36 -> 1.909043563 | E36: =B36-Temp!$E36 -> 4.820956437 | F36: =Data!I36 -> 0.2 | G36: =Precip!C36 -> 0.2 | H36: =Precip!$E36-G36 -> 0 | I36: =F36-Precip!$E36 -> 0 | J36: =Data!D36 -> 74.3 | K36: =Humid!C36 -> 74.3 | L36: =Humid!$E36-K36 -> 0 | M36: =J36-Humid!$E36 -> 0 | N36: =Data!E36 -> 284.2 | O36: =WinD!C36 -> 140.9 | P36: =WinD!$E36-O36 -> 26.05696277 | Q36: =N36-WinD!$E36 -> 117.2430372 | R36: =Data!F36 -> 4.9 | S36: =Win!C36 -> 4.9 | T36: =Win!$E36-S36 -> 0 | U36: =R36-Win!$E36 -> 0 | V36: =Data!H36 -> 99.5 | W36: =Pressure!C36 -> 98.27 | X36: =Pressure!$E36-W36 -> 0.1034614698 | Y36: =V36-Pressure!$E36 -> 1.12653853 | Z36: =Snow!B36 -> 7 | AA36: =Snow!C36 -> 7 | AB36: =Snow!$E36-AA36 -> 0 | AC36: =Z36-Snow!$E36 -> 0 | AD36: =Level!B36 -> 4.092 | AE36: =Level!C36 -> 4.09 | AF36: =Level!$E36-AE36 -> 0.002 | AG36: =AD36-Level!$E36 -> 0 | AH36: =Conc_sep!B36 -> 137.7952756 | AI36: =Conc_sep!C36 -> 108.2641079 | AJ36: =Conc_sep!$E36-AI36 -> 17.1999489 | AK36: =AH36-Conc_sep!$E36 -> 12.33121881
A37: =Data!A37 -> 2004-01-30 | B37: =Data!B37 -> -17.2 | C37: =Temp!C37 -> -17.2 | D37: =Temp!$E37-C37 -> 0 | E37: =B37-Temp!$E37 -> 0 | F37: =Data!I37 -> 0 | G37: =Precip!C37 -> 0 | H37: =Precip!$E37-G37 -> 0 | I37: =F37-Precip!$E37 -> 0 | J37: =Data!D37 -> 66.2 | K37: =Humid!C37 -> 66.2 | L37: =Humid!$E37-K37 -> 0 | M37: =J37-Humid!$E37 -> 0 | N37: =Data!E37 -> 334.6 | O37: =WinD!C37 -> 174.9 | P37: =WinD!$E37-O37 -> 39.08544416 | Q37: =N37-WinD!$E37 -> 120.6145558 | R37: =Data!F37 -> 5.3 | S37: =Win!C37 -> 5.3 | T37: =Win!$E37-S37 -> 0 | U37: =R37-Win!$E37 -> 0 | V37: =Data!H37 -> 100.7 | W37: =Pressure!C37 -> 98.54 | X37: =Pressure!$E37-W37 -> 0.2069229397 | Y37: =V37-Pressure!$E37 -> 1.95307706 | Z37: =Snow!B37 -> 7 | AA37: =Snow!C37 -> 7 | AB37: =Snow!$E37-AA37 -> 0 | AC37: =Z37-Snow!$E37 -> 0 | AD37: =Level!B37 -> 4.091 | AE37: =Level!C37 -> 4.091 | AF37: =Level!$E37-AE37 -> 0 | AG37: =AD37-Level!$E37 -> 0 | AH37: =Conc_sep!B37 -> 138.3399209 | AI37: =Conc_sep!C37 -> 109.8141079 | AJ37: =Conc_sep!$E37-AI37 -> 17.94777276 | AK37: =AH37-Conc_sep!$E37 -> 10.5780403
A38: =Data!A38 -> 2004-01-31 | B38: =Data!B38 -> -17.5 | C38: =Temp!C38 -> -17.5 | D38: =Temp!$E38-C38 -> 0 | E38: =B38-Temp!$E38 -> 0 | F38: =Data!I38 -> 0 | G38: =Precip!C38 -> 0 | H38: =Precip!$E38-G38 -> 0 | I38: =F38-Precip!$E38 -> 0 | J38: =Data!D38 -> 66.2 | K38: =Humid!C38 -> 66.2 | L38: =Humid!$E38-K38 -> 0 | M38: =J38-Humid!$E38 -> 0 | N38: =Data!E38 -> 335 | O38: =WinD!C38 -> 208.9 | P38: =WinD!$E38-O38 -> 52.11392555 | Q38: =N38-WinD!$E38 -> 73.98607445 | R38: =Data!F38 -> 5.3 | S38: =Win!C38 -> 5.3 | T38: =Win!$E38-S38 -> 0 | U38: =R38-Win!$E38 -> 0 | V38: =Data!H38 -> 100.8 | W38: =Pressure!C38 -> 98.81 | X38: =Pressure!$E38-W38 -> 0.3103844095 | Y38: =V38-Pressure!$E38 -> 1.679615591 | Z38: =Snow!B38 -> 7 | AA38: =Snow!C38 -> 7 | AB38: =Snow!$E38-AA38 -> 0 | AC38: =Z38-Snow!$E38 -> 0 | AD38: =Level!B38 -> 4.094 | AE38: =Level!C38 -> 4.094 | AF38: =Level!$E38-AE38 -> 0 | AG38: =AD38-Level!$E38 -> 0 | AH38: =Conc_sep!B38 -> 139.4422311 | AI38: =Conc_sep!C38 -> 111.3641079 | AJ38: =Conc_sep!$E38-AI38 -> 18.69559663 | AK38: =AH38-Conc_sep!$E38 -> 9.382526562
A39: =Data!A39 -> 2004-02-01 | B39: =Data!B39 -> -14.2 | C39: =Temp!C39 -> -16.31 | D39: =Temp!$E39-C39 -> 0.6363478542 | E39: =B39-Temp!$E39 -> 1.473652146 | F39: =Data!I39 -> 0 | G39: =Precip!C39 -> 0.14 | H39: =Precip!$E39-G39 -> 0.01 | I39: =F39-Precip!$E39 -> -0.15 | J39: =Data!D39 -> 72.2 | K39: =Humid!C39 -> 68.5 | L39: =Humid!$E39-K39 -> 2.045836389 | M39: =J39-Humid!$E39 -> 1.654163611 | N39: =Data!E39 -> 246.8 | O39: =WinD!C39 -> 242.9 | P39: =WinD!$E39-O39 -> 3.9 | Q39: =N39-WinD!$E39 -> 0 | R39: =Data!F39 -> 3.9 | S39: =Win!C39 -> 3.9 | T39: =Win!$E39-S39 -> 0 | U39: =R39-Win!$E39 -> 0 | V39: =Data!H39 -> 100 | W39: =Pressure!C39 -> 99.08 | X39: =Pressure!$E39-W39 -> 0.4138458793 | Y39: =V39-Pressure!$E39 -> 0.5061541207 | Z39: =Snow!B39 -> 6 | AA39: =Snow!C39 -> 6 | AB39: =Snow!$E39-AA39 -> 0 | AC39: =Z39-Snow!$E39 -> 0 | AD39: =Level!B39 -> 4.096 | AE39: =Level!C39 -> 4.096 | AF39: =Level!$E39-AE39 -> 0 | AG39: =AD39-Level!$E39 -> 0 | AH39: =Conc_sep!B39 -> 140 | AI39: =Conc_sep!C39 -> 112.9141079 | AJ39: =Conc_sep!$E39-AI39 -> 19.4434205 | AK39: =AH39-Conc_sep!$E39 -> 7.642471621
A40: =Data!A40 -> 2004-02-02 | B40: =Data!B40 -> -11 | C40: =Temp!C40 -> -15.12 | D40: =Temp!$E40-C40 -> 1.272695708 | E40: =B40-Temp!$E40 -> 2.847304292 | F40: =Data!I40 -> 0 | G40: =Precip!C40 -> 0.15 | H40: =Precip!$E40-G40 -> 0 | I40: =F40-Precip!$E40 -> -0.15 | J40: =Data!D40 -> 72.2 | K40: =Humid!C40 -> 70.8 | L40: =Humid!$E40-K40 -> 1.4 | M40: =J40-Humid!$E40 -> 0 | N40: =Data!E40 -> 200 | O40: =WinD!C40 -> 200 | P40: =WinD!$E40-O40 -> 0 | Q40: =N40-WinD!$E40 -> 0 | R40: =Data!F40 -> 5.6 | S40: =Win!C40 -> 4.37 | T40: =Win!$E40-S40 -> 0.5643558928 | U40: =R40-Win!$E40 -> 0.6656441072 | V40: =Data!H40 -> 99.7 | W40: =Pressure!C40 -> 99.35 | X40: =Pressure!$E40-W40 -> 0.35 | Y40: =V40-Pressure!$E40 -> 0 | Z40: =Snow!B40 -> 6 | AA40: =Snow!C40 -> 6 | AB40: =Snow!$E40-AA40 -> 0 | AC40: =Z40-Snow!$E40 -> 0 | AD40: =Level!B40 -> 4.084 | AE40: =Level!C40 -> 4.084 | AF40: =Level!$E40-AE40 -> 0 | AG40: =AD40-Level!$E40 -> 0 | AH40: =Conc_sep!B40 -> 140.562249 | AI40: =Conc_sep!C40 -> 114.4641079 | AJ40: =Conc_sep!$E40-AI40 -> 20.19124436 | AK40: =AH40-Conc_sep!$E40 -> 5.906896752
A41: =Data!A41 -> 2004-02-03 | B41: =Data!B41 -> -9 | C41: =Temp!C41 -> -13.93 | D41: =Temp!$E41-C41 -> 1.909043563 | E41: =B41-Temp!$E41 -> 3.020956437 | F41: =Data!I41 -> 0.4 | G41: =Precip!C41 -> 0.29 | H41: =Precip!$E41-G41 -> 0.11 | I41: =F41-Precip!$E41 -> 0 | J41: =Data!D41 -> 70.8 | K41: =Humid!C41 -> 70.8 | L41: =Humid!$E41-K41 -> 0 | M41: =J41-Humid!$E41 -> 0 | N41: =Data!E41 -> 250.8 | O41: =WinD!C41 -> 234 | P41: =WinD!$E41-O41 -> 13.02848139 | Q41: =N41-WinD!$E41 -> 3.771518614 | R41: =Data!F41 -> 8.1 | S41: =Win!C41 -> 4.84 | T41: =Win!$E41-S41 -> 1.128711786 | U41: =R41-Win!$E41 -> 2.131288214 | V41: =Data!H41 -> 99.2 | W41: =Pressure!C41 -> 99.2 | X41: =Pressure!$E41-W41 -> 0 | Y41: =V41-Pressure!$E41 -> 0 | Z41: =Snow!B41 -> 8 | AA41: =Snow!C41 -> 6.81 | AB41: =Snow!$E41-AA41 -> 0.7204902064 | AC41: =Z41-Snow!$E41 -> 0.4695097936 | AD41: =Level!B41 -> 4.118 | AE41: =Level!C41 -> 4.094 | AF41: =Level!$E41-AE41 -> 0.024 | AG41: =AD41-Level!$E41 -> 0 | AH41: =Conc_sep!B41 -> 135.6589147 | AI41: =Conc_sep!C41 -> 116.0141079 | AJ41: =Conc_sep!$E41-AI41 -> 19.64480684 | AK41: =AH41-Conc_sep!$E41 -> 0
A42: =Data!A42 -> 2004-02-04 | B42: =Data!B42 -> -8.6 | C42: =Temp!C42 -> -12.74 | D42: =Temp!$E42-C42 -> 2.545391417 | E42: =B42-Temp!$E42 -> 1.594608583 | F42: =Data!I42 -> 0 | G42: =Precip!C42 -> 0.15 | H42: =Precip!$E42-G42 -> 0 | I42: =F42-Precip!$E42 -> -0.15 | J42: =Data!D42 -> 69.7 | K42: =Humid!C42 -> 69.7 | L42: =Humid!$E42-K42 -> 0 | M42: =J42-Humid!$E42 -> 0 | N42: =Data!E42 -> 182.9 | O42: =WinD!C42 -> 182.9 | P42: =WinD!$E42-O42 -> 0 | Q42: =N42-WinD!$E42 -> 0 | R42: =Data!F42 -> 5.1 | S42: =Win!C42 -> 5.1 | T42: =Win!$E42-S42 -> 0 | U42: =R42-Win!$E42 -> 0 | V42: =Data!H42 -> 99.6 | W42: =Pressure!C42 -> 99.47 | X42: =Pressure!$E42-W42 -> 0.1034614698 | Y42: =V42-Pressure!$E42 -> 0.02653853017 | Z42: =Snow!B42 -> 7 | AA42: =Snow!C42 -> 7 | AB42: =Snow!$E42-AA42 -> 0 | AC42: =Z42-Snow!$E42 -> 0 | AD42: =Level!B42 -> 4.15 | AE42: =Level!C42 -> 4.104 | AF42: =Level!$E42-AE42 -> 0.046 | AG42: =AD42-Level!$E42 -> 0 | AH42: =Conc_sep!B42 -> 136.71875 | AI42: =Conc_sep!C42 -> 117.5641079 | AJ42: =Conc_sep!$E42-AI42 -> 19.15464212 | AK42: =AH42-Conc_sep!$E42 -> 0
A43: =Data!A43 -> 2004-02-05 | B43: =Data!B43 -> -8.4 | C43: =Temp!C43 -> -11.55 | D43: =Temp!$E43-C43 -> 3.15 | E43: =B43-Temp!$E43 -> 0 | F43: =Data!I43 -> 0 | G43: =Precip!C43 -> 0.15 | H43: =Precip!$E43-G43 -> 0 | I43: =F43-Precip!$E43 -> -0.15 | J43: =Data!D43 -> 70.2 | K43: =Humid!C43 -> 70.2 | L43: =Humid!$E43-K43 -> 0 | M43: =J43-Humid!$E43 -> 0 | N43: =Data!E43 -> 210.4 | O43: =WinD!C43 -> 210.4 | P43: =WinD!$E43-O43 -> 0 | Q43: =N43-WinD!$E43 -> 0 | R43: =Data!F43 -> 4.4 | S43: =Win!C43 -> 4.4 | T43: =Win!$E43-S43 -> 0 | U43: =R43-Win!$E43 -> 0 | V43: =Data!H43 -> 98.9 | W43: =Pressure!C43 -> 98.9 | X43: =Pressure!$E43-W43 -> 0 | Y43: =V43-Pressure!$E43 -> 0 | Z43: =Snow!B43 -> 6 | AA43: =Snow!C43 -> 6 | AB43: =Snow!$E43-AA43 -> 0 | AC43: =Z43-Snow!$E43 -> 0 | AD43: =Level!B43 -> 4.114 | AE43: =Level!C43 -> 4.114 | AF43: =Level!$E43-AE43 -> 0 | AG43: =AD43-Level!$E43 -> 0 | AH43: =Conc_sep!B43 -> 137.254902 | AI43: =Conc_sep!C43 -> 119.1141079 | AJ43: =Conc_sep!$E43-AI43 -> 18.14079408 | AK43: =AH43-Conc_sep!$E43 -> 0
A44: =Data!A44 -> 2004-02-06 | B44: =Data!B44 -> -8.2 | C44: =Temp!C44 -> -10.36 | D44: =Temp!$E44-C44 -> 2.16 | E44: =B44-Temp!$E44 -> 0 | F44: =Data!I44 -> 0 | G44: =Precip!C44 -> 0.15 | H44: =Precip!$E44-G44 -> 0 | I44: =F44-Precip!$E44 -> -0.15 | J44: =Data!D44 -> 76.4 | K44: =Humid!C44 -> 72.5 | L44: =Humid!$E44-K44 -> 2.045836389 | M44: =J44-Humid!$E44 -> 1.854163611 | N44: =Data!E44 -> 237.9 | O44: =WinD!C44 -> 237.9 | P44: =WinD!$E44-O44 -> 0 | Q44: =N44-WinD!$E44 -> 0 | R44: =Data!F44 -> 3.7 | S44: =Win!C44 -> 3.7 | T44: =Win!$E44-S44 -> 0 | U44: =R44-Win!$E44 -> 0 | V44: =Data!H44 -> 99.3 | W44: =Pressure!C44 -> 99.17 | X44: =Pressure!$E44-W44 -> 0.1034614698 | Y44: =V44-Pressure!$E44 -> 0.02653853017 | Z44: =Snow!B44 -> 6 | AA44: =Snow!C44 -> 6 | AB44: =Snow!$E44-AA44 -> 0 | AC44: =Z44-Snow!$E44 -> 0 | AD44: =Level!B44 -> 4.171 | AE44: =Level!C44 -> 4.124 | AF44: =Level!$E44-AE44 -> 0.02525920632 | AG44: =AD44-Level!$E44 -> 0.02174079368 | AH44: =Conc_sep!B44 -> 138.3399209 | AI44: =Conc_sep!C44 -> 120.6641079 | AJ44: =Conc_sep!$E44-AI44 -> 17.67581306 | AK44: =AH44-Conc_sep!$E44 -> 0
A45: =Data!A45 -> 2004-02-07 | B45: =Data!B45 -> -14.4 | C45: =Temp!C45 -> -14.4 | D45: =Temp!$E45-C45 -> 0 | E45: =B45-Temp!$E45 -> 0 | F45: =Data!I45 -> 0 | G45: =Precip!C45 -> 0 | H45: =Precip!$E45-G45 -> 0 | I45: =F45-Precip!$E45 -> 0 | J45: =Data!D45 -> 61.8 | K45: =Humid!C45 -> 61.8 | L45: =Humid!$E45-K45 -> 0 | M45: =J45-Humid!$E45 -> 0 | N45: =Data!E45 -> 275 | O45: =WinD!C45 -> 271.9 | P45: =WinD!$E45-O45 -> 3.1 | Q45: =N45-WinD!$E45 -> 0 | R45: =Data!F45 -> 4.5 | S45: =Win!C45 -> 4.17 | T45: =Win!$E45-S45 -> 0.33 | U45: =R45-Win!$E45 -> 0 | V45: =Data!H45 -> 100.4 | W45: =Pressure!C45 -> 99.44 | X45: =Pressure!$E45-W45 -> 0.2069229397 | Y45: =V45-Pressure!$E45 -> 0.7530770603 | Z45: =Snow!B45 -> 5 | AA45: =Snow!C45 -> 5 | AB45: =Snow!$E45-AA45 -> 0 | AC45: =Z45-Snow!$E45 -> 0 | AD45: =Level!B45 -> 4.17 | AE45: =Level!C45 -> 4.134 | AF45: =Level!$E45-AE45 -> 0.036 | AG45: =AD45-Level!$E45 -> 0 | AH45: =Conc_sep!B45 -> 138.3399209 | AI45: =Conc_sep!C45 -> 122.2141079 | AJ45: =Conc_sep!$E45-AI45 -> 16.12581306 | AK45: =AH45-Conc_sep!$E45 -> 0
A46: =Data!A46 -> 2004-02-08 | B46: =Data!B46 -> -16.5 | C46: =Temp!C46 -> -16.5 | D46: =Temp!$E46-C46 -> 0 | E46: =B46-Temp!$E46 -> 0 | F46: =Data!I46 -> 2.6 | G46: =Precip!C46 -> 0.14 | H46: =Precip!$E46-G46 -> 0.9181166859 | I46: =F46-Precip!$E46 -> 1.541883314 | J46: =Data!D46 -> 71.9 | K46: =Humid!C46 -> 64.1 | L46: =Humid!$E46-K46 -> 2.045836389 | M46: =J46-Humid!$E46 -> 5.754163611 | N46: =Data!E46 -> 77.5 | O46: =WinD!C46 -> 77.5 | P46: =WinD!$E46-O46 -> 0 | Q46: =N46-WinD!$E46 -> 0 | R46: =Data!F46 -> 6.4 | S46: =Win!C46 -> 4.64 | T46: =Win!$E46-S46 -> 0.8943558928 | U46: =R46-Win!$E46 -> 0.8656441072 | V46: =Data!H46 -> 100.3 | W46: =Pressure!C46 -> 99.71 | X46: =Pressure!$E46-W46 -> 0.3103844095 | Y46: =V46-Pressure!$E46 -> 0.2796155905 | Z46: =Snow!B46 -> 5 | AA46: =Snow!C46 -> 5 | AB46: =Snow!$E46-AA46 -> 0 | AC46: =Z46-Snow!$E46 -> 0 | AD46: =Level!B46 -> 4.101 | AE46: =Level!C46 -> 4.101 | AF46: =Level!$E46-AE46 -> 0 | AG46: =AD46-Level!$E46 -> 0 | AH46: =Conc_sep!B46 -> 138.8888889 | AI46: =Conc_sep!C46 -> 123.7641079 | AJ46: =Conc_sep!$E46-AI46 -> 15.12478101 | AK46: =AH46-Conc_sep!$E46 -> 0
A47: =Data!A47 -> 2004-02-09 | B47: =Data!B47 -> -17.1 | C47: =Temp!C47 -> -17.1 | D47: =Temp!$E47-C47 -> 0 | E47: =B47-Temp!$E47 -> 0 | F47: =Data!I47 -> 0.2 | G47: =Precip!C47 -> 0.2 | H47: =Precip!$E47-G47 -> 0 | I47: =F47-Precip!$E47 -> 0 | J47: =Data!D47 -> 69.7 | K47: =Humid!C47 -> 66.4 | L47: =Humid!$E47-K47 -> 3.3 | M47: =J47-Humid!$E47 -> 0 | N47: =Data!E47 -> 210 | O47: =WinD!C47 -> 111.5 | P47: =WinD!$E47-O47 -> 13.02848139 | Q47: =N47-WinD!$E47 -> 85.47151861 | R47: =Data!F47 -> 6.8 | S47: =Win!C47 -> 5.11 | T47: =Win!$E47-S47 -> 1.458711786 | U47: =R47-Win!$E47 -> 0.2312882144 | V47: =Data!H47 -> 99.7 | W47: =Pressure!C47 -> 99.7 | X47: =Pressure!$E47-W47 -> 0 | Y47: =V47-Pressure!$E47 -> 0 | Z47: =Snow!B47 -> 9 | AA47: =Snow!C47 -> 5.81 | AB47: =Snow!$E47-AA47 -> 0.7204902064 | AC47: =Z47-Snow!$E47 -> 2.469509794 | AD47: =Level!B47 -> 4.166 | AE47: =Level!C47 -> 4.111 | AF47: =Level!$E47-AE47 -> 0.02525920632 | AG47: =AD47-Level!$E47 -> 0.02974079368 | AH47: =Conc_sep!B47 -> 139.4422311 | AI47: =Conc_sep!C47 -> 125.3141079 | AJ47: =Conc_sep!$E47-AI47 -> 14.12812319 | AK47: =AH47-Conc_sep!$E47 -> 0
A48: =Data!A48 -> 2004-02-10 | B48: =Data!B48 -> -17.4 | C48: =Temp!C48 -> -17.4 | D48: =Temp!$E48-C48 -> 0 | E48: =B48-Temp!$E48 -> 0 | F48: =Data!I48 -> 2.8 | G48: =Precip!C48 -> 0.34 | H48: =Precip!$E48-G48 -> 0.9181166859 | I48: =F48-Precip!$E48 -> 1.541883314 | J48: =Data!D48 -> 68.3 | K48: =Humid!C48 -> 68.3 | L48: =Humid!$E48-K48 -> 0 | M48: =J48-Humid!$E48 -> 0 | N48: =Data!E48 -> 189.6 | O48: =WinD!C48 -> 145.5 | P48: =WinD!$E48-O48 -> 26.05696277 | Q48: =N48-WinD!$E48 -> 18.04303723 | R48: =Data!F48 -> 3.5 | S48: =Win!C48 -> 3.5 | T48: =Win!$E48-S48 -> 0 | U48: =R48-Win!$E48 -> 0 | V48: =Data!H48 -> 101.2 | W48: =Pressure!C48 -> 99.97 | X48: =Pressure!$E48-W48 -> 0.1034614698 | Y48: =V48-Pressure!$E48 -> 1.12653853 | Z48: =Snow!B48 -> 8 | AA48: =Snow!C48 -> 6.62 | AB48: =Snow!$E48-AA48 -> 1.38 | AC48: =Z48-Snow!$E48 -> 0 | AD48: =Level!B48 -> 4.155 | AE48: =Level!C48 -> 4.121 | AF48: =Level!$E48-AE48 -> 0.034 | AG48: =AD48-Level!$E48 -> 0 | AH48: =Conc_sep!B48 -> 140.562249 | AI48: =Conc_sep!C48 -> 126.8641079 | AJ48: =Conc_sep!$E48-AI48 -> 13.69814111 | AK48: =AH48-Conc_sep!$E48 -> 0
A49: =Data!A49 -> 2004-02-11 | B49: =Data!B49 -> -13.6 | C49: =Temp!C49 -> -16.21 | D49: =Temp!$E49-C49 -> 0.6363478542 | E49: =B49-Temp!$E49 -> 1.973652146 | F49: =Data!I49 -> 0 | G49: =Precip!C49 -> 0.15 | H49: =Precip!$E49-G49 -> 0 | I49: =F49-Precip!$E49 -> -0.15 | J49: =Data!D49 -> 71.7 | K49: =Humid!C49 -> 70.6 | L49: =Humid!$E49-K49 -> 1.1 | M49: =J49-Humid!$E49 -> 0 | N49: =Data!E49 -> 205.8 | O49: =WinD!C49 -> 179.5 | P49: =WinD!$E49-O49 -> 26.3 | Q49: =N49-WinD!$E49 -> 0 | R49: =Data!F49 -> 3.9 | S49: =Win!C49 -> 3.9 | T49: =Win!$E49-S49 -> 0 | U49: =R49-Win!$E49 -> 0 | V49: =Data!H49 -> 100.7 | W49: =Pressure!C49 -> 100.24 | X49: =Pressure!$E49-W49 -> 0.2069229397 | Y49: =V49-Pressure!$E49 -> 0.2530770603 | Z49: =Snow!B49 -> 11 | AA49: =Snow!C49 -> 7.43 | AB49: =Snow!$E49-AA49 -> 2.100490206 | AC49: =Z49-Snow!$E49 -> 1.469509794 | AD49: =Level!B49 -> 4.145 | AE49: =Level!C49 -> 4.131 | AF49: =Level!$E49-AE49 -> 0.014 | AG49: =AD49-Level!$E49 -> 0 | AH49: =Conc_sep!B49 -> 141.1290323 | AI49: =Conc_sep!C49 -> 128.4141079 | AJ49: =Conc_sep!$E49-AI49 -> 12.71492437 | AK49: =AH49-Conc_sep!$E49 -> 0
A50: =Data!A50 -> 2004-02-12 | B50: =Data!B50 -> -9.9 | C50: =Temp!C50 -> -15.02 | D50: =Temp!$E50-C50 -> 1.272695708 | E50: =B50-Temp!$E50 -> 3.847304292 | F50: =Data!I50 -> 1.4 | G50: =Precip!C50 -> 0.29 | H50: =Precip!$E50-G50 -> 0.9181166859 | I50: =F50-Precip!$E50 -> 0.1918833141 | J50: =Data!D50 -> 79.6 | K50: =Humid!C50 -> 72.9 | L50: =Humid!$E50-K50 -> 3.145836389 | M50: =J50-Humid!$E50 -> 3.554163611 | N50: =Data!E50 -> 181.3 | O50: =WinD!C50 -> 181.3 | P50: =WinD!$E50-O50 -> 0 | Q50: =N50-WinD!$E50 -> 0 | R50: =Data!F50 -> 4.6 | S50: =Win!C50 -> 4.37 | T50: =Win!$E50-S50 -> 0.23 | U50: =R50-Win!$E50 -> 0 | V50: =Data!H50 -> 100.3 | W50: =Pressure!C50 -> 100.3 | X50: =Pressure!$E50-W50 -> 0 | Y50: =V50-Pressure!$E50 -> 0 | Z50: =Snow!B50 -> 9 | AA50: =Snow!C50 -> 8.24 | AB50: =Snow!$E50-AA50 -> 0.76 | AC50: =Z50-Snow!$E50 -> 0 | AD50: =Level!B50 -> 4.141 | AE50: =Level!C50 -> 4.141 | AF50: =Level!$E50-AE50 -> 0 | AG50: =AD50-Level!$E50 -> 0 | AH50: =Conc_sep!B50 -> 141.7004049 | AI50: =Conc_sep!C50 -> 129.9641079 | AJ50: =Conc_sep!$E50-AI50 -> 11.73629697 | AK50: =AH50-Conc_sep!$E50 -> 0
A51: =Data!A51 -> 2004-02-13 | B51: =Data!B51 -> -5.2 | C51: =Temp!C51 -> -13.83 | D51: =Temp!$E51-C51 -> 1.909043563 | E51: =B51-Temp!$E51 -> 6.720956437 | F51: =Data!I51 -> 1.6 | G51: =Precip!C51 -> 0.43 | H51: =Precip!$E51-G51 -> 1.17 | I51: =F51-Precip!$E51 -> 0 | J51: =Data!D51 -> 82.2 | K51: =Humid!C51 -> 75.2 | L51: =Humid!$E51-K51 -> 5.191672777 | M51: =J51-Humid!$E51 -> 1.808327223 | N51: =Data!E51 -> 273.8 | O51: =WinD!C51 -> 215.3 | P51: =WinD!$E51-O51 -> 13.02848139 | Q51: =N51-WinD!$E51 -> 45.47151861 | R51: =Data!F51 -> 6.4 | S51: =Win!C51 -> 4.84 | T51: =Win!$E51-S51 -> 0.7943558928 | U51: =R51-Win!$E51 -> 0.7656441072 | V51: =Data!H51 -> 99.3 | W51: =Pressure!C51 -> 99.3 | X51: =Pressure!$E51-W51 -> 0 | Y51: =V51-Pressure!$E51 -> 0 | Z51: =Snow!B51 -> 12 | AA51: =Snow!C51 -> 9.05 | AB51: =Snow!$E51-AA51 -> 1.480490206 | AC51: =Z51-Snow!$E51 -> 1.469509794 | AD51: =Level!B51 -> 4.137 | AE51: =Level!C51 -> 4.137 | AF51: =Level!$E51-AE51 -> 0 | AG51: =AD51-Level!$E51 -> 0 | AH51: =Conc_sep!B51 -> 142.2764228 | AI51: =Conc_sep!C51 -> 131.5141079 | AJ51: =Conc_sep!$E51-AI51 -> 10.76231488 | AK51: =AH51-Conc_sep!$E51 -> 0
A52: =Data!A52 -> 2004-02-14 | B52: =Data!B52 -> -11.9 | C52: =Temp!C52 -> -12.64 | D52: =Temp!$E52-C52 -> 0.74 | E52: =B52-Temp!$E52 -> 0 | F52: =Data!I52 -> 0 | G52: =Precip!C52 -> 0.15 | H52: =Precip!$E52-G52 -> 0 | I52: =F52-Precip!$E52 -> -0.15 | J52: =Data!D52 -> 64.7 | K52: =Humid!C52 -> 64.7 | L52: =Humid!$E52-K52 -> 0 | M52: =J52-Humid!$E52 -> 0 | N52: =Data!E52 -> 231.7 | O52: =WinD!C52 -> 231.7 | P52: =WinD!$E52-O52 -> 0 | Q52: =N52-WinD!$E52 -> 0 | R52: =Data!F52 -> 3.9 | S52: =Win!C52 -> 3.9 | T52: =Win!$E52-S52 -> 0 | U52: =R52-Win!$E52 -> 0 | V52: =Data!H52 -> 100.2 | W52: =Pressure!C52 -> 99.57 | X52: =Pressure!$E52-W52 -> 0.1034614698 | Y52: =V52-Pressure!$E52 -> 0.5265385302 | Z52: =Snow!B52 -> 12 | AA52: =Snow!C52 -> 9.86 | AB52: =Snow!$E52-AA52 -> 2.14 | AC52: =Z52-Snow!$E52 -> 0 | AD52: =Level!B52 -> 4.113 | AE52: =Level!C52 -> 4.113 | AF52: =Level!$E52-AE52 -> 0 | AG52: =AD52-Level!$E52 -> 0 | AH52: =Conc_sep!B52 -> 142.8571429 | AI52: =Conc_sep!C52 -> 133.0641079 | AJ52: =Conc_sep!$E52-AI52 -> 9.793034973 | AK52: =AH52-Conc_sep!$E52 -> 0
A53: =Data!A53 -> 2004-02-15 | B53: =Data!B53 -> -4.1 | C53: =Temp!C53 -> -11.45 | D53: =Temp!$E53-C53 -> 1.376347854 | E53: =B53-Temp!$E53 -> 5.973652146 | F53: =Data!I53 -> 0 | G53: =Precip!C53 -> 0 | H53: =Precip!$E53-G53 -> 0 | I53: =F53-Precip!$E53 -> 0 | J53: =Data!D53 -> 76.6 | K53: =Humid!C53 -> 67 | L53: =Humid!$E53-K53 -> 2.045836389 | M53: =J53-Humid!$E53 -> 7.554163611 | N53: =Data!E53 -> 207.5 | O53: =WinD!C53 -> 207.5 | P53: =WinD!$E53-O53 -> 0 | Q53: =N53-WinD!$E53 -> 0 | R53: =Data!F53 -> 5.5 | S53: =Win!C53 -> 4.37 | T53: =Win!$E53-S53 -> 0.5643558928 | U53: =R53-Win!$E53 -> 0.5656441072 | V53: =Data!H53 -> 99.4 | W53: =Pressure!C53 -> 99.4 | X53: =Pressure!$E53-W53 -> 0 | Y53: =V53-Pressure!$E53 -> 0 | Z53: =Snow!B53 -> 10 | AA53: =Snow!C53 -> 10 | AB53: =Snow!$E53-AA53 -> 0 | AC53: =Z53-Snow!$E53 -> 0 | AD53: =Level!B53 -> 4.076 | AE53: =Level!C53 -> 4.076 | AF53: =Level!$E53-AE53 -> 0 | AG53: =AD53-Level!$E53 -> 0 | AH53: =Conc_sep!B53 -> 143.442623 | AI53: =Conc_sep!C53 -> 134.6141079 | AJ53: =Conc_sep!$E53-AI53 -> 8.828515067 | AK53: =AH53-Conc_sep!$E53 -> 0
A54: =Data!A54 -> 2004-02-16 | B54: =Data!B54 -> -5.3 | C54: =Temp!C54 -> -10.26 | D54: =Temp!$E54-C54 -> 2.012695708 | E54: =B54-Temp!$E54 -> 2.947304292 | F54: =Data!I54 -> 0 | G54: =Precip!C54 -> 0.14 | H54: =Precip!$E54-G54 -> 0.01 | I54: =F54-Precip!$E54 -> -0.15 | J54: =Data!D54 -> 72.6 | K54: =Humid!C54 -> 69.3 | L54: =Humid!$E54-K54 -> 3.3 | M54: =J54-Humid!$E54 -> 0 | N54: =Data!E54 -> 230.4 | O54: =WinD!C54 -> 230.4 | P54: =WinD!$E54-O54 -> 0 | Q54: =N54-WinD!$E54 -> 0 | R54: =Data!F54 -> 3.4 | S54: =Win!C54 -> 3.4 | T54: =Win!$E54-S54 -> 0 | U54: =R54-Win!$E54 -> 0 | V54: =Data!H54 -> 100.7 | W54: =Pressure!C54 -> 99.67 | X54: =Pressure!$E54-W54 -> 0.1034614698 | Y54: =V54-Pressure!$E54 -> 0.9265385302 | Z54: =Snow!B54 -> 6 | AA54: =Snow!C54 -> 6 | AB54: =Snow!$E54-AA54 -> 0 | AC54: =Z54-Snow!$E54 -> 0 | AD54: =Level!B54 -> 4.107 | AE54: =Level!C54 -> 4.086 | AF54: =Level!$E54-AE54 -> 0.021 | AG54: =AD54-Level!$E54 -> 0 | AH54: =Conc_sep!B54 -> 144.0329218 | AI54: =Conc_sep!C54 -> 136.1641079 | AJ54: =Conc_sep!$E54-AI54 -> 7.868813927 | AK54: =AH54-Conc_sep!$E54 -> 0
A55: =Data!A55 -> 2004-02-17 | B55: =Data!B55 -> -0.4 | C55: =Temp!C55 -> -9.07 | D55: =Temp!$E55-C55 -> 2.649043563 | E55: =B55-Temp!$E55 -> 6.020956437 | F55: =Data!I55 -> 0 | G55: =Precip!C55 -> 0 | H55: =Precip!$E55-G55 -> 0 | I55: =F55-Precip!$E55 -> 0 | J55: =Data!D55 -> 75 | K55: =Humid!C55 -> 71.6 | L55: =Humid!$E55-K55 -> 3.4 | M55: =J55-Humid!$E55 -> 0 | N55: =Data!E55 -> 144.6 | O55: =WinD!C55 -> 144.6 | P55: =WinD!$E55-O55 -> 0 | Q55: =N55-WinD!$E55 -> 0 | R55: =Data!F55 -> 1.4 | S55: =Win!C55 -> 1.4 | T55: =Win!$E55-S55 -> 0 | U55: =R55-Win!$E55 -> 0 | V55: =Data!H55 -> 100.4 | W55: =Pressure!C55 -> 99.94 | X55: =Pressure!$E55-W55 -> 0.2069229397 | Y55: =V55-Pressure!$E55 -> 0.2530770603 | Z55: =Snow!B55 -> 6 | AA55: =Snow!C55 -> 6 | AB55: =Snow!$E55-AA55 -> 0 | AC55: =Z55-Snow!$E55 -> 0 | AD55: =Level!B55 -> 4.108 | AE55: =Level!C55 -> 4.096 | AF55: =Level!$E55-AE55 -> 0.012 | AG55: =AD55-Level!$E55 -> 0 | AH55: =Conc_sep!B55 -> 145.2282158 | AI55: =Conc_sep!C55 -> 137.7141079 | AJ55: =Conc_sep!$E55-AI55 -> 7.514107884 | AK55: =AH55-Conc_sep!$E55 -> 0
A56: =Data!A56 -> 2004-02-18 | B56: =Data!B56 -> -0.3 | C56: =Temp!C56 -> -7.88 | D56: =Temp!$E56-C56 -> 3.285391417 | E56: =B56-Temp!$E56 -> 4.294608583 | F56: =Data!I56 -> 0 | G56: =Precip!C56 -> 0 | H56: =Precip!$E56-G56 -> 0 | I56: =F56-Precip!$E56 -> 0 | J56: =Data!D56 -> 87 | K56: =Humid!C56 -> 73.9 | L56: =Humid!$E56-K56 -> 5.445836389 | M56: =J56-Humid!$E56 -> 7.654163611 | N56: =Data!E56 -> 53.3 | O56: =WinD!C56 -> 53.3 | P56: =WinD!$E56-O56 -> 0 | Q56: =N56-WinD!$E56 -> 0 | R56: =Data!F56 -> 0.9 | S56: =Win!C56 -> 0.9 | T56: =Win!$E56-S56 -> 0 | U56: =R56-Win!$E56 -> 0 | V56: =Data!H56 -> 100.6 | W56: =Pressure!C56 -> 100.21 | X56: =Pressure!$E56-W56 -> 0.3103844095 | Y56: =V56-Pressure!$E56 -> 0.0796155905 | Z56: =Snow!B56 -> 4 | AA56: =Snow!C56 -> 4 | AB56: =Snow!$E56-AA56 -> 0 | AC56: =Z56-Snow!$E56 -> 0 | AD56: =Level!B56 -> 4.12 | AE56: =Level!C56 -> 4.106 | AF56: =Level!$E56-AE56 -> 0.014 | AG56: =AD56-Level!$E56 -> 0 | AH56: =Conc_sep!B56 -> 145.8333333 | AI56: =Conc_sep!C56 -> 139.2641079 | AJ56: =Conc_sep!$E56-AI56 -> 6.56922545 | AK56: =AH56-Conc_sep!$E56 -> 0
A57: =Data!A57 -> 2004-02-19 | B57: =Data!B57 -> 5.5 | C57: =Temp!C57 -> -6.69 | D57: =Temp!$E57-C57 -> 3.921739271 | E57: =B57-Temp!$E57 -> 8.268260729 | F57: =Data!I57 -> 0 | G57: =Precip!C57 -> 0 | H57: =Precip!$E57-G57 -> 0 | I57: =F57-Precip!$E57 -> 0 | J57: =Data!D57 -> 71.1 | K57: =Humid!C57 -> 71.1 | L57: =Humid!$E57-K57 -> 0 | M57: =J57-Humid!$E57 -> 0 | N57: =Data!E57 -> 109.2 | O57: =WinD!C57 -> 87.3 | P57: =WinD!$E57-O57 -> 13.02848139 | Q57: =N57-WinD!$E57 -> 8.871518614 | R57: =Data!F57 -> 1.8 | S57: =Win!C57 -> 1.37 | T57: =Win!$E57-S57 -> 0.43 | U57: =R57-Win!$E57 -> 0 | V57: =Data!H57 -> 100.1 | W57: =Pressure!C57 -> 100.1 | X57: =Pressure!$E57-W57 -> 0 | Y57: =V57-Pressure!$E57 -> 0 | Z57: =Snow!B57 -> 1 | AA57: =Snow!C57 -> 1 | AB57: =Snow!$E57-AA57 -> 0 | AC57: =Z57-Snow!$E57 -> 0 | AD57: =Level!B57 -> 4.125 | AE57: =Level!C57 -> 4.116 | AF57: =Level!$E57-AE57 -> 0.009 | AG57: =AD57-Level!$E57 -> 0 | AH57: =Conc_sep!B57 -> 146.4435146 | AI57: =Conc_sep!C57 -> 140.8141079 | AJ57: =Conc_sep!$E57-AI57 -> 5.629406761 | AK57: =AH57-Conc_sep!$E57 -> 0
A58: =Data!A58 -> 2004-02-20 | B58: =Data!B58 -> 7.7 | C58: =Temp!C58 -> -5.5 | D58: =Temp!$E58-C58 -> 4.558087125 | E58: =B58-Temp!$E58 -> 8.641912875 | F58: =Data!I58 -> 0 | G58: =Precip!C58 -> 0 | H58: =Precip!$E58-G58 -> 0 | I58: =F58-Precip!$E58 -> 0 | J58: =Data!D58 -> 72.4 | K58: =Humid!C58 -> 72.4 | L58: =Humid!$E58-K58 -> 0 | M58: =J58-Humid!$E58 -> 0 | N58: =Data!E58 -> 181.7 | O58: =WinD!C58 -> 121.3 | P58: =WinD!$E58-O58 -> 26.05696277 | Q58: =N58-WinD!$E58 -> 34.34303723 | R58: =Data!F58 -> 4.3 | S58: =Win!C58 -> 1.84 | T58: =Win!$E58-S58 -> 0.9943558928 | U58: =R58-Win!$E58 -> 1.465644107 | V58: =Data!H58 -> 99.5 | W58: =Pressure!C58 -> 99.5 | X58: =Pressure!$E58-W58 -> 0 | Y58: =V58-Pressure!$E58 -> 0 | Z58: =Snow!B58 -> 1 | AA58: =Snow!C58 -> 1 | AB58: =Snow!$E58-AA58 -> 0 | AC58: =Z58-Snow!$E58 -> 0 | AD58: =Level!B58 -> 4.133 | AE58: =Level!C58 -> 4.126 | AF58: =Level!$E58-AE58 -> 0.007 | AG58: =AD58-Level!$E58 -> 0 | AH58: =Conc_sep!B58 -> 144.4176232 | AI58: =Conc_sep!C58 -> 142.3641079 | AJ58: =Conc_sep!$E58-AI58 -> 2.053515345 | AK58: =AH58-Conc_sep!$E58 -> 0
A59: =Data!A59 -> 2004-02-21 | B59: =Data!B59 -> 0.5 | C59: =Temp!C59 -> -4.31 | D59: =Temp!$E59-C59 -> 4.81 | E59: =B59-Temp!$E59 -> 0 | F59: =Data!I59 -> 0 | G59: =Precip!C59 -> 0 | H59: =Precip!$E59-G59 -> 0 | I59: =F59-Precip!$E59 -> 0 | J59: =Data!D59 -> 84.2 | K59: =Humid!C59 -> 74.7 | L59: =Humid!$E59-K59 -> 2.045836389 | M59: =J59-Humid!$E59 -> 7.454163611 | N59: =Data!E59 -> 226.3 | O59: =WinD!C59 -> 155.3 | P59: =WinD!$E59-O59 -> 39.08544416 | Q59: =N59-WinD!$E59 -> 31.91455584 | R59: =Data!F59 -> 4 | S59: =Win!C59 -> 2.31 | T59: =Win!$E59-S59 -> 1.558711786 | U59: =R59-Win!$E59 -> 0.1312882144 | V59: =Data!H59 -> 100.1 | W59: =Pressure!C59 -> 99.77 | X59: =Pressure!$E59-W59 -> 0.1034614698 | Y59: =V59-Pressure!$E59 -> 0.2265385302 | Z59: =Snow!B59 -> 0 | AA59: =Snow!C59 -> 0 | AB59: =Snow!$E59-AA59 -> 0 | AC59: =Z59-Snow!$E59 -> 0 | AD59: =Level!B59 -> 4.154 | AE59: =Level!C59 -> 4.136 | AF59: =Level!$E59-AE59 -> 0.018 | AG59: =AD59-Level!$E59 -> 0 | AH59: =Conc_sep!B59 -> 143.315797 | AI59: =Conc_sep!C59 -> 143.315797 | AJ59: =Conc_sep!$E59-AI59 -> 0 | AK59: =AH59-Conc_sep!$E59 -> 0
A60: =Data!A60 -> 2004-02-22 | B60: =Data!B60 -> -6.5 | C60: =Temp!C60 -> -6.5 | D60: =Temp!$E60-C60 -> 0 | E60: =B60-Temp!$E60 -> 0 | F60: =Data!I60 -> 0 | G60: =Precip!C60 -> 0.14 | H60: =Precip!$E60-G60 -> 0.01 | I60: =F60-Precip!$E60 -> -0.15 | J60: =Data!D60 -> 68.5 | K60: =Humid!C60 -> 68.5 | L60: =Humid!$E60-K60 -> 0 | M60: =J60-Humid!$E60 -> 0 | N60: =Data!E60 -> 231.7 | O60: =WinD!C60 -> 189.3 | P60: =WinD!$E60-O60 -> 42.4 | Q60: =N60-WinD!$E60 -> 0 | R60: =Data!F60 -> 5.6 | S60: =Win!C60 -> 2.78 | T60: =Win!$E60-S60 -> 2.123067678 | U60: =R60-Win!$E60 -> 0.6969323216 | V60: =Data!H60 -> 101 | W60: =Pressure!C60 -> 100.04 | X60: =Pressure!$E60-W60 -> 0.2069229397 | Y60: =V60-Pressure!$E60 -> 0.7530770603 | Z60: =Snow!B60 -> 0 | AA60: =Snow!C60 -> 0 | AB60: =Snow!$E60-AA60 -> 0 | AC60: =Z60-Snow!$E60 -> 0 | AD60: =Level!B60 -> 4.152 | AE60: =Level!C60 -> 4.146 | AF60: =Level!$E60-AE60 -> 0.006 | AG60: =AD60-Level!$E60 -> 0 | AH60: =Conc_sep!B60 -> 135.254501 | AI60: =Conc_sep!C60 -> 135.254501 | AJ60: =Conc_sep!$E60-AI60 -> 0 | AK60: =AH60-Conc_sep!$E60 -> 0
A61: =Data!A61 -> 2004-02-23 | B61: =Data!B61 -> -6.4 | C61: =Temp!C61 -> -6.4 | D61: =Temp!$E61-C61 -> 0 | E61: =B61-Temp!$E61 -> 0 | F61: =Data!I61 -> 9.4 | G61: =Precip!C61 -> 0.28 | H61: =Precip!$E61-G61 -> 0.9281166859 | I61: =F61-Precip!$E61 -> 8.191883314 | J61: =Data!D61 -> 84.8 | K61: =Humid!C61 -> 70.8 | L61: =Humid!$E61-K61 -> 2.045836389 | M61: =J61-Humid!$E61 -> 11.95416361 | N61: =Data!E61 -> 82.1 | O61: =WinD!C61 -> 82.1 | P61: =WinD!$E61-O61 -> 0 | Q61: =N61-WinD!$E61 -> 0 | R61: =Data!F61 -> 10.3 | S61: =Win!C61 -> 3.25 | T61: =Win!$E61-S61 -> 2.687423571 | U61: =R61-Win!$E61 -> 4.362576429 | V61: =Data!H61 -> 99.6 | W61: =Pressure!C61 -> 99.6 | X61: =Pressure!$E61-W61 -> 0 | Y61: =V61-Pressure!$E61 -> 0 | Z61: =Snow!B61 -> 0 | AA61: =Snow!C61 -> 0 | AB61: =Snow!$E61-AA61 -> 0 | AC61: =Z61-Snow!$E61 -> 0 | AD61: =Level!B61 -> 4.131 | AE61: =Level!C61 -> 4.131 | AF61: =Level!$E61-AE61 -> 0 | AG61: =AD61-Level!$E61 -> 0 | AH61: =Conc_sep!B61 -> 129.1512915 | AI61: =Conc_sep!C61 -> 129.1512915 | AJ61: =Conc_sep!$E61-AI61 -> 0 | AK61: =AH61-Conc_sep!$E61 -> 0
A62: =Data!A62 -> 2004-02-24 | B62: =Data!B62 -> -4.3 | C62: =Temp!C62 -> -5.21 | D62: =Temp!$E62-C62 -> 0.6363478542 | E62: =B62-Temp!$E62 -> 0.2736521458 | F62: =Data!I62 -> 0 | G62: =Precip!C62 -> 0.15 | H62: =Precip!$E62-G62 -> 0 | I62: =F62-Precip!$E62 -> -0.15 | J62: =Data!D62 -> 80.5 | K62: =Humid!C62 -> 73.1 | L62: =Humid!$E62-K62 -> 4.091672777 | M62: =J62-Humid!$E62 -> 3.308327223 | N62: =Data!E62 -> 234.2 | O62: =WinD!C62 -> 116.1 | P62: =WinD!$E62-O62 -> 13.02848139 | Q62: =N62-WinD!$E62 -> 105.0715186 | R62: =Data!F62 -> 7.2 | S62: =Win!C62 -> 3.72 | T62: =Win!$E62-S62 -> 3.251779464 | U62: =R62-Win!$E62 -> 0.228220536 | V62: =Data!H62 -> 98.1 | W62: =Pressure!C62 -> 98.1 | X62: =Pressure!$E62-W62 -> 0 | Y62: =V62-Pressure!$E62 -> 0 | Z62: =Snow!B62 -> 6 | AA62: =Snow!C62 -> 0.81 | AB62: =Snow!$E62-AA62 -> 0.7204902064 | AC62: =Z62-Snow!$E62 -> 4.469509794 | AD62: =Level!B62 -> 4.153 | AE62: =Level!C62 -> 4.141 | AF62: =Level!$E62-AE62 -> 0.012 | AG62: =AD62-Level!$E62 -> 0 | AH62: =Conc_sep!B62 -> 130.1115242 | AI62: =Conc_sep!C62 -> 130.1115242 | AJ62: =Conc_sep!$E62-AI62 -> 0 | AK62: =AH62-Conc_sep!$E62 -> 0
A63: =Data!A63 -> 2004-02-25 | B63: =Data!B63 -> -10.6 | C63: =Temp!C63 -> -10.6 | D63: =Temp!$E63-C63 -> 0 | E63: =B63-Temp!$E63 -> 0 | F63: =Data!I63 -> 1.4 | G63: =Precip!C63 -> 0.29 | H63: =Precip!$E63-G63 -> 0.9181166859 | I63: =F63-Precip!$E63 -> 0.1918833141 | J63: =Data!D63 -> 70.6 | K63: =Humid!C63 -> 70.6 | L63: =Humid!$E63-K63 -> 0 | M63: =J63-Humid!$E63 -> 0 | N63: =Data!E63 -> 196.3 | O63: =WinD!C63 -> 150.1 | P63: =WinD!$E63-O63 -> 26.05696277 | Q63: =N63-WinD!$E63 -> 20.14303723 | R63: =Data!F63 -> 4.8 | S63: =Win!C63 -> 4.19 | T63: =Win!$E63-S63 -> 0.61 | U63: =R63-Win!$E63 -> 0 | V63: =Data!H63 -> 99.4 | W63: =Pressure!C63 -> 98.37 | X63: =Pressure!$E63-W63 -> 0.1034614698 | Y63: =V63-Pressure!$E63 -> 0.9265385302 | Z63: =Snow!B63 -> 6 | AA63: =Snow!C63 -> 1.62 | AB63: =Snow!$E63-AA63 -> 1.440980413 | AC63: =Z63-Snow!$E63 -> 2.939019587 | AD63: =Level!B63 -> 4.127 | AE63: =Level!C63 -> 4.127 | AF63: =Level!$E63-AE63 -> 0 | AG63: =AD63-Level!$E63 -> 0 | AH63: =Conc_sep!B63 -> 131.0861423 | AI63: =Conc_sep!C63 -> 131.0861423 | AJ63: =Conc_sep!$E63-AI63 -> 0 | AK63: =AH63-Conc_sep!$E63 -> 0
A64: =Data!A64 -> 2004-02-26 | B64: =Data!B64 -> -13.3 | C64: =Temp!C64 -> -13.3 | D64: =Temp!$E64-C64 -> 0 | E64: =B64-Temp!$E64 -> 0 | F64: =Data!I64 -> 0.4 | G64: =Precip!C64 -> 0.4 | H64: =Precip!$E64-G64 -> 0 | I64: =F64-Precip!$E64 -> 0 | J64: =Data!D64 -> 64 | K64: =Humid!C64 -> 64 | L64: =Humid!$E64-K64 -> 0 | M64: =J64-Humid!$E64 -> 0 | N64: =Data!E64 -> 301.3 | O64: =WinD!C64 -> 184.1 | P64: =WinD!$E64-O64 -> 39.08544416 | Q64: =N64-WinD!$E64 -> 78.11455584 | R64: =Data!F64 -> 7.8 | S64: =Win!C64 -> 4.66 | T64: =Win!$E64-S64 -> 1.174355893 | U64: =R64-Win!$E64 -> 1.965644107 | V64: =Data!H64 -> 100.1 | W64: =Pressure!C64 -> 98.64 | X64: =Pressure!$E64-W64 -> 0.2069229397 | Y64: =V64-Pressure!$E64 -> 1.25307706 | Z64: =Snow!B64 -> 7 | AA64: =Snow!C64 -> 2.43 | AB64: =Snow!$E64-AA64 -> 2.161470619 | AC64: =Z64-Snow!$E64 -> 2.408529381 | AD64: =Level!B64 -> 4.145 | AE64: =Level!C64 -> 4.137 | AF64: =Level!$E64-AE64 -> 0.008 | AG64: =AD64-Level!$E64 -> 0 | AH64: =Conc_sep!B64 -> 130.8423416 | AI64: =Conc_sep!C64 -> 130.8423416 | AJ64: =Conc_sep!$E64-AI64 -> 0 | AK64: =AH64-Conc_sep!$E64 -> 0
A65: =Data!A65 -> 2004-02-27 | B65: =Data!B65 -> -13.7 | C65: =Temp!C65 -> -13.7 | D65: =Temp!$E65-C65 -> 0 | E65: =B65-Temp!$E65 -> 0 | F65: =Data!I65 -> 0 | G65: =Precip!C65 -> 0 | H65: =Precip!$E65-G65 -> 0 | I65: =F65-Precip!$E65 -> 0 | J65: =Data!D65 -> 57 | K65: =Humid!C65 -> 57 | L65: =Humid!$E65-K65 -> 0 | M65: =J65-Humid!$E65 -> 0 | N65: =Data!E65 -> 285 | O65: =WinD!C65 -> 218.1 | P65: =WinD!$E65-O65 -> 52.11392555 | Q65: =N65-WinD!$E65 -> 14.78607445 | R65: =Data!F65 -> 5 | S65: =Win!C65 -> 5 | T65: =Win!$E65-S65 -> 0 | U65: =R65-Win!$E65 -> 0 | V65: =Data!H65 -> 100.9 | W65: =Pressure!C65 -> 98.91 | X65: =Pressure!$E65-W65 -> 0.3103844095 | Y65: =V65-Pressure!$E65 -> 1.679615591 | Z65: =Snow!B65 -> 6 | AA65: =Snow!C65 -> 3.24 | AB65: =Snow!$E65-AA65 -> 2.76 | AC65: =Z65-Snow!$E65 -> 0 | AD65: =Level!B65 -> 4.124 | AE65: =Level!C65 -> 4.124 | AF65: =Level!$E65-AE65 -> 0 | AG65: =AD65-Level!$E65 -> 0 | AH65: =Conc_sep!B65 -> 130.158937 | AI65: =Conc_sep!C65 -> 130.158937 | AJ65: =Conc_sep!$E65-AI65 -> 0 | AK65: =AH65-Conc_sep!$E65 -> 0
A66: =Data!A66 -> 2004-02-28 | B66: =Data!B66 -> -9.7 | C66: =Temp!C66 -> -12.51 | D66: =Temp!$E66-C66 -> 0.6363478542 | E66: =B66-Temp!$E66 -> 2.173652146 | F66: =Data!I66 -> 0 | G66: =Precip!C66 -> 0 | H66: =Precip!$E66-G66 -> 0 | I66: =F66-Precip!$E66 -> 0 | J66: =Data!D66 -> 67.1 | K66: =Humid!C66 -> 59.3 | L66: =Humid!$E66-K66 -> 2.045836389 | M66: =J66-Humid!$E66 -> 5.754163611 | N66: =Data!E66 -> 152.5 | O66: =WinD!C66 -> 152.5 | P66: =WinD!$E66-O66 -> 0 | Q66: =N66-WinD!$E66 -> 0 | R66: =Data!F66 -> 2.1 | S66: =Win!C66 -> 2.1 | T66: =Win!$E66-S66 -> 0 | U66: =R66-Win!$E66 -> 0 | V66: =Data!H66 -> 100.9 | W66: =Pressure!C66 -> 99.18 | X66: =Pressure!$E66-W66 -> 0.4138458793 | Y66: =V66-Pressure!$E66 -> 1.306154121 | Z66: =Snow!B66 -> 5 | AA66: =Snow!C66 -> 4.05 | AB66: =Snow!$E66-AA66 -> 0.95 | AC66: =Z66-Snow!$E66 -> 0 | AD66: =Level!B66 -> 4.146 | AE66: =Level!C66 -> 4.134 | AF66: =Level!$E66-AE66 -> 0.012 | AG66: =AD66-Level!$E66 -> 0 | AH66: =Conc_sep!B66 -> 131.2378923 | AI66: =Conc_sep!C66 -> 131.2378923 | AJ66: =Conc_sep!$E66-AI66 -> 0 | AK66: =AH66-Conc_sep!$E66 -> 0
A67: =Data!A67 -> 2004-02-29 | B67: =Data!B67 -> -5.6 | C67: =Temp!C67 -> -11.32 | D67: =Temp!$E67-C67 -> 1.272695708 | E67: =B67-Temp!$E67 -> 4.447304292 | F67: =Data!I67 -> 0 | G67: =Precip!C67 -> 0.14 | H67: =Precip!$E67-G67 -> 0.01 | I67: =F67-Precip!$E67 -> -0.15 | J67: =Data!D67 -> 69.9 | K67: =Humid!C67 -> 61.6 | L67: =Humid!$E67-K67 -> 4.091672777 | M67: =J67-Humid!$E67 -> 4.208327223 | N67: =Data!E67 -> 116.7 | O67: =WinD!C67 -> 116.7 | P67: =WinD!$E67-O67 -> 0 | Q67: =N67-WinD!$E67 -> 0 | R67: =Data!F67 -> 0.9 | S67: =Win!C67 -> 0.9 | T67: =Win!$E67-S67 -> 0 | U67: =R67-Win!$E67 -> 0 | V67: =Data!H67 -> 100.7 | W67: =Pressure!C67 -> 99.45 | X67: =Pressure!$E67-W67 -> 0.5173073492 | Y67: =V67-Pressure!$E67 -> 0.7326926508 | Z67: =Snow!B67 -> 5 | AA67: =Snow!C67 -> 4.86 | AB67: =Snow!$E67-AA67 -> 0.14 | AC67: =Z67-Snow!$E67 -> 0 | AD67: =Level!B67 -> 4.164 | AE67: =Level!C67 -> 4.144 | AF67: =Level!$E67-AE67 -> 0.02 | AG67: =AD67-Level!$E67 -> 0 | AH67: =Conc_sep!B67 -> 133.7047575 | AI67: =Conc_sep!C67 -> 132.7878923 | AJ67: =Conc_sep!$E67-AI67 -> 0.7478238652 | AK67: =AH67-Conc_sep!$E67 -> 0.169041305
A68: =Data!A68 -> 2004-03-01 | B68: =Data!B68 -> -4 | C68: =Temp!C68 -> -10.13 | D68: =Temp!$E68-C68 -> 1.909043563 | E68: =B68-Temp!$E68 -> 4.220956437 | F68: =Data!I68 -> 0 | G68: =Precip!C68 -> 0 | H68: =Precip!$E68-G68 -> 0 | I68: =F68-Precip!$E68 -> 0 | J68: =Data!D68 -> 80 | K68: =Humid!C68 -> 63.9 | L68: =Humid!$E68-K68 -> 6.137509166 | M68: =J68-Humid!$E68 -> 9.962490834 | N68: =Data!E68 -> 62.5 | O68: =WinD!C68 -> 62.5 | P68: =WinD!$E68-O68 -> 0 | Q68: =N68-WinD!$E68 -> 0 | R68: =Data!F68 -> 4.3 | S68: =Win!C68 -> 1.37 | T68: =Win!$E68-S68 -> 0.5643558928 | U68: =R68-Win!$E68 -> 2.365644107 | V68: =Data!H68 -> 100 | W68: =Pressure!C68 -> 99.72 | X68: =Pressure!$E68-W68 -> 0.28 | Y68: =V68-Pressure!$E68 -> 0 | Z68: =Snow!B68 -> 4 | AA68: =Snow!C68 -> 4 | AB68: =Snow!$E68-AA68 -> 0 | AC68: =Z68-Snow!$E68 -> 0 | AD68: =Level!B68 -> 4.166 | AE68: =Level!C68 -> 4.154 | AF68: =Level!$E68-AE68 -> 0.012 | AG68: =AD68-Level!$E68 -> 0 | AH68: =Conc_sep!B68 -> 146.2494841 | AI68: =Conc_sep!C68 -> 134.3378923 | AJ68: =Conc_sep!$E68-AI68 -> 1.49564773 | AK68: =AH68-Conc_sep!$E68 -> 10.41594399
A69: =Data!A69 -> 2004-03-02 | B69: =Data!B69 -> -2.7 | C69: =Temp!C69 -> -8.94 | D69: =Temp!$E69-C69 -> 2.545391417 | E69: =B69-Temp!$E69 -> 3.694608583 | F69: =Data!I69 -> 0 | G69: =Precip!C69 -> 0 | H69: =Precip!$E69-G69 -> 0 | I69: =F69-Precip!$E69 -> 0 | J69: =Data!D69 -> 68.5 | K69: =Humid!C69 -> 66.2 | L69: =Humid!$E69-K69 -> 2.3 | M69: =J69-Humid!$E69 -> 0 | N69: =Data!E69 -> 272.9 | O69: =WinD!C69 -> 96.5 | P69: =WinD!$E69-O69 -> 13.02848139 | Q69: =N69-WinD!$E69 -> 163.3715186 | R69: =Data!F69 -> 3.6 | S69: =Win!C69 -> 1.84 | T69: =Win!$E69-S69 -> 1.128711786 | U69: =R69-Win!$E69 -> 0.6312882144 | V69: =Data!H69 -> 98.7 | W69: =Pressure!C69 -> 98.7 | X69: =Pressure!$E69-W69 -> 0 | Y69: =V69-Pressure!$E69 -> 0 | Z69: =Snow!B69 -> 2 | AA69: =Snow!C69 -> 2 | AB69: =Snow!$E69-AA69 -> 0 | AC69: =Z69-Snow!$E69 -> 0 | AD69: =Level!B69 -> 4.033 | AE69: =Level!C69 -> 4.033 | AF69: =Level!$E69-AE69 -> 0 | AG69: =AD69-Level!$E69 -> 0 | AH69: =Conc_sep!B69 -> 133.1803045 | AI69: =Conc_sep!C69 -> 133.1803045 | AJ69: =Conc_sep!$E69-AI69 -> 0 | AK69: =AH69-Conc_sep!$E69 -> 0
A70: =Data!A70 -> 2004-03-03 | B70: =Data!B70 -> -0.3 | C70: =Temp!C70 -> -7.75 | D70: =Temp!$E70-C70 -> 3.181739271 | E70: =B70-Temp!$E70 -> 4.268260729 | F70: =Data!I70 -> 0 | G70: =Precip!C70 -> 0 | H70: =Precip!$E70-G70 -> 0 | I70: =F70-Precip!$E70 -> 0 | J70: =Data!D70 -> 74.2 | K70: =Humid!C70 -> 68.5 | L70: =Humid!$E70-K70 -> 4.345836389 | M70: =J70-Humid!$E70 -> 1.354163611 | N70: =Data!E70 -> 290 | O70: =WinD!C70 -> 130.5 | P70: =WinD!$E70-O70 -> 26.05696277 | Q70: =N70-WinD!$E70 -> 133.4430372 | R70: =Data!F70 -> 3.8 | S70: =Win!C70 -> 2.31 | T70: =Win!$E70-S70 -> 1.49 | U70: =R70-Win!$E70 -> 0 | V70: =Data!H70 -> 97.9 | W70: =Pressure!C70 -> 97.9 | X70: =Pressure!$E70-W70 -> 0 | Y70: =V70-Pressure!$E70 -> 0 | Z70: =Snow!B70 -> 0 | AA70: =Snow!C70 -> 0 | AB70: =Snow!$E70-AA70 -> 0 | AC70: =Z70-Snow!$E70 -> 0 | AD70: =Level!B70 -> 4.155 | AE70: =Level!C70 -> 4.043 | AF70: =Level!$E70-AE70 -> 0.02525920632 | AG70: =AD70-Level!$E70 -> 0.08674079368 | AH70: =Conc_sep!B70 -> 113.9201787 | AI70: =Conc_sep!C70 -> 113.9201787 | AJ70: =Conc_sep!$E70-AI70 -> 0 | AK70: =AH70-Conc_sep!$E70 -> 0
A71: =Data!A71 -> 2004-03-04 | B71: =Data!B71 -> 0 | C71: =Temp!C71 -> -6.56 | D71: =Temp!$E71-C71 -> 3.818087125 | E71: =B71-Temp!$E71 -> 2.741912875 | F71: =Data!I71 -> 0 | G71: =Precip!C71 -> 0.14 | H71: =Precip!$E71-G71 -> 0.01 | I71: =F71-Precip!$E71 -> -0.15 | J71: =Data!D71 -> 68.4 | K71: =Humid!C71 -> 68.4 | L71: =Humid!$E71-K71 -> 0 | M71: =J71-Humid!$E71 -> 0 | N71: =Data!E71 -> 285.8 | O71: =WinD!C71 -> 164.5 | P71: =WinD!$E71-O71 -> 39.08544416 | Q71: =N71-WinD!$E71 -> 82.21455584 | R71: =Data!F71 -> 5.1 | S71: =Win!C71 -> 2.78 | T71: =Win!$E71-S71 -> 2.054355893 | U71: =R71-Win!$E71 -> 0.2656441072 | V71: =Data!H71 -> 99.1 | W71: =Pressure!C71 -> 98.17 | X71: =Pressure!$E71-W71 -> 0.1034614698 | Y71: =V71-Pressure!$E71 -> 0.8265385302 | Z71: =Snow!B71 -> 0 | AA71: =Snow!C71 -> 0 | AB71: =Snow!$E71-AA71 -> 0 | AC71: =Z71-Snow!$E71 -> 0 | AD71: =Level!B71 -> 4.122 | AE71: =Level!C71 -> 4.053 | AF71: =Level!$E71-AE71 -> 0.05051841263 | AG71: =AD71-Level!$E71 -> 0.01848158737 | AH71: =Conc_sep!B71 -> 127.0168881 | AI71: =Conc_sep!C71 -> 115.4701787 | AJ71: =Conc_sep!$E71-AI71 -> 0.7478238652 | AK71: =AH71-Conc_sep!$E71 -> 10.79888551
A72: =Data!A72 -> 2004-03-05 | B72: =Data!B72 -> -1.4 | C72: =Temp!C72 -> -5.37 | D72: =Temp!$E72-C72 -> 3.97 | E72: =B72-Temp!$E72 -> 0 | F72: =Data!I72 -> 1.6 | G72: =Precip!C72 -> 0.28 | H72: =Precip!$E72-G72 -> 0.9281166859 | I72: =F72-Precip!$E72 -> 0.3918833141 | J72: =Data!D72 -> 85.4 | K72: =Humid!C72 -> 70.7 | L72: =Humid!$E72-K72 -> 2.045836389 | M72: =J72-Humid!$E72 -> 12.65416361 | N72: =Data!E72 -> 65.8 | O72: =WinD!C72 -> 65.8 | P72: =WinD!$E72-O72 -> 0 | Q72: =N72-WinD!$E72 -> 0 | R72: =Data!F72 -> 1.7 | S72: =Win!C72 -> 1.7 | T72: =Win!$E72-S72 -> 0 | U72: =R72-Win!$E72 -> 0 | V72: =Data!H72 -> 99.7 | W72: =Pressure!C72 -> 98.44 | X72: =Pressure!$E72-W72 -> 0.2069229397 | Y72: =V72-Pressure!$E72 -> 1.05307706 | Z72: =Snow!B72 -> 0 | AA72: =Snow!C72 -> 0 | AB72: =Snow!$E72-AA72 -> 0 | AC72: =Z72-Snow!$E72 -> 0 | AD72: =Level!B72 -> 4.473 | AE72: =Level!C72 -> 4.063 | AF72: =Level!$E72-AE72 -> 0.07577761895 | AG72: =AD72-Level!$E72 -> 0.3342223811 | AH72: =Conc_sep!B72 -> 67.91046088 | AI72: =Conc_sep!C72 -> 67.91046088 | AJ72: =Conc_sep!$E72-AI72 -> 0 | AK72: =AH72-Conc_sep!$E72 -> 0
A73: =Data!A73 -> 2004-03-06 | B73: =Data!B73 -> 1.9 | C73: =Temp!C73 -> -4.18 | D73: =Temp!$E73-C73 -> 4.606347854 | E73: =B73-Temp!$E73 -> 1.473652146 | F73: =Data!I73 -> 0 | G73: =Precip!C73 -> 0 | H73: =Precip!$E73-G73 -> 0 | I73: =F73-Precip!$E73 -> 0 | J73: =Data!D73 -> 89 | K73: =Humid!C73 -> 73 | L73: =Humid!$E73-K73 -> 4.091672777 | M73: =J73-Humid!$E73 -> 11.90832722 | N73: =Data!E73 -> 179.2 | O73: =WinD!C73 -> 99.8 | P73: =WinD!$E73-O73 -> 13.02848139 | Q73: =N73-WinD!$E73 -> 66.37151861 | R73: =Data!F73 -> 2.8 | S73: =Win!C73 -> 2.17 | T73: =Win!$E73-S73 -> 0.5643558928 | U73: =R73-Win!$E73 -> 0.0656441072 | V73: =Data!H73 -> 99.4 | W73: =Pressure!C73 -> 98.71 | X73: =Pressure!$E73-W73 -> 0.3103844095 | Y73: =V73-Pressure!$E73 -> 0.3796155905 | Z73: =Snow!B73 -> 0 | AA73: =Snow!C73 -> 0 | AB73: =Snow!$E73-AA73 -> 0 | AC73: =Z73-Snow!$E73 -> 0 | AD73: =Level!B73 -> 4.93 | AE73: =Level!C73 -> 4.073 | AF73: =Level!$E73-AE73 -> 0.1010368253 | AG73: =AD73-Level!$E73 -> 0.7559631747 | AH73: =Conc_sep!B73 -> 41.98075298 | AI73: =Conc_sep!C73 -> 41.98075298 | AJ73: =Conc_sep!$E73-AI73 -> 0 | AK73: =AH73-Conc_sep!$E73 -> 0
A74: =Data!A74 -> 2004-03-07 | B74: =Data!B74 -> -1.3 | C74: =Temp!C74 -> -2.99 | D74: =Temp!$E74-C74 -> 1.69 | E74: =B74-Temp!$E74 -> 0 | F74: =Data!I74 -> 0 | G74: =Precip!C74 -> 0.14 | H74: =Precip!$E74-G74 -> 0.01 | I74: =F74-Precip!$E74 -> -0.15 | J74: =Data!D74 -> 74.2 | K74: =Humid!C74 -> 74.2 | L74: =Humid!$E74-K74 -> 0 | M74: =J74-Humid!$E74 -> 0 | N74: =Data!E74 -> 273.8 | O74: =WinD!C74 -> 133.8 | P74: =WinD!$E74-O74 -> 26.05696277 | Q74: =N74-WinD!$E74 -> 113.9430372 | R74: =Data!F74 -> 6.9 | S74: =Win!C74 -> 2.64 | T74: =Win!$E74-S74 -> 1.128711786 | U74: =R74-Win!$E74 -> 3.131288214 | V74: =Data!H74 -> 99.7 | W74: =Pressure!C74 -> 98.98 | X74: =Pressure!$E74-W74 -> 0.4138458793 | Y74: =V74-Pressure!$E74 -> 0.3061541207 | Z74: =Snow!B74 -> 0 | AA74: =Snow!C74 -> 0 | AB74: =Snow!$E74-AA74 -> 0 | AC74: =Z74-Snow!$E74 -> 0 | AD74: =Level!B74 -> 4.492 | AE74: =Level!C74 -> 4.083 | AF74: =Level!$E74-AE74 -> 0.1262960316 | AG74: =AD74-Level!$E74 -> 0.2827039684 | AH74: =Conc_sep!B74 -> 74.84263569 | AI74: =Conc_sep!C74 -> 43.53075298 | AJ74: =Conc_sep!$E74-AI74 -> 0.7478238652 | AK74: =AH74-Conc_sep!$E74 -> 30.56405885
A75: =Data!A75 -> 2004-03-08 | B75: =Data!B75 -> -4.4 | C75: =Temp!C75 -> -4.4 | D75: =Temp!$E75-C75 -> 0 | E75: =B75-Temp!$E75 -> 0 | F75: =Data!I75 -> 5.2 | G75: =Precip!C75 -> 0.28 | H75: =Precip!$E75-G75 -> 0.9281166859 | I75: =F75-Precip!$E75 -> 3.991883314 | J75: =Data!D75 -> 78.5 | K75: =Humid!C75 -> 76.5 | L75: =Humid!$E75-K75 -> 2 | M75: =J75-Humid!$E75 -> 0 | N75: =Data!E75 -> 66.3 | O75: =WinD!C75 -> 66.3 | P75: =WinD!$E75-O75 -> 0 | Q75: =N75-WinD!$E75 -> 0 | R75: =Data!F75 -> 3 | S75: =Win!C75 -> 3 | T75: =Win!$E75-S75 -> 0 | U75: =R75-Win!$E75 -> 0 | V75: =Data!H75 -> 100.2 | W75: =Pressure!C75 -> 99.25 | X75: =Pressure!$E75-W75 -> 0.5173073492 | Y75: =V75-Pressure!$E75 -> 0.4326926508 | Z75: =Snow!B75 -> 0 | AA75: =Snow!C75 -> 0 | AB75: =Snow!$E75-AA75 -> 0 | AC75: =Z75-Snow!$E75 -> 0 | AD75: =Level!B75 -> 4.24 | AE75: =Level!C75 -> 4.093 | AF75: =Level!$E75-AE75 -> 0.147 | AG75: =AD75-Level!$E75 -> 0 | AH75: =Conc_sep!B75 -> 120.8241018 | AI75: =Conc_sep!C75 -> 45.08075298 | AJ75: =Conc_sep!$E75-AI75 -> 1.49564773 | AK75: =AH75-Conc_sep!$E75 -> 74.24770105
A76: =Data!A76 -> 2004-03-09 | B76: =Data!B76 -> -3.6 | C76: =Temp!C76 -> -3.6 | D76: =Temp!$E76-C76 -> 0 | E76: =B76-Temp!$E76 -> 0 | F76: =Data!I76 -> 2.8 | G76: =Precip!C76 -> 0.42 | H76: =Precip!$E76-G76 -> 1.846233372 | I76: =F76-Precip!$E76 -> 0.5337666282 | J76: =Data!D76 -> 79.6 | K76: =Humid!C76 -> 78.8 | L76: =Humid!$E76-K76 -> 0.8 | M76: =J76-Humid!$E76 -> 0 | N76: =Data!E76 -> 292.1 | O76: =WinD!C76 -> 100.3 | P76: =WinD!$E76-O76 -> 13.02848139 | Q76: =N76-WinD!$E76 -> 178.7715186 | R76: =Data!F76 -> 5.4 | S76: =Win!C76 -> 3.47 | T76: =Win!$E76-S76 -> 0.5643558928 | U76: =R76-Win!$E76 -> 1.365644107 | V76: =Data!H76 -> 99.3 | W76: =Pressure!C76 -> 99.3 | X76: =Pressure!$E76-W76 -> 0 | Y76: =V76-Pressure!$E76 -> 0 | Z76: =Snow!B76 -> 10 | AA76: =Snow!C76 -> 0.81 | AB76: =Snow!$E76-AA76 -> 0.7204902064 | AC76: =Z76-Snow!$E76 -> 8.469509794 | AD76: =Level!B76 -> 4.113 | AE76: =Level!C76 -> 4.103 | AF76: =Level!$E76-AE76 -> 0.01 | AG76: =AD76-Level!$E76 -> 0 | AH76: =Conc_sep!B76 -> 132.1469002 | AI76: =Conc_sep!C76 -> 46.63075298 | AJ76: =Conc_sep!$E76-AI76 -> 2.243471596 | AK76: =AH76-Conc_sep!$E76 -> 83.27267567
A77: =Data!A77 -> 2004-03-10 | B77: =Data!B77 -> -5.3 | C77: =Temp!C77 -> -5.3 | D77: =Temp!$E77-C77 -> 0 | E77: =B77-Temp!$E77 -> 0 | F77: =Data!I77 -> 0 | G77: =Precip!C77 -> 0 | H77: =Precip!$E77-G77 -> 0 | I77: =F77-Precip!$E77 -> 0 | J77: =Data!D77 -> 65.9 | K77: =Humid!C77 -> 65.9 | L77: =Humid!$E77-K77 -> 0 | M77: =J77-Humid!$E77 -> 0 | N77: =Data!E77 -> 300.4 | O77: =WinD!C77 -> 134.3 | P77: =WinD!$E77-O77 -> 26.05696277 | Q77: =N77-WinD!$E77 -> 140.0430372 | R77: =Data!F77 -> 4.7 | S77: =Win!C77 -> 3.94 | T77: =Win!$E77-S77 -> 0.76 | U77: =R77-Win!$E77 -> 0 | V77: =Data!H77 -> 100.7 | W77: =Pressure!C77 -> 99.57 | X77: =Pressure!$E77-W77 -> 0.1034614698 | Y77: =V77-Pressure!$E77 -> 1.02653853 | Z77: =Snow!B77 -> 7 | AA77: =Snow!C77 -> 1.62 | AB77: =Snow!$E77-AA77 -> 1.440980413 | AC77: =Z77-Snow!$E77 -> 3.939019587 | AD77: =Level!B77 -> 4.079 | AE77: =Level!C77 -> 4.079 | AF77: =Level!$E77-AE77 -> 0 | AG77: =AD77-Level!$E77 -> 0 | AH77: =Conc_sep!B77 -> 127.5369691 | AI77: =Conc_sep!C77 -> 48.18075298 | AJ77: =Conc_sep!$E77-AI77 -> 2.991295461 | AK77: =AH77-Conc_sep!$E77 -> 76.36492066
A78: =Data!A78 -> 2004-03-11 | B78: =Data!B78 -> -3.1 | C78: =Temp!C78 -> -4.11 | D78: =Temp!$E78-C78 -> 0.6363478542 | E78: =B78-Temp!$E78 -> 0.3736521458 | F78: =Data!I78 -> 0 | G78: =Precip!C78 -> 0.14 | H78: =Precip!$E78-G78 -> 0.01 | I78: =F78-Precip!$E78 -> -0.15 | J78: =Data!D78 -> 72.5 | K78: =Humid!C78 -> 68.2 | L78: =Humid!$E78-K78 -> 2.045836389 | M78: =J78-Humid!$E78 -> 2.254163611 | N78: =Data!E78 -> 114.6 | O78: =WinD!C78 -> 114.6 | P78: =WinD!$E78-O78 -> 0 | Q78: =N78-WinD!$E78 -> 0 | R78: =Data!F78 -> 2.9 | S78: =Win!C78 -> 2.9 | T78: =Win!$E78-S78 -> 0 | U78: =R78-Win!$E78 -> 0 | V78: =Data!H78 -> 100.8 | W78: =Pressure!C78 -> 99.84 | X78: =Pressure!$E78-W78 -> 0.2069229397 | Y78: =V78-Pressure!$E78 -> 0.7530770603 | Z78: =Snow!B78 -> 6 | AA78: =Snow!C78 -> 2.43 | AB78: =Snow!$E78-AA78 -> 2.161470619 | AC78: =Z78-Snow!$E78 -> 1.408529381 | AD78: =Level!B78 -> 4.068 | AE78: =Level!C78 -> 4.068 | AF78: =Level!$E78-AE78 -> 0 | AG78: =AD78-Level!$E78 -> 0 | AH78: =Conc_sep!B78 -> 124.2618393 | AI78: =Conc_sep!C78 -> 49.73075298 | AJ78: =Conc_sep!$E78-AI78 -> 3.739119326 | AK78: =AH78-Conc_sep!$E78 -> 70.79196695
A79: =Data!A79 -> 2004-03-12 | B79: =Data!B79 -> 0.6 | C79: =Temp!C79 -> -2.92 | D79: =Temp!$E79-C79 -> 1.272695708 | E79: =B79-Temp!$E79 -> 2.247304292 | F79: =Data!I79 -> 0 | G79: =Precip!C79 -> 0.15 | H79: =Precip!$E79-G79 -> 0 | I79: =F79-Precip!$E79 -> -0.15 | J79: =Data!D79 -> 79.9 | K79: =Humid!C79 -> 70.5 | L79: =Humid!$E79-K79 -> 4.091672777 | M79: =J79-Humid!$E79 -> 5.308327223 | N79: =Data!E79 -> 208.3 | O79: =WinD!C79 -> 148.6 | P79: =WinD!$E79-O79 -> 13.02848139 | Q79: =N79-WinD!$E79 -> 46.67151861 | R79: =Data!F79 -> 4.3 | S79: =Win!C79 -> 3.37 | T79: =Win!$E79-S79 -> 0.5643558928 | U79: =R79-Win!$E79 -> 0.3656441072 | V79: =Data!H79 -> 99.7 | W79: =Pressure!C79 -> 99.7 | X79: =Pressure!$E79-W79 -> 0 | Y79: =V79-Pressure!$E79 -> 0 | Z79: =Snow!B79 -> 4 | AA79: =Snow!C79 -> 3.24 | AB79: =Snow!$E79-AA79 -> 0.76 | AC79: =Z79-Snow!$E79 -> 0 | AD79: =Level!B79 -> 4.04 | AE79: =Level!C79 -> 4.04 | AF79: =Level!$E79-AE79 -> 0 | AG79: =AD79-Level!$E79 -> 0 | AH79: =Conc_sep!B79 -> 118.9238023 | AI79: =Conc_sep!C79 -> 51.28075298 | AJ79: =Conc_sep!$E79-AI79 -> 4.486943191 | AK79: =AH79-Conc_sep!$E79 -> 63.15610613
A80: =Data!A80 -> 2004-03-13 | B80: =Data!B80 -> -1.7 | C80: =Temp!C80 -> -1.73 | D80: =Temp!$E80-C80 -> 0.03 | E80: =B80-Temp!$E80 -> 0 | F80: =Data!I80 -> 3.6 | G80: =Precip!C80 -> 0.29 | H80: =Precip!$E80-G80 -> 0.9181166859 | I80: =F80-Precip!$E80 -> 2.391883314 | J80: =Data!D80 -> 86.9 | K80: =Humid!C80 -> 72.8 | L80: =Humid!$E80-K80 -> 6.137509166 | M80: =J80-Humid!$E80 -> 7.962490834 | N80: =Data!E80 -> 186.7 | O80: =WinD!C80 -> 182.6 | P80: =WinD!$E80-O80 -> 4.1 | Q80: =N80-WinD!$E80 -> 0 | R80: =Data!F80 -> 3.3 | S80: =Win!C80 -> 3.3 | T80: =Win!$E80-S80 -> 0 | U80: =R80-Win!$E80 -> 0 | V80: =Data!H80 -> 99 | W80: =Pressure!C80 -> 99 | X80: =Pressure!$E80-W80 -> 0 | Y80: =V80-Pressure!$E80 -> 0 | Z80: =Snow!B80 -> 3 | AA80: =Snow!C80 -> 3 | AB80: =Snow!$E80-AA80 -> 0 | AC80: =Z80-Snow!$E80 -> 0 | AD80: =Level!B80 -> 3.998 | AE80: =Level!C80 -> 3.998 | AF80: =Level!$E80-AE80 -> 0 | AG80: =AD80-Level!$E80 -> 0 | AH80: =Conc_sep!B80 -> 109.6849522 | AI80: =Conc_sep!C80 -> 52.83075298 | AJ80: =Conc_sep!$E80-AI80 -> 5.234767056 | AK80: =AH80-Conc_sep!$E80 -> 51.61943217
A81: =Data!A81 -> 2004-03-14 | B81: =Data!B81 -> 1.7 | C81: =Temp!C81 -> -0.54 | D81: =Temp!$E81-C81 -> 0.6663478542 | E81: =B81-Temp!$E81 -> 1.573652146 | F81: =Data!I81 -> 0.2 | G81: =Precip!C81 -> 0.2 | H81: =Precip!$E81-G81 -> 0 | I81: =F81-Precip!$E81 -> 0 | J81: =Data!D81 -> 86.5 | K81: =Humid!C81 -> 75.1 | L81: =Humid!$E81-K81 -> 8.183345554 | M81: =J81-Humid!$E81 -> 3.216654446 | N81: =Data!E81 -> 185.8 | O81: =WinD!C81 -> 185.8 | P81: =WinD!$E81-O81 -> 0 | Q81: =N81-WinD!$E81 -> 0 | R81: =Data!F81 -> 4.2 | S81: =Win!C81 -> 3.77 | T81: =Win!$E81-S81 -> 0.43 | U81: =R81-Win!$E81 -> 0 | V81: =Data!H81 -> 97.8 | W81: =Pressure!C81 -> 97.8 | X81: =Pressure!$E81-W81 -> 0 | Y81: =V81-Pressure!$E81 -> 0 | Z81: =Snow!B81 -> 2 | AA81: =Snow!C81 -> 2 | AB81: =Snow!$E81-AA81 -> 0 | AC81: =Z81-Snow!$E81 -> 0 | AD81: =Level!B81 -> 3.99 | AE81: =Level!C81 -> 3.99 | AF81: =Level!$E81-AE81 -> 0 | AG81: =AD81-Level!$E81 -> 0 | AH81: =Conc_sep!B81 -> 105.0919966 | AI81: =Conc_sep!C81 -> 54.38075298 | AJ81: =Conc_sep!$E81-AI81 -> 5.982590922 | AK81: =AH81-Conc_sep!$E81 -> 44.72865274
A82: =Data!A82 -> 2004-03-15 | B82: =Data!B82 -> -7.6 | C82: =Temp!C82 -> -7.6 | D82: =Temp!$E82-C82 -> 0 | E82: =B82-Temp!$E82 -> 0 | F82: =Data!I82 -> 0.6 | G82: =Precip!C82 -> 0.34 | H82: =Precip!$E82-G82 -> 0.26 | I82: =F82-Precip!$E82 -> 0 | J82: =Data!D82 -> 79.9 | K82: =Humid!C82 -> 77.4 | L82: =Humid!$E82-K82 -> 2.5 | M82: =J82-Humid!$E82 -> 0 | N82: =Data!E82 -> 320 | O82: =WinD!C82 -> 219.8 | P82: =WinD!$E82-O82 -> 13.02848139 | Q82: =N82-WinD!$E82 -> 87.17151861 | R82: =Data!F82 -> 8.7 | S82: =Win!C82 -> 4.24 | T82: =Win!$E82-S82 -> 0.9943558928 | U82: =R82-Win!$E82 -> 3.465644107 | V82: =Data!H82 -> 98.6 | W82: =Pressure!C82 -> 98.07 | X82: =Pressure!$E82-W82 -> 0.1034614698 | Y82: =V82-Pressure!$E82 -> 0.4265385302 | Z82: =Snow!B82 -> 0 | AA82: =Snow!C82 -> 0 | AB82: =Snow!$E82-AA82 -> 0 | AC82: =Z82-Snow!$E82 -> 0 | AD82: =Level!B82 -> 3.985 | AE82: =Level!C82 -> 3.985 | AF82: =Level!$E82-AE82 -> 0 | AG82: =AD82-Level!$E82 -> 0 | AH82: =Conc_sep!B82 -> 100.8931142 | AI82: =Conc_sep!C82 -> 55.93075298 | AJ82: =Conc_sep!$E82-AI82 -> 6.730414787 | AK82: =AH82-Conc_sep!$E82 -> 38.23194639
A83: =Data!A83 -> 2004-03-16 | B83: =Data!B83 -> -6.9 | C83: =Temp!C83 -> -6.9 | D83: =Temp!$E83-C83 -> 0 | E83: =B83-Temp!$E83 -> 0 | F83: =Data!I83 -> 0 | G83: =Precip!C83 -> 0 | H83: =Precip!$E83-G83 -> 0 | I83: =F83-Precip!$E83 -> 0 | J83: =Data!D83 -> 74.9 | K83: =Humid!C83 -> 74.9 | L83: =Humid!$E83-K83 -> 0 | M83: =J83-Humid!$E83 -> 0 | N83: =Data!E83 -> 302.1 | O83: =WinD!C83 -> 253.8 | P83: =WinD!$E83-O83 -> 26.05696277 | Q83: =N83-WinD!$E83 -> 22.24303723 | R83: =Data!F83 -> 6.2 | S83: =Win!C83 -> 4.71 | T83: =Win!$E83-S83 -> 1.49 | U83: =R83-Win!$E83 -> 0 | V83: =Data!H83 -> 99 | W83: =Pressure!C83 -> 98.34 | X83: =Pressure!$E83-W83 -> 0.2069229397 | Y83: =V83-Pressure!$E83 -> 0.4530770603 | Z83: =Snow!B83 -> 0 | AA83: =Snow!C83 -> 0 | AB83: =Snow!$E83-AA83 -> 0 | AC83: =Z83-Snow!$E83 -> 0 | AD83: =Level!B83 -> 3.957 | AE83: =Level!C83 -> 3.957 | AF83: =Level!$E83-AE83 -> 0 | AG83: =AD83-Level!$E83 -> 0 | AH83: =Conc_sep!B83 -> 89.42704312 | AI83: =Conc_sep!C83 -> 57.48075298 | AJ83: =Conc_sep!$E83-AI83 -> 7.478238652 | AK83: =AH83-Conc_sep!$E83 -> 24.46805149
A84: =Data!A84 -> 2004-03-17 | B84: =Data!B84 -> -4.3 | C84: =Temp!C84 -> -5.71 | D84: =Temp!$E84-C84 -> 0.6363478542 | E84: =B84-Temp!$E84 -> 0.7736521458 | F84: =Data!I84 -> 3.2 | G84: =Precip!C84 -> 0.14 | H84: =Precip!$E84-G84 -> 0.9181166859 | I84: =F84-Precip!$E84 -> 2.141883314 | J84: =Data!D84 -> 80.5 | K84: =Humid!C84 -> 77.2 | L84: =Humid!$E84-K84 -> 2.045836389 | M84: =J84-Humid!$E84 -> 1.254163611 | N84: =Data!E84 -> 152.9 | O84: =WinD!C84 -> 152.9 | P84: =WinD!$E84-O84 -> 0 | Q84: =N84-WinD!$E84 -> 0 | R84: =Data!F84 -> 3.4 | S84: =Win!C84 -> 3.4 | T84: =Win!$E84-S84 -> 0 | U84: =R84-Win!$E84 -> 0 | V84: =Data!H84 -> 97.9 | W84: =Pressure!C84 -> 97.9 | X84: =Pressure!$E84-W84 -> 0 | Y84: =V84-Pressure!$E84 -> 0 | Z84: =Snow!B84 -> 0 | AA84: =Snow!C84 -> 0 | AB84: =Snow!$E84-AA84 -> 0 | AC84: =Z84-Snow!$E84 -> 0 | AD84: =Level!B84 -> 3.939 | AE84: =Level!C84 -> 3.939 | AF84: =Level!$E84-AE84 -> 0 | AG84: =AD84-Level!$E84 -> 0 | AH84: =Conc_sep!B84 -> 76.75438596 | AI84: =Conc_sep!C84 -> 59.03075298 | AJ84: =Conc_sep!$E84-AI84 -> 8.226062517 | AK84: =AH84-Conc_sep!$E84 -> 9.497570469
A85: =Data!A85 -> 2004-03-18 | B85: =Data!B85 -> -2.2 | C85: =Temp!C85 -> -4.52 | D85: =Temp!$E85-C85 -> 1.272695708 | E85: =B85-Temp!$E85 -> 1.047304292 | F85: =Data!I85 -> 0 | G85: =Precip!C85 -> 0 | H85: =Precip!$E85-G85 -> 0 | I85: =F85-Precip!$E85 -> 0 | J85: =Data!D85 -> 67 | K85: =Humid!C85 -> 67 | L85: =Humid!$E85-K85 -> 0 | M85: =J85-Humid!$E85 -> 0 | N85: =Data!E85 -> 288.8 | O85: =WinD!C85 -> 186.9 | P85: =WinD!$E85-O85 -> 13.02848139 | Q85: =N85-WinD!$E85 -> 88.87151861 | R85: =Data!F85 -> 7 | S85: =Win!C85 -> 3.87 | T85: =Win!$E85-S85 -> 0.5643558928 | U85: =R85-Win!$E85 -> 2.565644107 | V85: =Data!H85 -> 98.6 | W85: =Pressure!C85 -> 98.17 | X85: =Pressure!$E85-W85 -> 0.1034614698 | Y85: =V85-Pressure!$E85 -> 0.3265385302 | Z85: =Snow!B85 -> 4 | AA85: =Snow!C85 -> 0.81 | AB85: =Snow!$E85-AA85 -> 0.7204902064 | AC85: =Z85-Snow!$E85 -> 2.469509794 | AD85: =Level!B85 -> 3.94 | AE85: =Level!C85 -> 3.94 | AF85: =Level!$E85-AE85 -> 0 | AG85: =AD85-Level!$E85 -> 0 | AH85: =Conc_sep!B85 -> 76.58643326 | AI85: =Conc_sep!C85 -> 60.58075298 | AJ85: =Conc_sep!$E85-AI85 -> 8.973886382 | AK85: =AH85-Conc_sep!$E85 -> 7.0317939
A86: =Data!A86 -> 2004-03-19 | B86: =Data!B86 -> -0.3 | C86: =Temp!C86 -> -3.33 | D86: =Temp!$E86-C86 -> 1.909043563 | E86: =B86-Temp!$E86 -> 1.120956437 | F86: =Data!I86 -> 0 | G86: =Precip!C86 -> 0 | H86: =Precip!$E86-G86 -> 0 | I86: =F86-Precip!$E86 -> 0 | J86: =Data!D86 -> 66 | K86: =Humid!C86 -> 66 | L86: =Humid!$E86-K86 -> 0 | M86: =J86-Humid!$E86 -> 0 | N86: =Data!E86 -> 217.1 | O86: =WinD!C86 -> 217.1 | P86: =WinD!$E86-O86 -> 0 | Q86: =N86-WinD!$E86 -> 0 | R86: =Data!F86 -> 3.3 | S86: =Win!C86 -> 3.3 | T86: =Win!$E86-S86 -> 0 | U86: =R86-Win!$E86 -> 0 | V86: =Data!H86 -> 99.2 | W86: =Pressure!C86 -> 98.44 | X86: =Pressure!$E86-W86 -> 0.2069229397 | Y86: =V86-Pressure!$E86 -> 0.5530770603 | Z86: =Snow!B86 -> 0 | AA86: =Snow!C86 -> 0 | AB86: =Snow!$E86-AA86 -> 0 | AC86: =Z86-Snow!$E86 -> 0 | AD86: =Level!B86 -> 3.925 | AE86: =Level!C86 -> 3.925 | AF86: =Level!$E86-AE86 -> 0 | AG86: =AD86-Level!$E86 -> 0 | AH86: =Conc_sep!B86 -> 80.83140878 | AI86: =Conc_sep!C86 -> 62.13075298 | AJ86: =Conc_sep!$E86-AI86 -> 9.721710248 | AK86: =AH86-Conc_sep!$E86 -> 8.97894555
A87: =Data!A87 -> 2004-03-20 | B87: =Data!B87 -> 0.8 | C87: =Temp!C87 -> -2.14 | D87: =Temp!$E87-C87 -> 2.545391417 | E87: =B87-Temp!$E87 -> 0.394608583 | F87: =Data!I87 -> 13.4 | G87: =Precip!C87 -> 0.14 | H87: =Precip!$E87-G87 -> 0.9181166859 | I87: =F87-Precip!$E87 -> 12.34188331 | J87: =Data!D87 -> 85.7 | K87: =Humid!C87 -> 68.3 | L87: =Humid!$E87-K87 -> 2.045836389 | M87: =J87-Humid!$E87 -> 15.35416361 | N87: =Data!E87 -> 116.7 | O87: =WinD!C87 -> 116.7 | P87: =WinD!$E87-O87 -> 0 | Q87: =N87-WinD!$E87 -> 0 | R87: =Data!F87 -> 4.9 | S87: =Win!C87 -> 3.77 | T87: =Win!$E87-S87 -> 0.5643558928 | U87: =R87-Win!$E87 -> 0.5656441072 | V87: =Data!H87 -> 98.4 | W87: =Pressure!C87 -> 98.4 | X87: =Pressure!$E87-W87 -> 0 | Y87: =V87-Pressure!$E87 -> 0 | Z87: =Snow!B87 -> 0 | AA87: =Snow!C87 -> 0 | AB87: =Snow!$E87-AA87 -> 0 | AC87: =Z87-Snow!$E87 -> 0 | AD87: =Level!B87 -> 3.96 | AE87: =Level!C87 -> 3.935 | AF87: =Level!$E87-AE87 -> 0.025 | AG87: =AD87-Level!$E87 -> 0 | AH87: =Conc_sep!B87 -> 100.4603845 | AI87: =Conc_sep!C87 -> 63.68075298 | AJ87: =Conc_sep!$E87-AI87 -> 10.46953411 | AK87: =AH87-Conc_sep!$E87 -> 26.31009742
A88: =Data!A88 -> 2004-03-21 | B88: =Data!B88 -> 5.9 | C88: =Temp!C88 -> -0.95 | D88: =Temp!$E88-C88 -> 3.181739271 | E88: =B88-Temp!$E88 -> 3.668260729 | F88: =Data!I88 -> 0 | G88: =Precip!C88 -> 0 | H88: =Precip!$E88-G88 -> 0 | I88: =F88-Precip!$E88 -> 0 | J88: =Data!D88 -> 66.3 | K88: =Humid!C88 -> 66.3 | L88: =Humid!$E88-K88 -> 0 | M88: =J88-Humid!$E88 -> 0 | N88: =Data!E88 -> 249.2 | O88: =WinD!C88 -> 150.7 | P88: =WinD!$E88-O88 -> 13.02848139 | Q88: =N88-WinD!$E88 -> 85.47151861 | R88: =Data!F88 -> 6.5 | S88: =Win!C88 -> 4.24 | T88: =Win!$E88-S88 -> 1.128711786 | U88: =R88-Win!$E88 -> 1.131288214 | V88: =Data!H88 -> 98.7 | W88: =Pressure!C88 -> 98.67 | X88: =Pressure!$E88-W88 -> 0.03 | Y88: =V88-Pressure!$E88 -> 0 | Z88: =Snow!B88 -> 0 | AA88: =Snow!C88 -> 0 | AB88: =Snow!$E88-AA88 -> 0 | AC88: =Z88-Snow!$E88 -> 0 | AD88: =Level!B88 -> 4.053 | AE88: =Level!C88 -> 3.945 | AF88: =Level!$E88-AE88 -> 0.05025920632 | AG88: =AD88-Level!$E88 -> 0.05774079368 | AH88: =Conc_sep!B88 -> 103.6412803 | AI88: =Conc_sep!C88 -> 65.23075298 | AJ88: =Conc_sep!$E88-AI88 -> 11.21735798 | AK88: =AH88-Conc_sep!$E88 -> 27.19316934
A89: =Data!A89 -> 2004-03-22 | B89: =Data!B89 -> 7.7 | C89: =Temp!C89 -> 0.24 | D89: =Temp!$E89-C89 -> 3.818087125 | E89: =B89-Temp!$E89 -> 3.641912875 | F89: =Data!I89 -> 0 | G89: =Precip!C89 -> 0 | H89: =Precip!$E89-G89 -> 0 | I89: =F89-Precip!$E89 -> 0 | J89: =Data!D89 -> 63.4 | K89: =Humid!C89 -> 63.4 | L89: =Humid!$E89-K89 -> 0 | M89: =J89-Humid!$E89 -> 0 | N89: =Data!E89 -> 60.8 | O89: =WinD!C89 -> 60.8 | P89: =WinD!$E89-O89 -> 0 | Q89: =N89-WinD!$E89 -> 0 | R89: =Data!F89 -> 1.1 | S89: =Win!C89 -> 1.1 | T89: =Win!$E89-S89 -> 0 | U89: =R89-Win!$E89 -> 0 | V89: =Data!H89 -> 98.7 | W89: =Pressure!C89 -> 98.7 | X89: =Pressure!$E89-W89 -> 0 | Y89: =V89-Pressure!$E89 -> 0 | Z89: =Snow!B89 -> 0 | AA89: =Snow!C89 -> 0 | AB89: =Snow!$E89-AA89 -> 0 | AC89: =Z89-Snow!$E89 -> 0 | AD89: =Level!B89 -> 3.978 | AE89: =Level!C89 -> 3.955 | AF89: =Level!$E89-AE89 -> 0.023 | AG89: =AD89-Level!$E89 -> 0 | AH89: =Conc_sep!B89 -> 91.21507824 | AI89: =Conc_sep!C89 -> 66.78075298 | AJ89: =Conc_sep!$E89-AI89 -> 11.96518184 | AK89: =AH89-Conc_sep!$E89 -> 12.46914342
A90: =Data!A90 -> 2004-03-23 | B90: =Data!B90 -> 5.5 | C90: =Temp!C90 -> 1.43 | D90: =Temp!$E90-C90 -> 4.07 | E90: =B90-Temp!$E90 -> 0 | F90: =Data!I90 -> 0.6 | G90: =Precip!C90 -> 0.14 | H90: =Precip!$E90-G90 -> 0.46 | I90: =F90-Precip!$E90 -> 0 | J90: =Data!D90 -> 73.3 | K90: =Humid!C90 -> 65.7 | L90: =Humid!$E90-K90 -> 2.045836389 | M90: =J90-Humid!$E90 -> 5.554163611 | N90: =Data!E90 -> 146.3 | O90: =WinD!C90 -> 94.8 | P90: =WinD!$E90-O90 -> 13.02848139 | Q90: =N90-WinD!$E90 -> 38.47151861 | R90: =Data!F90 -> 4.8 | S90: =Win!C90 -> 1.57 | T90: =Win!$E90-S90 -> 0.5643558928 | U90: =R90-Win!$E90 -> 2.665644107 | V90: =Data!H90 -> 98.5 | W90: =Pressure!C90 -> 98.5 | X90: =Pressure!$E90-W90 -> 0 | Y90: =V90-Pressure!$E90 -> 0 | Z90: =Snow!B90 -> 0 | AA90: =Snow!C90 -> 0 | AB90: =Snow!$E90-AA90 -> 0 | AC90: =Z90-Snow!$E90 -> 0 | AD90: =Level!B90 -> 3.961 | AE90: =Level!C90 -> 3.961 | AF90: =Level!$E90-AE90 -> 0 | AG90: =AD90-Level!$E90 -> 0 | AH90: =Conc_sep!B90 -> 72.98904615 | AI90: =Conc_sep!C90 -> 68.33075298 | AJ90: =Conc_sep!$E90-AI90 -> 4.658293171 | AK90: =AH90-Conc_sep!$E90 -> 0
A91: =Data!A91 -> 2004-03-24 | B91: =Data!B91 -> -0.7 | C91: =Temp!C91 -> -0.7 | D91: =Temp!$E91-C91 -> 0 | E91: =B91-Temp!$E91 -> 0 | F91: =Data!I91 -> 0 | G91: =Precip!C91 -> 0.15 | H91: =Precip!$E91-G91 -> 0 | I91: =F91-Precip!$E91 -> -0.15 | J91: =Data!D91 -> 70.8 | K91: =Humid!C91 -> 68 | L91: =Humid!$E91-K91 -> 2.8 | M91: =J91-Humid!$E91 -> 0 | N91: =Data!E91 -> 312.9 | O91: =WinD!C91 -> 128.8 | P91: =WinD!$E91-O91 -> 26.05696277 | Q91: =N91-WinD!$E91 -> 158.0430372 | R91: =Data!F91 -> 6.7 | S91: =Win!C91 -> 2.04 | T91: =Win!$E91-S91 -> 1.128711786 | U91: =R91-Win!$E91 -> 3.531288214 | V91: =Data!H91 -> 99.4 | W91: =Pressure!C91 -> 98.77 | X91: =Pressure!$E91-W91 -> 0.1034614698 | Y91: =V91-Pressure!$E91 -> 0.5265385302 | Z91: =Snow!B91 -> 0 | AA91: =Snow!C91 -> 0 | AB91: =Snow!$E91-AA91 -> 0 | AC91: =Z91-Snow!$E91 -> 0 | AD91: =Level!B91 -> 3.945 | AE91: =Level!C91 -> 3.945 | AF91: =Level!$E91-AE91 -> 0 | AG91: =AD91-Level!$E91 -> 0 | AH91: =Conc_sep!B91 -> 75.10729614 | AI91: =Conc_sep!C91 -> 69.88075298 | AJ91: =Conc_sep!$E91-AI91 -> 5.226543159 | AK91: =AH91-Conc_sep!$E91 -> 0
A92: =Data!A92 -> 2004-03-25 | B92: =Data!B92 -> -0.4 | C92: =Temp!C92 -> -0.4 | D92: =Temp!$E92-C92 -> 0 | E92: =B92-Temp!$E92 -> 0 | F92: =Data!I92 -> 0 | G92: =Precip!C92 -> 0 | H92: =Precip!$E92-G92 -> 0 | I92: =F92-Precip!$E92 -> 0 | J92: =Data!D92 -> 67.1 | K92: =Humid!C92 -> 67.1 | L92: =Humid!$E92-K92 -> 0 | M92: =J92-Humid!$E92 -> 0 | N92: =Data!E92 -> 145.8 | O92: =WinD!C92 -> 145.8 | P92: =WinD!$E92-O92 -> 0 | Q92: =N92-WinD!$E92 -> 0 | R92: =Data!F92 -> 2.2 | S92: =Win!C92 -> 2.2 | T92: =Win!$E92-S92 -> 0 | U92: =R92-Win!$E92 -> 0 | V92: =Data!H92 -> 99.9 | W92: =Pressure!C92 -> 99.04 | X92: =Pressure!$E92-W92 -> 0.2069229397 | Y92: =V92-Pressure!$E92 -> 0.6530770603 | Z92: =Snow!B92 -> 0 | AA92: =Snow!C92 -> 0 | AB92: =Snow!$E92-AA92 -> 0 | AC92: =Z92-Snow!$E92 -> 0 | AD92: =Level!B92 -> 4.008 | AE92: =Level!C92 -> 3.955 | AF92: =Level!$E92-AE92 -> 0.02525920632 | AG92: =AD92-Level!$E92 -> 0.02774079368 | AH92: =Conc_sep!B92 -> 75.08120067 | AI92: =Conc_sep!C92 -> 71.43075298 | AJ92: =Conc_sep!$E92-AI92 -> 3.650447688 | AK92: =AH92-Conc_sep!$E92 -> 0
A93: =Data!A93 -> 2004-03-26 | B93: =Data!B93 -> 1.4 | C93: =Temp!C93 -> 0.79 | D93: =Temp!$E93-C93 -> 0.61 | E93: =B93-Temp!$E93 -> 0 | F93: =Data!I93 -> 10.2 | G93: =Precip!C93 -> 0.14 | H93: =Precip!$E93-G93 -> 0.9181166859 | I93: =F93-Precip!$E93 -> 9.141883314 | J93: =Data!D93 -> 93.7 | K93: =Humid!C93 -> 69.4 | L93: =Humid!$E93-K93 -> 2.045836389 | M93: =J93-Humid!$E93 -> 22.25416361 | N93: =Data!E93 -> 135.2 | O93: =WinD!C93 -> 135.2 | P93: =WinD!$E93-O93 -> 0 | Q93: =N93-WinD!$E93 -> 0 | R93: =Data!F93 -> 2.9 | S93: =Win!C93 -> 2.67 | T93: =Win!$E93-S93 -> 0.23 | U93: =R93-Win!$E93 -> 0 | V93: =Data!H93 -> 98.5 | W93: =Pressure!C93 -> 98.5 | X93: =Pressure!$E93-W93 -> 0 | Y93: =V93-Pressure!$E93 -> 0 | Z93: =Snow!B93 -> 2 | AA93: =Snow!C93 -> 0.81 | AB93: =Snow!$E93-AA93 -> 0.7204902064 | AC93: =Z93-Snow!$E93 -> 0.4695097936 | AD93: =Level!B93 -> 4.255 | AE93: =Level!C93 -> 3.965 | AF93: =Level!$E93-AE93 -> 0.05051841263 | AG93: =AD93-Level!$E93 -> 0.2394815874 | AH93: =Conc_sep!B93 -> 66.34066391 | AI93: =Conc_sep!C93 -> 66.34066391 | AJ93: =Conc_sep!$E93-AI93 -> 0 | AK93: =AH93-Conc_sep!$E93 -> 0
A94: =Data!A94 -> 2004-03-27 | B94: =Data!B94 -> 2.6 | C94: =Temp!C94 -> 1.98 | D94: =Temp!$E94-C94 -> 0.62 | E94: =B94-Temp!$E94 -> 0 | F94: =Data!I94 -> 0 | G94: =Precip!C94 -> 0 | H94: =Precip!$E94-G94 -> 0 | I94: =F94-Precip!$E94 -> 0 | J94: =Data!D94 -> 79.9 | K94: =Humid!C94 -> 71.7 | L94: =Humid!$E94-K94 -> 4.091672777 | M94: =J94-Humid!$E94 -> 4.108327223 | N94: =Data!E94 -> 257.1 | O94: =WinD!C94 -> 169.2 | P94: =WinD!$E94-O94 -> 13.02848139 | Q94: =N94-WinD!$E94 -> 74.87151861 | R94: =Data!F94 -> 2.7 | S94: =Win!C94 -> 2.7 | T94: =Win!$E94-S94 -> 0 | U94: =R94-Win!$E94 -> 0 | V94: =Data!H94 -> 99 | W94: =Pressure!C94 -> 98.77 | X94: =Pressure!$E94-W94 -> 0.1034614698 | Y94: =V94-Pressure!$E94 -> 0.1265385302 | Z94: =Snow!B94 -> 0 | AA94: =Snow!C94 -> 0 | AB94: =Snow!$E94-AA94 -> 0 | AC94: =Z94-Snow!$E94 -> 0 | AD94: =Level!B94 -> 4.442 | AE94: =Level!C94 -> 3.975 | AF94: =Level!$E94-AE94 -> 0.07577761895 | AG94: =AD94-Level!$E94 -> 0.3912223811 | AH94: =Conc_sep!B94 -> 58.7189002 | AI94: =Conc_sep!C94 -> 58.7189002 | AJ94: =Conc_sep!$E94-AI94 -> 0 | AK94: =AH94-Conc_sep!$E94 -> 0
A95: =Data!A95 -> 2004-03-28 | B95: =Data!B95 -> 1.2 | C95: =Temp!C95 -> 1.2 | D95: =Temp!$E95-C95 -> 0 | E95: =B95-Temp!$E95 -> 0 | F95: =Data!I95 -> 9.8 | G95: =Precip!C95 -> 0.14 | H95: =Precip!$E95-G95 -> 0.9181166859 | I95: =F95-Precip!$E95 -> 8.741883314 | J95: =Data!D95 -> 94.3 | K95: =Humid!C95 -> 74 | L95: =Humid!$E95-K95 -> 6.137509166 | M95: =J95-Humid!$E95 -> 14.16249083 | N95: =Data!E95 -> 92.9 | O95: =WinD!C95 -> 92.9 | P95: =WinD!$E95-O95 -> 0 | Q95: =N95-WinD!$E95 -> 0 | R95: =Data!F95 -> 2.1 | S95: =Win!C95 -> 2.1 | T95: =Win!$E95-S95 -> 0 | U95: =R95-Win!$E95 -> 0 | V95: =Data!H95 -> 99.5 | W95: =Pressure!C95 -> 99.04 | X95: =Pressure!$E95-W95 -> 0.2069229397 | Y95: =V95-Pressure!$E95 -> 0.2530770603 | Z95: =Snow!B95 -> 0 | AA95: =Snow!C95 -> 0 | AB95: =Snow!$E95-AA95 -> 0 | AC95: =Z95-Snow!$E95 -> 0 | AD95: =Level!B95 -> 4.297 | AE95: =Level!C95 -> 3.985 | AF95: =Level!$E95-AE95 -> 0.1010368253 | AG95: =AD95-Level!$E95 -> 0.2109631747 | AH95: =Conc_sep!B95 -> 63.04244985 | AI95: =Conc_sep!C95 -> 60.2689002 | AJ95: =Conc_sep!$E95-AI95 -> 0.7478238652 | AK95: =AH95-Conc_sep!$E95 -> 2.025725785
A96: =Data!A96 -> 2004-03-29 | B96: =Data!B96 -> 0.4 | C96: =Temp!C96 -> 0.4 | D96: =Temp!$E96-C96 -> 0 | E96: =B96-Temp!$E96 -> 0 | F96: =Data!I96 -> 0 | G96: =Precip!C96 -> 0.15 | H96: =Precip!$E96-G96 -> 0 | I96: =F96-Precip!$E96 -> -0.15 | J96: =Data!D96 -> 77.2 | K96: =Humid!C96 -> 76.3 | L96: =Humid!$E96-K96 -> 0.9 | M96: =J96-Humid!$E96 -> 0 | N96: =Data!E96 -> 267.1 | O96: =WinD!C96 -> 126.9 | P96: =WinD!$E96-O96 -> 13.02848139 | Q96: =N96-WinD!$E96 -> 127.1715186 | R96: =Data!F96 -> 4.7 | S96: =Win!C96 -> 2.57 | T96: =Win!$E96-S96 -> 0.5643558928 | U96: =R96-Win!$E96 -> 1.565644107 | V96: =Data!H96 -> 100.3 | W96: =Pressure!C96 -> 99.31 | X96: =Pressure!$E96-W96 -> 0.3103844095 | Y96: =V96-Pressure!$E96 -> 0.6796155905 | Z96: =Snow!B96 -> 2 | AA96: =Snow!C96 -> 0.81 | AB96: =Snow!$E96-AA96 -> 0.7204902064 | AC96: =Z96-Snow!$E96 -> 0.4695097936 | AD96: =Level!B96 -> 4.202 | AE96: =Level!C96 -> 3.995 | AF96: =Level!$E96-AE96 -> 0.1262960316 | AG96: =AD96-Level!$E96 -> 0.08070396842 | AH96: =Conc_sep!B96 -> 64.2564803 | AI96: =Conc_sep!C96 -> 61.8189002 | AJ96: =Conc_sep!$E96-AI96 -> 1.49564773 | AK96: =AH96-Conc_sep!$E96 -> 0.9419323734
A97: =Data!A97 -> 2004-03-30 | B97: =Data!B97 -> 0.4 | C97: =Temp!C97 -> 0.4 | D97: =Temp!$E97-C97 -> 0 | E97: =B97-Temp!$E97 -> 0 | F97: =Data!I97 -> 0 | G97: =Precip!C97 -> 0 | H97: =Precip!$E97-G97 -> 0 | I97: =F97-Precip!$E97 -> 0 | J97: =Data!D97 -> 76.3 | K97: =Humid!C97 -> 76.3 | L97: =Humid!$E97-K97 -> 0 | M97: =J97-Humid!$E97 -> 0 | N97: =Data!E97 -> 262.9 | O97: =WinD!C97 -> 160.9 | P97: =WinD!$E97-O97 -> 26.05696277 | Q97: =N97-WinD!$E97 -> 75.94303723 | R97: =Data!F97 -> 4.7 | S97: =Win!C97 -> 3.04 | T97: =Win!$E97-S97 -> 1.128711786 | U97: =R97-Win!$E97 -> 0.5312882144 | V97: =Data!H97 -> 100.3 | W97: =Pressure!C97 -> 99.58 | X97: =Pressure!$E97-W97 -> 0.4138458793 | Y97: =V97-Pressure!$E97 -> 0.3061541207 | Z97: =Snow!B97 -> 0 | AA97: =Snow!C97 -> 0 | AB97: =Snow!$E97-AA97 -> 0 | AC97: =Z97-Snow!$E97 -> 0 | AD97: =Level!B97 -> 4.361 | AE97: =Level!C97 -> 4.005 | AF97: =Level!$E97-AE97 -> 0.1515552379 | AG97: =AD97-Level!$E97 -> 0.2044447621 | AH97: =Conc_sep!B97 -> 59.63131162 | AI97: =Conc_sep!C97 -> 59.63131162 | AJ97: =Conc_sep!$E97-AI97 -> 0 | AK97: =AH97-Conc_sep!$E97 -> 0
A98: =Data!A98 -> 2004-03-31 | B98: =Data!B98 -> 5.2 | C98: =Temp!C98 -> 1.59 | D98: =Temp!$E98-C98 -> 0.6363478542 | E98: =B98-Temp!$E98 -> 2.973652146 | F98: =Data!I98 -> 0 | G98: =Precip!C98 -> 0 | H98: =Precip!$E98-G98 -> 0 | I98: =F98-Precip!$E98 -> 0 | J98: =Data!D98 -> 54.5 | K98: =Humid!C98 -> 54.5 | L98: =Humid!$E98-K98 -> 0 | M98: =J98-Humid!$E98 -> 0 | N98: =Data!E98 -> 225.4 | O98: =WinD!C98 -> 194.9 | P98: =WinD!$E98-O98 -> 30.5 | Q98: =N98-WinD!$E98 -> 0 | R98: =Data!F98 -> 3.7 | S98: =Win!C98 -> 3.51 | T98: =Win!$E98-S98 -> 0.19 | U98: =R98-Win!$E98 -> 0 | V98: =Data!H98 -> 99.4 | W98: =Pressure!C98 -> 99.4 | X98: =Pressure!$E98-W98 -> 0 | Y98: =V98-Pressure!$E98 -> 0 | Z98: =Snow!B98 -> 0 | AA98: =Snow!C98 -> 0 | AB98: =Snow!$E98-AA98 -> 0 | AC98: =Z98-Snow!$E98 -> 0 | AD98: =Level!B98 -> 4.635 | AE98: =Level!C98 -> 4.015 | AF98: =Level!$E98-AE98 -> 0.1768144442 | AG98: =AD98-Level!$E98 -> 0.4431855558 | AH98: =Conc_sep!B98 -> 52.82650365 | AI98: =Conc_sep!C98 -> 52.82650365 | AJ98: =Conc_sep!$E98-AI98 -> 0 | AK98: =AH98-Conc_sep!$E98 -> 0
A99: =Data!A99 -> 2004-04-01 | B99: =Data!B99 -> 7.4 | C99: =Temp!C99 -> 2.78 | D99: =Temp!$E99-C99 -> 1.272695708 | E99: =B99-Temp!$E99 -> 3.347304292 | F99: =Data!I99 -> 2.2 | G99: =Precip!C99 -> 0.14 | H99: =Precip!$E99-G99 -> 0.9181166859 | I99: =F99-Precip!$E99 -> 1.141883314 | J99: =Data!D99 -> 68.3 | K99: =Humid!C99 -> 56.8 | L99: =Humid!$E99-K99 -> 2.045836389 | M99: =J99-Humid!$E99 -> 9.454163611 | N99: =Data!E99 -> 159.2 | O99: =WinD!C99 -> 159.2 | P99: =WinD!$E99-O99 -> 0 | Q99: =N99-WinD!$E99 -> 0 | R99: =Data!F99 -> 5.3 | S99: =Win!C99 -> 3.98 | T99: =Win!$E99-S99 -> 0.7543558928 | U99: =R99-Win!$E99 -> 0.5656441072 | V99: =Data!H99 -> 99.2 | W99: =Pressure!C99 -> 99.2 | X99: =Pressure!$E99-W99 -> 0 | Y99: =V99-Pressure!$E99 -> 0 | Z99: =Snow!B99 -> 0 | AA99: =Snow!C99 -> 0 | AB99: =Snow!$E99-AA99 -> 0 | AC99: =Z99-Snow!$E99 -> 0 | AD99: =Level!B99 -> 4.407 | AE99: =Level!C99 -> 4.025 | AF99: =Level!$E99-AE99 -> 0.2020736505 | AG99: =AD99-Level!$E99 -> 0.1799263495 | AH99: =Conc_sep!B99 -> 58.13120765 | AI99: =Conc_sep!C99 -> 54.37650365 | AJ99: =Conc_sep!$E99-AI99 -> 0.7478238652 | AK99: =AH99-Conc_sep!$E99 -> 3.006880134
A100: =Data!A100 -> 2004-04-02 | B100: =Data!B100 -> 1.8 | C100: =Temp!C100 -> 1.8 | D100: =Temp!$E100-C100 -> 0 | E100: =B100-Temp!$E100 -> 0 | F100: =Data!I100 -> 4 | G100: =Precip!C100 -> 0.28 | H100: =Precip!$E100-G100 -> 1.836233372 | I100: =F100-Precip!$E100 -> 1.883766628 | J100: =Data!D100 -> 78.4 | K100: =Humid!C100 -> 59.1 | L100: =Humid!$E100-K100 -> 4.091672777 | M100: =J100-Humid!$E100 -> 15.20832722 | N100: =Data!E100 -> 267.5 | O100: =WinD!C100 -> 193.2 | P100: =WinD!$E100-O100 -> 13.02848139 | Q100: =N100-WinD!$E100 -> 61.27151861 | R100: =Data!F100 -> 4.3 | S100: =Win!C100 -> 4.3 | T100: =Win!$E100-S100 -> 0 | U100: =R100-Win!$E100 -> 0 | V100: =Data!H100 -> 99.2 | W100: =Pressure!C100 -> 99.2 | X100: =Pressure!$E100-W100 -> 0 | Y100: =V100-Pressure!$E100 -> 0 | Z100: =Snow!B100 -> 1 | AA100: =Snow!C100 -> 0.81 | AB100: =Snow!$E100-AA100 -> 0.19 | AC100: =Z100-Snow!$E100 -> 0 | AD100: =Level!B100 -> 4.364 | AE100: =Level!C100 -> 4.035 | AF100: =Level!$E100-AE100 -> 0.2273328568 | AG100: =AD100-Level!$E100 -> 0.1016671432 | AH100: =Conc_sep!B100 -> 58.88954315 | AI100: =Conc_sep!C100 -> 55.92650365 | AJ100: =Conc_sep!$E100-AI100 -> 1.49564773 | AK100: =AH100-Conc_sep!$E100 -> 1.467391767
A101: =Data!A101 -> 2004-04-03 | B101: =Data!B101 -> 4.1 | C101: =Temp!C101 -> 2.99 | D101: =Temp!$E101-C101 -> 0.6363478542 | E101: =B101-Temp!$E101 -> 0.4736521458 | F101: =Data!I101 -> 0 | G101: =Precip!C101 -> 0 | H101: =Precip!$E101-G101 -> 0 | I101: =F101-Precip!$E101 -> 0 | J101: =Data!D101 -> 65.1 | K101: =Humid!C101 -> 61.4 | L101: =Humid!$E101-K101 -> 3.7 | M101: =J101-Humid!$E101 -> 0 | N101: =Data!E101 -> 220 | O101: =WinD!C101 -> 220 | P101: =WinD!$E101-O101 -> 0 | Q101: =N101-WinD!$E101 -> 0 | R101: =Data!F101 -> 4.7 | S101: =Win!C101 -> 4.7 | T101: =Win!$E101-S101 -> 0 | U101: =R101-Win!$E101 -> 0 | V101: =Data!H101 -> 99.4 | W101: =Pressure!C101 -> 99.4 | X101: =Pressure!$E101-W101 -> 0 | Y101: =V101-Pressure!$E101 -> 0 | Z101: =Snow!B101 -> 0 | AA101: =Snow!C101 -> 0 | AB101: =Snow!$E101-AA101 -> 0 | AC101: =Z101-Snow!$E101 -> 0 | AD101: =Level!B101 -> 4.331 | AE101: =Level!C101 -> 4.045 | AF101: =Level!$E101-AE101 -> 0.2525920632 | AG101: =AD101-Level!$E101 -> 0.03340793684 | AH101: =Conc_sep!B101 -> 59.024266 | AI101: =Conc_sep!C101 -> 57.47650365 | AJ101: =Conc_sep!$E101-AI101 -> 1.547762347 | AK101: =AH101-Conc_sep!$E101 -> 0
A102: =Data!A102 -> 2004-04-04 | B102: =Data!B102 -> 4.6 | C102: =Temp!C102 -> 4.18 | D102: =Temp!$E102-C102 -> 0.42 | E102: =B102-Temp!$E102 -> 0 | F102: =Data!I102 -> 2.6 | G102: =Precip!C102 -> 0.14 | H102: =Precip!$E102-G102 -> 0.9181166859 | I102: =F102-Precip!$E102 -> 1.541883314 | J102: =Data!D102 -> 73.3 | K102: =Humid!C102 -> 63.7 | L102: =Humid!$E102-K102 -> 5.745836389 | M102: =J102-Humid!$E102 -> 3.854163611 | N102: =Data!E102 -> 179.2 | O102: =WinD!C102 -> 179.2 | P102: =WinD!$E102-O102 -> 0 | Q102: =N102-WinD!$E102 -> 0 | R102: =Data!F102 -> 2.7 | S102: =Win!C102 -> 2.7 | T102: =Win!$E102-S102 -> 0 | U102: =R102-Win!$E102 -> 0 | V102: =Data!H102 -> 98.9 | W102: =Pressure!C102 -> 98.9 | X102: =Pressure!$E102-W102 -> 0 | Y102: =V102-Pressure!$E102 -> 0 | Z102: =Snow!B102 -> 0 | AA102: =Snow!C102 -> 0 | AB102: =Snow!$E102-AA102 -> 0 | AC102: =Z102-Snow!$E102 -> 0 | AD102: =Level!B102 -> 4.242 | AE102: =Level!C102 -> 4.055 | AF102: =Level!$E102-AE102 -> 0.187 | AG102: =AD102-Level!$E102 -> 0 | AH102: =Conc_sep!B102 -> 56.65389071 | AI102: =Conc_sep!C102 -> 56.65389071 | AJ102: =Conc_sep!$E102-AI102 -> 0 | AK102: =AH102-Conc_sep!$E102 -> 0
A103: =Data!A103 -> 2004-04-05 | B103: =Data!B103 -> -1 | C103: =Temp!C103 -> -1 | D103: =Temp!$E103-C103 -> 0 | E103: =B103-Temp!$E103 -> 0 | F103: =Data!I103 -> 10 | G103: =Precip!C103 -> 0.28 | H103: =Precip!$E103-G103 -> 1.836233372 | I103: =F103-Precip!$E103 -> 7.883766628 | J103: =Data!D103 -> 91.3 | K103: =Humid!C103 -> 66 | L103: =Humid!$E103-K103 -> 7.791672777 | M103: =J103-Humid!$E103 -> 17.50832722 | N103: =Data!E103 -> 231.3 | O103: =WinD!C103 -> 213.2 | P103: =WinD!$E103-O103 -> 13.02848139 | Q103: =N103-WinD!$E103 -> 5.071518614 | R103: =Data!F103 -> 6.5 | S103: =Win!C103 -> 3.17 | T103: =Win!$E103-S103 -> 0.5643558928 | U103: =R103-Win!$E103 -> 2.765644107 | V103: =Data!H103 -> 99.2 | W103: =Pressure!C103 -> 99.17 | X103: =Pressure!$E103-W103 -> 0.03 | Y103: =V103-Pressure!$E103 -> 0 | Z103: =Snow!B103 -> 2 | AA103: =Snow!C103 -> 0.81 | AB103: =Snow!$E103-AA103 -> 0.7204902064 | AC103: =Z103-Snow!$E103 -> 0.4695097936 | AD103: =Level!B103 -> 4.148 | AE103: =Level!C103 -> 4.065 | AF103: =Level!$E103-AE103 -> 0.083 | AG103: =AD103-Level!$E103 -> 0 | AH103: =Conc_sep!B103 -> 56.55937817 | AI103: =Conc_sep!C103 -> 56.55937817 | AJ103: =Conc_sep!$E103-AI103 -> 0 | AK103: =AH103-Conc_sep!$E103 -> 0
A104: =Data!A104 -> 2004-04-06 | B104: =Data!B104 -> -0.4 | C104: =Temp!C104 -> -0.4 | D104: =Temp!$E104-C104 -> 0 | E104: =B104-Temp!$E104 -> 0 | F104: =Data!I104 -> 0 | G104: =Precip!C104 -> 0.15 | H104: =Precip!$E104-G104 -> 0 | I104: =F104-Precip!$E104 -> -0.15 | J104: =Data!D104 -> 70.4 | K104: =Humid!C104 -> 68.3 | L104: =Humid!$E104-K104 -> 2.1 | M104: =J104-Humid!$E104 -> 0 | N104: =Data!E104 -> 288.3 | O104: =WinD!C104 -> 247.2 | P104: =WinD!$E104-O104 -> 26.05696277 | Q104: =N104-WinD!$E104 -> 15.04303723 | R104: =Data!F104 -> 6.2 | S104: =Win!C104 -> 3.64 | T104: =Win!$E104-S104 -> 1.128711786 | U104: =R104-Win!$E104 -> 1.431288214 | V104: =Data!H104 -> 99.9 | W104: =Pressure!C104 -> 99.44 | X104: =Pressure!$E104-W104 -> 0.1334614698 | Y104: =V104-Pressure!$E104 -> 0.3265385302 | Z104: =Snow!B104 -> 12 | AA104: =Snow!C104 -> 1.62 | AB104: =Snow!$E104-AA104 -> 1.440980413 | AC104: =Z104-Snow!$E104 -> 8.939019587 | AD104: =Level!B104 -> 4.088 | AE104: =Level!C104 -> 4.075 | AF104: =Level!$E104-AE104 -> 0.013 | AG104: =AD104-Level!$E104 -> 0 | AH104: =Conc_sep!B104 -> 62.14400233 | AI104: =Conc_sep!C104 -> 58.10937817 | AJ104: =Conc_sep!$E104-AI104 -> 0.7478238652 | AK104: =AH104-Conc_sep!$E104 -> 3.2868003
A105: =Data!A105 -> 2004-04-07 | B105: =Data!B105 -> 1.4 | C105: =Temp!C105 -> 0.79 | D105: =Temp!$E105-C105 -> 0.61 | E105: =B105-Temp!$E105 -> 0 | F105: =Data!I105 -> 0 | G105: =Precip!C105 -> 0 | H105: =Precip!$E105-G105 -> 0 | I105: =F105-Precip!$E105 -> 0 | J105: =Data!D105 -> 64.4 | K105: =Humid!C105 -> 64.4 | L105: =Humid!$E105-K105 -> 0 | M105: =J105-Humid!$E105 -> 0 | N105: =Data!E105 -> 170 | O105: =WinD!C105 -> 170 | P105: =WinD!$E105-O105 -> 0 | Q105: =N105-WinD!$E105 -> 0 | R105: =Data!F105 -> 2.8 | S105: =Win!C105 -> 2.8 | T105: =Win!$E105-S105 -> 0 | U105: =R105-Win!$E105 -> 0 | V105: =Data!H105 -> 100.8 | W105: =Pressure!C105 -> 99.71 | X105: =Pressure!$E105-W105 -> 0.2369229397 | Y105: =V105-Pressure!$E105 -> 0.8530770603 | Z105: =Snow!B105 -> 6 | AA105: =Snow!C105 -> 2.43 | AB105: =Snow!$E105-AA105 -> 2.161470619 | AC105: =Z105-Snow!$E105 -> 1.408529381 | AD105: =Level!B105 -> 4.072 | AE105: =Level!C105 -> 4.072 | AF105: =Level!$E105-AE105 -> 0 | AG105: =AD105-Level!$E105 -> 0 | AH105: =Conc_sep!B105 -> 64.57193725 | AI105: =Conc_sep!C105 -> 59.65937817 | AJ105: =Conc_sep!$E105-AI105 -> 1.49564773 | AK105: =AH105-Conc_sep!$E105 -> 3.416911356
A106: =Data!A106 -> 2004-04-08 | B106: =Data!B106 -> 8.9 | C106: =Temp!C106 -> 1.98 | D106: =Temp!$E106-C106 -> 1.246347854 | E106: =B106-Temp!$E106 -> 5.673652146 | F106: =Data!I106 -> 0 | G106: =Precip!C106 -> 0.14 | H106: =Precip!$E106-G106 -> 0.01 | I106: =F106-Precip!$E106 -> -0.15 | J106: =Data!D106 -> 61.5 | K106: =Humid!C106 -> 61.5 | L106: =Humid!$E106-K106 -> 0 | M106: =J106-Humid!$E106 -> 0 | N106: =Data!E106 -> 173.8 | O106: =WinD!C106 -> 173.8 | P106: =WinD!$E106-O106 -> 0 | Q106: =N106-WinD!$E106 -> 0 | R106: =Data!F106 -> 5.5 | S106: =Win!C106 -> 3.27 | T106: =Win!$E106-S106 -> 0.5643558928 | U106: =R106-Win!$E106 -> 1.665644107 | V106: =Data!H106 -> 99.4 | W106: =Pressure!C106 -> 99.4 | X106: =Pressure!$E106-W106 -> 0 | Y106: =V106-Pressure!$E106 -> 0 | Z106: =Snow!B106 -> 1 | AA106: =Snow!C106 -> 1 | AB106: =Snow!$E106-AA106 -> 0 | AC106: =Z106-Snow!$E106 -> 0 | AD106: =Level!B106 -> 4.064 | AE106: =Level!C106 -> 4.064 | AF106: =Level!$E106-AE106 -> 0 | AG106: =AD106-Level!$E106 -> 0 | AH106: =Conc_sep!B106 -> 66.17014439 | AI106: =Conc_sep!C106 -> 61.20937817 | AJ106: =Conc_sep!$E106-AI106 -> 2.243471596 | AK106: =AH106-Conc_sep!$E106 -> 2.717294626
A107: =Data!A107 -> 2004-04-09 | B107: =Data!B107 -> 8.1 | C107: =Temp!C107 -> 3.17 | D107: =Temp!$E107-C107 -> 1.882695708 | E107: =B107-Temp!$E107 -> 3.047304292 | F107: =Data!I107 -> 0 | G107: =Precip!C107 -> 0 | H107: =Precip!$E107-G107 -> 0 | I107: =F107-Precip!$E107 -> 0 | J107: =Data!D107 -> 63.4 | K107: =Humid!C107 -> 63.4 | L107: =Humid!$E107-K107 -> 0 | M107: =J107-Humid!$E107 -> 0 | N107: =Data!E107 -> 311.7 | O107: =WinD!C107 -> 207.8 | P107: =WinD!$E107-O107 -> 13.02848139 | Q107: =N107-WinD!$E107 -> 90.87151861 | R107: =Data!F107 -> 5.9 | S107: =Win!C107 -> 3.74 | T107: =Win!$E107-S107 -> 1.128711786 | U107: =R107-Win!$E107 -> 1.031288214 | V107: =Data!H107 -> 99.6 | W107: =Pressure!C107 -> 99.6 | X107: =Pressure!$E107-W107 -> 0 | Y107: =V107-Pressure!$E107 -> 0 | Z107: =Snow!B107 -> 0 | AA107: =Snow!C107 -> 0 | AB107: =Snow!$E107-AA107 -> 0 | AC107: =Z107-Snow!$E107 -> 0 | AD107: =Level!B107 -> 4.043 | AE107: =Level!C107 -> 4.043 | AF107: =Level!$E107-AE107 -> 0 | AG107: =AD107-Level!$E107 -> 0 | AH107: =Conc_sep!B107 -> 69.93533893 | AI107: =Conc_sep!C107 -> 62.75937817 | AJ107: =Conc_sep!$E107-AI107 -> 2.991295461 | AK107: =AH107-Conc_sep!$E107 -> 4.184665299
A108: =Data!A108 -> 2004-04-10 | B108: =Data!B108 -> 4.3 | C108: =Temp!C108 -> 4.3 | D108: =Temp!$E108-C108 -> 0 | E108: =B108-Temp!$E108 -> 0 | F108: =Data!I108 -> 0 | G108: =Precip!C108 -> 0 | H108: =Precip!$E108-G108 -> 0 | I108: =F108-Precip!$E108 -> 0 | J108: =Data!D108 -> 55.2 | K108: =Humid!C108 -> 55.2 | L108: =Humid!$E108-K108 -> 0 | M108: =J108-Humid!$E108 -> 0 | N108: =Data!E108 -> 199.2 | O108: =WinD!C108 -> 199.2 | P108: =WinD!$E108-O108 -> 0 | Q108: =N108-WinD!$E108 -> 0 | R108: =Data!F108 -> 2.8 | S108: =Win!C108 -> 2.8 | T108: =Win!$E108-S108 -> 0 | U108: =R108-Win!$E108 -> 0 | V108: =Data!H108 -> 101 | W108: =Pressure!C108 -> 99.87 | X108: =Pressure!$E108-W108 -> 0.1034614698 | Y108: =V108-Pressure!$E108 -> 1.02653853 | Z108: =Snow!B108 -> 0 | AA108: =Snow!C108 -> 0 | AB108: =Snow!$E108-AA108 -> 0 | AC108: =Z108-Snow!$E108 -> 0 | AD108: =Level!B108 -> 4.023 | AE108: =Level!C108 -> 4.023 | AF108: =Level!$E108-AE108 -> 0 | AG108: =AD108-Level!$E108 -> 0 | AH108: =Conc_sep!B108 -> 71.86294646 | AI108: =Conc_sep!C108 -> 64.30937817 | AJ108: =Conc_sep!$E108-AI108 -> 3.739119326 | AK108: =AH108-Conc_sep!$E108 -> 3.814448964
A109: =Data!A109 -> 2004-04-11 | B109: =Data!B109 -> 5.3 | C109: =Temp!C109 -> 5.3 | D109: =Temp!$E109-C109 -> 0 | E109: =B109-Temp!$E109 -> 0 | F109: =Data!I109 -> 14.4 | G109: =Precip!C109 -> 0.14 | H109: =Precip!$E109-G109 -> 0.9181166859 | I109: =F109-Precip!$E109 -> 13.34188331 | J109: =Data!D109 -> 72.2 | K109: =Humid!C109 -> 57.5 | L109: =Humid!$E109-K109 -> 2.045836389 | M109: =J109-Humid!$E109 -> 12.65416361 | N109: =Data!E109 -> 64.6 | O109: =WinD!C109 -> 64.6 | P109: =WinD!$E109-O109 -> 0 | Q109: =N109-WinD!$E109 -> 0 | R109: =Data!F109 -> 3.4 | S109: =Win!C109 -> 3.27 | T109: =Win!$E109-S109 -> 0.13 | U109: =R109-Win!$E109 -> 0 | V109: =Data!H109 -> 100.1 | W109: =Pressure!C109 -> 100.1 | X109: =Pressure!$E109-W109 -> 0 | Y109: =V109-Pressure!$E109 -> 0 | Z109: =Snow!B109 -> 0 | AA109: =Snow!C109 -> 0 | AB109: =Snow!$E109-AA109 -> 0 | AC109: =Z109-Snow!$E109 -> 0 | AD109: =Level!B109 -> 4.005 | AE109: =Level!C109 -> 4.005 | AF109: =Level!$E109-AE109 -> 0 | AG109: =AD109-Level!$E109 -> 0 | AH109: =Conc_sep!B109 -> 72.77417778 | AI109: =Conc_sep!C109 -> 65.85937817 | AJ109: =Conc_sep!$E109-AI109 -> 4.486943191 | AK109: =AH109-Conc_sep!$E109 -> 2.42785642
A110: =Data!A110 -> 2004-04-12 | B110: =Data!B110 -> 8.3 | C110: =Temp!C110 -> 6.49 | D110: =Temp!$E110-C110 -> 0.6363478542 | E110: =B110-Temp!$E110 -> 1.173652146 | F110: =Data!I110 -> 6.4 | G110: =Precip!C110 -> 0.28 | H110: =Precip!$E110-G110 -> 1.836233372 | I110: =F110-Precip!$E110 -> 4.283766628 | J110: =Data!D110 -> 89.3 | K110: =Humid!C110 -> 59.8 | L110: =Humid!$E110-K110 -> 4.091672777 | M110: =J110-Humid!$E110 -> 25.40832722 | N110: =Data!E110 -> 168.3 | O110: =WinD!C110 -> 98.6 | P110: =WinD!$E110-O110 -> 13.02848139 | Q110: =N110-WinD!$E110 -> 56.67151861 | R110: =Data!F110 -> 4.5 | S110: =Win!C110 -> 3.74 | T110: =Win!$E110-S110 -> 0.6943558928 | U110: =R110-Win!$E110 -> 0.0656441072 | V110: =Data!H110 -> 98.4 | W110: =Pressure!C110 -> 98.4 | X110: =Pressure!$E110-W110 -> 0 | Y110: =V110-Pressure!$E110 -> 0 | Z110: =Snow!B110 -> 0 | AA110: =Snow!C110 -> 0 | AB110: =Snow!$E110-AA110 -> 0 | AC110: =Z110-Snow!$E110 -> 0 | AD110: =Level!B110 -> 3.99 | AE110: =Level!C110 -> 3.99 | AF110: =Level!$E110-AE110 -> 0 | AG110: =AD110-Level!$E110 -> 0 | AH110: =Conc_sep!B110 -> 73.53980158 | AI110: =Conc_sep!C110 -> 67.40937817 | AJ110: =Conc_sep!$E110-AI110 -> 5.234767056 | AK110: =AH110-Conc_sep!$E110 -> 0.8956563583
A111: =Data!A111 -> 2004-04-13 | B111: =Data!B111 -> 10.6 | C111: =Temp!C111 -> 7.68 | D111: =Temp!$E111-C111 -> 1.272695708 | E111: =B111-Temp!$E111 -> 1.647304292 | F111: =Data!I111 -> 0.2 | G111: =Precip!C111 -> 0.2 | H111: =Precip!$E111-G111 -> 0 | I111: =F111-Precip!$E111 -> 0 | J111: =Data!D111 -> 76.7 | K111: =Humid!C111 -> 62.1 | L111: =Humid!$E111-K111 -> 6.137509166 | M111: =J111-Humid!$E111 -> 8.462490834 | N111: =Data!E111 -> 209.2 | O111: =WinD!C111 -> 132.6 | P111: =WinD!$E111-O111 -> 26.05696277 | Q111: =N111-WinD!$E111 -> 50.54303723 | R111: =Data!F111 -> 4.9 | S111: =Win!C111 -> 4.21 | T111: =Win!$E111-S111 -> 0.69 | U111: =R111-Win!$E111 -> 0 | V111: =Data!H111 -> 98.7 | W111: =Pressure!C111 -> 98.67 | X111: =Pressure!$E111-W111 -> 0.03 | Y111: =V111-Pressure!$E111 -> 0 | Z111: =Snow!B111 -> 0 | AA111: =Snow!C111 -> 0 | AB111: =Snow!$E111-AA111 -> 0 | AC111: =Z111-Snow!$E111 -> 0 | AD111: =Level!B111 -> 4.022 | AE111: =Level!C111 -> 4 | AF111: =Level!$E111-AE111 -> 0.022 | AG111: =AD111-Level!$E111 -> 0 | AH111: =Conc_sep!B111 -> 70.00283622 | AI111: =Conc_sep!C111 -> 68.95937817 | AJ111: =Conc_sep!$E111-AI111 -> 1.043458058 | AK111: =AH111-Conc_sep!$E111 -> 0
A112: =Data!A112 -> 2004-04-14 | B112: =Data!B112 -> 12.5 | C112: =Temp!C112 -> 8.87 | D112: =Temp!$E112-C112 -> 1.909043563 | E112: =B112-Temp!$E112 -> 1.720956437 | F112: =Data!I112 -> 0.2 | G112: =Precip!C112 -> 0.2 | H112: =Precip!$E112-G112 -> 0 | I112: =F112-Precip!$E112 -> 0 | J112: =Data!D112 -> 71.3 | K112: =Humid!C112 -> 64.4 | L112: =Humid!$E112-K112 -> 6.9 | M112: =J112-Humid!$E112 -> 0 | N112: =Data!E112 -> 110.8 | O112: =WinD!C112 -> 110.8 | P112: =WinD!$E112-O112 -> 0 | Q112: =N112-WinD!$E112 -> 0 | R112: =Data!F112 -> 4.1 | S112: =Win!C112 -> 4.1 | T112: =Win!$E112-S112 -> 0 | U112: =R112-Win!$E112 -> 0 | V112: =Data!H112 -> 98.7 | W112: =Pressure!C112 -> 98.7 | X112: =Pressure!$E112-W112 -> 0 | Y112: =V112-Pressure!$E112 -> 0 | Z112: =Snow!B112 -> 0 | AA112: =Snow!C112 -> 0 | AB112: =Snow!$E112-AA112 -> 0 | AC112: =Z112-Snow!$E112 -> 0 | AD112: =Level!B112 -> 4.051 | AE112: =Level!C112 -> 4.01 | AF112: =Level!$E112-AE112 -> 0.041 | AG112: =AD112-Level!$E112 -> 0 | AH112: =Conc_sep!B112 -> 66.25658368 | AI112: =Conc_sep!C112 -> 66.25658368 | AJ112: =Conc_sep!$E112-AI112 -> 0 | AK112: =AH112-Conc_sep!$E112 -> 0
A113: =Data!A113 -> 2004-04-15 | B113: =Data!B113 -> 7.6 | C113: =Temp!C113 -> 7.6 | D113: =Temp!$E113-C113 -> 0 | E113: =B113-Temp!$E113 -> 0 | F113: =Data!I113 -> 2 | G113: =Precip!C113 -> 0.34 | H113: =Precip!$E113-G113 -> 0.9181166859 | I113: =F113-Precip!$E113 -> 0.7418833141 | J113: =Data!D113 -> 72.6 | K113: =Humid!C113 -> 66.7 | L113: =Humid!$E113-K113 -> 5.9 | M113: =J113-Humid!$E113 -> 0 | N113: =Data!E113 -> 250.8 | O113: =WinD!C113 -> 144.8 | P113: =WinD!$E113-O113 -> 13.02848139 | Q113: =N113-WinD!$E113 -> 92.97151861 | R113: =Data!F113 -> 7.4 | S113: =Win!C113 -> 4.57 | T113: =Win!$E113-S113 -> 0.5643558928 | U113: =R113-Win!$E113 -> 2.265644107 | V113: =Data!H113 -> 98.2 | W113: =Pressure!C113 -> 98.2 | X113: =Pressure!$E113-W113 -> 0 | Y113: =V113-Pressure!$E113 -> 0 | Z113: =Snow!B113 -> 0 | AA113: =Snow!C113 -> 0 | AB113: =Snow!$E113-AA113 -> 0 | AC113: =Z113-Snow!$E113 -> 0 | AD113: =Level!B113 -> 4.024 | AE113: =Level!C113 -> 4.02 | AF113: =Level!$E113-AE113 -> 0.004 | AG113: =AD113-Level!$E113 -> 0 | AH113: =Conc_sep!B113 -> 69.62048421 | AI113: =Conc_sep!C113 -> 67.80658368 | AJ113: =Conc_sep!$E113-AI113 -> 0.7478238652 | AK113: =AH113-Conc_sep!$E113 -> 1.066076661
A114: =Data!A114 -> 2004-04-16 | B114: =Data!B114 -> 4.9 | C114: =Temp!C114 -> 4.9 | D114: =Temp!$E114-C114 -> 0 | E114: =B114-Temp!$E114 -> 0 | F114: =Data!I114 -> 0 | G114: =Precip!C114 -> 0.15 | H114: =Precip!$E114-G114 -> 0 | I114: =F114-Precip!$E114 -> -0.15 | J114: =Data!D114 -> 55.1 | K114: =Humid!C114 -> 55.1 | L114: =Humid!$E114-K114 -> 0 | M114: =J114-Humid!$E114 -> 0 | N114: =Data!E114 -> 282.1 | O114: =WinD!C114 -> 178.8 | P114: =WinD!$E114-O114 -> 26.05696277 | Q114: =N114-WinD!$E114 -> 77.24303723 | R114: =Data!F114 -> 8.5 | S114: =Win!C114 -> 5.04 | T114: =Win!$E114-S114 -> 1.128711786 | U114: =R114-Win!$E114 -> 2.331288214 | V114: =Data!H114 -> 98.9 | W114: =Pressure!C114 -> 98.47 | X114: =Pressure!$E114-W114 -> 0.1034614698 | Y114: =V114-Pressure!$E114 -> 0.3265385302 | Z114: =Snow!B114 -> 0 | AA114: =Snow!C114 -> 0 | AB114: =Snow!$E114-AA114 -> 0 | AC114: =Z114-Snow!$E114 -> 0 | AD114: =Level!B114 -> 3.988 | AE114: =Level!C114 -> 3.988 | AF114: =Level!$E114-AE114 -> 0 | AG114: =AD114-Level!$E114 -> 0 | AH114: =Conc_sep!B114 -> 73.67713141 | AI114: =Conc_sep!C114 -> 69.35658368 | AJ114: =Conc_sep!$E114-AI114 -> 1.49564773 | AK114: =AH114-Conc_sep!$E114 -> 2.824899992
A115: =Data!A115 -> 2004-04-17 | B115: =Data!B115 -> 8.3 | C115: =Temp!C115 -> 6.09 | D115: =Temp!$E115-C115 -> 0.6363478542 | E115: =B115-Temp!$E115 -> 1.573652146 | F115: =Data!I115 -> 0 | G115: =Precip!C115 -> 0 | H115: =Precip!$E115-G115 -> 0 | I115: =F115-Precip!$E115 -> 0 | J115: =Data!D115 -> 48.1 | K115: =Humid!C115 -> 48.1 | L115: =Humid!$E115-K115 -> 0 | M115: =J115-Humid!$E115 -> 0 | N115: =Data!E115 -> 216.3 | O115: =WinD!C115 -> 212.8 | P115: =WinD!$E115-O115 -> 3.5 | Q115: =N115-WinD!$E115 -> 0 | R115: =Data!F115 -> 5 | S115: =Win!C115 -> 5 | T115: =Win!$E115-S115 -> 0 | U115: =R115-Win!$E115 -> 0 | V115: =Data!H115 -> 99.4 | W115: =Pressure!C115 -> 98.74 | X115: =Pressure!$E115-W115 -> 0.2069229397 | Y115: =V115-Pressure!$E115 -> 0.4530770603 | Z115: =Snow!B115 -> 0 | AA115: =Snow!C115 -> 0 | AB115: =Snow!$E115-AA115 -> 0 | AC115: =Z115-Snow!$E115 -> 0 | AD115: =Level!B115 -> 4.007 | AE115: =Level!C115 -> 3.998 | AF115: =Level!$E115-AE115 -> 0.009 | AG115: =AD115-Level!$E115 -> 0 | AH115: =Conc_sep!B115 -> 70.76294472 | AI115: =Conc_sep!C115 -> 70.76294472 | AJ115: =Conc_sep!$E115-AI115 -> 0 | AK115: =AH115-Conc_sep!$E115 -> 0
A116: =Data!A116 -> 2004-04-18 | B116: =Data!B116 -> 10.3 | C116: =Temp!C116 -> 7.28 | D116: =Temp!$E116-C116 -> 1.272695708 | E116: =B116-Temp!$E116 -> 1.747304292 | F116: =Data!I116 -> 1.2 | G116: =Precip!C116 -> 0.14 | H116: =Precip!$E116-G116 -> 0.9181166859 | I116: =F116-Precip!$E116 -> 0.1418833141 | J116: =Data!D116 -> 57.3 | K116: =Humid!C116 -> 50.4 | L116: =Humid!$E116-K116 -> 2.045836389 | M116: =J116-Humid!$E116 -> 4.854163611 | N116: =Data!E116 -> 283.8 | O116: =WinD!C116 -> 246.8 | P116: =WinD!$E116-O116 -> 16.52848139 | Q116: =N116-WinD!$E116 -> 20.47151861 | R116: =Data!F116 -> 7 | S116: =Win!C116 -> 5.47 | T116: =Win!$E116-S116 -> 0.5643558928 | U116: =R116-Win!$E116 -> 0.9656441072 | V116: =Data!H116 -> 98.9 | W116: =Pressure!C116 -> 98.9 | X116: =Pressure!$E116-W116 -> 0 | Y116: =V116-Pressure!$E116 -> 0 | Z116: =Snow!B116 -> 0 | AA116: =Snow!C116 -> 0 | AB116: =Snow!$E116-AA116 -> 0 | AC116: =Z116-Snow!$E116 -> 0 | AD116: =Level!B116 -> 4.174 | AE116: =Level!C116 -> 4.008 | AF116: =Level!$E116-AE116 -> 0.03425920632 | AG116: =AD116-Level!$E116 -> 0.1317407937 | AH116: =Conc_sep!B116 -> 70.07469199 | AI116: =Conc_sep!C116 -> 70.07469199 | AJ116: =Conc_sep!$E116-AI116 -> 0 | AK116: =AH116-Conc_sep!$E116 -> 0
A117: =Data!A117 -> 2004-04-19 | B117: =Data!B117 -> 5 | C117: =Temp!C117 -> 5 | D117: =Temp!$E117-C117 -> 0 | E117: =B117-Temp!$E117 -> 0 | F117: =Data!I117 -> 0 | G117: =Precip!C117 -> 0 | H117: =Precip!$E117-G117 -> 0 | I117: =F117-Precip!$E117 -> 0 | J117: =Data!D117 -> 47.1 | K117: =Humid!C117 -> 47.1 | L117: =Humid!$E117-K117 -> 0 | M117: =J117-Humid!$E117 -> 0 | N117: =Data!E117 -> 296.3 | O117: =WinD!C117 -> 280.8 | P117: =WinD!$E117-O117 -> 15.5 | Q117: =N117-WinD!$E117 -> 0 | R117: =Data!F117 -> 7.2 | S117: =Win!C117 -> 5.94 | T117: =Win!$E117-S117 -> 1.128711786 | U117: =R117-Win!$E117 -> 0.1312882144 | V117: =Data!H117 -> 99.8 | W117: =Pressure!C117 -> 99.17 | X117: =Pressure!$E117-W117 -> 0.1034614698 | Y117: =V117-Pressure!$E117 -> 0.5265385302 | Z117: =Snow!B117 -> 0 | AA117: =Snow!C117 -> 0 | AB117: =Snow!$E117-AA117 -> 0 | AC117: =Z117-Snow!$E117 -> 0 | AD117: =Level!B117 -> 4.288 | AE117: =Level!C117 -> 4.018 | AF117: =Level!$E117-AE117 -> 0.05951841263 | AG117: =AD117-Level!$E117 -> 0.2104815874 | AH117: =Conc_sep!B117 -> 65.08457957 | AI117: =Conc_sep!C117 -> 65.08457957 | AJ117: =Conc_sep!$E117-AI117 -> 0 | AK117: =AH117-Conc_sep!$E117 -> 0
A118: =Data!A118 -> 2004-04-20 | B118: =Data!B118 -> 4.6 | C118: =Temp!C118 -> 4.6 | D118: =Temp!$E118-C118 -> 0 | E118: =B118-Temp!$E118 -> 0 | F118: =Data!I118 -> 0 | G118: =Precip!C118 -> 0 | H118: =Precip!$E118-G118 -> 0 | I118: =F118-Precip!$E118 -> 0 | J118: =Data!D118 -> 45.5 | K118: =Humid!C118 -> 45.5 | L118: =Humid!$E118-K118 -> 0 | M118: =J118-Humid!$E118 -> 0 | N118: =Data!E118 -> 305.4 | O118: =WinD!C118 -> 305.4 | P118: =WinD!$E118-O118 -> 0 | Q118: =N118-WinD!$E118 -> 0 | R118: =Data!F118 -> 5.9 | S118: =Win!C118 -> 5.9 | T118: =Win!$E118-S118 -> 0 | U118: =R118-Win!$E118 -> 0 | V118: =Data!H118 -> 100 | W118: =Pressure!C118 -> 99.44 | X118: =Pressure!$E118-W118 -> 0.2069229397 | Y118: =V118-Pressure!$E118 -> 0.3530770603 | Z118: =Snow!B118 -> 0 | AA118: =Snow!C118 -> 0 | AB118: =Snow!$E118-AA118 -> 0 | AC118: =Z118-Snow!$E118 -> 0 | AD118: =Level!B118 -> 4.157 | AE118: =Level!C118 -> 4.028 | AF118: =Level!$E118-AE118 -> 0.08477761895 | AG118: =AD118-Level!$E118 -> 0.04422238105 | AH118: =Conc_sep!B118 -> 66.12062184 | AI118: =Conc_sep!C118 -> 66.12062184 | AJ118: =Conc_sep!$E118-AI118 -> 0 | AK118: =AH118-Conc_sep!$E118 -> 0
A119: =Data!A119 -> 2004-04-21 | B119: =Data!B119 -> 5.2 | C119: =Temp!C119 -> 5.2 | D119: =Temp!$E119-C119 -> 0 | E119: =B119-Temp!$E119 -> 0 | F119: =Data!I119 -> 0 | G119: =Precip!C119 -> 0 | H119: =Precip!$E119-G119 -> 0 | I119: =F119-Precip!$E119 -> 0 | J119: =Data!D119 -> 44.2 | K119: =Humid!C119 -> 44.2 | L119: =Humid!$E119-K119 -> 0 | M119: =J119-Humid!$E119 -> 0 | N119: =Data!E119 -> 300.8 | O119: =WinD!C119 -> 300.8 | P119: =WinD!$E119-O119 -> 0 | Q119: =N119-WinD!$E119 -> 0 | R119: =Data!F119 -> 4.9 | S119: =Win!C119 -> 4.9 | T119: =Win!$E119-S119 -> 0 | U119: =R119-Win!$E119 -> 0 | V119: =Data!H119 -> 100.1 | W119: =Pressure!C119 -> 99.71 | X119: =Pressure!$E119-W119 -> 0.3103844095 | Y119: =V119-Pressure!$E119 -> 0.0796155905 | Z119: =Snow!B119 -> 0 | AA119: =Snow!C119 -> 0 | AB119: =Snow!$E119-AA119 -> 0 | AC119: =Z119-Snow!$E119 -> 0 | AD119: =Level!B119 -> 4.117 | AE119: =Level!C119 -> 4.038 | AF119: =Level!$E119-AE119 -> 0.079 | AG119: =AD119-Level!$E119 -> 0 | AH119: =Conc_sep!B119 -> 59.15103648 | AI119: =Conc_sep!C119 -> 59.15103648 | AJ119: =Conc_sep!$E119-AI119 -> 0 | AK119: =AH119-Conc_sep!$E119 -> 0
A120: =Data!A120 -> 2004-04-22 | B120: =Data!B120 -> 9.7 | C120: =Temp!C120 -> 6.39 | D120: =Temp!$E120-C120 -> 0.6363478542 | E120: =B120-Temp!$E120 -> 2.673652146 | F120: =Data!I120 -> 0 | G120: =Precip!C120 -> 0 | H120: =Precip!$E120-G120 -> 0 | I120: =F120-Precip!$E120 -> 0 | J120: =Data!D120 -> 36.6 | K120: =Humid!C120 -> 36.6 | L120: =Humid!$E120-K120 -> 0 | M120: =J120-Humid!$E120 -> 0 | N120: =Data!E120 -> 246.7 | O120: =WinD!C120 -> 246.7 | P120: =WinD!$E120-O120 -> 0 | Q120: =N120-WinD!$E120 -> 0 | R120: =Data!F120 -> 6 | S120: =Win!C120 -> 5.37 | T120: =Win!$E120-S120 -> 0.5643558928 | U120: =R120-Win!$E120 -> 0.0656441072 | V120: =Data!H120 -> 99.6 | W120: =Pressure!C120 -> 99.6 | X120: =Pressure!$E120-W120 -> 0 | Y120: =V120-Pressure!$E120 -> 0 | Z120: =Snow!B120 -> 0 | AA120: =Snow!C120 -> 0 | AB120: =Snow!$E120-AA120 -> 0 | AC120: =Z120-Snow!$E120 -> 0 | AD120: =Level!B120 -> 4.139 | AE120: =Level!C120 -> 4.048 | AF120: =Level!$E120-AE120 -> 0.091 | AG120: =AD120-Level!$E120 -> 0 | AH120: =Conc_sep!B120 -> 57.64084077 | AI120: =Conc_sep!C120 -> 57.64084077 | AJ120: =Conc_sep!$E120-AI120 -> 0 | AK120: =AH120-Conc_sep!$E120 -> 0
A121: =Data!A121 -> 2004-04-23 | B121: =Data!B121 -> 17.2 | C121: =Temp!C121 -> 7.58 | D121: =Temp!$E121-C121 -> 1.272695708 | E121: =B121-Temp!$E121 -> 8.347304292 | F121: =Data!I121 -> 11.8 | G121: =Precip!C121 -> 0.14 | H121: =Precip!$E121-G121 -> 0.9181166859 | I121: =F121-Precip!$E121 -> 10.74188331 | J121: =Data!D121 -> 49.7 | K121: =Humid!C121 -> 38.9 | L121: =Humid!$E121-K121 -> 2.045836389 | M121: =J121-Humid!$E121 -> 8.754163611 | N121: =Data!E121 -> 259.6 | O121: =WinD!C121 -> 259.6 | P121: =WinD!$E121-O121 -> 0 | Q121: =N121-WinD!$E121 -> 0 | R121: =Data!F121 -> 8.5 | S121: =Win!C121 -> 5.84 | T121: =Win!$E121-S121 -> 1.128711786 | U121: =R121-Win!$E121 -> 1.531288214 | V121: =Data!H121 -> 98.5 | W121: =Pressure!C121 -> 98.5 | X121: =Pressure!$E121-W121 -> 0 | Y121: =V121-Pressure!$E121 -> 0 | Z121: =Snow!B121 -> 0 | AA121: =Snow!C121 -> 0 | AB121: =Snow!$E121-AA121 -> 0 | AC121: =Z121-Snow!$E121 -> 0 | AD121: =Level!B121 -> 4.085 | AE121: =Level!C121 -> 4.058 | AF121: =Level!$E121-AE121 -> 0.027 | AG121: =AD121-Level!$E121 -> 0 | AH121: =Conc_sep!B121 -> 63.20697136 | AI121: =Conc_sep!C121 -> 59.19084077 | AJ121: =Conc_sep!$E121-AI121 -> 0.7478238652 | AK121: =AH121-Conc_sep!$E121 -> 3.268306726
A122: =Data!A122 -> 2004-04-24 | B122: =Data!B122 -> 13.2 | C122: =Temp!C122 -> 8.77 | D122: =Temp!$E122-C122 -> 1.909043563 | E122: =B122-Temp!$E122 -> 2.520956437 | F122: =Data!I122 -> 16.6 | G122: =Precip!C122 -> 0.28 | H122: =Precip!$E122-G122 -> 1.836233372 | I122: =F122-Precip!$E122 -> 14.48376663 | J122: =Data!D122 -> 91 | K122: =Humid!C122 -> 41.2 | L122: =Humid!$E122-K122 -> 4.091672777 | M122: =J122-Humid!$E122 -> 45.70832722 | N122: =Data!E122 -> 130 | O122: =WinD!C122 -> 130 | P122: =WinD!$E122-O122 -> 0 | Q122: =N122-WinD!$E122 -> 0 | R122: =Data!F122 -> 2.9 | S122: =Win!C122 -> 2.9 | T122: =Win!$E122-S122 -> 0 | U122: =R122-Win!$E122 -> 0 | V122: =Data!H122 -> 98.8 | W122: =Pressure!C122 -> 98.77 | X122: =Pressure!$E122-W122 -> 0.03 | Y122: =V122-Pressure!$E122 -> 0 | Z122: =Snow!B122 -> 0 | AA122: =Snow!C122 -> 0 | AB122: =Snow!$E122-AA122 -> 0 | AC122: =Z122-Snow!$E122 -> 0 | AD122: =Level!B122 -> 4.033 | AE122: =Level!C122 -> 4.033 | AF122: =Level!$E122-AE122 -> 0 | AG122: =AD122-Level!$E122 -> 0 | AH122: =Conc_sep!B122 -> 71.41331262 | AI122: =Conc_sep!C122 -> 60.74084077 | AJ122: =Conc_sep!$E122-AI122 -> 1.49564773 | AK122: =AH122-Conc_sep!$E122 -> 9.176824126
A123: =Data!A123 -> 2004-04-25 | B123: =Data!B123 -> 12 | C123: =Temp!C123 -> 9.96 | D123: =Temp!$E123-C123 -> 2.04 | E123: =B123-Temp!$E123 -> 0 | F123: =Data!I123 -> 4.6 | G123: =Precip!C123 -> 0.42 | H123: =Precip!$E123-G123 -> 2.754350058 | I123: =F123-Precip!$E123 -> 1.425649942 | J123: =Data!D123 -> 86.3 | K123: =Humid!C123 -> 43.5 | L123: =Humid!$E123-K123 -> 6.137509166 | M123: =J123-Humid!$E123 -> 36.66249083 | N123: =Data!E123 -> 132.1 | O123: =WinD!C123 -> 132.1 | P123: =WinD!$E123-O123 -> 0 | Q123: =N123-WinD!$E123 -> 0 | R123: =Data!F123 -> 2.7 | S123: =Win!C123 -> 2.7 | T123: =Win!$E123-S123 -> 0 | U123: =R123-Win!$E123 -> 0 | V123: =Data!H123 -> 98.8 | W123: =Pressure!C123 -> 98.8 | X123: =Pressure!$E123-W123 -> 0 | Y123: =V123-Pressure!$E123 -> 0 | Z123: =Snow!B123 -> 0 | AA123: =Snow!C123 -> 0 | AB123: =Snow!$E123-AA123 -> 0 | AC123: =Z123-Snow!$E123 -> 0 | AD123: =Level!B123 -> 4.019 | AE123: =Level!C123 -> 4.019 | AF123: =Level!$E123-AE123 -> 0 | AG123: =AD123-Level!$E123 -> 0 | AH123: =Conc_sep!B123 -> 72.04681904 | AI123: =Conc_sep!C123 -> 62.29084077 | AJ123: =Conc_sep!$E123-AI123 -> 2.243471596 | AK123: =AH123-Conc_sep!$E123 -> 7.512506674
A124: =Data!A124 -> 2004-04-26 | B124: =Data!B124 -> 14.8 | C124: =Temp!C124 -> 11.15 | D124: =Temp!$E124-C124 -> 2.676347854 | E124: =B124-Temp!$E124 -> 0.9736521458 | F124: =Data!I124 -> 7 | G124: =Precip!C124 -> 0.56 | H124: =Precip!$E124-G124 -> 3.672466744 | I124: =F124-Precip!$E124 -> 2.767533256 | J124: =Data!D124 -> 73.3 | K124: =Humid!C124 -> 45.8 | L124: =Humid!$E124-K124 -> 8.183345554 | M124: =J124-Humid!$E124 -> 19.31665445 | N124: =Data!E124 -> 265 | O124: =WinD!C124 -> 166.1 | P124: =WinD!$E124-O124 -> 13.02848139 | Q124: =N124-WinD!$E124 -> 85.87151861 | R124: =Data!F124 -> 7.6 | S124: =Win!C124 -> 3.17 | T124: =Win!$E124-S124 -> 0.5643558928 | U124: =R124-Win!$E124 -> 3.865644107 | V124: =Data!H124 -> 99 | W124: =Pressure!C124 -> 99 | X124: =Pressure!$E124-W124 -> 0 | Y124: =V124-Pressure!$E124 -> 0 | Z124: =Snow!B124 -> 0 | AA124: =Snow!C124 -> 0 | AB124: =Snow!$E124-AA124 -> 0 | AC124: =Z124-Snow!$E124 -> 0 | AD124: =Level!B124 -> 4.042 | AE124: =Level!C124 -> 4.029 | AF124: =Level!$E124-AE124 -> 0.013 | AG124: =AD124-Level!$E124 -> 0 | AH124: =Conc_sep!B124 -> 68.82048595 | AI124: =Conc_sep!C124 -> 63.84084077 | AJ124: =Conc_sep!$E124-AI124 -> 2.991295461 | AK124: =AH124-Conc_sep!$E124 -> 1.988349721
A125: =Data!A125 -> 2004-04-27 | B125: =Data!B125 -> 2.9 | C125: =Temp!C125 -> 2.9 | D125: =Temp!$E125-C125 -> 0 | E125: =B125-Temp!$E125 -> 0 | F125: =Data!I125 -> 3.2 | G125: =Precip!C125 -> 0.7 | H125: =Precip!$E125-G125 -> 2.5 | I125: =F125-Precip!$E125 -> 0 | J125: =Data!D125 -> 65.3 | K125: =Humid!C125 -> 48.1 | L125: =Humid!$E125-K125 -> 10.22918194 | M125: =J125-Humid!$E125 -> 6.970818057 | N125: =Data!E125 -> 152.1 | O125: =WinD!C125 -> 152.1 | P125: =WinD!$E125-O125 -> 0 | Q125: =N125-WinD!$E125 -> 0 | R125: =Data!F125 -> 5 | S125: =Win!C125 -> 3.64 | T125: =Win!$E125-S125 -> 1.128711786 | U125: =R125-Win!$E125 -> 0.2312882144 | V125: =Data!H125 -> 100.7 | W125: =Pressure!C125 -> 99.27 | X125: =Pressure!$E125-W125 -> 0.1034614698 | Y125: =V125-Pressure!$E125 -> 1.32653853 | Z125: =Snow!B125 -> 0 | AA125: =Snow!C125 -> 0 | AB125: =Snow!$E125-AA125 -> 0 | AC125: =Z125-Snow!$E125 -> 0 | AD125: =Level!B125 -> 4.063 | AE125: =Level!C125 -> 4.039 | AF125: =Level!$E125-AE125 -> 0.024 | AG125: =AD125-Level!$E125 -> 0 | AH125: =Conc_sep!B125 -> 66.23528254 | AI125: =Conc_sep!C125 -> 65.39084077 | AJ125: =Conc_sep!$E125-AI125 -> 0.8444417759 | AK125: =AH125-Conc_sep!$E125 -> 0
A126: =Data!A126 -> 2004-04-28 | B126: =Data!B126 -> 8.9 | C126: =Temp!C126 -> 4.09 | D126: =Temp!$E126-C126 -> 0.6363478542 | E126: =B126-Temp!$E126 -> 4.173652146 | F126: =Data!I126 -> 0 | G126: =Precip!C126 -> 0.15 | H126: =Precip!$E126-G126 -> 0 | I126: =F126-Precip!$E126 -> -0.15 | J126: =Data!D126 -> 70.6 | K126: =Humid!C126 -> 50.4 | L126: =Humid!$E126-K126 -> 12.27501833 | M126: =J126-Humid!$E126 -> 7.924981668 | N126: =Data!E126 -> 194.6 | O126: =WinD!C126 -> 186.1 | P126: =WinD!$E126-O126 -> 8.5 | Q126: =N126-WinD!$E126 -> 0 | R126: =Data!F126 -> 6 | S126: =Win!C126 -> 4.11 | T126: =Win!$E126-S126 -> 1.693067678 | U126: =R126-Win!$E126 -> 0.1969323216 | V126: =Data!H126 -> 99.9 | W126: =Pressure!C126 -> 99.54 | X126: =Pressure!$E126-W126 -> 0.2069229397 | Y126: =V126-Pressure!$E126 -> 0.1530770603 | Z126: =Snow!B126 -> 0 | AA126: =Snow!C126 -> 0 | AB126: =Snow!$E126-AA126 -> 0 | AC126: =Z126-Snow!$E126 -> 0 | AD126: =Level!B126 -> 4.028 | AE126: =Level!C126 -> 4.028 | AF126: =Level!$E126-AE126 -> 0 | AG126: =AD126-Level!$E126 -> 0 | AH126: =Conc_sep!B126 -> 71.62138692 | AI126: =Conc_sep!C126 -> 66.94084077 | AJ126: =Conc_sep!$E126-AI126 -> 1.592265641 | AK126: =AH126-Conc_sep!$E126 -> 3.088280507
A127: =Data!A127 -> 2004-04-29 | B127: =Data!B127 -> 5 | C127: =Temp!C127 -> 5 | D127: =Temp!$E127-C127 -> 0 | E127: =B127-Temp!$E127 -> 0 | F127: =Data!I127 -> 9.6 | G127: =Precip!C127 -> 0.29 | H127: =Precip!$E127-G127 -> 0.9181166859 | I127: =F127-Precip!$E127 -> 8.391883314 | J127: =Data!D127 -> 77 | K127: =Humid!C127 -> 52.7 | L127: =Humid!$E127-K127 -> 14.32085472 | M127: =J127-Humid!$E127 -> 9.97914528 | N127: =Data!E127 -> 168.3 | O127: =WinD!C127 -> 168.3 | P127: =WinD!$E127-O127 -> 0 | Q127: =N127-WinD!$E127 -> 0 | R127: =Data!F127 -> 4.3 | S127: =Win!C127 -> 4.3 | T127: =Win!$E127-S127 -> 0 | U127: =R127-Win!$E127 -> 0 | V127: =Data!H127 -> 100 | W127: =Pressure!C127 -> 99.81 | X127: =Pressure!$E127-W127 -> 0.19 | Y127: =V127-Pressure!$E127 -> 0 | Z127: =Snow!B127 -> 0 | AA127: =Snow!C127 -> 0 | AB127: =Snow!$E127-AA127 -> 0 | AC127: =Z127-Snow!$E127 -> 0 | AD127: =Level!B127 -> 4.001 | AE127: =Level!C127 -> 4.001 | AF127: =Level!$E127-AE127 -> 0 | AG127: =AD127-Level!$E127 -> 0 | AH127: =Conc_sep!B127 -> 72.97007236 | AI127: =Conc_sep!C127 -> 68.49084077 | AJ127: =Conc_sep!$E127-AI127 -> 2.340089506 | AK127: =AH127-Conc_sep!$E127 -> 2.139142082
A128: =Data!A128 -> 2004-04-30 | B128: =Data!B128 -> 5.5 | C128: =Temp!C128 -> 5.5 | D128: =Temp!$E128-C128 -> 0 | E128: =B128-Temp!$E128 -> 0 | F128: =Data!I128 -> 1.6 | G128: =Precip!C128 -> 0.43 | H128: =Precip!$E128-G128 -> 1.17 | I128: =F128-Precip!$E128 -> 0 | J128: =Data!D128 -> 83.8 | K128: =Humid!C128 -> 55 | L128: =Humid!$E128-K128 -> 16.36669111 | M128: =J128-Humid!$E128 -> 12.43330889 | N128: =Data!E128 -> 239.6 | O128: =WinD!C128 -> 202.3 | P128: =WinD!$E128-O128 -> 13.02848139 | Q128: =N128-WinD!$E128 -> 24.27151861 | R128: =Data!F128 -> 5.9 | S128: =Win!C128 -> 4.77 | T128: =Win!$E128-S128 -> 0.5643558928 | U128: =R128-Win!$E128 -> 0.5656441072 | V128: =Data!H128 -> 99.1 | W128: =Pressure!C128 -> 99.1 | X128: =Pressure!$E128-W128 -> 0 | Y128: =V128-Pressure!$E128 -> 0 | Z128: =Snow!B128 -> 0 | AA128: =Snow!C128 -> 0 | AB128: =Snow!$E128-AA128 -> 0 | AC128: =Z128-Snow!$E128 -> 0 | AD128: =Level!B128 -> 3.979 | AE128: =Level!C128 -> 3.979 | AF128: =Level!$E128-AE128 -> 0 | AG128: =AD128-Level!$E128 -> 0 | AH128: =Conc_sep!B128 -> 74.20380632 | AI128: =Conc_sep!C128 -> 70.04084077 | AJ128: =Conc_sep!$E128-AI128 -> 3.087913371 | AK128: =AH128-Conc_sep!$E128 -> 1.075052183
A129: =Data!A129 -> 2004-05-01 | B129: =Data!B129 -> 6.4 | C129: =Temp!C129 -> 6.4 | D129: =Temp!$E129-C129 -> 0 | E129: =B129-Temp!$E129 -> 0 | F129: =Data!I129 -> 0 | G129: =Precip!C129 -> 0 | H129: =Precip!$E129-G129 -> 0 | I129: =F129-Precip!$E129 -> 0 | J129: =Data!D129 -> 63.2 | K129: =Humid!C129 -> 57.3 | L129: =Humid!$E129-K129 -> 5.9 | M129: =J129-Humid!$E129 -> 0 | N129: =Data!E129 -> 289.6 | O129: =WinD!C129 -> 236.3 | P129: =WinD!$E129-O129 -> 26.05696277 | Q129: =N129-WinD!$E129 -> 27.24303723 | R129: =Data!F129 -> 4.8 | S129: =Win!C129 -> 4.8 | T129: =Win!$E129-S129 -> 0 | U129: =R129-Win!$E129 -> 0 | V129: =Data!H129 -> 100.1 | W129: =Pressure!C129 -> 99.37 | X129: =Pressure!$E129-W129 -> 0.1034614698 | Y129: =V129-Pressure!$E129 -> 0.6265385302 | Z129: =Snow!B129 -> 0 | AA129: =Snow!C129 -> 0 | AB129: =Snow!$E129-AA129 -> 0 | AC129: =Z129-Snow!$E129 -> 0 | AD129: =Level!B129 -> 3.982 | AE129: =Level!C129 -> 3.982 | AF129: =Level!$E129-AE129 -> 0 | AG129: =AD129-Level!$E129 -> 0 | AH129: =Conc_sep!B129 -> 74.02615648 | AI129: =Conc_sep!C129 -> 71.59084077 | AJ129: =Conc_sep!$E129-AI129 -> 2.435315714 | AK129: =AH129-Conc_sep!$E129 -> 0
A130: =Data!A130 -> 2004-05-02 | B130: =Data!B130 -> 8.6 | C130: =Temp!C130 -> 7.59 | D130: =Temp!$E130-C130 -> 0.6363478542 | E130: =B130-Temp!$E130 -> 0.3736521458 | F130: =Data!I130 -> 0 | G130: =Precip!C130 -> 0 | H130: =Precip!$E130-G130 -> 0 | I130: =F130-Precip!$E130 -> 0 | J130: =Data!D130 -> 46.8 | K130: =Humid!C130 -> 46.8 | L130: =Humid!$E130-K130 -> 0 | M130: =J130-Humid!$E130 -> 0 | N130: =Data!E130 -> 195.4 | O130: =WinD!C130 -> 195.4 | P130: =WinD!$E130-O130 -> 0 | Q130: =N130-WinD!$E130 -> 0 | R130: =Data!F130 -> 2.3 | S130: =Win!C130 -> 2.3 | T130: =Win!$E130-S130 -> 0 | U130: =R130-Win!$E130 -> 0 | V130: =Data!H130 -> 100.5 | W130: =Pressure!C130 -> 99.64 | X130: =Pressure!$E130-W130 -> 0.2069229397 | Y130: =V130-Pressure!$E130 -> 0.6530770603 | Z130: =Snow!B130 -> 0 | AA130: =Snow!C130 -> 0 | AB130: =Snow!$E130-AA130 -> 0 | AC130: =Z130-Snow!$E130 -> 0 | AD130: =Level!B130 -> 4.198 | AE130: =Level!C130 -> 3.992 | AF130: =Level!$E130-AE130 -> 0.02525920632 | AG130: =AD130-Level!$E130 -> 0.1807407937 | AH130: =Conc_sep!B130 -> 69.7277335 | AI130: =Conc_sep!C130 -> 69.7277335 | AJ130: =Conc_sep!$E130-AI130 -> 0 | AK130: =AH130-Conc_sep!$E130 -> 0
A131: =Data!A131 -> 2004-05-03 | B131: =Data!B131 -> 9.9 | C131: =Temp!C131 -> 8.78 | D131: =Temp!$E131-C131 -> 1.12 | E131: =B131-Temp!$E131 -> 0 | F131: =Data!I131 -> 0 | G131: =Precip!C131 -> 0 | H131: =Precip!$E131-G131 -> 0 | I131: =F131-Precip!$E131 -> 0 | J131: =Data!D131 -> 59.3 | K131: =Humid!C131 -> 49.1 | L131: =Humid!$E131-K131 -> 2.045836389 | M131: =J131-Humid!$E131 -> 8.154163611 | N131: =Data!E131 -> 115.4 | O131: =WinD!C131 -> 115.4 | P131: =WinD!$E131-O131 -> 0 | Q131: =N131-WinD!$E131 -> 0 | R131: =Data!F131 -> 1.9 | S131: =Win!C131 -> 1.9 | T131: =Win!$E131-S131 -> 0 | U131: =R131-Win!$E131 -> 0 | V131: =Data!H131 -> 100.1 | W131: =Pressure!C131 -> 99.91 | X131: =Pressure!$E131-W131 -> 0.19 | Y131: =V131-Pressure!$E131 -> 0 | Z131: =Snow!B131 -> 0 | AA131: =Snow!C131 -> 0 | AB131: =Snow!$E131-AA131 -> 0 | AC131: =Z131-Snow!$E131 -> 0 | AD131: =Level!B131 -> 4.325 | AE131: =Level!C131 -> 4.002 | AF131: =Level!$E131-AE131 -> 0.05051841263 | AG131: =AD131-Level!$E131 -> 0.2724815874 | AH131: =Conc_sep!B131 -> 64.1110469 | AI131: =Conc_sep!C131 -> 64.1110469 | AJ131: =Conc_sep!$E131-AI131 -> 0 | AK131: =AH131-Conc_sep!$E131 -> 0
A132: =Data!A132 -> 2004-05-04 | B132: =Data!B132 -> 11.7 | C132: =Temp!C132 -> 9.97 | D132: =Temp!$E132-C132 -> 1.73 | E132: =B132-Temp!$E132 -> 0 | F132: =Data!I132 -> 8.8 | G132: =Precip!C132 -> 0.14 | H132: =Precip!$E132-G132 -> 0.9181166859 | I132: =F132-Precip!$E132 -> 7.741883314 | J132: =Data!D132 -> 72 | K132: =Humid!C132 -> 51.4 | L132: =Humid!$E132-K132 -> 4.091672777 | M132: =J132-Humid!$E132 -> 16.50832722 | N132: =Data!E132 -> 172.1 | O132: =WinD!C132 -> 149.4 | P132: =WinD!$E132-O132 -> 13.02848139 | Q132: =N132-WinD!$E132 -> 9.671518614 | R132: =Data!F132 -> 2.5 | S132: =Win!C132 -> 2.37 | T132: =Win!$E132-S132 -> 0.13 | U132: =R132-Win!$E132 -> 0 | V132: =Data!H132 -> 99.4 | W132: =Pressure!C132 -> 99.4 | X132: =Pressure!$E132-W132 -> 0 | Y132: =V132-Pressure!$E132 -> 0 | Z132: =Snow!B132 -> 0 | AA132: =Snow!C132 -> 0 | AB132: =Snow!$E132-AA132 -> 0 | AC132: =Z132-Snow!$E132 -> 0 | AD132: =Level!B132 -> 4.154 | AE132: =Level!C132 -> 4.012 | AF132: =Level!$E132-AE132 -> 0.07577761895 | AG132: =AD132-Level!$E132 -> 0.06622238105 | AH132: =Conc_sep!B132 -> 67.67752059 | AI132: =Conc_sep!C132 -> 65.6610469 | AJ132: =Conc_sep!$E132-AI132 -> 0.7478238652 | AK132: =AH132-Conc_sep!$E132 -> 1.26864983
A133: =Data!A133 -> 2004-05-05 | B133: =Data!B133 -> 7.5 | C133: =Temp!C133 -> 7.5 | D133: =Temp!$E133-C133 -> 0 | E133: =B133-Temp!$E133 -> 0 | F133: =Data!I133 -> 0.2 | G133: =Precip!C133 -> 0.2 | H133: =Precip!$E133-G133 -> 0 | I133: =F133-Precip!$E133 -> 0 | J133: =Data!D133 -> 82 | K133: =Humid!C133 -> 53.7 | L133: =Humid!$E133-K133 -> 6.137509166 | M133: =J133-Humid!$E133 -> 22.16249083 | N133: =Data!E133 -> 294.6 | O133: =WinD!C133 -> 183.4 | P133: =WinD!$E133-O133 -> 26.05696277 | Q133: =N133-WinD!$E133 -> 85.14303723 | R133: =Data!F133 -> 6.5 | S133: =Win!C133 -> 2.84 | T133: =Win!$E133-S133 -> 0.6943558928 | U133: =R133-Win!$E133 -> 2.965644107 | V133: =Data!H133 -> 99.2 | W133: =Pressure!C133 -> 99.2 | X133: =Pressure!$E133-W133 -> 0 | Y133: =V133-Pressure!$E133 -> 0 | Z133: =Snow!B133 -> 0 | AA133: =Snow!C133 -> 0 | AB133: =Snow!$E133-AA133 -> 0 | AC133: =Z133-Snow!$E133 -> 0 | AD133: =Level!B133 -> 4.15 | AE133: =Level!C133 -> 4.022 | AF133: =Level!$E133-AE133 -> 0.1010368253 | AG133: =AD133-Level!$E133 -> 0.02696317473 | AH133: =Conc_sep!B133 -> 65.2084859 | AI133: =Conc_sep!C133 -> 65.2084859 | AJ133: =Conc_sep!$E133-AI133 -> 0 | AK133: =AH133-Conc_sep!$E133 -> 0
A134: =Data!A134 -> 2004-05-06 | B134: =Data!B134 -> 8.7 | C134: =Temp!C134 -> 8.69 | D134: =Temp!$E134-C134 -> 0.01 | E134: =B134-Temp!$E134 -> 0 | F134: =Data!I134 -> 4 | G134: =Precip!C134 -> 0.34 | H134: =Precip!$E134-G134 -> 0.9181166859 | I134: =F134-Precip!$E134 -> 2.741883314 | J134: =Data!D134 -> 79.3 | K134: =Humid!C134 -> 56 | L134: =Humid!$E134-K134 -> 8.183345554 | M134: =J134-Humid!$E134 -> 15.11665445 | N134: =Data!E134 -> 203.8 | O134: =WinD!C134 -> 203.8 | P134: =WinD!$E134-O134 -> 0 | Q134: =N134-WinD!$E134 -> 0 | R134: =Data!F134 -> 2.8 | S134: =Win!C134 -> 2.8 | T134: =Win!$E134-S134 -> 0 | U134: =R134-Win!$E134 -> 0 | V134: =Data!H134 -> 99.3 | W134: =Pressure!C134 -> 99.3 | X134: =Pressure!$E134-W134 -> 0 | Y134: =V134-Pressure!$E134 -> 0 | Z134: =Snow!B134 -> 0 | AA134: =Snow!C134 -> 0 | AB134: =Snow!$E134-AA134 -> 0 | AC134: =Z134-Snow!$E134 -> 0 | AD134: =Level!B134 -> 4.133 | AE134: =Level!C134 -> 4.032 | AF134: =Level!$E134-AE134 -> 0.101 | AG134: =AD134-Level!$E134 -> 0 | AH134: =Conc_sep!B134 -> 60.98069251 | AI134: =Conc_sep!C134 -> 60.98069251 | AJ134: =Conc_sep!$E134-AI134 -> 0 | AK134: =AH134-Conc_sep!$E134 -> 0
A135: =Data!A135 -> 2004-05-07 | B135: =Data!B135 -> 12 | C135: =Temp!C135 -> 9.88 | D135: =Temp!$E135-C135 -> 0.6463478542 | E135: =B135-Temp!$E135 -> 1.473652146 | F135: =Data!I135 -> 1.4 | G135: =Precip!C135 -> 0.48 | H135: =Precip!$E135-G135 -> 0.92 | I135: =F135-Precip!$E135 -> 0 | J135: =Data!D135 -> 65.5 | K135: =Humid!C135 -> 58.3 | L135: =Humid!$E135-K135 -> 7.2 | M135: =J135-Humid!$E135 -> 0 | N135: =Data!E135 -> 305.8 | O135: =WinD!C135 -> 237.8 | P135: =WinD!$E135-O135 -> 13.02848139 | Q135: =N135-WinD!$E135 -> 54.97151861 | R135: =Data!F135 -> 5.2 | S135: =Win!C135 -> 3.27 | T135: =Win!$E135-S135 -> 0.5643558928 | U135: =R135-Win!$E135 -> 1.365644107 | V135: =Data!H135 -> 98.8 | W135: =Pressure!C135 -> 98.8 | X135: =Pressure!$E135-W135 -> 0 | Y135: =V135-Pressure!$E135 -> 0 | Z135: =Snow!B135 -> 0 | AA135: =Snow!C135 -> 0 | AB135: =Snow!$E135-AA135 -> 0 | AC135: =Z135-Snow!$E135 -> 0 | AD135: =Level!B135 -> 4.081 | AE135: =Level!C135 -> 4.042 | AF135: =Level!$E135-AE135 -> 0.039 | AG135: =AD135-Level!$E135 -> 0 | AH135: =Conc_sep!B135 -> 62.7191708 | AI135: =Conc_sep!C135 -> 62.53069251 | AJ135: =Conc_sep!$E135-AI135 -> 0.1884782867 | AK135: =AH135-Conc_sep!$E135 -> 0
A136: =Data!A136 -> 2004-05-08 | B136: =Data!B136 -> 10.8 | C136: =Temp!C136 -> 10.8 | D136: =Temp!$E136-C136 -> 0 | E136: =B136-Temp!$E136 -> 0 | F136: =Data!I136 -> 5.4 | G136: =Precip!C136 -> 0.62 | H136: =Precip!$E136-G136 -> 1.838116686 | I136: =F136-Precip!$E136 -> 2.941883314 | J136: =Data!D136 -> 72 | K136: =Humid!C136 -> 60.6 | L136: =Humid!$E136-K136 -> 9.245836389 | M136: =J136-Humid!$E136 -> 2.154163611 | N136: =Data!E136 -> 259.6 | O136: =WinD!C136 -> 259.6 | P136: =WinD!$E136-O136 -> 0 | Q136: =N136-WinD!$E136 -> 0 | R136: =Data!F136 -> 4.5 | S136: =Win!C136 -> 3.74 | T136: =Win!$E136-S136 -> 0.76 | U136: =R136-Win!$E136 -> 0 | V136: =Data!H136 -> 98.7 | W136: =Pressure!C136 -> 98.7 | X136: =Pressure!$E136-W136 -> 0 | Y136: =V136-Pressure!$E136 -> 0 | Z136: =Snow!B136 -> 0 | AA136: =Snow!C136 -> 0 | AB136: =Snow!$E136-AA136 -> 0 | AC136: =Z136-Snow!$E136 -> 0 | AD136: =Level!B136 -> 4.049 | AE136: =Level!C136 -> 4.049 | AF136: =Level!$E136-AE136 -> 0 | AG136: =AD136-Level!$E136 -> 0 | AH136: =Conc_sep!B136 -> 67.32965387 | AI136: =Conc_sep!C136 -> 64.08069251 | AJ136: =Conc_sep!$E136-AI136 -> 0.9363021519 | AK136: =AH136-Conc_sep!$E136 -> 2.312659211
A137: =Data!A137 -> 2004-05-09 | B137: =Data!B137 -> 10.6 | C137: =Temp!C137 -> 10.6 | D137: =Temp!$E137-C137 -> 0 | E137: =B137-Temp!$E137 -> 0 | F137: =Data!I137 -> 0 | G137: =Precip!C137 -> 0 | H137: =Precip!$E137-G137 -> 0 | I137: =F137-Precip!$E137 -> 0 | J137: =Data!D137 -> 57.1 | K137: =Humid!C137 -> 57.1 | L137: =Humid!$E137-K137 -> 0 | M137: =J137-Humid!$E137 -> 0 | N137: =Data!E137 -> 287.1 | O137: =WinD!C137 -> 287.1 | P137: =WinD!$E137-O137 -> 0 | Q137: =N137-WinD!$E137 -> 0 | R137: =Data!F137 -> 4.7 | S137: =Win!C137 -> 4.21 | T137: =Win!$E137-S137 -> 0.49 | U137: =R137-Win!$E137 -> 0 | V137: =Data!H137 -> 99.5 | W137: =Pressure!C137 -> 98.97 | X137: =Pressure!$E137-W137 -> 0.1034614698 | Y137: =V137-Pressure!$E137 -> 0.4265385302 | Z137: =Snow!B137 -> 0 | AA137: =Snow!C137 -> 0 | AB137: =Snow!$E137-AA137 -> 0 | AC137: =Z137-Snow!$E137 -> 0 | AD137: =Level!B137 -> 4.07 | AE137: =Level!C137 -> 4.059 | AF137: =Level!$E137-AE137 -> 0.011 | AG137: =AD137-Level!$E137 -> 0 | AH137: =Conc_sep!B137 -> 65.04402079 | AI137: =Conc_sep!C137 -> 65.04402079 | AJ137: =Conc_sep!$E137-AI137 -> 0 | AK137: =AH137-Conc_sep!$E137 -> 0
A138: =Data!A138 -> 2004-05-10 | B138: =Data!B138 -> 11.1 | C138: =Temp!C138 -> 11.1 | D138: =Temp!$E138-C138 -> 0 | E138: =B138-Temp!$E138 -> 0 | F138: =Data!I138 -> 5.4 | G138: =Precip!C138 -> 0.14 | H138: =Precip!$E138-G138 -> 0.9181166859 | I138: =F138-Precip!$E138 -> 4.341883314 | J138: =Data!D138 -> 66.8 | K138: =Humid!C138 -> 59.4 | L138: =Humid!$E138-K138 -> 2.045836389 | M138: =J138-Humid!$E138 -> 5.354163611 | N138: =Data!E138 -> 182.1 | O138: =WinD!C138 -> 182.1 | P138: =WinD!$E138-O138 -> 0 | Q138: =N138-WinD!$E138 -> 0 | R138: =Data!F138 -> 6.3 | S138: =Win!C138 -> 4.68 | T138: =Win!$E138-S138 -> 1.054355893 | U138: =R138-Win!$E138 -> 0.5656441072 | V138: =Data!H138 -> 98.9 | W138: =Pressure!C138 -> 98.9 | X138: =Pressure!$E138-W138 -> 0 | Y138: =V138-Pressure!$E138 -> 0 | Z138: =Snow!B138 -> 0 | AA138: =Snow!C138 -> 0 | AB138: =Snow!$E138-AA138 -> 0 | AC138: =Z138-Snow!$E138 -> 0 | AD138: =Level!B138 -> 4.092 | AE138: =Level!C138 -> 4.069 | AF138: =Level!$E138-AE138 -> 0.023 | AG138: =AD138-Level!$E138 -> 0 | AH138: =Conc_sep!B138 -> 62.89827815 | AI138: =Conc_sep!C138 -> 62.89827815 | AJ138: =Conc_sep!$E138-AI138 -> 0 | AK138: =AH138-Conc_sep!$E138 -> 0
A139: =Data!A139 -> 2004-05-11 | B139: =Data!B139 -> 8.9 | C139: =Temp!C139 -> 8.9 | D139: =Temp!$E139-C139 -> 0 | E139: =B139-Temp!$E139 -> 0 | F139: =Data!I139 -> 0 | G139: =Precip!C139 -> 0 | H139: =Precip!$E139-G139 -> 0 | I139: =F139-Precip!$E139 -> 0 | J139: =Data!D139 -> 64 | K139: =Humid!C139 -> 61.7 | L139: =Humid!$E139-K139 -> 2.3 | M139: =J139-Humid!$E139 -> 0 | N139: =Data!E139 -> 310.8 | O139: =WinD!C139 -> 216.1 | P139: =WinD!$E139-O139 -> 13.02848139 | Q139: =N139-WinD!$E139 -> 81.67151861 | R139: =Data!F139 -> 7.9 | S139: =Win!C139 -> 5.15 | T139: =Win!$E139-S139 -> 1.618711786 | U139: =R139-Win!$E139 -> 1.131288214 | V139: =Data!H139 -> 98.9 | W139: =Pressure!C139 -> 98.9 | X139: =Pressure!$E139-W139 -> 0 | Y139: =V139-Pressure!$E139 -> 0 | Z139: =Snow!B139 -> 0 | AA139: =Snow!C139 -> 0 | AB139: =Snow!$E139-AA139 -> 0 | AC139: =Z139-Snow!$E139 -> 0 | AD139: =Level!B139 -> 4.055 | AE139: =Level!C139 -> 4.055 | AF139: =Level!$E139-AE139 -> 0 | AG139: =AD139-Level!$E139 -> 0 | AH139: =Conc_sep!B139 -> 68.32164892 | AI139: =Conc_sep!C139 -> 64.44827815 | AJ139: =Conc_sep!$E139-AI139 -> 0.7478238652 | AK139: =AH139-Conc_sep!$E139 -> 3.125546904
A140: =Data!A140 -> 2004-05-12 | B140: =Data!B140 -> 8.2 | C140: =Temp!C140 -> 8.2 | D140: =Temp!$E140-C140 -> 0 | E140: =B140-Temp!$E140 -> 0 | F140: =Data!I140 -> 0 | G140: =Precip!C140 -> 0 | H140: =Precip!$E140-G140 -> 0 | I140: =F140-Precip!$E140 -> 0 | J140: =Data!D140 -> 60.2 | K140: =Humid!C140 -> 60.2 | L140: =Humid!$E140-K140 -> 0 | M140: =J140-Humid!$E140 -> 0 | N140: =Data!E140 -> 322.1 | O140: =WinD!C140 -> 250.1 | P140: =WinD!$E140-O140 -> 26.05696277 | Q140: =N140-WinD!$E140 -> 45.94303723 | R140: =Data!F140 -> 4.1 | S140: =Win!C140 -> 4.1 | T140: =Win!$E140-S140 -> 0 | U140: =R140-Win!$E140 -> 0 | V140: =Data!H140 -> 99.8 | W140: =Pressure!C140 -> 99.17 | X140: =Pressure!$E140-W140 -> 0.1034614698 | Y140: =V140-Pressure!$E140 -> 0.5265385302 | Z140: =Snow!B140 -> 0 | AA140: =Snow!C140 -> 0 | AB140: =Snow!$E140-AA140 -> 0 | AC140: =Z140-Snow!$E140 -> 0 | AD140: =Level!B140 -> 4.008 | AE140: =Level!C140 -> 4.008 | AF140: =Level!$E140-AE140 -> 0 | AG140: =AD140-Level!$E140 -> 0 | AH140: =Conc_sep!B140 -> 72.64503055 | AI140: =Conc_sep!C140 -> 65.99827815 | AJ140: =Conc_sep!$E140-AI140 -> 1.49564773 | AK140: =AH140-Conc_sep!$E140 -> 5.151104667
A141: =Data!A141 -> 2004-05-13 | B141: =Data!B141 -> 10.8 | C141: =Temp!C141 -> 9.39 | D141: =Temp!$E141-C141 -> 0.6363478542 | E141: =B141-Temp!$E141 -> 0.7736521458 | F141: =Data!I141 -> 0 | G141: =Precip!C141 -> 0 | H141: =Precip!$E141-G141 -> 0 | I141: =F141-Precip!$E141 -> 0 | J141: =Data!D141 -> 44.5 | K141: =Humid!C141 -> 44.5 | L141: =Humid!$E141-K141 -> 0 | M141: =J141-Humid!$E141 -> 0 | N141: =Data!E141 -> 165.4 | O141: =WinD!C141 -> 165.4 | P141: =WinD!$E141-O141 -> 0 | Q141: =N141-WinD!$E141 -> 0 | R141: =Data!F141 -> 2.1 | S141: =Win!C141 -> 2.1 | T141: =Win!$E141-S141 -> 0 | U141: =R141-Win!$E141 -> 0 | V141: =Data!H141 -> 99.7 | W141: =Pressure!C141 -> 99.44 | X141: =Pressure!$E141-W141 -> 0.2069229397 | Y141: =V141-Pressure!$E141 -> 0.05307706033 | Z141: =Snow!B141 -> 0 | AA141: =Snow!C141 -> 0 | AB141: =Snow!$E141-AA141 -> 0 | AC141: =Z141-Snow!$E141 -> 0 | AD141: =Level!B141 -> 3.978 | AE141: =Level!C141 -> 3.978 | AF141: =Level!$E141-AE141 -> 0 | AG141: =AD141-Level!$E141 -> 0 | AH141: =Conc_sep!B141 -> 74.23959307 | AI141: =Conc_sep!C141 -> 67.54827815 | AJ141: =Conc_sep!$E141-AI141 -> 2.243471596 | AK141: =AH141-Conc_sep!$E141 -> 4.447843329
A142: =Data!A142 -> 2004-05-14 | B142: =Data!B142 -> 10.6 | C142: =Temp!C142 -> 10.58 | D142: =Temp!$E142-C142 -> 0.02 | E142: =B142-Temp!$E142 -> 0 | F142: =Data!I142 -> 13.8 | G142: =Precip!C142 -> 0.14 | H142: =Precip!$E142-G142 -> 0.9181166859 | I142: =F142-Precip!$E142 -> 12.74188331 | J142: =Data!D142 -> 82.5 | K142: =Humid!C142 -> 46.8 | L142: =Humid!$E142-K142 -> 2.045836389 | M142: =J142-Humid!$E142 -> 33.65416361 | N142: =Data!E142 -> 57.9 | O142: =WinD!C142 -> 57.9 | P142: =WinD!$E142-O142 -> 0 | Q142: =N142-WinD!$E142 -> 0 | R142: =Data!F142 -> 1 | S142: =Win!C142 -> 1 | T142: =Win!$E142-S142 -> 0 | U142: =R142-Win!$E142 -> 0 | V142: =Data!H142 -> 98.6 | W142: =Pressure!C142 -> 98.6 | X142: =Pressure!$E142-W142 -> 0 | Y142: =V142-Pressure!$E142 -> 0 | Z142: =Snow!B142 -> 0 | AA142: =Snow!C142 -> 0 | AB142: =Snow!$E142-AA142 -> 0 | AC142: =Z142-Snow!$E142 -> 0 | AD142: =Level!B142 -> 3.959 | AE142: =Level!C142 -> 3.959 | AF142: =Level!$E142-AE142 -> 0 | AG142: =AD142-Level!$E142 -> 0 | AH142: =Conc_sep!B142 -> 75.3938259 | AI142: =Conc_sep!C142 -> 69.09827815 | AJ142: =Conc_sep!$E142-AI142 -> 2.991295461 | AK142: =AH142-Conc_sep!$E142 -> 3.304252289
A143: =Data!A143 -> 2004-05-15 | B143: =Data!B143 -> 8.1 | C143: =Temp!C143 -> 8.1 | D143: =Temp!$E143-C143 -> 0 | E143: =B143-Temp!$E143 -> 0 | F143: =Data!I143 -> 0.6 | G143: =Precip!C143 -> 0.28 | H143: =Precip!$E143-G143 -> 0.32 | I143: =F143-Precip!$E143 -> 0 | J143: =Data!D143 -> 85.7 | K143: =Humid!C143 -> 49.1 | L143: =Humid!$E143-K143 -> 4.091672777 | M143: =J143-Humid!$E143 -> 32.50832722 | N143: =Data!E143 -> 305.4 | O143: =WinD!C143 -> 91.9 | P143: =WinD!$E143-O143 -> 13.02848139 | Q143: =N143-WinD!$E143 -> 200.4715186 | R143: =Data!F143 -> 7.2 | S143: =Win!C143 -> 1.47 | T143: =Win!$E143-S143 -> 0.5643558928 | U143: =R143-Win!$E143 -> 5.165644107 | V143: =Data!H143 -> 98.7 | W143: =Pressure!C143 -> 98.7 | X143: =Pressure!$E143-W143 -> 0 | Y143: =V143-Pressure!$E143 -> 0 | Z143: =Snow!B143 -> 0 | AA143: =Snow!C143 -> 0 | AB143: =Snow!$E143-AA143 -> 0 | AC143: =Z143-Snow!$E143 -> 0 | AD143: =Level!B143 -> 3.977 | AE143: =Level!C143 -> 3.969 | AF143: =Level!$E143-AE143 -> 0.008 | AG143: =AD143-Level!$E143 -> 0 | AH143: =Conc_sep!B143 -> 72.13726758 | AI143: =Conc_sep!C143 -> 70.64827815 | AJ143: =Conc_sep!$E143-AI143 -> 1.48898943 | AK143: =AH143-Conc_sep!$E143 -> 0
A144: =Data!A144 -> 2004-05-16 | B144: =Data!B144 -> 8 | C144: =Temp!C144 -> 8 | D144: =Temp!$E144-C144 -> 0 | E144: =B144-Temp!$E144 -> 0 | F144: =Data!I144 -> 0 | G144: =Precip!C144 -> 0.15 | H144: =Precip!$E144-G144 -> 0 | I144: =F144-Precip!$E144 -> -0.15 | J144: =Data!D144 -> 77 | K144: =Humid!C144 -> 51.4 | L144: =Humid!$E144-K144 -> 6.137509166 | M144: =J144-Humid!$E144 -> 19.46249083 | N144: =Data!E144 -> 346.7 | O144: =WinD!C144 -> 125.9 | P144: =WinD!$E144-O144 -> 26.05696277 | Q144: =N144-WinD!$E144 -> 194.7430372 | R144: =Data!F144 -> 8.5 | S144: =Win!C144 -> 1.94 | T144: =Win!$E144-S144 -> 1.128711786 | U144: =R144-Win!$E144 -> 5.431288214 | V144: =Data!H144 -> 99.7 | W144: =Pressure!C144 -> 98.97 | X144: =Pressure!$E144-W144 -> 0.1034614698 | Y144: =V144-Pressure!$E144 -> 0.6265385302 | Z144: =Snow!B144 -> 0 | AA144: =Snow!C144 -> 0 | AB144: =Snow!$E144-AA144 -> 0 | AC144: =Z144-Snow!$E144 -> 0 | AD144: =Level!B144 -> 3.984 | AE144: =Level!C144 -> 3.979 | AF144: =Level!$E144-AE144 -> 0.005 | AG144: =AD144-Level!$E144 -> 0 | AH144: =Conc_sep!B144 -> 71.61399767 | AI144: =Conc_sep!C144 -> 71.61399767 | AJ144: =Conc_sep!$E144-AI144 -> 0 | AK144: =AH144-Conc_sep!$E144 -> 0
A145: =Data!A145 -> 2004-05-17 | B145: =Data!B145 -> 9.8 | C145: =Temp!C145 -> 9.19 | D145: =Temp!$E145-C145 -> 0.61 | E145: =B145-Temp!$E145 -> 0 | F145: =Data!I145 -> 0 | G145: =Precip!C145 -> 0 | H145: =Precip!$E145-G145 -> 0 | I145: =F145-Precip!$E145 -> 0 | J145: =Data!D145 -> 67.5 | K145: =Humid!C145 -> 53.7 | L145: =Humid!$E145-K145 -> 8.183345554 | M145: =J145-Humid!$E145 -> 5.616654446 | N145: =Data!E145 -> 335.4 | O145: =WinD!C145 -> 159.9 | P145: =WinD!$E145-O145 -> 39.08544416 | Q145: =N145-WinD!$E145 -> 136.4145558 | R145: =Data!F145 -> 6 | S145: =Win!C145 -> 2.41 | T145: =Win!$E145-S145 -> 1.693067678 | U145: =R145-Win!$E145 -> 1.896932322 | V145: =Data!H145 -> 99.9 | W145: =Pressure!C145 -> 99.24 | X145: =Pressure!$E145-W145 -> 0.2069229397 | Y145: =V145-Pressure!$E145 -> 0.4530770603 | Z145: =Snow!B145 -> 0 | AA145: =Snow!C145 -> 0 | AB145: =Snow!$E145-AA145 -> 0 | AC145: =Z145-Snow!$E145 -> 0 | AD145: =Level!B145 -> 3.954 | AE145: =Level!C145 -> 3.954 | AF145: =Level!$E145-AE145 -> 0 | AG145: =AD145-Level!$E145 -> 0 | AH145: =Conc_sep!B145 -> 75.66720867 | AI145: =Conc_sep!C145 -> 73.16399767 | AJ145: =Conc_sep!$E145-AI145 -> 0.7478238652 | AK145: =AH145-Conc_sep!$E145 -> 1.75538713
A146: =Data!A146 -> 2004-05-18 | B146: =Data!B146 -> 11.9 | C146: =Temp!C146 -> 10.38 | D146: =Temp!$E146-C146 -> 1.246347854 | E146: =B146-Temp!$E146 -> 0.2736521458 | F146: =Data!I146 -> 0 | G146: =Precip!C146 -> 0.14 | H146: =Precip!$E146-G146 -> 0.01 | I146: =F146-Precip!$E146 -> -0.15 | J146: =Data!D146 -> 72.1 | K146: =Humid!C146 -> 56 | L146: =Humid!$E146-K146 -> 10.22918194 | M146: =J146-Humid!$E146 -> 5.870818057 | N146: =Data!E146 -> 178.3 | O146: =WinD!C146 -> 178.3 | P146: =WinD!$E146-O146 -> 0 | Q146: =N146-WinD!$E146 -> 0 | R146: =Data!F146 -> 2.6 | S146: =Win!C146 -> 2.6 | T146: =Win!$E146-S146 -> 0 | U146: =R146-Win!$E146 -> 0 | V146: =Data!H146 -> 100 | W146: =Pressure!C146 -> 99.51 | X146: =Pressure!$E146-W146 -> 0.3103844095 | Y146: =V146-Pressure!$E146 -> 0.1796155905 | Z146: =Snow!B146 -> 0 | AA146: =Snow!C146 -> 0 | AB146: =Snow!$E146-AA146 -> 0 | AC146: =Z146-Snow!$E146 -> 0 | AD146: =Level!B146 -> 3.945 | AE146: =Level!C146 -> 3.945 | AF146: =Level!$E146-AE146 -> 0 | AG146: =AD146-Level!$E146 -> 0 | AH146: =Conc_sep!B146 -> 76.2701823 | AI146: =Conc_sep!C146 -> 74.71399767 | AJ146: =Conc_sep!$E146-AI146 -> 1.49564773 | AK146: =AH146-Conc_sep!$E146 -> 0.06053689801
A147: =Data!A147 -> 2004-05-19 | B147: =Data!B147 -> 15 | C147: =Temp!C147 -> 11.57 | D147: =Temp!$E147-C147 -> 1.882695708 | E147: =B147-Temp!$E147 -> 1.547304292 | F147: =Data!I147 -> 0 | G147: =Precip!C147 -> 0 | H147: =Precip!$E147-G147 -> 0 | I147: =F147-Precip!$E147 -> 0 | J147: =Data!D147 -> 58.4 | K147: =Humid!C147 -> 58.3 | L147: =Humid!$E147-K147 -> 0.1 | M147: =J147-Humid!$E147 -> 0 | N147: =Data!E147 -> 181.7 | O147: =WinD!C147 -> 181.7 | P147: =WinD!$E147-O147 -> 0 | Q147: =N147-WinD!$E147 -> 0 | R147: =Data!F147 -> 2.2 | S147: =Win!C147 -> 2.2 | T147: =Win!$E147-S147 -> 0 | U147: =R147-Win!$E147 -> 0 | V147: =Data!H147 -> 99.8 | W147: =Pressure!C147 -> 99.78 | X147: =Pressure!$E147-W147 -> 0.02 | Y147: =V147-Pressure!$E147 -> 0 | Z147: =Snow!B147 -> 0 | AA147: =Snow!C147 -> 0 | AB147: =Snow!$E147-AA147 -> 0 | AC147: =Z147-Snow!$E147 -> 0 | AD147: =Level!B147 -> 3.934 | AE147: =Level!C147 -> 3.934 | AF147: =Level!$E147-AE147 -> 0 | AG147: =AD147-Level!$E147 -> 0 | AH147: =Conc_sep!B147 -> 76.9836537 | AI147: =Conc_sep!C147 -> 76.26399767 | AJ147: =Conc_sep!$E147-AI147 -> 0.7196560248 | AK147: =AH147-Conc_sep!$E147 -> 0
A148: =Data!A148 -> 2004-05-20 | B148: =Data!B148 -> 18.6 | C148: =Temp!C148 -> 12.76 | D148: =Temp!$E148-C148 -> 2.519043563 | E148: =B148-Temp!$E148 -> 3.320956437 | F148: =Data!I148 -> 0 | G148: =Precip!C148 -> 0 | H148: =Precip!$E148-G148 -> 0 | I148: =F148-Precip!$E148 -> 0 | J148: =Data!D148 -> 57.9 | K148: =Humid!C148 -> 57.9 | L148: =Humid!$E148-K148 -> 0 | M148: =J148-Humid!$E148 -> 0 | N148: =Data!E148 -> 102.5 | O148: =WinD!C148 -> 102.5 | P148: =WinD!$E148-O148 -> 0 | Q148: =N148-WinD!$E148 -> 0 | R148: =Data!F148 -> 1.7 | S148: =Win!C148 -> 1.7 | T148: =Win!$E148-S148 -> 0 | U148: =R148-Win!$E148 -> 0 | V148: =Data!H148 -> 99.8 | W148: =Pressure!C148 -> 99.8 | X148: =Pressure!$E148-W148 -> 0 | Y148: =V148-Pressure!$E148 -> 0 | Z148: =Snow!B148 -> 0 | AA148: =Snow!C148 -> 0 | AB148: =Snow!$E148-AA148 -> 0 | AC148: =Z148-Snow!$E148 -> 0 | AD148: =Level!B148 -> 3.92 | AE148: =Level!C148 -> 3.92 | AF148: =Level!$E148-AE148 -> 0 | AG148: =AD148-Level!$E148 -> 0 | AH148: =Conc_sep!B148 -> 78.00470345 | AI148: =Conc_sep!C148 -> 77.81399767 | AJ148: =Conc_sep!$E148-AI148 -> 0.1907057799 | AK148: =AH148-Conc_sep!$E148 -> 0
A149: =Data!A149 -> 2004-05-21 | B149: =Data!B149 -> 21.3 | C149: =Temp!C149 -> 13.95 | D149: =Temp!$E149-C149 -> 3.155391417 | E149: =B149-Temp!$E149 -> 4.194608583 | F149: =Data!I149 -> 0 | G149: =Precip!C149 -> 0 | H149: =Precip!$E149-G149 -> 0 | I149: =F149-Precip!$E149 -> 0 | J149: =Data!D149 -> 57.6 | K149: =Humid!C149 -> 57.6 | L149: =Humid!$E149-K149 -> 0 | M149: =J149-Humid!$E149 -> 0 | N149: =Data!E149 -> 180 | O149: =WinD!C149 -> 136.5 | P149: =WinD!$E149-O149 -> 13.02848139 | Q149: =N149-WinD!$E149 -> 30.47151861 | R149: =Data!F149 -> 2.3 | S149: =Win!C149 -> 2.17 | T149: =Win!$E149-S149 -> 0.13 | U149: =R149-Win!$E149 -> 0 | V149: =Data!H149 -> 99.5 | W149: =Pressure!C149 -> 99.5 | X149: =Pressure!$E149-W149 -> 0 | Y149: =V149-Pressure!$E149 -> 0 | Z149: =Snow!B149 -> 0 | AA149: =Snow!C149 -> 0 | AB149: =Snow!$E149-AA149 -> 0 | AC149: =Z149-Snow!$E149 -> 0 | AD149: =Level!B149 -> 3.914 | AE149: =Level!C149 -> 3.914 | AF149: =Level!$E149-AE149 -> 0 | AG149: =AD149-Level!$E149 -> 0 | AH149: =Conc_sep!B149 -> 78.42322359 | AI149: =Conc_sep!C149 -> 78.42322359 | AJ149: =Conc_sep!$E149-AI149 -> 0 | AK149: =AH149-Conc_sep!$E149 -> 0
A150: =Data!A150 -> 2004-05-22 | B150: =Data!B150 -> 18.1 | C150: =Temp!C150 -> 15.14 | D150: =Temp!$E150-C150 -> 2.96 | E150: =B150-Temp!$E150 -> 0 | F150: =Data!I150 -> 0 | G150: =Precip!C150 -> 0 | H150: =Precip!$E150-G150 -> 0 | I150: =F150-Precip!$E150 -> 0 | J150: =Data!D150 -> 65.1 | K150: =Humid!C150 -> 59.9 | L150: =Humid!$E150-K150 -> 2.045836389 | M150: =J150-Humid!$E150 -> 3.154163611 | N150: =Data!E150 -> 330 | O150: =WinD!C150 -> 170.5 | P150: =WinD!$E150-O150 -> 26.05696277 | Q150: =N150-WinD!$E150 -> 133.4430372 | R150: =Data!F150 -> 5.2 | S150: =Win!C150 -> 2.64 | T150: =Win!$E150-S150 -> 0.6943558928 | U150: =R150-Win!$E150 -> 1.865644107 | V150: =Data!H150 -> 99.2 | W150: =Pressure!C150 -> 99.2 | X150: =Pressure!$E150-W150 -> 0 | Y150: =V150-Pressure!$E150 -> 0 | Z150: =Snow!B150 -> 0 | AA150: =Snow!C150 -> 0 | AB150: =Snow!$E150-AA150 -> 0 | AC150: =Z150-Snow!$E150 -> 0 | AD150: =Level!B150 -> 3.917 | AE150: =Level!C150 -> 3.917 | AF150: =Level!$E150-AE150 -> 0 | AG150: =AD150-Level!$E150 -> 0 | AH150: =Conc_sep!B150 -> 78.18933126 | AI150: =Conc_sep!C150 -> 78.18933126 | AJ150: =Conc_sep!$E150-AI150 -> 0 | AK150: =AH150-Conc_sep!$E150 -> 0
A151: =Data!A151 -> 2004-05-23 | B151: =Data!B151 -> 14.3 | C151: =Temp!C151 -> 14.3 | D151: =Temp!$E151-C151 -> 0 | E151: =B151-Temp!$E151 -> 0 | F151: =Data!I151 -> 1.8 | G151: =Precip!C151 -> 0.14 | H151: =Precip!$E151-G151 -> 0.9181166859 | I151: =F151-Precip!$E151 -> 0.7418833141 | J151: =Data!D151 -> 75.1 | K151: =Humid!C151 -> 62.2 | L151: =Humid!$E151-K151 -> 4.091672777 | M151: =J151-Humid!$E151 -> 8.808327223 | N151: =Data!E151 -> 203.3 | O151: =WinD!C151 -> 203.3 | P151: =WinD!$E151-O151 -> 0 | Q151: =N151-WinD!$E151 -> 0 | R151: =Data!F151 -> 1.9 | S151: =Win!C151 -> 1.9 | T151: =Win!$E151-S151 -> 0 | U151: =R151-Win!$E151 -> 0 | V151: =Data!H151 -> 99 | W151: =Pressure!C151 -> 99 | X151: =Pressure!$E151-W151 -> 0 | Y151: =V151-Pressure!$E151 -> 0 | Z151: =Snow!B151 -> 0 | AA151: =Snow!C151 -> 0 | AB151: =Snow!$E151-AA151 -> 0 | AC151: =Z151-Snow!$E151 -> 0 | AD151: =Level!B151 -> 4.036 | AE151: =Level!C151 -> 3.927 | AF151: =Level!$E151-AE151 -> 0.02525920632 | AG151: =AD151-Level!$E151 -> 0.08374079368 | AH151: =Conc_sep!B151 -> 76.48141021 | AI151: =Conc_sep!C151 -> 76.48141021 | AJ151: =Conc_sep!$E151-AI151 -> 0 | AK151: =AH151-Conc_sep!$E151 -> 0
A152: =Data!A152 -> 2004-05-24 | B152: =Data!B152 -> 14.5 | C152: =Temp!C152 -> 14.5 | D152: =Temp!$E152-C152 -> 0 | E152: =B152-Temp!$E152 -> 0 | F152: =Data!I152 -> 0.2 | G152: =Precip!C152 -> 0.2 | H152: =Precip!$E152-G152 -> 0 | I152: =F152-Precip!$E152 -> 0 | J152: =Data!D152 -> 84.7 | K152: =Humid!C152 -> 64.5 | L152: =Humid!$E152-K152 -> 6.137509166 | M152: =J152-Humid!$E152 -> 14.06249083 | N152: =Data!E152 -> 131.7 | O152: =WinD!C152 -> 131.7 | P152: =WinD!$E152-O152 -> 0 | Q152: =N152-WinD!$E152 -> 0 | R152: =Data!F152 -> 1.8 | S152: =Win!C152 -> 1.8 | T152: =Win!$E152-S152 -> 0 | U152: =R152-Win!$E152 -> 0 | V152: =Data!H152 -> 98.4 | W152: =Pressure!C152 -> 98.4 | X152: =Pressure!$E152-W152 -> 0 | Y152: =V152-Pressure!$E152 -> 0 | Z152: =Snow!B152 -> 0 | AA152: =Snow!C152 -> 0 | AB152: =Snow!$E152-AA152 -> 0 | AC152: =Z152-Snow!$E152 -> 0 | AD152: =Level!B152 -> 4.542 | AE152: =Level!C152 -> 3.937 | AF152: =Level!$E152-AE152 -> 0.05051841263 | AG152: =AD152-Level!$E152 -> 0.5544815874 | AH152: =Conc_sep!B152 -> 56.00823582 | AI152: =Conc_sep!C152 -> 56.00823582 | AJ152: =Conc_sep!$E152-AI152 -> 0 | AK152: =AH152-Conc_sep!$E152 -> 0
A153: =Data!A153 -> 2004-05-25 | B153: =Data!B153 -> 8 | C153: =Temp!C153 -> 8 | D153: =Temp!$E153-C153 -> 0 | E153: =B153-Temp!$E153 -> 0 | F153: =Data!I153 -> 23.2 | G153: =Precip!C153 -> 0.34 | H153: =Precip!$E153-G153 -> 0.9181166859 | I153: =F153-Precip!$E153 -> 21.94188331 | J153: =Data!D153 -> 91.4 | K153: =Humid!C153 -> 66.8 | L153: =Humid!$E153-K153 -> 8.183345554 | M153: =J153-Humid!$E153 -> 16.41665445 | N153: =Data!E153 -> 104.6 | O153: =WinD!C153 -> 104.6 | P153: =WinD!$E153-O153 -> 0 | Q153: =N153-WinD!$E153 -> 0 | R153: =Data!F153 -> 5.5 | S153: =Win!C153 -> 2.27 | T153: =Win!$E153-S153 -> 0.5643558928 | U153: =R153-Win!$E153 -> 2.665644107 | V153: =Data!H153 -> 98.3 | W153: =Pressure!C153 -> 98.3 | X153: =Pressure!$E153-W153 -> 0 | Y153: =V153-Pressure!$E153 -> 0 | Z153: =Snow!B153 -> 0 | AA153: =Snow!C153 -> 0 | AB153: =Snow!$E153-AA153 -> 0 | AC153: =Z153-Snow!$E153 -> 0 | AD153: =Level!B153 -> 4.48 | AE153: =Level!C153 -> 3.947 | AF153: =Level!$E153-AE153 -> 0.07577761895 | AG153: =AD153-Level!$E153 -> 0.4572223811 | AH153: =Conc_sep!B153 -> 57.10306377 | AI153: =Conc_sep!C153 -> 57.10306377 | AJ153: =Conc_sep!$E153-AI153 -> 0 | AK153: =AH153-Conc_sep!$E153 -> 0
A154: =Data!A154 -> 2004-05-26 | B154: =Data!B154 -> 8.7 | C154: =Temp!C154 -> 8.7 | D154: =Temp!$E154-C154 -> 0 | E154: =B154-Temp!$E154 -> 0 | F154: =Data!I154 -> 0 | G154: =Precip!C154 -> 0 | H154: =Precip!$E154-G154 -> 0 | I154: =F154-Precip!$E154 -> 0 | J154: =Data!D154 -> 59.8 | K154: =Humid!C154 -> 59.8 | L154: =Humid!$E154-K154 -> 0 | M154: =J154-Humid!$E154 -> 0 | N154: =Data!E154 -> 301.7 | O154: =WinD!C154 -> 138.6 | P154: =WinD!$E154-O154 -> 13.02848139 | Q154: =N154-WinD!$E154 -> 150.0715186 | R154: =Data!F154 -> 4.4 | S154: =Win!C154 -> 2.74 | T154: =Win!$E154-S154 -> 1.128711786 | U154: =R154-Win!$E154 -> 0.5312882144 | V154: =Data!H154 -> 99.4 | W154: =Pressure!C154 -> 98.57 | X154: =Pressure!$E154-W154 -> 0.1034614698 | Y154: =V154-Pressure!$E154 -> 0.7265385302 | Z154: =Snow!B154 -> 0 | AA154: =Snow!C154 -> 0 | AB154: =Snow!$E154-AA154 -> 0 | AC154: =Z154-Snow!$E154 -> 0 | AD154: =Level!B154 -> 4.221 | AE154: =Level!C154 -> 3.957 | AF154: =Level!$E154-AE154 -> 0.1010368253 | AG154: =AD154-Level!$E154 -> 0.1629631747 | AH154: =Conc_sep!B154 -> 65.18138377 | AI154: =Conc_sep!C154 -> 58.65306377 | AJ154: =Conc_sep!$E154-AI154 -> 0.7478238652 | AK154: =AH154-Conc_sep!$E154 -> 5.780496137
A155: =Data!A155 -> 2004-05-27 | B155: =Data!B155 -> 12 | C155: =Temp!C155 -> 9.89 | D155: =Temp!$E155-C155 -> 0.6363478542 | E155: =B155-Temp!$E155 -> 1.473652146 | F155: =Data!I155 -> 0.4 | G155: =Precip!C155 -> 0.14 | H155: =Precip!$E155-G155 -> 0.26 | I155: =F155-Precip!$E155 -> 0 | J155: =Data!D155 -> 63.8 | K155: =Humid!C155 -> 62.1 | L155: =Humid!$E155-K155 -> 1.7 | M155: =J155-Humid!$E155 -> 0 | N155: =Data!E155 -> 262.1 | O155: =WinD!C155 -> 172.6 | P155: =WinD!$E155-O155 -> 26.05696277 | Q155: =N155-WinD!$E155 -> 63.44303723 | R155: =Data!F155 -> 4.8 | S155: =Win!C155 -> 3.21 | T155: =Win!$E155-S155 -> 1.59 | U155: =R155-Win!$E155 -> 0 | V155: =Data!H155 -> 99.4 | W155: =Pressure!C155 -> 98.84 | X155: =Pressure!$E155-W155 -> 0.2069229397 | Y155: =V155-Pressure!$E155 -> 0.3530770603 | Z155: =Snow!B155 -> 0 | AA155: =Snow!C155 -> 0 | AB155: =Snow!$E155-AA155 -> 0 | AC155: =Z155-Snow!$E155 -> 0 | AD155: =Level!B155 -> 4.105 | AE155: =Level!C155 -> 3.967 | AF155: =Level!$E155-AE155 -> 0.1262960316 | AG155: =AD155-Level!$E155 -> 0.01170396842 | AH155: =Conc_sep!B155 -> 63.77695523 | AI155: =Conc_sep!C155 -> 60.20306377 | AJ155: =Conc_sep!$E155-AI155 -> 1.49564773 | AK155: =AH155-Conc_sep!$E155 -> 2.07824373
A156: =Data!A156 -> 2004-05-28 | B156: =Data!B156 -> 16.9 | C156: =Temp!C156 -> 11.08 | D156: =Temp!$E156-C156 -> 1.272695708 | E156: =B156-Temp!$E156 -> 4.547304292 | F156: =Data!I156 -> 0 | G156: =Precip!C156 -> 0 | H156: =Precip!$E156-G156 -> 0 | I156: =F156-Precip!$E156 -> 0 | J156: =Data!D156 -> 65 | K156: =Humid!C156 -> 64.4 | L156: =Humid!$E156-K156 -> 0.6 | M156: =J156-Humid!$E156 -> 0 | N156: =Data!E156 -> 180.4 | O156: =WinD!C156 -> 180.4 | P156: =WinD!$E156-O156 -> 0 | Q156: =N156-WinD!$E156 -> 0 | R156: =Data!F156 -> 3.1 | S156: =Win!C156 -> 3.1 | T156: =Win!$E156-S156 -> 0 | U156: =R156-Win!$E156 -> 0 | V156: =Data!H156 -> 99.6 | W156: =Pressure!C156 -> 99.11 | X156: =Pressure!$E156-W156 -> 0.3103844095 | Y156: =V156-Pressure!$E156 -> 0.1796155905 | Z156: =Snow!B156 -> 0 | AA156: =Snow!C156 -> 0 | AB156: =Snow!$E156-AA156 -> 0 | AC156: =Z156-Snow!$E156 -> 0 | AD156: =Level!B156 -> 4.056 | AE156: =Level!C156 -> 3.977 | AF156: =Level!$E156-AE156 -> 0.079 | AG156: =AD156-Level!$E156 -> 0 | AH156: =Conc_sep!B156 -> 59.80053074 | AI156: =Conc_sep!C156 -> 59.80053074 | AJ156: =Conc_sep!$E156-AI156 -> 0 | AK156: =AH156-Conc_sep!$E156 -> 0
A157: =Data!A157 -> 2004-05-29 | B157: =Data!B157 -> 20.9 | C157: =Temp!C157 -> 12.27 | D157: =Temp!$E157-C157 -> 1.909043563 | E157: =B157-Temp!$E157 -> 6.720956437 | F157: =Data!I157 -> 0 | G157: =Precip!C157 -> 0 | H157: =Precip!$E157-G157 -> 0 | I157: =F157-Precip!$E157 -> 0 | J157: =Data!D157 -> 55.4 | K157: =Humid!C157 -> 55.4 | L157: =Humid!$E157-K157 -> 0 | M157: =J157-Humid!$E157 -> 0 | N157: =Data!E157 -> 214.6 | O157: =WinD!C157 -> 214.4 | P157: =WinD!$E157-O157 -> 0.2 | Q157: =N157-WinD!$E157 -> 0 | R157: =Data!F157 -> 4.6 | S157: =Win!C157 -> 3.57 | T157: =Win!$E157-S157 -> 0.5643558928 | U157: =R157-Win!$E157 -> 0.4656441072 | V157: =Data!H157 -> 99.5 | W157: =Pressure!C157 -> 99.38 | X157: =Pressure!$E157-W157 -> 0.12 | Y157: =V157-Pressure!$E157 -> 0 | Z157: =Snow!B157 -> 0 | AA157: =Snow!C157 -> 0 | AB157: =Snow!$E157-AA157 -> 0 | AC157: =Z157-Snow!$E157 -> 0 | AD157: =Level!B157 -> 4.015 | AE157: =Level!C157 -> 3.987 | AF157: =Level!$E157-AE157 -> 0.028 | AG157: =AD157-Level!$E157 -> 0 | AH157: =Conc_sep!B157 -> 64.8716855 | AI157: =Conc_sep!C157 -> 61.35053074 | AJ157: =Conc_sep!$E157-AI157 -> 0.7478238652 | AK157: =AH157-Conc_sep!$E157 -> 2.773330898
A158: =Data!A158 -> 2004-05-30 | B158: =Data!B158 -> 21.1 | C158: =Temp!C158 -> 13.46 | D158: =Temp!$E158-C158 -> 2.545391417 | E158: =B158-Temp!$E158 -> 5.094608583 | F158: =Data!I158 -> 12 | G158: =Precip!C158 -> 0.14 | H158: =Precip!$E158-G158 -> 0.9181166859 | I158: =F158-Precip!$E158 -> 10.94188331 | J158: =Data!D158 -> 54.8 | K158: =Humid!C158 -> 54.8 | L158: =Humid!$E158-K158 -> 0 | M158: =J158-Humid!$E158 -> 0 | N158: =Data!E158 -> 217.1 | O158: =WinD!C158 -> 217.1 | P158: =WinD!$E158-O158 -> 0 | Q158: =N158-WinD!$E158 -> 0 | R158: =Data!F158 -> 4.6 | S158: =Win!C158 -> 4.04 | T158: =Win!$E158-S158 -> 0.56 | U158: =R158-Win!$E158 -> 0 | V158: =Data!H158 -> 99.5 | W158: =Pressure!C158 -> 99.5 | X158: =Pressure!$E158-W158 -> 0 | Y158: =V158-Pressure!$E158 -> 0 | Z158: =Snow!B158 -> 0 | AA158: =Snow!C158 -> 0 | AB158: =Snow!$E158-AA158 -> 0 | AC158: =Z158-Snow!$E158 -> 0 | AD158: =Level!B158 -> 3.964 | AE158: =Level!C158 -> 3.964 | AF158: =Level!$E158-AE158 -> 0 | AG158: =AD158-Level!$E158 -> 0 | AH158: =Conc_sep!B158 -> 74.71395675 | AI158: =Conc_sep!C158 -> 62.90053074 | AJ158: =Conc_sep!$E158-AI158 -> 1.49564773 | AK158: =AH158-Conc_sep!$E158 -> 10.31777829
A159: =Data!A159 -> 2004-05-31 | B159: =Data!B159 -> 12.3 | C159: =Temp!C159 -> 12.3 | D159: =Temp!$E159-C159 -> 0 | E159: =B159-Temp!$E159 -> 0 | F159: =Data!I159 -> 0.2 | G159: =Precip!C159 -> 0.2 | H159: =Precip!$E159-G159 -> 0 | I159: =F159-Precip!$E159 -> 0 | J159: =Data!D159 -> 63.1 | K159: =Humid!C159 -> 57.1 | L159: =Humid!$E159-K159 -> 2.045836389 | M159: =J159-Humid!$E159 -> 3.954163611 | N159: =Data!E159 -> 299.2 | O159: =WinD!C159 -> 251.1 | P159: =WinD!$E159-O159 -> 13.02848139 | Q159: =N159-WinD!$E159 -> 35.07151861 | R159: =Data!F159 -> 5.8 | S159: =Win!C159 -> 4.51 | T159: =Win!$E159-S159 -> 1.124355893 | U159: =R159-Win!$E159 -> 0.1656441072 | V159: =Data!H159 -> 99 | W159: =Pressure!C159 -> 99 | X159: =Pressure!$E159-W159 -> 0 | Y159: =V159-Pressure!$E159 -> 0 | Z159: =Snow!B159 -> 0 | AA159: =Snow!C159 -> 0 | AB159: =Snow!$E159-AA159 -> 0 | AC159: =Z159-Snow!$E159 -> 0 | AD159: =Level!B159 -> 3.962 | AE159: =Level!C159 -> 3.962 | AF159: =Level!$E159-AE159 -> 0 | AG159: =AD159-Level!$E159 -> 0 | AH159: =Conc_sep!B159 -> 75.2015422 | AI159: =Conc_sep!C159 -> 64.45053074 | AJ159: =Conc_sep!$E159-AI159 -> 2.243471596 | AK159: =AH159-Conc_sep!$E159 -> 8.507539865
A160: =Data!A160 -> 2004-06-01 | B160: =Data!B160 -> 11.4 | C160: =Temp!C160 -> 11.4 | D160: =Temp!$E160-C160 -> 0 | E160: =B160-Temp!$E160 -> 0 | F160: =Data!I160 -> 0 | G160: =Precip!C160 -> 0 | H160: =Precip!$E160-G160 -> 0 | I160: =F160-Precip!$E160 -> 0 | J160: =Data!D160 -> 65.9 | K160: =Humid!C160 -> 59.4 | L160: =Humid!$E160-K160 -> 4.091672777 | M160: =J160-Humid!$E160 -> 2.408327223 | N160: =Data!E160 -> 312.5 | O160: =WinD!C160 -> 285.1 | P160: =WinD!$E160-O160 -> 26.05696277 | Q160: =N160-WinD!$E160 -> 1.343037227 | R160: =Data!F160 -> 5.8 | S160: =Win!C160 -> 4.98 | T160: =Win!$E160-S160 -> 0.82 | U160: =R160-Win!$E160 -> 0 | V160: =Data!H160 -> 99.6 | W160: =Pressure!C160 -> 99.27 | X160: =Pressure!$E160-W160 -> 0.1034614698 | Y160: =V160-Pressure!$E160 -> 0.2265385302 | Z160: =Snow!B160 -> 0 | AA160: =Snow!C160 -> 0 | AB160: =Snow!$E160-AA160 -> 0 | AC160: =Z160-Snow!$E160 -> 0 | AD160: =Level!B160 -> 3.985 | AE160: =Level!C160 -> 3.972 | AF160: =Level!$E160-AE160 -> 0.013 | AG160: =AD160-Level!$E160 -> 0 | AH160: =Conc_sep!B160 -> 71.11621397 | AI160: =Conc_sep!C160 -> 66.00053074 | AJ160: =Conc_sep!$E160-AI160 -> 2.991295461 | AK160: =AH160-Conc_sep!$E160 -> 2.124387774
A161: =Data!A161 -> 2004-06-02 | B161: =Data!B161 -> 15.7 | C161: =Temp!C161 -> 12.59 | D161: =Temp!$E161-C161 -> 0.6363478542 | E161: =B161-Temp!$E161 -> 2.473652146 | F161: =Data!I161 -> 0 | G161: =Precip!C161 -> 0 | H161: =Precip!$E161-G161 -> 0 | I161: =F161-Precip!$E161 -> 0 | J161: =Data!D161 -> 54.1 | K161: =Humid!C161 -> 54.1 | L161: =Humid!$E161-K161 -> 0 | M161: =J161-Humid!$E161 -> 0 | N161: =Data!E161 -> 327.5 | O161: =WinD!C161 -> 319.1 | P161: =WinD!$E161-O161 -> 8.4 | Q161: =N161-WinD!$E161 -> 0 | R161: =Data!F161 -> 3.1 | S161: =Win!C161 -> 3.1 | T161: =Win!$E161-S161 -> 0 | U161: =R161-Win!$E161 -> 0 | V161: =Data!H161 -> 99.9 | W161: =Pressure!C161 -> 99.54 | X161: =Pressure!$E161-W161 -> 0.2069229397 | Y161: =V161-Pressure!$E161 -> 0.1530770603 | Z161: =Snow!B161 -> 0 | AA161: =Snow!C161 -> 0 | AB161: =Snow!$E161-AA161 -> 0 | AC161: =Z161-Snow!$E161 -> 0 | AD161: =Level!B161 -> 3.981 | AE161: =Level!C161 -> 3.981 | AF161: =Level!$E161-AE161 -> 0 | AG161: =AD161-Level!$E161 -> 0 | AH161: =Conc_sep!B161 -> 72.73608753 | AI161: =Conc_sep!C161 -> 67.55053074 | AJ161: =Conc_sep!$E161-AI161 -> 3.739119326 | AK161: =AH161-Conc_sep!$E161 -> 1.446437467
A162: =Data!A162 -> 2004-06-03 | B162: =Data!B162 -> 17 | C162: =Temp!C162 -> 13.78 | D162: =Temp!$E162-C162 -> 1.272695708 | E162: =B162-Temp!$E162 -> 1.947304292 | F162: =Data!I162 -> 0 | G162: =Precip!C162 -> 0 | H162: =Precip!$E162-G162 -> 0 | I162: =F162-Precip!$E162 -> 0 | J162: =Data!D162 -> 43.5 | K162: =Humid!C162 -> 43.5 | L162: =Humid!$E162-K162 -> 0 | M162: =J162-Humid!$E162 -> 0 | N162: =Data!E162 -> 200 | O162: =WinD!C162 -> 200 | P162: =WinD!$E162-O162 -> 0 | Q162: =N162-WinD!$E162 -> 0 | R162: =Data!F162 -> 2.2 | S162: =Win!C162 -> 2.2 | T162: =Win!$E162-S162 -> 0 | U162: =R162-Win!$E162 -> 0 | V162: =Data!H162 -> 99.7 | W162: =Pressure!C162 -> 99.7 | X162: =Pressure!$E162-W162 -> 0 | Y162: =V162-Pressure!$E162 -> 0 | Z162: =Snow!B162 -> 0 | AA162: =Snow!C162 -> 0 | AB162: =Snow!$E162-AA162 -> 0 | AC162: =Z162-Snow!$E162 -> 0 | AD162: =Level!B162 -> 3.955 | AE162: =Level!C162 -> 3.955 | AF162: =Level!$E162-AE162 -> 0 | AG162: =AD162-Level!$E162 -> 0 | AH162: =Conc_sep!B162 -> 75.54943834 | AI162: =Conc_sep!C162 -> 69.10053074 | AJ162: =Conc_sep!$E162-AI162 -> 4.486943191 | AK162: =AH162-Conc_sep!$E162 -> 1.961964411
A163: =Data!A163 -> 2004-06-04 | B163: =Data!B163 -> 18.1 | C163: =Temp!C163 -> 14.97 | D163: =Temp!$E163-C163 -> 1.909043563 | E163: =B163-Temp!$E163 -> 1.220956437 | F163: =Data!I163 -> 0 | G163: =Precip!C163 -> 0 | H163: =Precip!$E163-G163 -> 0 | I163: =F163-Precip!$E163 -> 0 | J163: =Data!D163 -> 50.6 | K163: =Humid!C163 -> 45.8 | L163: =Humid!$E163-K163 -> 2.045836389 | M163: =J163-Humid!$E163 -> 2.754163611 | N163: =Data!E163 -> 109.6 | O163: =WinD!C163 -> 109.6 | P163: =WinD!$E163-O163 -> 0 | Q163: =N163-WinD!$E163 -> 0 | R163: =Data!F163 -> 2 | S163: =Win!C163 -> 2 | T163: =Win!$E163-S163 -> 0 | U163: =R163-Win!$E163 -> 0 | V163: =Data!H163 -> 99.5 | W163: =Pressure!C163 -> 99.5 | X163: =Pressure!$E163-W163 -> 0 | Y163: =V163-Pressure!$E163 -> 0 | Z163: =Snow!B163 -> 0 | AA163: =Snow!C163 -> 0 | AB163: =Snow!$E163-AA163 -> 0 | AC163: =Z163-Snow!$E163 -> 0 | AD163: =Level!B163 -> 3.931 | AE163: =Level!C163 -> 3.931 | AF163: =Level!$E163-AE163 -> 0 | AG163: =AD163-Level!$E163 -> 0 | AH163: =Conc_sep!B163 -> 77.06981349 | AI163: =Conc_sep!C163 -> 70.65053074 | AJ163: =Conc_sep!$E163-AI163 -> 5.234767056 | AK163: =AH163-Conc_sep!$E163 -> 1.184515699
A164: =Data!A164 -> 2004-06-05 | B164: =Data!B164 -> 18.1 | C164: =Temp!C164 -> 16.16 | D164: =Temp!$E164-C164 -> 1.94 | E164: =B164-Temp!$E164 -> 0 | F164: =Data!I164 -> 0.4 | G164: =Precip!C164 -> 0.14 | H164: =Precip!$E164-G164 -> 0.26 | I164: =F164-Precip!$E164 -> 0 | J164: =Data!D164 -> 68.8 | K164: =Humid!C164 -> 48.1 | L164: =Humid!$E164-K164 -> 4.091672777 | M164: =J164-Humid!$E164 -> 16.60832722 | N164: =Data!E164 -> 203.8 | O164: =WinD!C164 -> 143.6 | P164: =WinD!$E164-O164 -> 13.02848139 | Q164: =N164-WinD!$E164 -> 47.17151861 | R164: =Data!F164 -> 4.7 | S164: =Win!C164 -> 2.47 | T164: =Win!$E164-S164 -> 0.5643558928 | U164: =R164-Win!$E164 -> 1.665644107 | V164: =Data!H164 -> 98.6 | W164: =Pressure!C164 -> 98.6 | X164: =Pressure!$E164-W164 -> 0 | Y164: =V164-Pressure!$E164 -> 0 | Z164: =Snow!B164 -> 0 | AA164: =Snow!C164 -> 0 | AB164: =Snow!$E164-AA164 -> 0 | AC164: =Z164-Snow!$E164 -> 0 | AD164: =Level!B164 -> 3.918 | AE164: =Level!C164 -> 3.918 | AF164: =Level!$E164-AE164 -> 0 | AG164: =AD164-Level!$E164 -> 0 | AH164: =Conc_sep!B164 -> 78.00470345 | AI164: =Conc_sep!C164 -> 72.20053074 | AJ164: =Conc_sep!$E164-AI164 -> 5.804172718 | AK164: =AH164-Conc_sep!$E164 -> 0
A165: =Data!A165 -> 2004-06-06 | B165: =Data!B165 -> 16.5 | C165: =Temp!C165 -> 16.5 | D165: =Temp!$E165-C165 -> 0 | E165: =B165-Temp!$E165 -> 0 | F165: =Data!I165 -> 0 | G165: =Precip!C165 -> 0 | H165: =Precip!$E165-G165 -> 0 | I165: =F165-Precip!$E165 -> 0 | J165: =Data!D165 -> 77.8 | K165: =Humid!C165 -> 50.4 | L165: =Humid!$E165-K165 -> 6.137509166 | M165: =J165-Humid!$E165 -> 21.26249083 | N165: =Data!E165 -> 271.7 | O165: =WinD!C165 -> 177.6 | P165: =WinD!$E165-O165 -> 26.05696277 | Q165: =N165-WinD!$E165 -> 68.04303723 | R165: =Data!F165 -> 4.8 | S165: =Win!C165 -> 2.94 | T165: =Win!$E165-S165 -> 1.128711786 | U165: =R165-Win!$E165 -> 0.7312882144 | V165: =Data!H165 -> 98.9 | W165: =Pressure!C165 -> 98.87 | X165: =Pressure!$E165-W165 -> 0.03 | Y165: =V165-Pressure!$E165 -> 0 | Z165: =Snow!B165 -> 0 | AA165: =Snow!C165 -> 0 | AB165: =Snow!$E165-AA165 -> 0 | AC165: =Z165-Snow!$E165 -> 0 | AD165: =Level!B165 -> 3.899 | AE165: =Level!C165 -> 3.899 | AF165: =Level!$E165-AE165 -> 0 | AG165: =AD165-Level!$E165 -> 0 | AH165: =Conc_sep!B165 -> 79.39519619 | AI165: =Conc_sep!C165 -> 73.75053074 | AJ165: =Conc_sep!$E165-AI165 -> 5.64466545 | AK165: =AH165-Conc_sep!$E165 -> 0
A166: =Data!A166 -> 2004-06-07 | B166: =Data!B166 -> 12.2 | C166: =Temp!C166 -> 12.2 | D166: =Temp!$E166-C166 -> 0 | E166: =B166-Temp!$E166 -> 0 | F166: =Data!I166 -> 0 | G166: =Precip!C166 -> 0 | H166: =Precip!$E166-G166 -> 0 | I166: =F166-Precip!$E166 -> 0 | J166: =Data!D166 -> 62.2 | K166: =Humid!C166 -> 52.7 | L166: =Humid!$E166-K166 -> 8.183345554 | M166: =J166-Humid!$E166 -> 1.316654446 | N166: =Data!E166 -> 268.3 | O166: =WinD!C166 -> 211.6 | P166: =WinD!$E166-O166 -> 39.08544416 | Q166: =N166-WinD!$E166 -> 17.61455584 | R166: =Data!F166 -> 5.4 | S166: =Win!C166 -> 3.41 | T166: =Win!$E166-S166 -> 1.693067678 | U166: =R166-Win!$E166 -> 0.2969323216 | V166: =Data!H166 -> 99.7 | W166: =Pressure!C166 -> 99.14 | X166: =Pressure!$E166-W166 -> 0.1334614698 | Y166: =V166-Pressure!$E166 -> 0.4265385302 | Z166: =Snow!B166 -> 0 | AA166: =Snow!C166 -> 0 | AB166: =Snow!$E166-AA166 -> 0 | AC166: =Z166-Snow!$E166 -> 0 | AD166: =Level!B166 -> 3.898 | AE166: =Level!C166 -> 3.898 | AF166: =Level!$E166-AE166 -> 0 | AG166: =AD166-Level!$E166 -> 0 | AH166: =Conc_sep!B166 -> 79.49576028 | AI166: =Conc_sep!C166 -> 75.30053074 | AJ166: =Conc_sep!$E166-AI166 -> 4.195229548 | AK166: =AH166-Conc_sep!$E166 -> 0
A167: =Data!A167 -> 2004-06-08 | B167: =Data!B167 -> 16 | C167: =Temp!C167 -> 13.39 | D167: =Temp!$E167-C167 -> 0.6363478542 | E167: =B167-Temp!$E167 -> 1.973652146 | F167: =Data!I167 -> 0 | G167: =Precip!C167 -> 0 | H167: =Precip!$E167-G167 -> 0 | I167: =F167-Precip!$E167 -> 0 | J167: =Data!D167 -> 56.3 | K167: =Humid!C167 -> 55 | L167: =Humid!$E167-K167 -> 1.3 | M167: =J167-Humid!$E167 -> 0 | N167: =Data!E167 -> 285.4 | O167: =WinD!C167 -> 245.6 | P167: =WinD!$E167-O167 -> 39.8 | Q167: =N167-WinD!$E167 -> 0 | R167: =Data!F167 -> 3.5 | S167: =Win!C167 -> 3.5 | T167: =Win!$E167-S167 -> 0 | U167: =R167-Win!$E167 -> 0 | V167: =Data!H167 -> 99.6 | W167: =Pressure!C167 -> 99.41 | X167: =Pressure!$E167-W167 -> 0.19 | Y167: =V167-Pressure!$E167 -> 0 | Z167: =Snow!B167 -> 0 | AA167: =Snow!C167 -> 0 | AB167: =Snow!$E167-AA167 -> 0 | AC167: =Z167-Snow!$E167 -> 0 | AD167: =Level!B167 -> 3.888 | AE167: =Level!C167 -> 3.888 | AF167: =Level!$E167-AE167 -> 0 | AG167: =AD167-Level!$E167 -> 0 | AH167: =Conc_sep!B167 -> 80.27091624 | AI167: =Conc_sep!C167 -> 76.85053074 | AJ167: =Conc_sep!$E167-AI167 -> 3.420385502 | AK167: =AH167-Conc_sep!$E167 -> 0
A168: =Data!A168 -> 2004-06-09 | B168: =Data!B168 -> 16.2 | C168: =Temp!C168 -> 14.58 | D168: =Temp!$E168-C168 -> 1.272695708 | E168: =B168-Temp!$E168 -> 0.3473042915 | F168: =Data!I168 -> 0 | G168: =Precip!C168 -> 0 | H168: =Precip!$E168-G168 -> 0 | I168: =F168-Precip!$E168 -> 0 | J168: =Data!D168 -> 49.6 | K168: =Humid!C168 -> 49.6 | L168: =Humid!$E168-K168 -> 0 | M168: =J168-Humid!$E168 -> 0 | N168: =Data!E168 -> 158.3 | O168: =WinD!C168 -> 158.3 | P168: =WinD!$E168-O168 -> 0 | Q168: =N168-WinD!$E168 -> 0 | R168: =Data!F168 -> 2.4 | S168: =Win!C168 -> 2.4 | T168: =Win!$E168-S168 -> 0 | U168: =R168-Win!$E168 -> 0 | V168: =Data!H168 -> 99.8 | W168: =Pressure!C168 -> 99.68 | X168: =Pressure!$E168-W168 -> 0.12 | Y168: =V168-Pressure!$E168 -> 0 | Z168: =Snow!B168 -> 0 | AA168: =Snow!C168 -> 0 | AB168: =Snow!$E168-AA168 -> 0 | AC168: =Z168-Snow!$E168 -> 0 | AD168: =Level!B168 -> 3.878 | AE168: =Level!C168 -> 3.878 | AF168: =Level!$E168-AE168 -> 0 | AG168: =AD168-Level!$E168 -> 0 | AH168: =Conc_sep!B168 -> 81.02980739 | AI168: =Conc_sep!C168 -> 78.40053074 | AJ168: =Conc_sep!$E168-AI168 -> 2.62927665 | AK168: =AH168-Conc_sep!$E168 -> 0
A169: =Data!A169 -> 2004-06-10 | B169: =Data!B169 -> 16.8 | C169: =Temp!C169 -> 15.77 | D169: =Temp!$E169-C169 -> 1.03 | E169: =B169-Temp!$E169 -> 0 | F169: =Data!I169 -> 0.8 | G169: =Precip!C169 -> 0.14 | H169: =Precip!$E169-G169 -> 0.66 | I169: =F169-Precip!$E169 -> 0 | J169: =Data!D169 -> 62.1 | K169: =Humid!C169 -> 51.9 | L169: =Humid!$E169-K169 -> 2.045836389 | M169: =J169-Humid!$E169 -> 8.154163611 | N169: =Data!E169 -> 87.5 | O169: =WinD!C169 -> 87.5 | P169: =WinD!$E169-O169 -> 0 | Q169: =N169-WinD!$E169 -> 0 | R169: =Data!F169 -> 2.6 | S169: =Win!C169 -> 2.6 | T169: =Win!$E169-S169 -> 0 | U169: =R169-Win!$E169 -> 0 | V169: =Data!H169 -> 99.4 | W169: =Pressure!C169 -> 99.4 | X169: =Pressure!$E169-W169 -> 0 | Y169: =V169-Pressure!$E169 -> 0 | Z169: =Snow!B169 -> 0 | AA169: =Snow!C169 -> 0 | AB169: =Snow!$E169-AA169 -> 0 | AC169: =Z169-Snow!$E169 -> 0 | AD169: =Level!B169 -> 3.892 | AE169: =Level!C169 -> 3.888 | AF169: =Level!$E169-AE169 -> 0.004 | AG169: =AD169-Level!$E169 -> 0 | AH169: =Conc_sep!B169 -> 78.29772547 | AI169: =Conc_sep!C169 -> 78.29772547 | AJ169: =Conc_sep!$E169-AI169 -> 0 | AK169: =AH169-Conc_sep!$E169 -> 0
A170: =Data!A170 -> 2004-06-11 | B170: =Data!B170 -> 18.3 | C170: =Temp!C170 -> 16.96 | D170: =Temp!$E170-C170 -> 1.34 | E170: =B170-Temp!$E170 -> 0 | F170: =Data!I170 -> 1 | G170: =Precip!C170 -> 0.28 | H170: =Precip!$E170-G170 -> 0.72 | I170: =F170-Precip!$E170 -> 0 | J170: =Data!D170 -> 75.8 | K170: =Humid!C170 -> 54.2 | L170: =Humid!$E170-K170 -> 4.091672777 | M170: =J170-Humid!$E170 -> 17.50832722 | N170: =Data!E170 -> 174.6 | O170: =WinD!C170 -> 121.5 | P170: =WinD!$E170-O170 -> 13.02848139 | Q170: =N170-WinD!$E170 -> 40.07151861 | R170: =Data!F170 -> 3.6 | S170: =Win!C170 -> 3.07 | T170: =Win!$E170-S170 -> 0.53 | U170: =R170-Win!$E170 -> 0 | V170: =Data!H170 -> 99.1 | W170: =Pressure!C170 -> 99.1 | X170: =Pressure!$E170-W170 -> 0 | Y170: =V170-Pressure!$E170 -> 0 | Z170: =Snow!B170 -> 0 | AA170: =Snow!C170 -> 0 | AB170: =Snow!$E170-AA170 -> 0 | AC170: =Z170-Snow!$E170 -> 0 | AD170: =Level!B170 -> 3.884 | AE170: =Level!C170 -> 3.884 | AF170: =Level!$E170-AE170 -> 0 | AG170: =AD170-Level!$E170 -> 0 | AH170: =Conc_sep!B170 -> 80.59179239 | AI170: =Conc_sep!C170 -> 79.84772547 | AJ170: =Conc_sep!$E170-AI170 -> 0.7440669112 | AK170: =AH170-Conc_sep!$E170 -> 0
A171: =Data!A171 -> 2004-06-12 | B171: =Data!B171 -> 18.9 | C171: =Temp!C171 -> 18.15 | D171: =Temp!$E171-C171 -> 0.75 | E171: =B171-Temp!$E171 -> 0 | F171: =Data!I171 -> 1.6 | G171: =Precip!C171 -> 0.42 | H171: =Precip!$E171-G171 -> 1.18 | I171: =F171-Precip!$E171 -> 0 | J171: =Data!D171 -> 82.7 | K171: =Humid!C171 -> 56.5 | L171: =Humid!$E171-K171 -> 6.137509166 | M171: =J171-Humid!$E171 -> 20.06249083 | N171: =Data!E171 -> 181.3 | O171: =WinD!C171 -> 155.5 | P171: =WinD!$E171-O171 -> 25.8 | Q171: =N171-WinD!$E171 -> 0 | R171: =Data!F171 -> 4 | S171: =Win!C171 -> 3.54 | T171: =Win!$E171-S171 -> 0.46 | U171: =R171-Win!$E171 -> 0 | V171: =Data!H171 -> 99.1 | W171: =Pressure!C171 -> 99.1 | X171: =Pressure!$E171-W171 -> 0 | Y171: =V171-Pressure!$E171 -> 0 | Z171: =Snow!B171 -> 0 | AA171: =Snow!C171 -> 0 | AB171: =Snow!$E171-AA171 -> 0 | AC171: =Z171-Snow!$E171 -> 0 | AD171: =Level!B171 -> 3.867 | AE171: =Level!C171 -> 3.867 | AF171: =Level!$E171-AE171 -> 0 | AG171: =AD171-Level!$E171 -> 0 | AH171: =Conc_sep!B171 -> 82.06078251 | AI171: =Conc_sep!C171 -> 81.39772547 | AJ171: =Conc_sep!$E171-AI171 -> 0.6630570365 | AK171: =AH171-Conc_sep!$E171 -> 0
A172: =Data!A172 -> 2004-06-13 | B172: =Data!B172 -> 19.9 | C172: =Temp!C172 -> 19.34 | D172: =Temp!$E172-C172 -> 0.56 | E172: =B172-Temp!$E172 -> 0 | F172: =Data!I172 -> 0 | G172: =Precip!C172 -> 0 | H172: =Precip!$E172-G172 -> 0 | I172: =F172-Precip!$E172 -> 0 | J172: =Data!D172 -> 77.3 | K172: =Humid!C172 -> 58.8 | L172: =Humid!$E172-K172 -> 8.183345554 | M172: =J172-Humid!$E172 -> 10.31665445 | N172: =Data!E172 -> 229.6 | O172: =WinD!C172 -> 189.5 | P172: =WinD!$E172-O172 -> 38.82848139 | Q172: =N172-WinD!$E172 -> 1.271518614 | R172: =Data!F172 -> 3.4 | S172: =Win!C172 -> 3.4 | T172: =Win!$E172-S172 -> 0 | U172: =R172-Win!$E172 -> 0 | V172: =Data!H172 -> 99.4 | W172: =Pressure!C172 -> 99.37 | X172: =Pressure!$E172-W172 -> 0.03 | Y172: =V172-Pressure!$E172 -> 0 | Z172: =Snow!B172 -> 0 | AA172: =Snow!C172 -> 0 | AB172: =Snow!$E172-AA172 -> 0 | AC172: =Z172-Snow!$E172 -> 0 | AD172: =Level!B172 -> 3.857 | AE172: =Level!C172 -> 3.857 | AF172: =Level!$E172-AE172 -> 0 | AG172: =AD172-Level!$E172 -> 0 | AH172: =Conc_sep!B172 -> 82.97237122 | AI172: =Conc_sep!C172 -> 82.94772547 | AJ172: =Conc_sep!$E172-AI172 -> 0.02464574988 | AK172: =AH172-Conc_sep!$E172 -> 0
A173: =Data!A173 -> 2004-06-14 | B173: =Data!B173 -> 21.2 | C173: =Temp!C173 -> 20.53 | D173: =Temp!$E173-C173 -> 0.67 | E173: =B173-Temp!$E173 -> 0 | F173: =Data!I173 -> 0 | G173: =Precip!C173 -> 0 | H173: =Precip!$E173-G173 -> 0 | I173: =F173-Precip!$E173 -> 0 | J173: =Data!D173 -> 77.8 | K173: =Humid!C173 -> 61.1 | L173: =Humid!$E173-K173 -> 10.22918194 | M173: =J173-Humid!$E173 -> 6.470818057 | N173: =Data!E173 -> 97.5 | O173: =WinD!C173 -> 97.5 | P173: =WinD!$E173-O173 -> 0 | Q173: =N173-WinD!$E173 -> 0 | R173: =Data!F173 -> 1.7 | S173: =Win!C173 -> 1.7 | T173: =Win!$E173-S173 -> 0 | U173: =R173-Win!$E173 -> 0 | V173: =Data!H173 -> 100 | W173: =Pressure!C173 -> 99.64 | X173: =Pressure!$E173-W173 -> 0.1334614698 | Y173: =V173-Pressure!$E173 -> 0.2265385302 | Z173: =Snow!B173 -> 0 | AA173: =Snow!C173 -> 0 | AB173: =Snow!$E173-AA173 -> 0 | AC173: =Z173-Snow!$E173 -> 0 | AD173: =Level!B173 -> 3.934 | AE173: =Level!C173 -> 3.867 | AF173: =Level!$E173-AE173 -> 0.02525920632 | AG173: =AD173-Level!$E173 -> 0.04174079368 | AH173: =Conc_sep!B173 -> 80.1652867 | AI173: =Conc_sep!C173 -> 80.1652867 | AJ173: =Conc_sep!$E173-AI173 -> 0 | AK173: =AH173-Conc_sep!$E173 -> 0
A174: =Data!A174 -> 2004-06-15 | B174: =Data!B174 -> 25.7 | C174: =Temp!C174 -> 21.72 | D174: =Temp!$E174-C174 -> 1.306347854 | E174: =B174-Temp!$E174 -> 2.673652146 | F174: =Data!I174 -> 0 | G174: =Precip!C174 -> 0 | H174: =Precip!$E174-G174 -> 0 | I174: =F174-Precip!$E174 -> 0 | J174: =Data!D174 -> 73.9 | K174: =Humid!C174 -> 63.4 | L174: =Humid!$E174-K174 -> 10.5 | M174: =J174-Humid!$E174 -> 0 | N174: =Data!E174 -> 126.3 | O174: =WinD!C174 -> 126.3 | P174: =WinD!$E174-O174 -> 0 | Q174: =N174-WinD!$E174 -> 0 | R174: =Data!F174 -> 1.7 | S174: =Win!C174 -> 1.7 | T174: =Win!$E174-S174 -> 0 | U174: =R174-Win!$E174 -> 0 | V174: =Data!H174 -> 100 | W174: =Pressure!C174 -> 99.91 | X174: =Pressure!$E174-W174 -> 0.09 | Y174: =V174-Pressure!$E174 -> 0 | Z174: =Snow!B174 -> 0 | AA174: =Snow!C174 -> 0 | AB174: =Snow!$E174-AA174 -> 0 | AC174: =Z174-Snow!$E174 -> 0 | AD174: =Level!B174 -> 4.203 | AE174: =Level!C174 -> 3.877 | AF174: =Level!$E174-AE174 -> 0.05051841263 | AG174: =AD174-Level!$E174 -> 0.2754815874 | AH174: =Conc_sep!B174 -> 67.66426422 | AI174: =Conc_sep!C174 -> 67.66426422 | AJ174: =Conc_sep!$E174-AI174 -> 0 | AK174: =AH174-Conc_sep!$E174 -> 0
A175: =Data!A175 -> 2004-06-16 | B175: =Data!B175 -> 27.8 | C175: =Temp!C175 -> 22.91 | D175: =Temp!$E175-C175 -> 1.942695708 | E175: =B175-Temp!$E175 -> 2.947304292 | F175: =Data!I175 -> 0 | G175: =Precip!C175 -> 0 | H175: =Precip!$E175-G175 -> 0 | I175: =F175-Precip!$E175 -> 0 | J175: =Data!D175 -> 64.8 | K175: =Humid!C175 -> 64.8 | L175: =Humid!$E175-K175 -> 0 | M175: =J175-Humid!$E175 -> 0 | N175: =Data!E175 -> 226.7 | O175: =WinD!C175 -> 160.3 | P175: =WinD!$E175-O175 -> 13.02848139 | Q175: =N175-WinD!$E175 -> 53.37151861 | R175: =Data!F175 -> 2.3 | S175: =Win!C175 -> 2.17 | T175: =Win!$E175-S175 -> 0.13 | U175: =R175-Win!$E175 -> 0 | V175: =Data!H175 -> 99.9 | W175: =Pressure!C175 -> 99.9 | X175: =Pressure!$E175-W175 -> 0 | Y175: =V175-Pressure!$E175 -> 0 | Z175: =Snow!B175 -> 0 | AA175: =Snow!C175 -> 0 | AB175: =Snow!$E175-AA175 -> 0 | AC175: =Z175-Snow!$E175 -> 0 | AD175: =Level!B175 -> 4.029 | AE175: =Level!C175 -> 3.887 | AF175: =Level!$E175-AE175 -> 0.07577761895 | AG175: =AD175-Level!$E175 -> 0.06622238105 | AH175: =Conc_sep!B175 -> 70.84590555 | AI175: =Conc_sep!C175 -> 69.21426422 | AJ175: =Conc_sep!$E175-AI175 -> 0.7478238652 | AK175: =AH175-Conc_sep!$E175 -> 0.8838174698
A176: =Data!A176 -> 2004-06-17 | B176: =Data!B176 -> 28.2 | C176: =Temp!C176 -> 24.1 | D176: =Temp!$E176-C176 -> 2.579043563 | E176: =B176-Temp!$E176 -> 1.520956437 | F176: =Data!I176 -> 0 | G176: =Precip!C176 -> 0.14 | H176: =Precip!$E176-G176 -> 0.01 | I176: =F176-Precip!$E176 -> -0.15 | J176: =Data!D176 -> 59.6 | K176: =Humid!C176 -> 59.6 | L176: =Humid!$E176-K176 -> 0 | M176: =J176-Humid!$E176 -> 0 | N176: =Data!E176 -> 207.5 | O176: =WinD!C176 -> 194.3 | P176: =WinD!$E176-O176 -> 13.2 | Q176: =N176-WinD!$E176 -> 0 | R176: =Data!F176 -> 2.1 | S176: =Win!C176 -> 2.1 | T176: =Win!$E176-S176 -> 0 | U176: =R176-Win!$E176 -> 0 | V176: =Data!H176 -> 99.7 | W176: =Pressure!C176 -> 99.7 | X176: =Pressure!$E176-W176 -> 0 | Y176: =V176-Pressure!$E176 -> 0 | Z176: =Snow!B176 -> 0 | AA176: =Snow!C176 -> 0 | AB176: =Snow!$E176-AA176 -> 0 | AC176: =Z176-Snow!$E176 -> 0 | AD176: =Level!B176 -> 3.946 | AE176: =Level!C176 -> 3.897 | AF176: =Level!$E176-AE176 -> 0.049 | AG176: =AD176-Level!$E176 -> 0 | AH176: =Conc_sep!B176 -> 65.61848514 | AI176: =Conc_sep!C176 -> 65.61848514 | AJ176: =Conc_sep!$E176-AI176 -> 0 | AK176: =AH176-Conc_sep!$E176 -> 0
A177: =Data!A177 -> 2004-06-18 | B177: =Data!B177 -> 24.4 | C177: =Temp!C177 -> 24.4 | D177: =Temp!$E177-C177 -> 0 | E177: =B177-Temp!$E177 -> 0 | F177: =Data!I177 -> 0 | G177: =Precip!C177 -> 0 | H177: =Precip!$E177-G177 -> 0 | I177: =F177-Precip!$E177 -> 0 | J177: =Data!D177 -> 63.2 | K177: =Humid!C177 -> 61.9 | L177: =Humid!$E177-K177 -> 1.3 | M177: =J177-Humid!$E177 -> 0 | N177: =Data!E177 -> 204.2 | O177: =WinD!C177 -> 204.2 | P177: =WinD!$E177-O177 -> 0 | Q177: =N177-WinD!$E177 -> 0 | R177: =Data!F177 -> 3.6 | S177: =Win!C177 -> 2.57 | T177: =Win!$E177-S177 -> 0.5643558928 | U177: =R177-Win!$E177 -> 0.4656441072 | V177: =Data!H177 -> 99.9 | W177: =Pressure!C177 -> 99.9 | X177: =Pressure!$E177-W177 -> 0 | Y177: =V177-Pressure!$E177 -> 0 | Z177: =Snow!B177 -> 0 | AA177: =Snow!C177 -> 0 | AB177: =Snow!$E177-AA177 -> 0 | AC177: =Z177-Snow!$E177 -> 0 | AD177: =Level!B177 -> 3.923 | AE177: =Level!C177 -> 3.907 | AF177: =Level!$E177-AE177 -> 0.016 | AG177: =AD177-Level!$E177 -> 0 | AH177: =Conc_sep!B177 -> 70.98174677 | AI177: =Conc_sep!C177 -> 67.16848514 | AJ177: =Conc_sep!$E177-AI177 -> 0.7478238652 | AK177: =AH177-Conc_sep!$E177 -> 3.065437768
A178: =Data!A178 -> 2004-06-19 | B178: =Data!B178 -> 21.3 | C178: =Temp!C178 -> 21.3 | D178: =Temp!$E178-C178 -> 0 | E178: =B178-Temp!$E178 -> 0 | F178: =Data!I178 -> 0 | G178: =Precip!C178 -> 0.14 | H178: =Precip!$E178-G178 -> 0.01 | I178: =F178-Precip!$E178 -> -0.15 | J178: =Data!D178 -> 63.2 | K178: =Humid!C178 -> 63.2 | L178: =Humid!$E178-K178 -> 0 | M178: =J178-Humid!$E178 -> 0 | N178: =Data!E178 -> 133.3 | O178: =WinD!C178 -> 133.3 | P178: =WinD!$E178-O178 -> 0 | Q178: =N178-WinD!$E178 -> 0 | R178: =Data!F178 -> 2.2 | S178: =Win!C178 -> 2.2 | T178: =Win!$E178-S178 -> 0 | U178: =R178-Win!$E178 -> 0 | V178: =Data!H178 -> 99.7 | W178: =Pressure!C178 -> 99.7 | X178: =Pressure!$E178-W178 -> 0 | Y178: =V178-Pressure!$E178 -> 0 | Z178: =Snow!B178 -> 0 | AA178: =Snow!C178 -> 0 | AB178: =Snow!$E178-AA178 -> 0 | AC178: =Z178-Snow!$E178 -> 0 | AD178: =Level!B178 -> 3.899 | AE178: =Level!C178 -> 3.899 | AF178: =Level!$E178-AE178 -> 0 | AG178: =AD178-Level!$E178 -> 0 | AH178: =Conc_sep!B178 -> 78.12611306 | AI178: =Conc_sep!C178 -> 68.71848514 | AJ178: =Conc_sep!$E178-AI178 -> 1.49564773 | AK178: =AH178-Conc_sep!$E178 -> 7.911980188
A179: =Data!A179 -> 2004-06-20 | B179: =Data!B179 -> 24.2 | C179: =Temp!C179 -> 22.49 | D179: =Temp!$E179-C179 -> 0.6363478542 | E179: =B179-Temp!$E179 -> 1.073652146 | F179: =Data!I179 -> 0 | G179: =Precip!C179 -> 0 | H179: =Precip!$E179-G179 -> 0 | I179: =F179-Precip!$E179 -> 0 | J179: =Data!D179 -> 55.1 | K179: =Humid!C179 -> 55.1 | L179: =Humid!$E179-K179 -> 0 | M179: =J179-Humid!$E179 -> 0 | N179: =Data!E179 -> 268.8 | O179: =WinD!C179 -> 167.3 | P179: =WinD!$E179-O179 -> 13.02848139 | Q179: =N179-WinD!$E179 -> 88.47151861 | R179: =Data!F179 -> 6.2 | S179: =Win!C179 -> 2.67 | T179: =Win!$E179-S179 -> 0.5643558928 | U179: =R179-Win!$E179 -> 2.965644107 | V179: =Data!H179 -> 98.8 | W179: =Pressure!C179 -> 98.8 | X179: =Pressure!$E179-W179 -> 0 | Y179: =V179-Pressure!$E179 -> 0 | Z179: =Snow!B179 -> 0 | AA179: =Snow!C179 -> 0 | AB179: =Snow!$E179-AA179 -> 0 | AC179: =Z179-Snow!$E179 -> 0 | AD179: =Level!B179 -> 3.878 | AE179: =Level!C179 -> 3.878 | AF179: =Level!$E179-AE179 -> 0 | AG179: =AD179-Level!$E179 -> 0 | AH179: =Conc_sep!B179 -> 81.08540248 | AI179: =Conc_sep!C179 -> 70.26848514 | AJ179: =Conc_sep!$E179-AI179 -> 2.243471596 | AK179: =AH179-Conc_sep!$E179 -> 8.57344575
A180: =Data!A180 -> 2004-06-21 | B180: =Data!B180 -> 21.7 | C180: =Temp!C180 -> 21.7 | D180: =Temp!$E180-C180 -> 0 | E180: =B180-Temp!$E180 -> 0 | F180: =Data!I180 -> 0 | G180: =Precip!C180 -> 0 | H180: =Precip!$E180-G180 -> 0 | I180: =F180-Precip!$E180 -> 0 | J180: =Data!D180 -> 51.5 | K180: =Humid!C180 -> 51.5 | L180: =Humid!$E180-K180 -> 0 | M180: =J180-Humid!$E180 -> 0 | N180: =Data!E180 -> 275.4 | O180: =WinD!C180 -> 201.3 | P180: =WinD!$E180-O180 -> 26.05696277 | Q180: =N180-WinD!$E180 -> 48.04303723 | R180: =Data!F180 -> 3.4 | S180: =Win!C180 -> 3.14 | T180: =Win!$E180-S180 -> 0.26 | U180: =R180-Win!$E180 -> 0 | V180: =Data!H180 -> 99.1 | W180: =Pressure!C180 -> 99.07 | X180: =Pressure!$E180-W180 -> 0.03 | Y180: =V180-Pressure!$E180 -> 0 | Z180: =Snow!B180 -> 0 | AA180: =Snow!C180 -> 0 | AB180: =Snow!$E180-AA180 -> 0 | AC180: =Z180-Snow!$E180 -> 0 | AD180: =Level!B180 -> 3.865 | AE180: =Level!C180 -> 3.865 | AF180: =Level!$E180-AE180 -> 0 | AG180: =AD180-Level!$E180 -> 0 | AH180: =Conc_sep!B180 -> 82.23911196 | AI180: =Conc_sep!C180 -> 71.81848514 | AJ180: =Conc_sep!$E180-AI180 -> 2.991295461 | AK180: =AH180-Conc_sep!$E180 -> 7.429331358
A181: =Data!A181 -> 2004-06-22 | B181: =Data!B181 -> 21.2 | C181: =Temp!C181 -> 21.2 | D181: =Temp!$E181-C181 -> 0 | E181: =B181-Temp!$E181 -> 0 | F181: =Data!I181 -> 1 | G181: =Precip!C181 -> 0.14 | H181: =Precip!$E181-G181 -> 0.86 | I181: =F181-Precip!$E181 -> 0 | J181: =Data!D181 -> 58.5 | K181: =Humid!C181 -> 53.8 | L181: =Humid!$E181-K181 -> 2.045836389 | M181: =J181-Humid!$E181 -> 2.654163611 | N181: =Data!E181 -> 187.9 | O181: =WinD!C181 -> 187.9 | P181: =WinD!$E181-O181 -> 0 | Q181: =N181-WinD!$E181 -> 0 | R181: =Data!F181 -> 2 | S181: =Win!C181 -> 2 | T181: =Win!$E181-S181 -> 0 | U181: =R181-Win!$E181 -> 0 | V181: =Data!H181 -> 98.9 | W181: =Pressure!C181 -> 98.9 | X181: =Pressure!$E181-W181 -> 0 | Y181: =V181-Pressure!$E181 -> 0 | Z181: =Snow!B181 -> 0 | AA181: =Snow!C181 -> 0 | AB181: =Snow!$E181-AA181 -> 0 | AC181: =Z181-Snow!$E181 -> 0 | AD181: =Level!B181 -> 3.893 | AE181: =Level!C181 -> 3.875 | AF181: =Level!$E181-AE181 -> 0.018 | AG181: =AD181-Level!$E181 -> 0 | AH181: =Conc_sep!B181 -> 75.1177285 | AI181: =Conc_sep!C181 -> 73.36848514 | AJ181: =Conc_sep!$E181-AI181 -> 1.749243365 | AK181: =AH181-Conc_sep!$E181 -> 0
A182: =Data!A182 -> 2004-06-23 | B182: =Data!B182 -> 16 | C182: =Temp!C182 -> 16 | D182: =Temp!$E182-C182 -> 0 | E182: =B182-Temp!$E182 -> 0 | F182: =Data!I182 -> 27.2 | G182: =Precip!C182 -> 0.28 | H182: =Precip!$E182-G182 -> 1.778116686 | I182: =F182-Precip!$E182 -> 25.14188331 | J182: =Data!D182 -> 94 | K182: =Humid!C182 -> 56.1 | L182: =Humid!$E182-K182 -> 4.091672777 | M182: =J182-Humid!$E182 -> 33.80832722 | N182: =Data!E182 -> 89.6 | O182: =WinD!C182 -> 89.6 | P182: =WinD!$E182-O182 -> 0 | Q182: =N182-WinD!$E182 -> 0 | R182: =Data!F182 -> 6.3 | S182: =Win!C182 -> 2.47 | T182: =Win!$E182-S182 -> 0.5643558928 | U182: =R182-Win!$E182 -> 3.265644107 | V182: =Data!H182 -> 98.2 | W182: =Pressure!C182 -> 98.2 | X182: =Pressure!$E182-W182 -> 0 | Y182: =V182-Pressure!$E182 -> 0 | Z182: =Snow!B182 -> 0 | AA182: =Snow!C182 -> 0 | AB182: =Snow!$E182-AA182 -> 0 | AC182: =Z182-Snow!$E182 -> 0 | AD182: =Level!B182 -> 3.887 | AE182: =Level!C182 -> 3.885 | AF182: =Level!$E182-AE182 -> 0.002 | AG182: =AD182-Level!$E182 -> 0 | AH182: =Conc_sep!B182 -> 77.87760831 | AI182: =Conc_sep!C182 -> 74.91848514 | AJ182: =Conc_sep!$E182-AI182 -> 2.49706723 | AK182: =AH182-Conc_sep!$E182 -> 0.4620559458
A183: =Data!A183 -> 2004-06-24 | B183: =Data!B183 -> 16.5 | C183: =Temp!C183 -> 16.5 | D183: =Temp!$E183-C183 -> 0 | E183: =B183-Temp!$E183 -> 0 | F183: =Data!I183 -> 0 | G183: =Precip!C183 -> 0.15 | H183: =Precip!$E183-G183 -> 0 | I183: =F183-Precip!$E183 -> -0.15 | J183: =Data!D183 -> 88.3 | K183: =Humid!C183 -> 58.4 | L183: =Humid!$E183-K183 -> 6.137509166 | M183: =J183-Humid!$E183 -> 23.76249083 | N183: =Data!E183 -> 167.1 | O183: =WinD!C183 -> 123.6 | P183: =WinD!$E183-O183 -> 13.02848139 | Q183: =N183-WinD!$E183 -> 30.47151861 | R183: =Data!F183 -> 5.1 | S183: =Win!C183 -> 2.94 | T183: =Win!$E183-S183 -> 1.128711786 | U183: =R183-Win!$E183 -> 1.031288214 | V183: =Data!H183 -> 97.9 | W183: =Pressure!C183 -> 97.9 | X183: =Pressure!$E183-W183 -> 0 | Y183: =V183-Pressure!$E183 -> 0 | Z183: =Snow!B183 -> 0 | AA183: =Snow!C183 -> 0 | AB183: =Snow!$E183-AA183 -> 0 | AC183: =Z183-Snow!$E183 -> 0 | AD183: =Level!B183 -> 3.881 | AE183: =Level!C183 -> 3.881 | AF183: =Level!$E183-AE183 -> 0 | AG183: =AD183-Level!$E183 -> 0 | AH183: =Conc_sep!B183 -> 80.86415785 | AI183: =Conc_sep!C183 -> 76.46848514 | AJ183: =Conc_sep!$E183-AI183 -> 3.244891095 | AK183: =AH183-Conc_sep!$E183 -> 1.150781617
A184: =Data!A184 -> 2004-06-25 | B184: =Data!B184 -> 20 | C184: =Temp!C184 -> 17.69 | D184: =Temp!$E184-C184 -> 0.6363478542 | E184: =B184-Temp!$E184 -> 1.673652146 | F184: =Data!I184 -> 2.8 | G184: =Precip!C184 -> 0.29 | H184: =Precip!$E184-G184 -> 0.9181166859 | I184: =F184-Precip!$E184 -> 1.591883314 | J184: =Data!D184 -> 67.6 | K184: =Humid!C184 -> 60.7 | L184: =Humid!$E184-K184 -> 6.9 | M184: =J184-Humid!$E184 -> 0 | N184: =Data!E184 -> 252.1 | O184: =WinD!C184 -> 157.6 | P184: =WinD!$E184-O184 -> 26.05696277 | Q184: =N184-WinD!$E184 -> 68.44303723 | R184: =Data!F184 -> 5.4 | S184: =Win!C184 -> 3.41 | T184: =Win!$E184-S184 -> 1.693067678 | U184: =R184-Win!$E184 -> 0.2969323216 | V184: =Data!H184 -> 98.7 | W184: =Pressure!C184 -> 98.17 | X184: =Pressure!$E184-W184 -> 0.1034614698 | Y184: =V184-Pressure!$E184 -> 0.4265385302 | Z184: =Snow!B184 -> 0 | AA184: =Snow!C184 -> 0 | AB184: =Snow!$E184-AA184 -> 0 | AC184: =Z184-Snow!$E184 -> 0 | AD184: =Level!B184 -> 3.876 | AE184: =Level!C184 -> 3.876 | AF184: =Level!$E184-AE184 -> 0 | AG184: =AD184-Level!$E184 -> 0 | AH184: =Conc_sep!B184 -> 81.30970726 | AI184: =Conc_sep!C184 -> 78.01848514 | AJ184: =Conc_sep!$E184-AI184 -> 3.291222123 | AK184: =AH184-Conc_sep!$E184 -> 0
A185: =Data!A185 -> 2004-06-26 | B185: =Data!B185 -> 17 | C185: =Temp!C185 -> 17 | D185: =Temp!$E185-C185 -> 0 | E185: =B185-Temp!$E185 -> 0 | F185: =Data!I185 -> 0 | G185: =Precip!C185 -> 0.15 | H185: =Precip!$E185-G185 -> 0 | I185: =F185-Precip!$E185 -> -0.15 | J185: =Data!D185 -> 86.8 | K185: =Humid!C185 -> 63 | L185: =Humid!$E185-K185 -> 8.945836389 | M185: =J185-Humid!$E185 -> 14.85416361 | N185: =Data!E185 -> 168.3 | O185: =WinD!C185 -> 168.3 | P185: =WinD!$E185-O185 -> 0 | Q185: =N185-WinD!$E185 -> 0 | R185: =Data!F185 -> 3.4 | S185: =Win!C185 -> 3.4 | T185: =Win!$E185-S185 -> 0 | U185: =R185-Win!$E185 -> 0 | V185: =Data!H185 -> 98.9 | W185: =Pressure!C185 -> 98.44 | X185: =Pressure!$E185-W185 -> 0.2069229397 | Y185: =V185-Pressure!$E185 -> 0.2530770603 | Z185: =Snow!B185 -> 0 | AA185: =Snow!C185 -> 0 | AB185: =Snow!$E185-AA185 -> 0 | AC185: =Z185-Snow!$E185 -> 0 | AD185: =Level!B185 -> 3.862 | AE185: =Level!C185 -> 3.862 | AF185: =Level!$E185-AE185 -> 0 | AG185: =AD185-Level!$E185 -> 0 | AH185: =Conc_sep!B185 -> 82.54069058 | AI185: =Conc_sep!C185 -> 79.56848514 | AJ185: =Conc_sep!$E185-AI185 -> 2.972205446 | AK185: =AH185-Conc_sep!$E185 -> 0
A186: =Data!A186 -> 2004-06-27 | B186: =Data!B186 -> 20.5 | C186: =Temp!C186 -> 18.19 | D186: =Temp!$E186-C186 -> 0.6363478542 | E186: =B186-Temp!$E186 -> 1.673652146 | F186: =Data!I186 -> 0 | G186: =Precip!C186 -> 0 | H186: =Precip!$E186-G186 -> 0 | I186: =F186-Precip!$E186 -> 0 | J186: =Data!D186 -> 71.8 | K186: =Humid!C186 -> 65.3 | L186: =Humid!$E186-K186 -> 6.5 | M186: =J186-Humid!$E186 -> 0 | N186: =Data!E186 -> 205 | O186: =WinD!C186 -> 202.3 | P186: =WinD!$E186-O186 -> 2.7 | Q186: =N186-WinD!$E186 -> 0 | R186: =Data!F186 -> 2.9 | S186: =Win!C186 -> 2.9 | T186: =Win!$E186-S186 -> 0 | U186: =R186-Win!$E186 -> 0 | V186: =Data!H186 -> 98.9 | W186: =Pressure!C186 -> 98.71 | X186: =Pressure!$E186-W186 -> 0.19 | Y186: =V186-Pressure!$E186 -> 0 | Z186: =Snow!B186 -> 0 | AA186: =Snow!C186 -> 0 | AB186: =Snow!$E186-AA186 -> 0 | AC186: =Z186-Snow!$E186 -> 0 | AD186: =Level!B186 -> 3.849 | AE186: =Level!C186 -> 3.849 | AF186: =Level!$E186-AE186 -> 0 | AG186: =AD186-Level!$E186 -> 0 | AH186: =Conc_sep!B186 -> 83.73953175 | AI186: =Conc_sep!C186 -> 81.11848514 | AJ186: =Conc_sep!$E186-AI186 -> 2.621046611 | AK186: =AH186-Conc_sep!$E186 -> 0
A187: =Data!A187 -> 2004-06-28 | B187: =Data!B187 -> 18.7 | C187: =Temp!C187 -> 18.7 | D187: =Temp!$E187-C187 -> 0 | E187: =B187-Temp!$E187 -> 0 | F187: =Data!I187 -> 19.2 | G187: =Precip!C187 -> 0.14 | H187: =Precip!$E187-G187 -> 0.9181166859 | I187: =F187-Precip!$E187 -> 18.14188331 | J187: =Data!D187 -> 86.8 | K187: =Humid!C187 -> 67.6 | L187: =Humid!$E187-K187 -> 8.545836389 | M187: =J187-Humid!$E187 -> 10.65416361 | N187: =Data!E187 -> 161.3 | O187: =WinD!C187 -> 161.3 | P187: =WinD!$E187-O187 -> 0 | Q187: =N187-WinD!$E187 -> 0 | R187: =Data!F187 -> 2.9 | S187: =Win!C187 -> 2.9 | T187: =Win!$E187-S187 -> 0 | U187: =R187-Win!$E187 -> 0 | V187: =Data!H187 -> 98.3 | W187: =Pressure!C187 -> 98.3 | X187: =Pressure!$E187-W187 -> 0 | Y187: =V187-Pressure!$E187 -> 0 | Z187: =Snow!B187 -> 0 | AA187: =Snow!C187 -> 0 | AB187: =Snow!$E187-AA187 -> 0 | AC187: =Z187-Snow!$E187 -> 0 | AD187: =Level!B187 -> 3.849 | AE187: =Level!C187 -> 3.849 | AF187: =Level!$E187-AE187 -> 0 | AG187: =AD187-Level!$E187 -> 0 | AH187: =Conc_sep!B187 -> 83.67423772 | AI187: =Conc_sep!C187 -> 82.66848514 | AJ187: =Conc_sep!$E187-AI187 -> 1.005752579 | AK187: =AH187-Conc_sep!$E187 -> 0
A188: =Data!A188 -> 2004-06-29 | B188: =Data!B188 -> 18.7 | C188: =Temp!C188 -> 18.7 | D188: =Temp!$E188-C188 -> 0 | E188: =B188-Temp!$E188 -> 0 | F188: =Data!I188 -> 0.2 | G188: =Precip!C188 -> 0.2 | H188: =Precip!$E188-G188 -> 0 | I188: =F188-Precip!$E188 -> 0 | J188: =Data!D188 -> 82.5 | K188: =Humid!C188 -> 69.9 | L188: =Humid!$E188-K188 -> 10.59167278 | M188: =J188-Humid!$E188 -> 2.008327223 | N188: =Data!E188 -> 293.3 | O188: =WinD!C188 -> 195.3 | P188: =WinD!$E188-O188 -> 13.02848139 | Q188: =N188-WinD!$E188 -> 84.97151861 | R188: =Data!F188 -> 4.6 | S188: =Win!C188 -> 3.37 | T188: =Win!$E188-S188 -> 0.5643558928 | U188: =R188-Win!$E188 -> 0.6656441072 | V188: =Data!H188 -> 98.8 | W188: =Pressure!C188 -> 98.57 | X188: =Pressure!$E188-W188 -> 0.1034614698 | Y188: =V188-Pressure!$E188 -> 0.1265385302 | Z188: =Snow!B188 -> 0 | AA188: =Snow!C188 -> 0 | AB188: =Snow!$E188-AA188 -> 0 | AC188: =Z188-Snow!$E188 -> 0 | AD188: =Level!B188 -> 3.854 | AE188: =Level!C188 -> 3.854 | AF188: =Level!$E188-AE188 -> 0 | AG188: =AD188-Level!$E188 -> 0 | AH188: =Conc_sep!B188 -> 83.2877413 | AI188: =Conc_sep!C188 -> 83.2877413 | AJ188: =Conc_sep!$E188-AI188 -> 0 | AK188: =AH188-Conc_sep!$E188 -> 0
A189: =Data!A189 -> 2004-06-30 | B189: =Data!B189 -> 21.2 | C189: =Temp!C189 -> 19.89 | D189: =Temp!$E189-C189 -> 0.6363478542 | E189: =B189-Temp!$E189 -> 0.6736521458 | F189: =Data!I189 -> 0 | G189: =Precip!C189 -> 0 | H189: =Precip!$E189-G189 -> 0 | I189: =F189-Precip!$E189 -> 0 | J189: =Data!D189 -> 69.3 | K189: =Humid!C189 -> 69.3 | L189: =Humid!$E189-K189 -> 0 | M189: =J189-Humid!$E189 -> 0 | N189: =Data!E189 -> 172.5 | O189: =WinD!C189 -> 172.5 | P189: =WinD!$E189-O189 -> 0 | Q189: =N189-WinD!$E189 -> 0 | R189: =Data!F189 -> 3.5 | S189: =Win!C189 -> 3.5 | T189: =Win!$E189-S189 -> 0 | U189: =R189-Win!$E189 -> 0 | V189: =Data!H189 -> 99.3 | W189: =Pressure!C189 -> 98.84 | X189: =Pressure!$E189-W189 -> 0.2069229397 | Y189: =V189-Pressure!$E189 -> 0.2530770603 | Z189: =Snow!B189 -> 0 | AA189: =Snow!C189 -> 0 | AB189: =Snow!$E189-AA189 -> 0 | AC189: =Z189-Snow!$E189 -> 0 | AD189: =Level!B189 -> 3.842 | AE189: =Level!C189 -> 3.842 | AF189: =Level!$E189-AE189 -> 0 | AG189: =AD189-Level!$E189 -> 0 | AH189: =Conc_sep!B189 -> 84.40683177 | AI189: =Conc_sep!C189 -> 84.40683177 | AJ189: =Conc_sep!$E189-AI189 -> 0 | AK189: =AH189-Conc_sep!$E189 -> 0
A190: =Data!A190 -> 2004-07-01 | B190: =Data!B190 -> 20.4 | C190: =Temp!C190 -> 20.4 | D190: =Temp!$E190-C190 -> 0 | E190: =B190-Temp!$E190 -> 0 | F190: =Data!I190 -> 0 | G190: =Precip!C190 -> 0 | H190: =Precip!$E190-G190 -> 0 | I190: =F190-Precip!$E190 -> 0 | J190: =Data!D190 -> 69.7 | K190: =Humid!C190 -> 69.7 | L190: =Humid!$E190-K190 -> 0 | M190: =J190-Humid!$E190 -> 0 | N190: =Data!E190 -> 265 | O190: =WinD!C190 -> 206.5 | P190: =WinD!$E190-O190 -> 13.02848139 | Q190: =N190-WinD!$E190 -> 45.47151861 | R190: =Data!F190 -> 5 | S190: =Win!C190 -> 3.97 | T190: =Win!$E190-S190 -> 0.5643558928 | U190: =R190-Win!$E190 -> 0.4656441072 | V190: =Data!H190 -> 99.3 | W190: =Pressure!C190 -> 99.11 | X190: =Pressure!$E190-W190 -> 0.19 | Y190: =V190-Pressure!$E190 -> 0 | Z190: =Snow!B190 -> 0 | AA190: =Snow!C190 -> 0 | AB190: =Snow!$E190-AA190 -> 0 | AC190: =Z190-Snow!$E190 -> 0 | AD190: =Level!B190 -> 3.827 | AE190: =Level!C190 -> 3.827 | AF190: =Level!$E190-AE190 -> 0 | AG190: =AD190-Level!$E190 -> 0 | AH190: =Conc_sep!B190 -> 86.04934096 | AI190: =Conc_sep!C190 -> 85.95683177 | AJ190: =Conc_sep!$E190-AI190 -> 0.0925091962 | AK190: =AH190-Conc_sep!$E190 -> 0
A191: =Data!A191 -> 2004-07-02 | B191: =Data!B191 -> 17.7 | C191: =Temp!C191 -> 17.7 | D191: =Temp!$E191-C191 -> 0 | E191: =B191-Temp!$E191 -> 0 | F191: =Data!I191 -> 0 | G191: =Precip!C191 -> 0 | H191: =Precip!$E191-G191 -> 0 | I191: =F191-Precip!$E191 -> 0 | J191: =Data!D191 -> 57.9 | K191: =Humid!C191 -> 57.9 | L191: =Humid!$E191-K191 -> 0 | M191: =J191-Humid!$E191 -> 0 | N191: =Data!E191 -> 175 | O191: =WinD!C191 -> 175 | P191: =WinD!$E191-O191 -> 0 | Q191: =N191-WinD!$E191 -> 0 | R191: =Data!F191 -> 3.5 | S191: =Win!C191 -> 3.5 | T191: =Win!$E191-S191 -> 0 | U191: =R191-Win!$E191 -> 0 | V191: =Data!H191 -> 100.2 | W191: =Pressure!C191 -> 99.38 | X191: =Pressure!$E191-W191 -> 0.2934614698 | Y191: =V191-Pressure!$E191 -> 0.5265385302 | Z191: =Snow!B191 -> 0 | AA191: =Snow!C191 -> 0 | AB191: =Snow!$E191-AA191 -> 0 | AC191: =Z191-Snow!$E191 -> 0 | AD191: =Level!B191 -> 3.816 | AE191: =Level!C191 -> 3.816 | AF191: =Level!$E191-AE191 -> 0 | AG191: =AD191-Level!$E191 -> 0 | AH191: =Conc_sep!B191 -> 87.29225244 | AI191: =Conc_sep!C191 -> 87.29225244 | AJ191: =Conc_sep!$E191-AI191 -> 0 | AK191: =AH191-Conc_sep!$E191 -> 0
A192: =Data!A192 -> 2004-07-03 | B192: =Data!B192 -> 19.5 | C192: =Temp!C192 -> 18.89 | D192: =Temp!$E192-C192 -> 0.61 | E192: =B192-Temp!$E192 -> 0 | F192: =Data!I192 -> 0 | G192: =Precip!C192 -> 0 | H192: =Precip!$E192-G192 -> 0 | I192: =F192-Precip!$E192 -> 0 | J192: =Data!D192 -> 58.1 | K192: =Humid!C192 -> 58.1 | L192: =Humid!$E192-K192 -> 0 | M192: =J192-Humid!$E192 -> 0 | N192: =Data!E192 -> 157.9 | O192: =WinD!C192 -> 157.9 | P192: =WinD!$E192-O192 -> 0 | Q192: =N192-WinD!$E192 -> 0 | R192: =Data!F192 -> 3.6 | S192: =Win!C192 -> 3.6 | T192: =Win!$E192-S192 -> 0 | U192: =R192-Win!$E192 -> 0 | V192: =Data!H192 -> 100.1 | W192: =Pressure!C192 -> 99.65 | X192: =Pressure!$E192-W192 -> 0.3969229397 | Y192: =V192-Pressure!$E192 -> 0.05307706033 | Z192: =Snow!B192 -> 0 | AA192: =Snow!C192 -> 0 | AB192: =Snow!$E192-AA192 -> 0 | AC192: =Z192-Snow!$E192 -> 0 | AD192: =Level!B192 -> 3.811 | AE192: =Level!C192 -> 3.811 | AF192: =Level!$E192-AE192 -> 0 | AG192: =AD192-Level!$E192 -> 0 | AH192: =Conc_sep!B192 -> 87.86522813 | AI192: =Conc_sep!C192 -> 87.86522813 | AJ192: =Conc_sep!$E192-AI192 -> 0 | AK192: =AH192-Conc_sep!$E192 -> 0
A193: =Data!A193 -> 2004-07-04 | B193: =Data!B193 -> 24.2 | C193: =Temp!C193 -> 20.08 | D193: =Temp!$E193-C193 -> 1.246347854 | E193: =B193-Temp!$E193 -> 2.873652146 | F193: =Data!I193 -> 1.8 | G193: =Precip!C193 -> 0.14 | H193: =Precip!$E193-G193 -> 0.9181166859 | I193: =F193-Precip!$E193 -> 0.7418833141 | J193: =Data!D193 -> 72.2 | K193: =Humid!C193 -> 60.4 | L193: =Humid!$E193-K193 -> 2.045836389 | M193: =J193-Humid!$E193 -> 9.754163611 | N193: =Data!E193 -> 195 | O193: =WinD!C193 -> 191.9 | P193: =WinD!$E193-O193 -> 3.1 | Q193: =N193-WinD!$E193 -> 0 | R193: =Data!F193 -> 3.2 | S193: =Win!C193 -> 3.2 | T193: =Win!$E193-S193 -> 0 | U193: =R193-Win!$E193 -> 0 | V193: =Data!H193 -> 99.4 | W193: =Pressure!C193 -> 99.4 | X193: =Pressure!$E193-W193 -> 0 | Y193: =V193-Pressure!$E193 -> 0 | Z193: =Snow!B193 -> 0 | AA193: =Snow!C193 -> 0 | AB193: =Snow!$E193-AA193 -> 0 | AC193: =Z193-Snow!$E193 -> 0 | AD193: =Level!B193 -> 3.82 | AE193: =Level!C193 -> 3.82 | AF193: =Level!$E193-AE193 -> 0 | AG193: =AD193-Level!$E193 -> 0 | AH193: =Conc_sep!B193 -> 85.8888838 | AI193: =Conc_sep!C193 -> 85.8888838 | AJ193: =Conc_sep!$E193-AI193 -> 0 | AK193: =AH193-Conc_sep!$E193 -> 0
A194: =Data!A194 -> 2004-07-05 | B194: =Data!B194 -> 25.9 | C194: =Temp!C194 -> 21.27 | D194: =Temp!$E194-C194 -> 1.882695708 | E194: =B194-Temp!$E194 -> 2.747304292 | F194: =Data!I194 -> 8.2 | G194: =Precip!C194 -> 0.28 | H194: =Precip!$E194-G194 -> 1.836233372 | I194: =F194-Precip!$E194 -> 6.083766628 | J194: =Data!D194 -> 78.7 | K194: =Humid!C194 -> 62.7 | L194: =Humid!$E194-K194 -> 4.091672777 | M194: =J194-Humid!$E194 -> 11.90832722 | N194: =Data!E194 -> 262.9 | O194: =WinD!C194 -> 225.9 | P194: =WinD!$E194-O194 -> 16.12848139 | Q194: =N194-WinD!$E194 -> 20.87151861 | R194: =Data!F194 -> 3.3 | S194: =Win!C194 -> 3.3 | T194: =Win!$E194-S194 -> 0 | U194: =R194-Win!$E194 -> 0 | V194: =Data!H194 -> 99.3 | W194: =Pressure!C194 -> 99.3 | X194: =Pressure!$E194-W194 -> 0 | Y194: =V194-Pressure!$E194 -> 0 | Z194: =Snow!B194 -> 0 | AA194: =Snow!C194 -> 0 | AB194: =Snow!$E194-AA194 -> 0 | AC194: =Z194-Snow!$E194 -> 0 | AD194: =Level!B194 -> 3.899 | AE194: =Level!C194 -> 3.83 | AF194: =Level!$E194-AE194 -> 0.02525920632 | AG194: =AD194-Level!$E194 -> 0.04374079368 | AH194: =Conc_sep!B194 -> 81.96301332 | AI194: =Conc_sep!C194 -> 81.96301332 | AJ194: =Conc_sep!$E194-AI194 -> 0 | AK194: =AH194-Conc_sep!$E194 -> 0
A195: =Data!A195 -> 2004-07-06 | B195: =Data!B195 -> 24.6 | C195: =Temp!C195 -> 22.46 | D195: =Temp!$E195-C195 -> 2.14 | E195: =B195-Temp!$E195 -> 0 | F195: =Data!I195 -> 5.6 | G195: =Precip!C195 -> 0.42 | H195: =Precip!$E195-G195 -> 2.754350058 | I195: =F195-Precip!$E195 -> 2.425649942 | J195: =Data!D195 -> 78.9 | K195: =Humid!C195 -> 65 | L195: =Humid!$E195-K195 -> 6.137509166 | M195: =J195-Humid!$E195 -> 7.762490834 | N195: =Data!E195 -> 168.8 | O195: =WinD!C195 -> 168.8 | P195: =WinD!$E195-O195 -> 0 | Q195: =N195-WinD!$E195 -> 0 | R195: =Data!F195 -> 2.4 | S195: =Win!C195 -> 2.4 | T195: =Win!$E195-S195 -> 0 | U195: =R195-Win!$E195 -> 0 | V195: =Data!H195 -> 99.4 | W195: =Pressure!C195 -> 99.4 | X195: =Pressure!$E195-W195 -> 0 | Y195: =V195-Pressure!$E195 -> 0 | Z195: =Snow!B195 -> 0 | AA195: =Snow!C195 -> 0 | AB195: =Snow!$E195-AA195 -> 0 | AC195: =Z195-Snow!$E195 -> 0 | AD195: =Level!B195 -> 3.867 | AE195: =Level!C195 -> 3.84 | AF195: =Level!$E195-AE195 -> 0.027 | AG195: =AD195-Level!$E195 -> 0 | AH195: =Conc_sep!B195 -> 72.98859608 | AI195: =Conc_sep!C195 -> 72.98859608 | AJ195: =Conc_sep!$E195-AI195 -> 0 | AK195: =AH195-Conc_sep!$E195 -> 0
A196: =Data!A196 -> 2004-07-07 | B196: =Data!B196 -> 25.4 | C196: =Temp!C196 -> 23.65 | D196: =Temp!$E196-C196 -> 1.75 | E196: =B196-Temp!$E196 -> 0 | F196: =Data!I196 -> 2.2 | G196: =Precip!C196 -> 0.56 | H196: =Precip!$E196-G196 -> 1.64 | I196: =F196-Precip!$E196 -> 0 | J196: =Data!D196 -> 77.9 | K196: =Humid!C196 -> 67.3 | L196: =Humid!$E196-K196 -> 8.183345554 | M196: =J196-Humid!$E196 -> 2.416654446 | N196: =Data!E196 -> 135.4 | O196: =WinD!C196 -> 135.4 | P196: =WinD!$E196-O196 -> 0 | Q196: =N196-WinD!$E196 -> 0 | R196: =Data!F196 -> 3.1 | S196: =Win!C196 -> 2.87 | T196: =Win!$E196-S196 -> 0.23 | U196: =R196-Win!$E196 -> 0 | V196: =Data!H196 -> 99.4 | W196: =Pressure!C196 -> 99.4 | X196: =Pressure!$E196-W196 -> 0 | Y196: =V196-Pressure!$E196 -> 0 | Z196: =Snow!B196 -> 0 | AA196: =Snow!C196 -> 0 | AB196: =Snow!$E196-AA196 -> 0 | AC196: =Z196-Snow!$E196 -> 0 | AD196: =Level!B196 -> 3.87 | AE196: =Level!C196 -> 3.85 | AF196: =Level!$E196-AE196 -> 0.02 | AG196: =AD196-Level!$E196 -> 0 | AH196: =Conc_sep!B196 -> 73.28701054 | AI196: =Conc_sep!C196 -> 73.28701054 | AJ196: =Conc_sep!$E196-AI196 -> 0 | AK196: =AH196-Conc_sep!$E196 -> 0
A197: =Data!A197 -> 2004-07-08 | B197: =Data!B197 -> 23.9 | C197: =Temp!C197 -> 23.9 | D197: =Temp!$E197-C197 -> 0 | E197: =B197-Temp!$E197 -> 0 | F197: =Data!I197 -> 1 | G197: =Precip!C197 -> 0.7 | H197: =Precip!$E197-G197 -> 0.3 | I197: =F197-Precip!$E197 -> 0 | J197: =Data!D197 -> 73.4 | K197: =Humid!C197 -> 69.6 | L197: =Humid!$E197-K197 -> 3.8 | M197: =J197-Humid!$E197 -> 0 | N197: =Data!E197 -> 238.3 | O197: =WinD!C197 -> 169.4 | P197: =WinD!$E197-O197 -> 13.02848139 | Q197: =N197-WinD!$E197 -> 55.87151861 | R197: =Data!F197 -> 6.3 | S197: =Win!C197 -> 3.34 | T197: =Win!$E197-S197 -> 0.7943558928 | U197: =R197-Win!$E197 -> 2.165644107 | V197: =Data!H197 -> 99.2 | W197: =Pressure!C197 -> 99.2 | X197: =Pressure!$E197-W197 -> 0 | Y197: =V197-Pressure!$E197 -> 0 | Z197: =Snow!B197 -> 0 | AA197: =Snow!C197 -> 0 | AB197: =Snow!$E197-AA197 -> 0 | AC197: =Z197-Snow!$E197 -> 0 | AD197: =Level!B197 -> 3.993 | AE197: =Level!C197 -> 3.86 | AF197: =Level!$E197-AE197 -> 0.04525920632 | AG197: =AD197-Level!$E197 -> 0.08774079368 | AH197: =Conc_sep!B197 -> 73.78471827 | AI197: =Conc_sep!C197 -> 73.78471827 | AJ197: =Conc_sep!$E197-AI197 -> 0 | AK197: =AH197-Conc_sep!$E197 -> 0
A198: =Data!A198 -> 2004-07-09 | B198: =Data!B198 -> 18.7 | C198: =Temp!C198 -> 18.7 | D198: =Temp!$E198-C198 -> 0 | E198: =B198-Temp!$E198 -> 0 | F198: =Data!I198 -> 0 | G198: =Precip!C198 -> 0.15 | H198: =Precip!$E198-G198 -> 0 | I198: =F198-Precip!$E198 -> -0.15 | J198: =Data!D198 -> 70 | K198: =Humid!C198 -> 70 | L198: =Humid!$E198-K198 -> 0 | M198: =J198-Humid!$E198 -> 0 | N198: =Data!E198 -> 306.3 | O198: =WinD!C198 -> 203.4 | P198: =WinD!$E198-O198 -> 26.05696277 | Q198: =N198-WinD!$E198 -> 76.84303723 | R198: =Data!F198 -> 5.2 | S198: =Win!C198 -> 3.81 | T198: =Win!$E198-S198 -> 1.358711786 | U198: =R198-Win!$E198 -> 0.03128821439 | V198: =Data!H198 -> 99.6 | W198: =Pressure!C198 -> 99.47 | X198: =Pressure!$E198-W198 -> 0.1034614698 | Y198: =V198-Pressure!$E198 -> 0.02653853017 | Z198: =Snow!B198 -> 0 | AA198: =Snow!C198 -> 0 | AB198: =Snow!$E198-AA198 -> 0 | AC198: =Z198-Snow!$E198 -> 0 | AD198: =Level!B198 -> 3.955 | AE198: =Level!C198 -> 3.87 | AF198: =Level!$E198-AE198 -> 0.07051841263 | AG198: =AD198-Level!$E198 -> 0.01448158737 | AH198: =Conc_sep!B198 -> 68.20393178 | AI198: =Conc_sep!C198 -> 68.20393178 | AJ198: =Conc_sep!$E198-AI198 -> 0 | AK198: =AH198-Conc_sep!$E198 -> 0
A199: =Data!A199 -> 2004-07-10 | B199: =Data!B199 -> 19.1 | C199: =Temp!C199 -> 19.1 | D199: =Temp!$E199-C199 -> 0 | E199: =B199-Temp!$E199 -> 0 | F199: =Data!I199 -> 0 | G199: =Precip!C199 -> 0 | H199: =Precip!$E199-G199 -> 0 | I199: =F199-Precip!$E199 -> 0 | J199: =Data!D199 -> 56.8 | K199: =Humid!C199 -> 56.8 | L199: =Humid!$E199-K199 -> 0 | M199: =J199-Humid!$E199 -> 0 | N199: =Data!E199 -> 279.6 | O199: =WinD!C199 -> 237.4 | P199: =WinD!$E199-O199 -> 39.08544416 | Q199: =N199-WinD!$E199 -> 3.114555841 | R199: =Data!F199 -> 2.9 | S199: =Win!C199 -> 2.9 | T199: =Win!$E199-S199 -> 0 | U199: =R199-Win!$E199 -> 0 | V199: =Data!H199 -> 99.9 | W199: =Pressure!C199 -> 99.74 | X199: =Pressure!$E199-W199 -> 0.16 | Y199: =V199-Pressure!$E199 -> 0 | Z199: =Snow!B199 -> 0 | AA199: =Snow!C199 -> 0 | AB199: =Snow!$E199-AA199 -> 0 | AC199: =Z199-Snow!$E199 -> 0 | AD199: =Level!B199 -> 3.899 | AE199: =Level!C199 -> 3.88 | AF199: =Level!$E199-AE199 -> 0.019 | AG199: =AD199-Level!$E199 -> 0 | AH199: =Conc_sep!B199 -> 70.11932553 | AI199: =Conc_sep!C199 -> 69.75393178 | AJ199: =Conc_sep!$E199-AI199 -> 0.3653937404 | AK199: =AH199-Conc_sep!$E199 -> 0
A200: =Data!A200 -> 2004-07-11 | B200: =Data!B200 -> 23.6 | C200: =Temp!C200 -> 20.29 | D200: =Temp!$E200-C200 -> 0.6363478542 | E200: =B200-Temp!$E200 -> 2.673652146 | F200: =Data!I200 -> 0 | G200: =Precip!C200 -> 0 | H200: =Precip!$E200-G200 -> 0 | I200: =F200-Precip!$E200 -> 0 | J200: =Data!D200 -> 65.9 | K200: =Humid!C200 -> 59.1 | L200: =Humid!$E200-K200 -> 2.045836389 | M200: =J200-Humid!$E200 -> 4.754163611 | N200: =Data!E200 -> 242.1 | O200: =WinD!C200 -> 242.1 | P200: =WinD!$E200-O200 -> 0 | Q200: =N200-WinD!$E200 -> 0 | R200: =Data!F200 -> 5.8 | S200: =Win!C200 -> 3.37 | T200: =Win!$E200-S200 -> 0.5643558928 | U200: =R200-Win!$E200 -> 1.865644107 | V200: =Data!H200 -> 99.3 | W200: =Pressure!C200 -> 99.3 | X200: =Pressure!$E200-W200 -> 0 | Y200: =V200-Pressure!$E200 -> 0 | Z200: =Snow!B200 -> 0 | AA200: =Snow!C200 -> 0 | AB200: =Snow!$E200-AA200 -> 0 | AC200: =Z200-Snow!$E200 -> 0 | AD200: =Level!B200 -> 3.869 | AE200: =Level!C200 -> 3.869 | AF200: =Level!$E200-AE200 -> 0 | AG200: =AD200-Level!$E200 -> 0 | AH200: =Conc_sep!B200 -> 79.51635329 | AI200: =Conc_sep!C200 -> 71.30393178 | AJ200: =Conc_sep!$E200-AI200 -> 1.113217606 | AK200: =AH200-Conc_sep!$E200 -> 7.099203904
A201: =Data!A201 -> 2004-07-12 | B201: =Data!B201 -> 21.5 | C201: =Temp!C201 -> 21.48 | D201: =Temp!$E201-C201 -> 0.02 | E201: =B201-Temp!$E201 -> 0 | F201: =Data!I201 -> 0 | G201: =Precip!C201 -> 0 | H201: =Precip!$E201-G201 -> 0 | I201: =F201-Precip!$E201 -> 0 | J201: =Data!D201 -> 62.9 | K201: =Humid!C201 -> 61.4 | L201: =Humid!$E201-K201 -> 1.5 | M201: =J201-Humid!$E201 -> 0 | N201: =Data!E201 -> 301.3 | O201: =WinD!C201 -> 276.1 | P201: =WinD!$E201-O201 -> 13.02848139 | Q201: =N201-WinD!$E201 -> 12.17151861 | R201: =Data!F201 -> 4.9 | S201: =Win!C201 -> 3.84 | T201: =Win!$E201-S201 -> 1.06 | U201: =R201-Win!$E201 -> 0 | V201: =Data!H201 -> 99.6 | W201: =Pressure!C201 -> 99.57 | X201: =Pressure!$E201-W201 -> 0.03 | Y201: =V201-Pressure!$E201 -> 0 | Z201: =Snow!B201 -> 0 | AA201: =Snow!C201 -> 0 | AB201: =Snow!$E201-AA201 -> 0 | AC201: =Z201-Snow!$E201 -> 0 | AD201: =Level!B201 -> 3.85 | AE201: =Level!C201 -> 3.85 | AF201: =Level!$E201-AE201 -> 0 | AG201: =AD201-Level!$E201 -> 0 | AH201: =Conc_sep!B201 -> 83.60919745 | AI201: =Conc_sep!C201 -> 72.85393178 | AJ201: =Conc_sep!$E201-AI201 -> 1.861041471 | AK201: =AH201-Conc_sep!$E201 -> 8.894224196
A202: =Data!A202 -> 2004-07-13 | B202: =Data!B202 -> 18.4 | C202: =Temp!C202 -> 18.4 | D202: =Temp!$E202-C202 -> 0 | E202: =B202-Temp!$E202 -> 0 | F202: =Data!I202 -> 0 | G202: =Precip!C202 -> 0 | H202: =Precip!$E202-G202 -> 0 | I202: =F202-Precip!$E202 -> 0 | J202: =Data!D202 -> 67.6 | K202: =Humid!C202 -> 63.7 | L202: =Humid!$E202-K202 -> 3.545836389 | M202: =J202-Humid!$E202 -> 0.3541636114 | N202: =Data!E202 -> 133.3 | O202: =WinD!C202 -> 133.3 | P202: =WinD!$E202-O202 -> 0 | Q202: =N202-WinD!$E202 -> 0 | R202: =Data!F202 -> 4.5 | S202: =Win!C202 -> 4.31 | T202: =Win!$E202-S202 -> 0.19 | U202: =R202-Win!$E202 -> 0 | V202: =Data!H202 -> 99.8 | W202: =Pressure!C202 -> 99.8 | X202: =Pressure!$E202-W202 -> 0 | Y202: =V202-Pressure!$E202 -> 0 | Z202: =Snow!B202 -> 0 | AA202: =Snow!C202 -> 0 | AB202: =Snow!$E202-AA202 -> 0 | AC202: =Z202-Snow!$E202 -> 0 | AD202: =Level!B202 -> 3.841 | AE202: =Level!C202 -> 3.841 | AF202: =Level!$E202-AE202 -> 0 | AG202: =AD202-Level!$E202 -> 0 | AH202: =Conc_sep!B202 -> 84.54352344 | AI202: =Conc_sep!C202 -> 74.40393178 | AJ202: =Conc_sep!$E202-AI202 -> 2.608865336 | AK202: =AH202-Conc_sep!$E202 -> 7.530726319
A203: =Data!A203 -> 2004-07-14 | B203: =Data!B203 -> 20.7 | C203: =Temp!C203 -> 19.59 | D203: =Temp!$E203-C203 -> 0.6363478542 | E203: =B203-Temp!$E203 -> 0.4736521458 | F203: =Data!I203 -> 0 | G203: =Precip!C203 -> 0.14 | H203: =Precip!$E203-G203 -> 0.01 | I203: =F203-Precip!$E203 -> -0.15 | J203: =Data!D203 -> 77 | K203: =Humid!C203 -> 66 | L203: =Humid!$E203-K203 -> 5.591672777 | M203: =J203-Humid!$E203 -> 5.408327223 | N203: =Data!E203 -> 185.4 | O203: =WinD!C203 -> 167.3 | P203: =WinD!$E203-O203 -> 13.02848139 | Q203: =N203-WinD!$E203 -> 5.071518614 | R203: =Data!F203 -> 3.7 | S203: =Win!C203 -> 3.7 | T203: =Win!$E203-S203 -> 0 | U203: =R203-Win!$E203 -> 0 | V203: =Data!H203 -> 99.4 | W203: =Pressure!C203 -> 99.4 | X203: =Pressure!$E203-W203 -> 0 | Y203: =V203-Pressure!$E203 -> 0 | Z203: =Snow!B203 -> 0 | AA203: =Snow!C203 -> 0 | AB203: =Snow!$E203-AA203 -> 0 | AC203: =Z203-Snow!$E203 -> 0 | AD203: =Level!B203 -> 3.912 | AE203: =Level!C203 -> 3.851 | AF203: =Level!$E203-AE203 -> 0.02525920632 | AG203: =AD203-Level!$E203 -> 0.03574079368 | AH203: =Conc_sep!B203 -> 81.12477018 | AI203: =Conc_sep!C203 -> 75.95393178 | AJ203: =Conc_sep!$E203-AI203 -> 3.356689201 | AK203: =AH203-Conc_sep!$E203 -> 1.814149198
A204: =Data!A204 -> 2004-07-15 | B204: =Data!B204 -> 21.6 | C204: =Temp!C204 -> 20.78 | D204: =Temp!$E204-C204 -> 0.82 | E204: =B204-Temp!$E204 -> 0 | F204: =Data!I204 -> 0 | G204: =Precip!C204 -> 0 | H204: =Precip!$E204-G204 -> 0 | I204: =F204-Precip!$E204 -> 0 | J204: =Data!D204 -> 63.5 | K204: =Humid!C204 -> 63.5 | L204: =Humid!$E204-K204 -> 0 | M204: =J204-Humid!$E204 -> 0 | N204: =Data!E204 -> 237.5 | O204: =WinD!C204 -> 201.3 | P204: =WinD!$E204-O204 -> 26.05696277 | Q204: =N204-WinD!$E204 -> 10.14303723 | R204: =Data!F204 -> 2.9 | S204: =Win!C204 -> 2.9 | T204: =Win!$E204-S204 -> 0 | U204: =R204-Win!$E204 -> 0 | V204: =Data!H204 -> 99.9 | W204: =Pressure!C204 -> 99.67 | X204: =Pressure!$E204-W204 -> 0.1034614698 | Y204: =V204-Pressure!$E204 -> 0.1265385302 | Z204: =Snow!B204 -> 0 | AA204: =Snow!C204 -> 0 | AB204: =Snow!$E204-AA204 -> 0 | AC204: =Z204-Snow!$E204 -> 0 | AD204: =Level!B204 -> 3.924 | AE204: =Level!C204 -> 3.861 | AF204: =Level!$E204-AE204 -> 0.05051841263 | AG204: =AD204-Level!$E204 -> 0.01248158737 | AH204: =Conc_sep!B204 -> 74.12657466 | AI204: =Conc_sep!C204 -> 74.12657466 | AJ204: =Conc_sep!$E204-AI204 -> 0 | AK204: =AH204-Conc_sep!$E204 -> 0
A205: =Data!A205 -> 2004-07-16 | B205: =Data!B205 -> 21.1 | C205: =Temp!C205 -> 21.1 | D205: =Temp!$E205-C205 -> 0 | E205: =B205-Temp!$E205 -> 0 | F205: =Data!I205 -> 0 | G205: =Precip!C205 -> 0 | H205: =Precip!$E205-G205 -> 0 | I205: =F205-Precip!$E205 -> 0 | J205: =Data!D205 -> 65.3 | K205: =Humid!C205 -> 65.3 | L205: =Humid!$E205-K205 -> 0 | M205: =J205-Humid!$E205 -> 0 | N205: =Data!E205 -> 194.2 | O205: =WinD!C205 -> 194.2 | P205: =WinD!$E205-O205 -> 0 | Q205: =N205-WinD!$E205 -> 0 | R205: =Data!F205 -> 2.9 | S205: =Win!C205 -> 2.9 | T205: =Win!$E205-S205 -> 0 | U205: =R205-Win!$E205 -> 0 | V205: =Data!H205 -> 99.9 | W205: =Pressure!C205 -> 99.9 | X205: =Pressure!$E205-W205 -> 0 | Y205: =V205-Pressure!$E205 -> 0 | Z205: =Snow!B205 -> 0 | AA205: =Snow!C205 -> 0 | AB205: =Snow!$E205-AA205 -> 0 | AC205: =Z205-Snow!$E205 -> 0 | AD205: =Level!B205 -> 3.889 | AE205: =Level!C205 -> 3.871 | AF205: =Level!$E205-AE205 -> 0.018 | AG205: =AD205-Level!$E205 -> 0 | AH205: =Conc_sep!B205 -> 73.65952035 | AI205: =Conc_sep!C205 -> 73.65952035 | AJ205: =Conc_sep!$E205-AI205 -> 0 | AK205: =AH205-Conc_sep!$E205 -> 0
... 609 more rows

Sheet Data
A1: Credit R. at Norval | I1: Traces
I2: =Precip!E1 -> 0.15
M3: hb018
M4: 402
M5: Credit R. | O5: Credit R.
J6: Traces | M6: Flow, m3/s | O6: Level, m
A7: Date | B7: Temperature, °C | D7: Rel Hum (%) | E7: Wind Dir (10's deg) | F7: Wind Spd (km/h) | G7: Visibility (km) | H7: Stn Press (kPa) | I7: Precipitation, mm | L7: Snow
A8: 2004-01-01 | B8: 0.6 | C8: -1.4 | D8: 87 | E8: 209.6 | F8: 5.6 | G8: 17.8 | H8: 99.1 | I8: 1 | K8: =IF(J8=1,$I$2,I8) -> 1 | L8: 0 | M8: 5.8 | O8: 4.017
A9: 2004-01-02 | B9: -8.7 | C9: -12.4 | D9: 74.4 | E9: 325.8 | F9: 5 | G9: 28.4 | H9: 99.9 | I9: 0 | J9: 1 | K9: =IF(J9=1,$I$2,I9) -> 0.15 | L9: 0 | M9: 5.17 | O9: 3.978
A10: 2004-01-03 | B10: -12.6 | C10: -15.8 | D10: 77.3 | E10: 132.9 | F10: 4.9 | G10: 10.4 | H10: 100.1 | I10: 1.4 | K10: 1.4 | L10: 0 | M10: 6.46 | O10: 4.057
A11: 2004-01-04 | B11: -9.8 | C11: -13.6 | D11: 74.4 | E11: 298.3 | F11: 7.2 | G11: 24.9 | H11: 98.7 | I11: 0 | J11: 1 | K11: 0.15 | L11: 2 | M11: 7.22 | O11: 4.102
A12: 2004-01-05 | B12: -11.9 | C12: -16.2 | D12: 70.8 | E12: 279.2 | F12: 6.4 | G12: 27 | H12: 99.4 | I12: 0.2 | K12: 0.2 | L12: 2 | M12: 5.89 | O12: 4.023
A13: 2004-01-06 | B13: -16 | C13: -18.5 | D13: 80.9 | E13: 104.6 | F13: 6.2 | G13: 9.9 | H13: 100 | I13: 3 | K13: 3 | L13: 2 | M13: 4.82 | O13: 3.956
A14: 2004-01-07 | B14: -15.4 | C14: -18.4 | D14: 78.2 | E14: 31.7 | F14: 6.3 | G14: 15.9 | H14: 99.7 | I14: 1.8 | K14: 1.8 | L14: 5 | M14: 4.11 | O14: 3.911
A15: 2004-01-08 | B15: -13.2 | C15: -15.3 | D15: 84.3 | E15: 298.3 | F15: 4.5 | G15: 10.7 | H15: 99.3 | I15: 1.6 | K15: 1.6 | L15: 8 | M15: 3.62 | N15: B | O15: 3.939
A16: 2004-01-09 | B16: -17.8 | C16: -22.3 | D16: 68.1 | E16: 223.8 | F16: 2.1 | G16: 31.3 | H16: 100.8 | I16: 0 | K16: 0 | L16: 10 | M16: 3.25 | N16: B | O16: 3.915
A17: 2004-01-10 | B17: -14.9 | C17: -18.8 | D17: 71.9 | E17: 198.8 | F17: 3 | G17: 20.8 | H17: 101.7 | I17: 0.2 | K17: 0.2 | L17: 9 | M17: 3 | N17: B | O17: 3.974
A18: 2004-01-11 | B18: -2.9 | C18: -5.7 | D18: 80.8 | E18: 237.5 | F18: 4.5 | G18: 14.9 | H18: 100.4 | I18: 1.4 | K18: 1.4 | L18: 9 | M18: 2.9 | N18: B | O18: 4.042
A19: 2004-01-12 | B19: -7.8 | C19: -9.8 | D19: 85.3 | E19: 199.6 | F19: 2.6 | G19: 17.3 | H19: 99.9 | I19: 0 | J19: 1 | K19: 0.15 | L19: 8 | M19: 2.92 | N19: B | O19: 4.043
A20: 2004-01-13 | B20: -3.6 | C20: -6.6 | D20: 80 | E20: 286.3 | F20: 4 | G20: 13.5 | H20: 98.9 | I20: 0.2 | K20: 0.2 | L20: 6 | M20: 2.95 | N20: B | O20: 4.008
A21: 2004-01-14 | B21: -13.2 | C21: -17.6 | D21: 69.9 | E21: 336.7 | F21: 6.1 | G21: 21.9 | H21: 98.6 | I21: 0.2 | K21: 0.2 | L21: 6 | M21: 2.9 | N21: B | O21: 4.045
A22: 2004-01-15 | B22: -23.8 | C22: -29.5 | D22: 59.7 | E22: 307.1 | F22: 5.9 | G22: 30 | H22: 99.6 | I22: 0 | K22: 0 | L22: 6 | M22: 2.87 | N22: B | O22: 4.136
A23: 2004-01-16 | B23: -21.3 | C23: -26.1 | D23: 65.6 | E23: 179.6 | F23: 2.7 | G23: 19.6 | H23: 101 | I23: 7.4 | K23: 7.4 | L23: 6 | M23: 2.83 | N23: B | O23: 4.208
A24: 2004-01-17 | B24: -9.7 | C24: -12.6 | D24: 79.6 | E24: 212.5 | F24: 5.6 | G24: 11.6 | H24: 99.1 | I24: 7.6 | K24: 7.6 | L24: 21 | M24: 2.8 | N24: B | O24: 4.234
A25: 2004-01-18 | B25: -18.6 | C25: -23 | D25: 68.6 | E25: 250.4 | F25: 8.9 | G25: 22.3 | H25: 99.4 | I25: 0 | J25: 1 | K25: 0.15 | L25: 22 | M25: 2.77 | N25: B | O25: 4.207
A26: 2004-01-19 | B26: -21.6 | C26: -26.5 | D26: 64.9 | E26: 241.3 | F26: 8.3 | G26: 23.3 | H26: 100.8 | I26: 0 | J26: 1 | K26: 0.15 | L26: 21 | M26: 2.74 | N26: B | O26: 4.164
A27: 2004-01-20 | B27: -18.4 | C27: -23 | D27: 67.3 | E27: 246.7 | F27: 6.2 | G27: 22.5 | H27: 101.3 | I27: 0 | J27: 1 | K27: 0.15 | L27: 20 | M27: 2.71 | N27: B | O27: 4.14
A28: 2004-01-21 | B28: -12.9 | C28: -17.1 | D28: 71.1 | E28: 225 | F28: 6.7 | G28: 17.6 | H28: 100.6 | I28: 0 | J28: 1 | K28: 0.15 | L28: 20 | M28: 2.69 | N28: B | O28: 4.114
A29: 2004-01-22 | B29: -9.6 | C29: -14.4 | D29: 68.5 | E29: 238.3 | F29: 5.7 | G29: 28.8 | H29: 100.2 | I29: 0.2 | K29: 0.2 | L29: 19 | M29: 2.66 | N29: B | O29: 4.143
A30: 2004-01-23 | B30: -4.9 | C30: -6.6 | D30: 87.8 | E30: 122.1 | F30: 2.2 | G30: 7.4 | H30: 99.4 | I30: 1.2 | K30: 1.2 | L30: 18 | M30: 2.63 | N30: B | O30: 4.114
A31: 2004-01-24 | B31: -1.1 | C31: -3.9 | D31: 81.8 | E31: 283.3 | F31: 5.8 | G31: 16.2 | H31: 99.7 | I31: 0 | J31: 1 | K31: 0.15 | L31: 10 | M31: 2.61 | N31: B | O31: 4.107
A32: 2004-01-25 | B32: -9.4 | C32: -13.6 | D32: 71.3 | E32: 74.2 | F32: 5 | G32: 22.8 | H32: 100.8 | I32: 1.4 | K32: 1.4 | L32: 9 | M32: 2.59 | N32: B | O32: 4.071
A33: 2004-01-26 | B33: -18.9 | C33: -23.2 | D33: 69.1 | E33: 40.8 | F33: 6.9 | G33: 21.5 | H33: 101.7 | I33: 0.4 | K33: 0.4 | L33: 11 | M33: 2.58 | N33: B | O33: 4.085
A34: 2004-01-27 | B34: -10.3 | C34: -12.7 | D34: 82.5 | E34: 72.9 | F34: 6.3 | G34: 5.5 | H34: 100.6 | I34: 16.4 | K34: 16.4 | L34: 12 | M34: 2.56 | N34: B | O34: 4.073
A35: 2004-01-28 | B35: 1.8 | C35: 0.5 | D35: 91.4 | E35: 165.4 | F35: 5.2 | G35: 8.9 | H35: 98 | I35: 15.2 | K35: 15.2 | L35: 7 | M35: 2.55 | N35: B | O35: 4.08
A36: 2004-01-29 | B36: -8.6 | C36: -12.3 | D36: 74.3 | E36: 284.2 | F36: 4.9 | G36: 21.1 | H36: 99.5 | I36: 0.2 | K36: 0.2 | L36: 7 | M36: 2.54 | N36: B | O36: 4.092
A37: 2004-01-30 | B37: -17.2 | C37: -22.1 | D37: 66.2 | E37: 334.6 | F37: 5.3 | G37: 26.8 | H37: 100.7 | I37: 0 | K37: 0 | L37: 7 | M37: 2.53 | N37: B | O37: 4.091
A38: 2004-01-31 | B38: -17.5 | C38: -22.4 | D38: 66.2 | E38: 335 | F38: 5.3 | G38: 26.8 | H38: 100.8 | I38: 0 | K38: 0 | L38: 7 | M38: 2.51 | N38: B | O38: 4.094
A39: 2004-02-01 | B39: -14.2 | C39: -18.2 | D39: 72.2 | E39: 246.8 | F39: 3.9 | G39: 26.9 | H39: 100 | I39: 0 | J39: 1 | K39: 0.15 | L39: 6 | M39: 2.5 | N39: B | O39: 4.096
A40: 2004-02-02 | B40: -11 | C40: -15.1 | D40: 72.2 | E40: 200 | F40: 5.6 | G40: 20.1 | H40: 99.7 | I40: 0 | J40: 1 | K40: 0.15 | L40: 6 | M40: 2.49 | N40: B | O40: 4.084
A41: 2004-02-03 | B41: -9 | C41: -13.3 | D41: 70.8 | E41: 250.8 | F41: 8.1 | G41: 23.1 | H41: 99.2 | I41: 0.4 | K41: 0.4 | L41: 8 | M41: 2.58 | N41: B | O41: 4.118
A42: 2004-02-04 | B42: -8.6 | C42: -13.1 | D42: 69.7 | E42: 182.9 | F42: 5.1 | G42: 25.2 | H42: 99.6 | I42: 0 | J42: 1 | K42: 0.15 | L42: 7 | M42: 2.56 | N42: B | O42: 4.15
A43: 2004-02-05 | B43: -8.4 | C43: -12.9 | D43: 70.2 | E43: 210.4 | F43: 4.4 | G43: 29.4 | H43: 98.9 | I43: 0 | J43: 1 | K43: 0.15 | L43: 6 | M43: 2.55 | N43: B | O43: 4.114
A44: 2004-02-06 | B44: -8.2 | C44: -11.7 | D44: 76.4 | E44: 237.9 | F44: 3.7 | G44: 25.9 | H44: 99.3 | I44: 0 | J44: 1 | K44: 0.15 | L44: 6 | M44: 2.53 | N44: B | O44: 4.171
A45: 2004-02-07 | B45: -14.4 | C45: -20.1 | D45: 61.8 | E45: 275 | F45: 4.5 | G45: 24 | H45: 100.4 | I45: 0 | K45: 0 | L45: 5 | M45: 2.53 | N45: B | O45: 4.17
A46: 2004-02-08 | B46: -16.5 | C46: -20.4 | D46: 71.9 | E46: 77.5 | F46: 6.4 | G46: 10.7 | H46: 100.3 | I46: 2.6 | K46: 2.6 | L46: 5 | M46: 2.52 | N46: B | O46: 4.101
A47: 2004-02-09 | B47: -17.1 | C47: -21.3 | D47: 69.7 | E47: 210 | F47: 6.8 | G47: 19.7 | H47: 99.7 | I47: 0.2 | K47: 0.2 | L47: 9 | M47: 2.51 | N47: B | O47: 4.166
A48: 2004-02-10 | B48: -17.4 | C48: -21.8 | D48: 68.3 | E48: 189.6 | F48: 3.5 | G48: 21.8 | H48: 101.2 | I48: 2.8 | K48: 2.8 | L48: 8 | M48: 2.49 | N48: B | O48: 4.155
A49: 2004-02-11 | B49: -13.6 | C49: -17.7 | D49: 71.7 | E49: 205.8 | F49: 3.9 | G49: 18.7 | H49: 100.7 | I49: 0 | J49: 1 | K49: 0.15 | L49: 11 | M49: 2.48 | N49: B | O49: 4.145
A50: 2004-02-12 | B50: -9.9 | C50: -12.7 | D50: 79.6 | E50: 181.3 | F50: 4.6 | G50: 17.7 | H50: 100.3 | I50: 1.4 | K50: 1.4 | L50: 9 | M50: 2.47 | N50: B | O50: 4.141
A51: 2004-02-13 | B51: -5.2 | C51: -7.8 | D51: 82.2 | E51: 273.8 | F51: 6.4 | G51: 16 | H51: 99.3 | I51: 1.6 | K51: 1.6 | L51: 12 | M51: 2.46 | N51: B | O51: 4.137
A52: 2004-02-14 | B52: -11.9 | C52: -17.3 | D52: 64.7 | E52: 231.7 | F52: 3.9 | G52: 27.8 | H52: 100.2 | I52: 0 | J52: 1 | K52: 0.15 | L52: 12 | M52: 2.45 | N52: B | O52: 4.113
A53: 2004-02-15 | B53: -4.1 | C53: -7.6 | D53: 76.6 | E53: 207.5 | F53: 5.5 | G53: 18.9 | H53: 99.4 | I53: 0 | K53: 0 | L53: 10 | M53: 2.44 | N53: B | O53: 4.076
A54: 2004-02-16 | B54: -5.3 | C54: -9.6 | D54: 72.6 | E54: 230.4 | F54: 3.4 | G54: 25.5 | H54: 100.7 | I54: 0 | J54: 1 | K54: 0.15 | L54: 6 | M54: 2.43 | N54: B | O54: 4.107
A55: 2004-02-17 | B55: -0.4 | C55: -4.4 | D55: 75 | E55: 144.6 | F55: 1.4 | G55: 14.4 | H55: 100.4 | I55: 0 | K55: 0 | L55: 6 | M55: 2.41 | N55: B | O55: 4.108
A56: 2004-02-18 | B56: -0.3 | C56: -2.2 | D56: 87 | E56: 53.3 | F56: 0.9 | G56: 5.2 | H56: 100.6 | I56: 0 | K56: 0 | L56: 4 | M56: 2.4 | N56: B | O56: 4.12
A57: 2004-02-19 | B57: 5.5 | C57: 0.3 | D57: 71.1 | E57: 109.2 | F57: 1.8 | G57: 17.5 | H57: 100.1 | I57: 0 | K57: 0 | L57: 1 | M57: 2.39 | N57: B | O57: 4.125
A58: 2004-02-20 | B58: 7.7 | C58: 2.9 | D58: 72.4 | E58: 181.7 | F58: 4.3 | G58: 25 | H58: 99.5 | I58: 0 | K58: 0 | L58: 1 | M58: 2.55 | N58: B | O58: 4.133
A59: 2004-02-21 | B59: 0.5 | C59: -1.9 | D59: 84.2 | E59: 226.3 | F59: 4 | G59: 21.5 | H59: 100.1 | I59: 0 | K59: 0 | L59: 0 | M59: 2.77 | N59: B | O59: 4.154
A60: 2004-02-22 | B60: -6.5 | C60: -11.3 | D60: 68.5 | E60: 231.7 | F60: 5.6 | G60: 31.9 | H60: 101 | I60: 0 | J60: 1 | K60: 0.15 | L60: 0 | M60: 2.74 | N60: B | O60: 4.152
A61: 2004-02-23 | B61: -6.4 | C61: -8.7 | D61: 84.8 | E61: 82.1 | F61: 10.3 | G61: 7.7 | H61: 99.6 | I61: 9.4 | K61: 9.4 | L61: 0 | M61: 2.71 | N61: B | O61: 4.131
A62: 2004-02-24 | B62: -4.3 | C62: -7.2 | D62: 80.5 | E62: 234.2 | F62: 7.2 | G62: 18.9 | H62: 98.1 | I62: 0 | J62: 1 | K62: 0.15 | L62: 6 | M62: 2.69 | N62: B | O62: 4.153
A63: 2004-02-25 | B63: -10.6 | C63: -15 | D63: 70.6 | E63: 196.3 | F63: 4.8 | G63: 28.6 | H63: 99.4 | I63: 1.4 | K63: 1.4 | L63: 6 | M63: 2.67 | N63: B | O63: 4.127
A64: 2004-02-26 | B64: -13.3 | C64: -18.8 | D64: 64 | E64: 301.3 | F64: 7.8 | G64: 26.7 | H64: 100.1 | I64: 0.4 | K64: 0.4 | L64: 7 | M64: 2.85 | N64: B | O64: 4.145
A65: 2004-02-27 | B65: -13.7 | C65: -20.7 | D65: 57 | E65: 285 | F65: 5 | G65: 32 | H65: 100.9 | I65: 0 | K65: 0 | L65: 6 | M65: 3.05 | N65: B | O65: 4.124
A66: 2004-02-28 | B66: -9.7 | C66: -14.8 | D66: 67.1 | E66: 152.5 | F66: 2.1 | G66: 30.6 | H66: 100.9 | I66: 0 | K66: 0 | L66: 5 | M66: 3.35 | N66: B | O66: 4.146
A67: 2004-02-29 | B67: -5.6 | C67: -10.3 | D67: 69.9 | E67: 116.7 | F67: 0.9 | G67: 24.6 | H67: 100.7 | I67: 0 | J67: 1 | K67: 0.15 | L67: 5 | M67: 3.8 | N67: B | O67: 4.164
A68: 2004-03-01 | B68: -4 | C68: -7 | D68: 80 | E68: 62.5 | F68: 4.3 | G68: 18.6 | H68: 100 | I68: 0 | K68: 0 | L68: 4 | M68: 4.6 | N68: B | O68: 4.166
A69: 2004-03-02 | B69: -2.7 | C69: -7.7 | D69: 68.5 | E69: 272.9 | F69: 3.6 | G69: 26.8 | H69: 98.7 | I69: 0 | K69: 0 | L69: 2 | M69: 6.09 | O69: 4.033
A70: 2004-03-03 | B70: -0.3 | C70: -4.4 | D70: 74.2 | E70: 290 | F70: 3.8 | G70: 23.6 | H70: 97.9 | I70: 0 | K70: 0 | L70: 0 | M70: 8.25 | O70: 4.155
A71: 2004-03-04 | B71: 0 | C71: -5.3 | D71: 68.4 | E71: 285.8 | F71: 5.1 | G71: 30.2 | H71: 99.1 | I71: 0 | J71: 1 | K71: 0.15 | L71: 0 | M71: 7.58 | O71: 4.122
A72: 2004-03-05 | B72: -1.4 | C72: -3.6 | D72: 85.4 | E72: 65.8 | F72: 1.7 | G72: 18 | H72: 99.7 | I72: 1.6 | K72: 1.6 | L72: 0 | M72: 18.2 | O72: 4.473
A73: 2004-03-06 | B73: 1.9 | C73: 0.3 | D73: 89 | E73: 179.2 | F73: 2.8 | G73: 10.8 | H73: 99.4 | I73: 0 | K73: =IF(J73=1,$I$2,I73) -> 0 | L73: 0 | M73: 34.8 | O73: 4.93
A74: 2004-03-07 | B74: -1.3 | C74: -5.3 | D74: 74.2 | E74: 273.8 | F74: 6.9 | G74: 27.3 | H74: 99.7 | I74: 0 | J74: 1 | K74: 0.15 | L74: 0 | M74: 17.9 | O74: 4.492
A75: 2004-03-08 | B75: -4.4 | C75: -7.7 | D75: 78.5 | E75: 66.3 | F75: 3 | G75: 23 | H75: 100.2 | I75: 5.2 | K75: 5.2 | L75: 0 | M75: 10.2 | O75: 4.24
A76: 2004-03-09 | B76: -3.6 | C76: -6.8 | D76: 79.6 | E76: 292.1 | F76: 5.4 | G76: 21.3 | H76: 99.3 | I76: 2.8 | K76: 2.8 | L76: 10 | M76: 7.43 | O76: 4.113
A77: 2004-03-10 | B77: -5.3 | C77: -11 | D77: 65.9 | E77: 300.4 | F77: 4.7 | G77: 31.3 | H77: 100.7 | I77: 0 | K77: 0 | L77: 7 | M77: 6.82 | O77: 4.079
A78: 2004-03-11 | B78: -3.1 | C78: -7.5 | D78: 72.5 | E78: 114.6 | F78: 2.9 | G78: 24 | H78: 100.8 | I78: 0 | J78: 1 | K78: 0.15 | L78: 6 | M78: 6.62 | O78: 4.068
A79: 2004-03-12 | B79: 0.6 | C79: -2.5 | D79: 79.9 | E79: 208.3 | F79: 4.3 | G79: 16.3 | H79: 99.7 | I79: 0 | J79: 1 | K79: 0.15 | L79: 4 | M79: 6.18 | O79: 4.04
A80: 2004-03-13 | B80: -1.7 | C80: -3.6 | D80: 86.9 | E80: 186.7 | F80: 3.3 | G80: 8.6 | H80: 99 | I80: 3.6 | K80: 3.6 | L80: 3 | M80: 5.5 | O80: 3.998
A81: 2004-03-14 | B81: 1.7 | C81: -0.3 | D81: 86.5 | E81: 185.8 | F81: 4.2 | G81: 13 | H81: 97.8 | I81: 0.2 | K81: 0.2 | L81: 2 | M81: 5.37 | O81: 3.99
A82: 2004-03-15 | B82: -7.6 | C82: -10.5 | D82: 79.9 | E82: 320 | F82: 8.7 | G82: 12.8 | H82: 98.6 | I82: 0.6 | K82: 0.6 | L82: 0 | M82: 5.29 | O82: 3.985
A83: 2004-03-16 | B83: -6.9 | C83: -10.6 | D83: 74.9 | E83: 302.1 | F83: 6.2 | G83: 28 | H83: 99 | I83: 0 | K83: 0 | L83: 0 | M83: 4.85 | O83: 3.957
A84: 2004-03-17 | B84: -4.3 | C84: -7.2 | D84: 80.5 | E84: 152.9 | F84: 3.4 | G84: 15.2 | H84: 97.9 | I84: 3.2 | K84: 3.2 | L84: 0 | M84: 4.56 | O84: 3.939
A85: 2004-03-18 | B85: -2.2 | C85: -7.7 | D85: 67 | E85: 288.8 | F85: 7 | G85: 32.6 | H85: 98.6 | I85: 0 | K85: 0 | L85: 4 | M85: 4.57 | O85: 3.94
A86: 2004-03-19 | B86: -0.3 | C86: -6 | D86: 66 | E86: 217.1 | F86: 3.3 | G86: 32 | H86: 99.2 | I86: 0 | K86: 0 | L86: 0 | M86: 4.33 | O86: 3.925
A87: 2004-03-20 | B87: 0.8 | C87: -1.4 | D87: 85.7 | E87: 116.7 | F87: 4.9 | G87: 17.1 | H87: 98.4 | I87: 13.4 | K87: 13.4 | L87: 0 | M87: 4.89 | O87: 3.96
A88: 2004-03-21 | B88: 5.9 | C88: -0.2 | D88: 66.3 | E88: 249.2 | F88: 6.5 | G88: 29.3 | H88: 98.7 | I88: 0 | K88: 0 | L88: 0 | M88: 6.38 | O88: 4.053
A89: 2004-03-22 | B89: 7.7 | C89: 0.7 | D89: 63.4 | E89: 60.8 | F89: 1.1 | G89: 16.4 | H89: 98.7 | I89: 0 | K89: 0 | L89: 0 | M89: 5.18 | O89: 3.978
A90: 2004-03-23 | B90: 5.5 | C90: 1 | D90: 73.3 | E90: 146.3 | F90: 4.8 | G90: 18 | H90: 98.5 | I90: 0.6 | K90: 0.6 | L90: 0 | M90: 4.9 | O90: 3.961
A91: 2004-03-24 | B91: -0.7 | C91: -5.4 | D91: 70.8 | E91: 312.9 | F91: 6.7 | G91: 30.6 | H91: 99.4 | I91: 0 | J91: 1 | K91: 0.15 | L91: 0 | M91: 4.66 | O91: 3.945
A92: 2004-03-25 | B92: -0.4 | C92: -6.1 | D92: 67.1 | E92: 145.8 | F92: 2.2 | G92: 32.6 | H92: 99.9 | I92: 0 | K92: 0 | L92: 0 | M92: 5.67 | O92: 4.008
A93: 2004-03-26 | B93: 1.4 | C93: 0.4 | D93: 93.7 | E93: 135.2 | F93: 2.9 | G93: 6.6 | H93: 98.5 | I93: 10.2 | K93: 10.2 | L93: 2 | M93: 10.8 | O93: 4.255
A94: 2004-03-27 | B94: 2.6 | C94: -0.7 | D94: 79.9 | E94: 257.1 | F94: 2.7 | G94: 24.5 | H94: 99 | I94: 0 | K94: 0 | L94: 0 | M94: 16.2 | O94: 4.442
A95: 2004-03-28 | B95: 1.2 | C95: 0.4 | D95: 94.3 | E95: 92.9 | F95: 2.1 | G95: 5.8 | H95: 99.5 | I95: 9.8 | K95: 9.8 | L95: 0 | M95: 11.8 | O95: 4.297
A96: 2004-03-29 | B96: 0.4 | C96: -3.2 | D96: 77.2 | E96: 267.1 | F96: 4.7 | G96: 31.3 | H96: 100.3 | I96: 0 | J96: 1 | K96: 0.15 | L96: 2 | M96: 9.28 | O96: 4.202
A97: 2004-03-30 | B97: 0.4 | C97: -3.4 | D97: 76.3 | E97: 262.9 | F97: 4.7 | G97: 32.1 | H97: 100.3 | I97: 0 | K97: 0 | L97: 0 | M97: 14 | O97: 4.361
A98: 2004-03-31 | B98: 5.2 | C98: -3.6 | D98: 54.5 | E98: 225.4 | F98: 3.7 | G98: 28.3 | H98: 99.4 | I98: 0 | K98: 0 | L98: 0 | M98: 22.5 | O98: 4.635
A99: 2004-04-01 | B99: 7.4 | C99: 1.4 | D99: 68.3 | E99: 159.2 | F99: 5.3 | G99: 20.9 | H99: 99.2 | I99: 2.2 | K99: 2.2 | L99: 0 | M99: 15.1 | O99: 4.407
A100: 2004-04-02 | B100: 1.8 | C100: -1.7 | D100: 78.4 | E100: 267.5 | F100: 4.3 | G100: 27.9 | H100: 99.2 | I100: 4 | K100: 4 | L100: 1 | M100: 13.7 | O100: 4.364
A101: 2004-04-03 | B101: 4.1 | C101: -2.6 | D101: 65.1 | E101: 220 | F101: 4.7 | G101: 19.9 | H101: 99.4 | I101: 0 | K101: 0 | L101: 0 | M101: 12.8 | O101: 4.331
A102: 2004-04-04 | B102: 4.6 | C102: 0 | D102: 73.3 | E102: 179.2 | F102: 2.7 | G102: 14 | H102: 98.9 | I102: 2.6 | K102: 2.6 | L102: 0 | M102: 10.3 | O102: 4.242
A103: 2004-04-05 | B103: -1 | C103: -2.3 | D103: 91.3 | E103: 231.3 | F103: 6.5 | G103: 8 | H103: 99.2 | I103: 10 | K103: 10 | L103: 2 | M103: 8.11 | O103: 4.148
A104: 2004-04-06 | B104: -0.4 | C104: -5.3 | D104: 70.4 | E104: 288.3 | F104: 6.2 | G104: 31.7 | H104: 99.9 | I104: 0 | J104: 1 | K104: 0.15 | L104: 12 | M104: 6.96 | O104: 4.088
A105: 2004-04-07 | B105: 1.4 | C105: -4.7 | D105: 64.4 | E105: 170 | F105: 2.8 | G105: 31.5 | H105: 100.8 | I105: 0 | K105: 0 | L105: 6 | M105: 6.68 | O105: 4.072
A106: 2004-04-08 | B106: 8.9 | C106: 1.8 | D106: 61.5 | E106: 173.8 | F106: 5.5 | G106: 28 | H106: 99.4 | I106: 0 | J106: 1 | K106: 0.15 | L106: 1 | M106: 6.55 | O106: 4.064
A107: 2004-04-09 | B107: 8.1 | C107: 1.3 | D107: 63.4 | E107: 311.7 | F107: 5.9 | G107: 31.2 | H107: 99.6 | I107: 0 | K107: 0 | L107: 0 | M107: 6.22 | O107: 4.043
A108: 2004-04-10 | B108: 4.3 | C108: -4.6 | D108: 55.2 | E108: 199.2 | F108: 2.8 | G108: 32.9 | H108: 101 | I108: 0 | K108: 0 | L108: 0 | M108: 5.9 | O108: 4.023
A109: 2004-04-11 | B109: 5.3 | C109: 0.2 | D109: 72.2 | E109: 64.6 | F109: 3.4 | G109: 19 | H109: 100.1 | I109: 14.4 | K109: 14.4 | L109: 0 | M109: 5.61 | O109: 4.005
A110: 2004-04-12 | B110: 8.3 | C110: 6.6 | D110: 89.3 | E110: 168.3 | F110: 4.5 | G110: 13.2 | H110: 98.4 | I110: 6.4 | K110: 6.4 | L110: 0 | M110: 5.38 | O110: 3.99
A111: 2004-04-13 | B111: 10.6 | C111: 6.5 | D111: 76.7 | E111: 209.2 | F111: 4.9 | G111: 18.5 | H111: 98.7 | I111: 0.2 | K111: 0.2 | L111: 0 | M111: 5.89 | O111: 4.022
A112: 2004-04-14 | B112: 12.5 | C112: 7 | D112: 71.3 | E112: 110.8 | F112: 4.1 | G112: 13.7 | H112: 98.7 | I112: 0.2 | K112: 0.2 | L112: 0 | M112: 6.35 | O112: 4.051
A113: 2004-04-15 | B113: 7.6 | C113: 2.8 | D113: 72.6 | E113: 250.8 | F113: 7.4 | G113: 28.4 | H113: 98.2 | I113: 2 | K113: 2 | L113: 0 | M113: 5.91 | O113: 4.024
A114: 2004-04-16 | B114: 4.9 | C114: -3.7 | D114: 55.1 | E114: 282.1 | F114: 8.5 | G114: 33.1 | H114: 98.9 | I114: 0 | J114: 1 | K114: 0.15 | L114: 0 | M114: 5.34 | O114: 3.988
A115: 2004-04-17 | B115: 8.3 | C115: -2.9 | D115: 48.1 | E115: 216.3 | F115: 5 | G115: 33.8 | H115: 99.4 | I115: 0 | K115: 0 | L115: 0 | M115: 5.64 | O115: 4.007
A116: 2004-04-18 | B116: 10.3 | C116: 1.4 | D116: 57.3 | E116: 283.8 | F116: 7 | G116: 33.9 | H116: 98.9 | I116: 1.2 | K116: 1.2 | L116: 0 | M116: 8.89 | O116: 4.174
A117: 2004-04-19 | B117: 5 | C117: -5.7 | D117: 47.1 | E117: 296.3 | F117: 7.2 | G117: 33.9 | H117: 99.8 | I117: 0 | K117: 0 | L117: 0 | M117: 11.5 | O117: 4.288
A118: 2004-04-20 | B118: 4.6 | C118: -6.9 | D118: 45.5 | E118: 305.4 | F118: 5.9 | G118: 33.9 | H118: 100 | I118: 0 | K118: 0 | L118: 0 | M118: 8.29 | O118: 4.157
A119: 2004-04-21 | B119: 5.2 | C119: -6.9 | D119: 44.2 | E119: 300.8 | F119: 4.9 | G119: 33.9 | H119: 100.1 | I119: 0 | K119: 0 | L119: 0 | M119: 7.48 | O119: 4.117
A120: 2004-04-22 | B120: 9.7 | C120: -5.4 | D120: 36.6 | E120: 246.7 | F120: 6 | G120: 33.2 | H120: 99.6 | I120: 0 | K120: 0 | L120: 0 | M120: 7.92 | O120: 4.139
A121: 2004-04-23 | B121: 17.2 | C121: 5.7 | D121: 49.7 | E121: 259.6 | F121: 8.5 | G121: 21.7 | H121: 98.5 | I121: 11.8 | K121: 11.8 | L121: 0 | M121: 6.91 | O121: 4.085
A122: 2004-04-24 | B122: 13.2 | C122: 11.8 | D122: 91 | E122: 130 | F122: 2.9 | G122: 8.3 | H122: 98.8 | I122: 16.6 | K122: 16.6 | L122: 0 | M122: 6.05 | O122: 4.033
A123: 2004-04-25 | B123: 12 | C123: 9.7 | D123: 86.3 | E123: 132.1 | F123: 2.7 | G123: 6.7 | H123: 98.8 | I123: 4.6 | K123: 4.6 | L123: 0 | M123: 5.84 | O123: 4.019
A124: 2004-04-26 | B124: 14.8 | C124: 9.8 | D124: 73.3 | E124: 265 | F124: 7.6 | G124: 22.8 | H124: 99 | I124: 7 | K124: 7 | L124: 0 | M124: 6.2 | O124: 4.042
A125: 2004-04-27 | B125: 2.9 | C125: -3.2 | D125: 65.3 | E125: 152.1 | F125: 5 | G125: 29 | H125: 100.7 | I125: 3.2 | K125: 3.2 | L125: 0 | M125: 6.55 | O125: 4.063
A126: 2004-04-28 | B126: 8.9 | C126: 3.8 | D126: 70.6 | E126: 194.6 | F126: 6 | G126: 19.4 | H126: 99.9 | I126: 0 | J126: 1 | K126: 0.15 | L126: 0 | M126: 5.98 | O126: 4.028
A127: 2004-04-29 | B127: 5 | C127: 1.2 | D127: 77 | E127: 168.3 | F127: 4.3 | G127: 24.2 | H127: 100 | I127: 9.6 | K127: 9.6 | L127: 0 | M127: 5.55 | O127: 4.001
A128: 2004-04-30 | B128: 5.5 | C128: 2.8 | D128: 83.8 | E128: 239.6 | F128: 5.9 | G128: 17.4 | H128: 99.1 | I128: 1.6 | K128: 1.6 | L128: 0 | M128: 5.19 | O128: 3.979
A129: 2004-05-01 | B129: 6.4 | C129: -0.8 | D129: 63.2 | E129: 289.6 | F129: 4.8 | G129: 34.5 | H129: 100.1 | I129: 0 | K129: 0 | L129: 0 | M129: 5.24 | O129: 3.982
A130: 2004-05-02 | B130: 8.6 | C130: -3.1 | D130: 46.8 | E130: 195.4 | F130: 2.3 | G130: 33.8 | H130: 100.5 | I130: 0 | K130: 0 | L130: 0 | M130: 9.76 | O130: 4.198
A131: 2004-05-03 | B131: 9.9 | C131: 2.1 | D131: 59.3 | E131: 115.4 | F131: 1.9 | G131: 26.5 | H131: 100.1 | I131: 0 | K131: 0 | L131: 0 | M131: 12.6 | O131: 4.325
A132: 2004-05-04 | B132: 11.7 | C132: 6.7 | D132: 72 | E132: 172.1 | F132: 2.5 | G132: 19.7 | H132: 99.4 | I132: 8.8 | K132: 8.8 | L132: 0 | M132: 8.24 | O132: 4.154
A133: 2004-05-05 | B133: 7.5 | C133: 4.6 | D133: 82 | E133: 294.6 | F133: 6.5 | G133: 25.4 | H133: 99.2 | I133: 0.2 | K133: 0.2 | L133: 0 | M133: 8.15 | O133: 4.15
A134: 2004-05-06 | B134: 8.7 | C134: 5.2 | D134: 79.3 | E134: 203.8 | F134: 2.8 | G134: 21.6 | H134: 99.3 | I134: 4 | K134: 4 | L134: 0 | M134: 7.8 | O134: 4.133
A135: 2004-05-07 | B135: 12 | C135: 5 | D135: 65.5 | E135: 305.8 | F135: 5.2 | G135: 27.8 | H135: 98.8 | I135: 1.4 | K135: 1.4 | L135: 0 | M135: 6.83 | O135: 4.081
A136: 2004-05-08 | B136: 10.8 | C136: 5.9 | D136: 72 | E136: 259.6 | F136: 4.5 | G136: 24.8 | H136: 98.7 | I136: 5.4 | K136: 5.4 | L136: 0 | M136: 6.31 | O136: 4.049
A137: 2004-05-09 | B137: 10.6 | C137: 1.9 | D137: 57.1 | E137: 287.1 | F137: 4.7 | G137: 33.9 | H137: 99.5 | I137: 0 | K137: =IF(J137=1,$I$2,I137) -> 0 | L137: 0 | M137: 6.65 | O137: 4.07
A138: 2004-05-10 | B138: 11.1 | C138: 5 | D138: 66.8 | E138: 182.1 | F138: 6.3 | G138: 19.6 | H138: 98.9 | I138: 5.4 | K138: 5.4 | L138: 0 | M138: 7.02 | O138: 4.092
A139: 2004-05-11 | B139: 8.9 | C139: 2.1 | D139: 64 | E139: 310.8 | F139: 7.9 | G139: 32.5 | H139: 98.9 | I139: 0 | K139: 0 | L139: 0 | M139: 6.41 | O139: 4.055
A140: 2004-05-12 | B140: 8.2 | C140: 0.8 | D140: 60.2 | E140: 322.1 | F140: 4.1 | G140: 35.1 | H140: 99.8 | I140: 0 | K140: 0 | L140: 0 | M140: 5.65 | O140: 4.008
A141: 2004-05-13 | B141: 10.8 | C141: -1.9 | D141: 44.5 | E141: 165.4 | F141: 2.1 | G141: 33.9 | H141: 99.7 | I141: 0 | K141: 0 | L141: 0 | M141: 5.18 | O141: 3.978
A142: 2004-05-14 | B142: 10.6 | C142: 7.3 | D142: 82.5 | E142: 57.9 | F142: 1 | G142: 9.9 | H142: 98.6 | I142: 13.8 | K142: 13.8 | L142: 0 | M142: 4.87 | O142: 3.959
A143: 2004-05-15 | B143: 8.1 | C143: 5.9 | D143: 85.7 | E143: 305.4 | F143: 7.2 | G143: 27.4 | H143: 98.7 | I143: 0.6 | K143: 0.6 | L143: 0 | M143: 5.17 | O143: 3.977
A144: 2004-05-16 | B144: 8 | C144: 4.1 | D144: 77 | E144: 346.7 | F144: 8.5 | G144: 34.8 | H144: 99.7 | I144: 0 | J144: 1 | K144: 0.15 | L144: 0 | M144: 5.28 | O144: 3.984
A145: 2004-05-17 | B145: 9.8 | C145: 3.9 | D145: 67.5 | E145: 335.4 | F145: 6 | G145: 34.5 | H145: 99.9 | I145: 0 | K145: 0 | L145: 0 | M145: 4.8 | O145: 3.954
A146: 2004-05-18 | B146: 11.9 | C146: 6.9 | D146: 72.1 | E146: 178.3 | F146: 2.6 | G146: 26.6 | H146: 100 | I146: 0 | J146: 1 | K146: 0.15 | L146: 0 | M146: 4.65 | O146: 3.945
A147: 2004-05-19 | B147: 15 | C147: 5.6 | D147: 58.4 | E147: 181.7 | F147: 2.2 | G147: 31.6 | H147: 99.8 | I147: 0 | K147: 0 | L147: 0 | M147: 4.48 | O147: 3.934
A148: 2004-05-20 | B148: 18.6 | C148: 9.6 | D148: 57.9 | E148: 102.5 | F148: 1.7 | G148: 34.5 | H148: 99.8 | I148: 0 | K148: 0 | L148: 0 | M148: 4.25 | O148: 3.92
A149: 2004-05-21 | B149: 21.3 | C149: 12.2 | D149: 57.6 | E149: 180 | F149: 2.3 | G149: 24.4 | H149: 99.5 | I149: 0 | K149: 0 | L149: 0 | M149: 4.16 | O149: 3.914
A150: 2004-05-22 | B150: 18.1 | C150: 11.1 | D150: 65.1 | E150: 330 | F150: 5.2 | G150: 31.8 | H150: 99.2 | I150: 0 | K150: 0 | L150: 0 | M150: 4.21 | O150: 3.917
A151: 2004-05-23 | B151: 14.3 | C151: 9.5 | D151: 75.1 | E151: 203.3 | F151: 1.9 | G151: 25 | H151: 99 | I151: 1.8 | K151: 1.8 | L151: 0 | M151: 6.13 | O151: 4.036
A152: 2004-05-24 | B152: 14.5 | C152: 11.8 | D152: 84.7 | E152: 131.7 | F152: 1.8 | G152: 9.5 | H152: 98.4 | I152: 0.2 | K152: 0.2 | L152: 0 | M152: 19 | O152: 4.542
A153: 2004-05-25 | B153: 8 | C153: 6.7 | D153: 91.4 | E153: 104.6 | F153: 5.5 | G153: 9.7 | H153: 98.3 | I153: 23.2 | K153: 23.2 | L153: 0 | M153: 17.4 | O153: 4.48
A154: 2004-05-26 | B154: 8.7 | C154: 0.6 | D154: 59.8 | E154: 301.7 | F154: 4.4 | G154: 34.5 | H154: 99.4 | I154: 0 | K154: 0 | L154: 0 | M154: 9.77 | O154: 4.221
A155: 2004-05-27 | B155: 12 | C155: 5.2 | D155: 63.8 | E155: 262.1 | F155: 4.8 | G155: 28.1 | H155: 99.4 | I155: 0.4 | K155: 0.4 | L155: 0 | M155: 7.26 | O155: 4.105
A156: 2004-05-28 | B156: 16.9 | C156: 9.8 | D156: 65 | E156: 180.4 | F156: 3.1 | G156: 22.4 | H156: 99.6 | I156: 0 | K156: 0 | L156: 0 | M156: 6.43 | O156: 4.056
A157: 2004-05-29 | B157: 20.9 | C157: 11.2 | D157: 55.4 | E157: 214.6 | F157: 4.6 | G157: 22.3 | H157: 99.5 | I157: 0 | K157: 0 | L157: 0 | M157: 5.77 | O157: 4.015
A158: 2004-05-30 | B158: 21.1 | C158: 11.4 | D158: 54.8 | E158: 217.1 | F158: 4.6 | G158: 22.2 | H158: 99.5 | I158: 12 | K158: 12 | L158: 0 | M158: 4.96 | O158: 3.964
A159: 2004-05-31 | B159: 12.3 | C159: 5 | D159: 63.1 | E159: 299.2 | F159: 5.8 | G159: 33.1 | H159: 99 | I159: 0.2 | K159: 0.2 | L159: 0 | M159: 4.92 | O159: 3.962
A160: 2004-06-01 | B160: 11.4 | C160: 5.1 | D160: 65.9 | E160: 312.5 | F160: 5.8 | G160: 33.9 | H160: 99.6 | I160: 0 | K160: 0 | L160: 0 | M160: 5.29 | O160: 3.985
A161: 2004-06-02 | B161: 15.7 | C161: 5.3 | D161: 54.1 | E161: 327.5 | F161: 3.1 | G161: 35.1 | H161: 99.9 | I161: 0 | K161: 0 | L161: 0 | M161: 5.23 | O161: 3.981
A162: 2004-06-03 | B162: 17 | C162: 3.3 | D162: 43.5 | E162: 200 | F162: 2.2 | G162: 35.1 | H162: 99.7 | I162: 0 | K162: 0 | L162: 0 | M162: 4.83 | O162: 3.955
A163: 2004-06-04 | B163: 18.1 | C163: 7.1 | D163: 50.6 | E163: 109.6 | F163: 2 | G163: 35.1 | H163: 99.5 | I163: 0 | K163: 0 | L163: 0 | M163: 4.46 | O163: 3.931
A164: 2004-06-05 | B164: 18.1 | C164: 12.1 | D164: 68.8 | E164: 203.8 | F164: 4.7 | G164: 16.8 | H164: 98.6 | I164: 0.4 | K164: 0.4 | L164: 0 | M164: 4.25 | O164: 3.918
A165: 2004-06-06 | B165: 16.5 | C165: 12.4 | D165: 77.8 | E165: 271.7 | F165: 4.8 | G165: 15.9 | H165: 98.9 | I165: 0 | K165: 0 | L165: 0 | M165: 3.96 | O165: 3.899
A166: 2004-06-07 | B166: 12.2 | C166: 4.6 | D166: 62.2 | E166: 268.3 | F166: 5.4 | G166: 34.5 | H166: 99.7 | I166: 0 | K166: 0 | L166: 0 | M166: 3.94 | O166: 3.898
A167: 2004-06-08 | B167: 16 | C167: 6.1 | D167: 56.3 | E167: 285.4 | F167: 3.5 | G167: 34.5 | H167: 99.6 | I167: 0 | K167: 0 | L167: 0 | M167: 3.79 | O167: 3.888
A168: 2004-06-09 | B168: 16.2 | C168: 5.1 | D168: 49.6 | E168: 158.3 | F168: 2.4 | G168: 27.3 | H168: 99.8 | I168: 0 | K168: 0 | L168: 0 | M168: 3.65 | O168: 3.878
A169: 2004-06-10 | B169: 16.8 | C169: 9.2 | D169: 62.1 | E169: 87.5 | F169: 2.6 | G169: 24.4 | H169: 99.4 | I169: 0.8 | K169: 0.8 | L169: 0 | M169: 3.85 | O169: 3.892
A170: 2004-06-11 | B170: 18.3 | C170: 13.4 | D170: 75.8 | E170: 174.6 | F170: 3.6 | G170: 22.5 | H170: 99.1 | I170: 1 | K170: 1 | L170: 0 | M170: 3.73 | O170: 3.884
A171: 2004-06-12 | B171: 18.9 | C171: 15.8 | D171: 82.7 | E171: 181.3 | F171: 4 | G171: 18.9 | H171: 99.1 | I171: 1.6 | K171: 1.6 | L171: 0 | M171: 3.47 | O171: 3.867
A172: 2004-06-13 | B172: 19.9 | C172: 15.6 | D172: 77.3 | E172: 229.6 | F172: 3.4 | G172: 29.4 | H172: 99.4 | I172: 0 | K172: 0 | L172: 0 | M172: 3.32 | O172: 3.857
A173: 2004-06-14 | B173: 21.2 | C173: 17.1 | D173: 77.8 | E173: 97.5 | F173: 1.7 | G173: 8.5 | H173: 100 | I173: 0 | K173: 0 | L173: 0 | M173: 4.52 | O173: 3.934
A174: 2004-06-15 | B174: 25.7 | C174: 20.3 | D174: 73.9 | E174: 126.3 | F174: 1.7 | G174: 5.9 | H174: 100 | I174: 0 | K174: 0 | L174: 0 | M174: 9.32 | O174: 4.203
A175: 2004-06-16 | B175: 27.8 | C175: 20 | D175: 64.8 | E175: 226.7 | F175: 2.3 | G175: 17.5 | H175: 99.9 | I175: 0 | K175: 0 | L175: 0 | M175: 6 | O175: 4.029
A176: 2004-06-17 | B176: 28.2 | C176: 18.6 | D176: 59.6 | E176: 207.5 | F176: 2.1 | G176: 29.6 | H176: 99.7 | I176: 0 | J176: 1 | K176: 0.15 | L176: 0 | M176: 4.69 | O176: 3.946
A177: 2004-06-18 | B177: 24.4 | C177: 16.6 | D177: 63.2 | E177: 204.2 | F177: 3.6 | G177: 29.8 | H177: 99.9 | I177: 0 | K177: 0 | L177: 0 | M177: 4.32 | O177: 3.923
A178: 2004-06-19 | B178: 21.3 | C178: 13.6 | D178: 63.2 | E178: 133.3 | F178: 2.2 | G178: 32.2 | H178: 99.7 | I178: 0 | J178: 1 | K178: 0.15 | L178: 0 | M178: 3.95 | O178: 3.899
A179: 2004-06-20 | B179: 24.2 | C179: 13.3 | D179: 55.1 | E179: 268.8 | F179: 6.2 | G179: 24.8 | H179: 98.8 | I179: 0 | K179: 0 | L179: 0 | M179: 3.64 | O179: 3.878
A180: 2004-06-21 | B180: 21.7 | C180: 10.4 | D180: 51.5 | E180: 275.4 | F180: 3.4 | G180: 34.5 | H180: 99.1 | I180: 0 | K180: 0 | L180: 0 | M180: 3.44 | O180: 3.865
A181: 2004-06-22 | B181: 21.2 | C181: 12.3 | D181: 58.5 | E181: 187.9 | F181: 2 | G181: 21.5 | H181: 98.9 | I181: 1 | K181: 1 | L181: 0 | M181: 3.86 | O181: 3.893
A182: 2004-06-23 | B182: 16 | C182: 15.1 | D182: 94 | E182: 89.6 | F182: 6.3 | G182: 10.2 | H182: 98.2 | I182: 27.2 | K182: 27.2 | L182: 0 | M182: 3.78 | O182: 3.887
A183: 2004-06-24 | B183: 16.5 | C183: 14.5 | D183: 88.3 | E183: 167.1 | F183: 5.1 | G183: 13 | H183: 97.9 | I183: 0 | J183: 1 | K183: 0.15 | L183: 0 | M183: 3.68 | O183: 3.881
A184: 2004-06-25 | B184: 20 | C184: 13.4 | D184: 67.6 | E184: 252.1 | F184: 5.4 | G184: 32.9 | H184: 98.7 | I184: 2.8 | K184: 2.8 | L184: 0 | M184: 3.6 | O184: 3.876
A185: 2004-06-26 | B185: 17 | C185: 14.7 | D185: 86.8 | E185: 168.3 | F185: 3.4 | G185: 24.5 | H185: 98.9 | I185: 0 | J185: 1 | K185: 0.15 | L185: 0 | M185: 3.39 | O185: 3.862
A186: 2004-06-27 | B186: 20.5 | C186: 15 | D186: 71.8 | E186: 205 | F186: 2.9 | G186: 32.8 | H186: 98.9 | I186: 0 | K186: 0 | L186: 0 | M186: 3.2 | O186: 3.849
A187: 2004-06-28 | B187: 18.7 | C187: 16.4 | D187: 86.8 | E187: 161.3 | F187: 2.9 | G187: 13.8 | H187: 98.3 | I187: 19.2 | K187: 19.2 | L187: 0 | M187: 3.21 | O187: 3.849
A188: 2004-06-29 | B188: 18.7 | C188: 15.6 | D188: 82.5 | E188: 293.3 | F188: 4.6 | G188: 22.2 | H188: 98.8 | I188: 0.2 | K188: 0.2 | L188: 0 | M188: 3.27 | O188: 3.854
A189: 2004-06-30 | B189: 21.2 | C189: 15 | D189: 69.3 | E189: 172.5 | F189: 3.5 | G189: 23.6 | H189: 99.3 | I189: 0 | K189: 0 | L189: 0 | M189: 3.1 | O189: 3.842
A190: 2004-07-01 | B190: 20.4 | C190: 14.6 | D190: 69.7 | E190: 265 | F190: 5 | G190: 26.9 | H190: 99.3 | I190: 0 | K190: 0 | L190: 0 | M190: 2.87 | O190: 3.827
A191: 2004-07-02 | B191: 17.7 | C191: 8.5 | D191: 57.9 | E191: 175 | F191: 3.5 | G191: 33.9 | H191: 100.2 | I191: 0 | K191: 0 | L191: 0 | M191: 2.71 | O191: 3.816
A192: 2004-07-03 | B192: 19.5 | C192: 10.4 | D192: 58.1 | E192: 157.9 | F192: 3.6 | G192: 27.2 | H192: 100.1 | I192: 0 | K192: 0 | L192: 0 | M192: 2.64 | O192: 3.811
A193: 2004-07-04 | B193: 24.2 | C193: 18.7 | D193: 72.2 | E193: 195 | F193: 3.2 | G193: 21.9 | H193: 99.4 | I193: 1.8 | K193: 1.8 | L193: 0 | M193: 2.77 | O193: 3.82
A194: 2004-07-05 | B194: 25.9 | C194: 21.6 | D194: 78.7 | E194: 262.9 | F194: 3.3 | G194: 12.9 | H194: 99.3 | I194: 8.2 | K194: 8.2 | L194: 0 | M194: 3.95 | O194: 3.899
A195: 2004-07-06 | B195: 24.6 | C195: 20.6 | D195: 78.9 | E195: 168.8 | F195: 2.4 | G195: 14.8 | H195: 99.4 | I195: 5.6 | K195: 5.6 | L195: 0 | M195: 3.47 | O195: 3.867
A196: 2004-07-07 | B196: 25.4 | C196: 21.1 | D196: 77.9 | E196: 135.4 | F196: 3.1 | G196: 10.5 | H196: 99.4 | I196: 2.2 | K196: 2.2 | L196: 0 | M196: 3.53 | O196: 3.87
A197: 2004-07-08 | B197: 23.9 | C197: 18.6 | D197: 73.4 | E197: 238.3 | F197: 6.3 | G197: 21.6 | H197: 99.2 | I197: 1 | K197: 1 | L197: 0 | M197: 5.42 | O197: 3.993
A198: 2004-07-09 | B198: 18.7 | C198: 12.9 | D198: 70 | E198: 306.3 | F198: 5.2 | G198: 32.2 | H198: 99.6 | I198: 0 | J198: 1 | K198: 0.15 | L198: 0 | M198: 4.83 | O198: 3.955
A199: 2004-07-10 | B199: 19.1 | C199: 9.5 | D199: 56.8 | E199: 279.6 | F199: 2.9 | G199: 34.5 | H199: 99.9 | I199: 0 | K199: 0 | L199: 0 | M199: 3.96 | O199: 3.899
A200: 2004-07-11 | B200: 23.6 | C200: 16.7 | D200: 65.9 | E200: 242.1 | F200: 5.8 | G200: 22.3 | H200: 99.3 | I200: 0 | K200: 0 | L200: 0 | M200: 3.5 | O200: 3.869
... 539 more rows

Sheet Qual_data
A1: Date | B1: Time | C1: Concentr | D1: Discharge | E1: Season of Samples | G1: Flow | H1: CHLORIDES, mg/L
D2: Total | E2: Summer | F2: Winter | G2: component | I2: Base | J2: Inter+ | K2: Inter | L2: Storm
A3: 2004-01-08 | B3: 933 | C3: 89.4 | D3: =Flow!$B$15 -> 3.62 | F3: 89.4 | G3: =IF(D3=I3,"base",IF(AND(K3>0,L3>0),"storm","moderate")) -> base | H3: =IF(Temp!$G$15>Model!$O$19,"summer","winter") -> winter | I3: =Flow!$C$15 -> 3.62 | J3: =Flow!$E$15 -> 3.62 | K3: =J3-I3 -> 0 | L3: =D3-J3 -> 0
A4: 2004-02-25 | B4: 900 | C4: 135 | D4: =Flow!$B$63 -> 2.67 | F4: 135 | G4: base | H4: =IF(Temp!$G$63>Model!$O$19,"summer","winter") -> winter | I4: =Flow!$C$63 -> 2.67 | J4: =Flow!$E$63 -> 2.67 | K4: =J4-I4 -> 0 | L4: 0
A5: 2004-03-30 | B5: 910 | C5: 77.2 | D5: =Flow!$B$97 -> 14 | E5: 77.2 | G5: storm | H5: =IF(Temp!$G$97>Model!$O$19,"summer","winter") -> summer | I5: =Flow!$C$97 -> 5.2 | J5: =Flow!$E$97 -> 7.447614979 | K5: 2.247614979 | L5: 6.552385021
A6: 2004-04-28 | B6: 906 | C6: 71.1 | D6: =Flow!$B$126 -> 5.98 | E6: 71.1 | G6: base | H6: =IF(Temp!$G$126>Model!$O$19,"summer","winter") -> summer | I6: =Flow!$C$126 -> 5.98 | J6: =Flow!$E$126 -> 5.98 | K6: 0 | L6: 0
A7: 2004-05-26 | B7: 919 | C7: 51.5 | D7: =Flow!$B$154 -> 9.77 | E7: 51.5 | G7: storm | H7: =IF(Temp!$G$154>Model!$O$19,"summer","winter") -> summer | I7: =Flow!$C$154 -> 4.57 | J7: =Flow!$E$154 -> 6.068409986 | K7: 1.498409986 | L7: 3.701590014
A8: 2004-06-29 | B8: 907 | C8: 80.9 | D8: =Flow!$B$188 -> 3.27 | E8: 80.9 | G8: base | H8: =IF(Temp!$G$188>Model!$O$19,"summer","winter") -> summer | I8: =Flow!$C$188 -> 3.27 | J8: =Flow!$E$188 -> 3.27 | K8: 0 | L8: 0
A9: 2004-07-28 | B9: 910 | C9: 78.1 | D9: =Flow!$B$217 -> 3.37 | E9: 78.1 | G9: moderate | H9: =IF(Temp!$G$217>Model!$O$19,"summer","winter") -> summer | I9: =Flow!$C$217 -> 2.92 | J9: =Flow!$E$217 -> 3.37 | K9: 0.45 | L9: 0
A10: 2004-08-31 | B10: 900 | C10: 64.4 | D10: =Flow!$B$251 -> 4.49 | E10: 64.4 | G10: moderate | H10: =IF(Temp!$G$251>Model!$O$19,"summer","winter") -> summer | I10: =Flow!$C$251 -> 2.64 | J10: =Flow!$E$251 -> 4.49 | K10: 1.85 | L10: 0
A11: 2004-09-23 | B11: 931 | C11: 93.4 | D11: =Flow!$B$274 -> 2.3 | E11: 93.4 | G11: base | H11: =IF(Temp!$G$274>Model!$O$19,"summer","winter") -> summer | I11: =Flow!$C$274 -> 2.3 | J11: =Flow!$E$274 -> 2.3 | K11: 0 | L11: 0
A12: 2004-10-27 | B12: 930 | C12: 84.2 | D12: =Flow!$B$308 -> 2.75 | E12: 84.2 | G12: base | H12: =IF(Temp!$G$308>Model!$O$19,"summer","winter") -> summer | I12: =Flow!$C$308 -> 2.75 | J12: =Flow!$E$308 -> 2.75 | K12: 0 | L12: 0
A13: 2004-11-30 | B13: 921 | C13: 95.7 | D13: =Flow!$B$342 -> 3.85 | F13: 95.7 | G13: moderate | H13: =IF(Temp!$G$342>Model!$O$19,"summer","winter") -> summer | I13: =Flow!$C$342 -> 3.47 | J13: =Flow!$E$342 -> 3.85 | K13: 0.38 | L13: 0
A14: 2005-01-10 | B14: 923 | C14: 86 | D14: =Flow!$B$383 -> 4.67 | F14: 86 | G14: moderate | H14: =IF(Temp!$G$383>Model!$O$19,"summer","winter") -> winter | I14: =Flow!$C$383 -> 4.4 | J14: =Flow!$E$383 -> 4.67 | K14: 0.27 | L14: 0
A15: 2005-01-27 | B15: 945 | C15: 93.7 | D15: =Flow!$B$400 -> 3.8 | F15: 93.7 | G15: base | H15: =IF(Temp!$G$400>Model!$O$19,"summer","winter") -> winter | I15: =Flow!$C$400 -> 3.8 | J15: =Flow!$E$400 -> 3.8 | K15: 0 | L15: 0
A16: 2005-02-24 | B16: 925 | C16: 95.1 | D16: =Flow!$B$428 -> 3.75 | F16: 95.1 | G16: base | H16: =IF(Temp!$G$428>Model!$O$19,"summer","winter") -> winter | I16: =Flow!$C$428 -> 3.75 | J16: =Flow!$E$428 -> 3.75 | K16: 0 | L16: 0
A17: 2005-03-31 | B17: 917 | C17: 50.6 | D17: =Flow!$B$463 -> 17.8 | E17: 50.6 | G17: storm | H17: =IF(Temp!$G$463>Model!$O$19,"summer","winter") -> summer | I17: =Flow!$C$463 -> 4.88 | J17: =Flow!$E$463 -> 8.172217476 | K17: 3.292217476 | L17: 9.627782524
A18: 2005-04-28 | B18: 940 | C18: 64.6 | D18: =Flow!$B$491 -> 10.9 | E18: 64.6 | G18: storm | H18: =IF(Temp!$G$491>Model!$O$19,"summer","winter") -> summer | I18: =Flow!$C$491 -> 6.66 | J18: =Flow!$E$491 -> 8.907614979 | K18: 2.247614979 | L18: 1.992385021
A19: 2005-05-26 | B19: 917 | C19: 80.4 | D19: =Flow!$B$519 -> 4.32 | E19: 80.4 | G19: base | H19: =IF(Temp!$G$519>Model!$O$19,"summer","winter") -> summer | I19: =Flow!$C$519 -> 4.32 | J19: =Flow!$E$519 -> 4.32 | K19: 0 | L19: 0
A20: 2005-06-29 | B20: 923 | C20: 87.7 | D20: =Flow!$B$553 -> 2.85 | E20: 87.7 | G20: moderate | H20: =IF(Temp!$G$553>Model!$O$19,"summer","winter") -> summer | I20: =Flow!$C$553 -> 2.54 | J20: =Flow!$E$553 -> 2.85 | K20: 0.31 | L20: 0
A21: 2005-07-28 | B21: 915 | C21: 90 | D21: =Flow!$B$582 -> 2.47 | E21: 90 | G21: base | H21: =IF(Temp!$G$582>Model!$O$19,"summer","winter") -> summer | I21: =Flow!$C$582 -> 2.47 | J21: =Flow!$E$582 -> 2.47 | K21: 0 | L21: 0
A22: 2005-08-31 | B22: 930 | C22: 74.1 | D22: =Flow!$B$616 -> 4.53 | E22: 74.1 | G22: storm | H22: =IF(Temp!$G$616>Model!$O$19,"summer","winter") -> summer | I22: =Flow!$C$616 -> 2.87 | J22: =Flow!$E$616 -> 3.244602497 | K22: 0.3746024966 | L22: 1.285397503
A23: 2005-09-29 | B23: 933 | C23: 71.6 | D23: =Flow!$B$645 -> 4.89 | E23: 71.6 | G23: storm | H23: =IF(Temp!$G$645>Model!$O$19,"summer","winter") -> summer | I23: =Flow!$C$645 -> 2.98 | J23: =Flow!$E$645 -> 4.354602497 | K23: 1.374602497 | L23: 0.5353975034
A24: 2005-10-27 | B24: 928 | C24: 81.3 | D24: =Flow!$B$673 -> 3.54 | E24: 81.3 | G24: moderate | H24: =IF(Temp!$G$673>Model!$O$19,"summer","winter") -> summer | I24: =Flow!$C$673 -> 3.38 | J24: =Flow!$E$673 -> 3.54 | K24: 0.16 | L24: 0
A25: 2005-11-30 | B25: 931 | C25: 59.5 | D25: =Flow!$B$707 -> 18.3 | F25: 59.5 | G25: storm | H25: =IF(Temp!$G$707>Model!$O$19,"summer","winter") -> winter | I25: =Flow!$C$707 -> 3.8 | J25: =Flow!$E$707 -> 5.09380749 | K25: 1.29380749 | L25: 13.20619251

Sheet Summary
A1: =Data!A1 -> Credit R. at Norval | D1: Benchmark (MAK) | U1: Cross-correlation results for selected variables
D2: Base | E2: Inter | F2: Storm | G2: Total | U2: Components
C3: mg/L | D3: =D12 -> 250 | E3: =+D$3*0.75 -> 187.5 | F3: =+D$3*0.5 -> 125 | G3: =(D3*B7+E3*C7*Result!T33/730+F3*D7*Result!U33/730)/E7 -> 208.9770847 | U3: =Correl!AN740 -> Ranged average | W3: =Correl!AP740 -> Ranged ABS average
B4: Base | C4: Inter | D4: Surface | E4: Total | F4: Base | G4: Inter | H4: Surface | I4: Total | U4: =Correl!AN741 -> 0.1437655593 | V4: =Correl!AO741 -> Prec_B | W4: =Correl!AP741 -> 0.2605798821 | X4: =Correl!AQ741 -> Temp_B
B5: m3/s | C5: m3/s | D5: m3/s | E5: m3/s | F5: tons | G5: tons | H5: tons | I5: tons | U5: =Correl!AN742 -> 0.1262784779 | V5: =Correl!AO742 -> Snow_B | W5: =Correl!AP742 -> 0.2072877941 | X5: =Correl!AQ742 -> Snow_B
U6: =Correl!AN743 -> 0.1256649478 | V6: =Correl!AO743 -> LevelNorval_B | W6: =Correl!AP743 -> 0.1993519172 | X6: =Correl!AQ743 -> Prec_B
A7: Year | B7: =Result!B740 -> 3.611395349 | C7: =Result!C740 -> 0.9624423239 | D7: =Result!D740 -> 3.232729195 | E7: =Result!E740 -> 4.717127223 | F7: =B7*D3*31.54 -> 28475.85233 | G7: =C7*E3*Result!T50*0.0864 -> 2611.587246 | H7: =D7*F3*Result!U50*0.0864 -> 2618.510648 | I7: =F7+G7+H7 -> 33705.95022 | J7: Natural or benchmark | U7: =Correl!AN744 -> 0.125129596 | V7: =Correl!AO744 -> Wind_I | W7: =Correl!AP744 -> 0.1961294501 | X7: =Correl!AQ744 -> LevelNorval_B
F8: =Result!AB50 -> 9637.098226 | G8: =Result!AC50 -> 863.2278903 | H8: =Result!AD50 -> 1325.284497 | I8: =F8+G8+H8 -> 11825.61061 | J8: Real | U8: =Correl!AN745 -> 0.1216816106 | V8: =Correl!AO745 -> Snow_I | W8: =Correl!AP745 -> 0.1817595309 | X8: =Correl!AQ745 -> Pressure_S
F9: =F8/F7*100 -> 33.84305452 | G9: =G8/G7*100 -> 33.05376421 | H9: =H8/H7*100 -> 50.61214847 | I9: =I8/I7*100 -> 35.08463798 | J9: % | U9: =Correl!AN746 -> 0.1208803031 | V9: =Correl!AO746 -> Prec_I | W9: =Correl!AP746 -> 0.1813558753 | X9: =Correl!AQ746 -> Prec_I
E10: Impact | F10: =F9-100 -> -66.15694548 | G10: =G9-100 -> -66.94623579 | H10: =H9-100 -> -49.38785153 | I10: =I9-100 -> -64.91536202 | J10: % | U10: =Correl!AN747 -> 0.1084275468 | V10: =Correl!AO747 -> Snow_S | W10: =Correl!AP747 -> 0.1750976728 | X10: =Correl!AQ747 -> Pressure_I
C11: Chlorides | U11: =Correl!AN748 -> 0.1069117109 | V11: =Correl!AO748 -> Wind_S | W11: =Correl!AP748 -> 0.1738025878 | X11: =Correl!AQ748 -> Humid_S
C12: MAC (Canada) = 250 | D12: 250 | U12: =Correl!AN749 -> 0.1011465893 | V12: =Correl!AO749 -> Wind_B | W12: =Correl!AP749 -> 0.1716713781 | X12: =Correl!AQ749 -> Wind_B
C13: AL (Canada) = 10 | D13: 10 | U13: =Correl!AN750 -> 0.09240598803 | V13: =Correl!AO750 -> WinDir_S | W13: =Correl!AP750 -> 0.170884054 | X13: =Correl!AQ750 -> Snow_I
U14: =Correl!AN751 -> 0.0901674118 | V14: =Correl!AO751 -> WinDir_I | W14: =Correl!AP751 -> 0.1619151566 | X14: =Correl!AQ751 -> Wind_I
J15: Amplitude | Q15: Average | U15: =Correl!AN752 -> 0.08955886272 | V15: =Correl!AO752 -> Temp_S | W15: =Correl!AP752 -> 0.1606398854 | X15: =Correl!AQ752 -> Prec_S
A16: Variables | B16: dQb | C16: Nb | D16: dQmax | E16: Nmax | F16: Kmax | G16: dQi | H16: Ni | I16: Ki | J16: Base share | K16: Inter share | L16: Storm share | M16: HEI | N16: PBD | O16: PID | P16: PSD | Q16: Base share | R16: Inter share | S16: Storm share | U16: =Correl!AN753 -> 0.08707461 | V16: =Correl!AO753 -> LevelNorval_I | W16: =Correl!AP753 -> 0.1586809194 | X16: =Correl!AQ753 -> WinDir_B
A17: Temperature, °C | B17: =Temp!$C$3 -> 1.19 | C17: =Temp!$D$3 -> 127 | D17: =Temp!$G$5 -> 11.86764337 | E17: =Temp!$H$5 -> 2 | F17: =Temp!$G$4 -> 2.7 | G17: =Temp!$E$5 -> 1.826347854 | H17: =Temp!$F$5 -> 111 | I17: =Temp!E$4 -> 0 | J17: =Temp!L$4 -> 0.7510065425 | K17: =Temp!L$5 -> 0.09516575229 | L17: =Temp!L$6 -> 0.1538277052 | M17: =(L17-K17)/(J$17-K$17)*(I17-I$17) -> 0 | N17: =B17*C17*M17 -> 0 | O17: =G17*H17*M17 -> 0 | P17: =D17*E17*M17 -> 0 | Q17: =Temp!M$4 -> 0.7658157386 | R17: =Temp!M$5 -> 0.09342132699 | S17: =Temp!M$6 -> 0.1407629344 | U17: =Correl!AN754 -> 0.08345237295 | V17: =Correl!AO754 -> Humid_B | W17: =Correl!AP754 -> 0.1577105188 | X17: =Correl!AQ754 -> Humid_B
A18: Dew point | B18: =Dew!$C$3 -> 1.49 | C18: =Dew!$D$3 -> 130 | D18: =Dew!$G$5 -> 12.93593411 | E18: =Dew!$H$5 -> 3 | F18: =Dew!$G$4 -> 2.5 | G18: =Dew!$E$5 -> 2.060954037 | H18: =Dew!$F$5 -> 120 | I18: =Dew!E$4 -> -0.15 | J18: =Dew!L$4 -> 0.8033042247 | K18: =Dew!L$5 -> 0.06398970325 | L18: =Dew!L$6 -> 0.1327060721 | M18: -0.01571639867 | N18: -3.044266422 | O18: -3.886893035 | P18: -0.609918893 | Q18: =Dew!M$4 -> 0.1597840481 | R18: =Dew!M$5 -> 0.2530781222 | S18: =Dew!M$6 -> 0.5871378298 | U18: =Correl!AN755 -> 0.07953620716 | V18: =Correl!AO755 -> Prec_S | W18: =Correl!AP755 -> 0.1544152779 | X18: =Correl!AQ755 -> Humid_I
A19: Stn Press (kPa) | B19: =Pressure!$C$3 -> 0.27 | C19: =Pressure!$D$3 -> 140 | D19: =Pressure!$G$5 -> 1.923946673 | E19: =Pressure!$H$5 -> 1 | F19: =Pressure!$G$4 -> 2.8 | G19: =Pressure!$E$5 -> 0.3734614698 | H19: =Pressure!$F$5 -> 122 | I19: =Pressure!E$4 -> -0.15 | J19: =Pressure!L$4 -> 0.797082658 | K19: =Pressure!L$5 -> 0.05688190934 | L19: =Pressure!L$6 -> 0.1460354326 | M19: -0.02039066294 | N19: -0.7707670591 | O19: -0.9290454881 | P19: -0.03923054812 | Q19: =Pressure!M$4 -> 0.9970248277 | R19: =Pressure!M$5 -> 0.000953075725 | S19: =Pressure!M$6 -> 0.002022096539 | U19: =Correl!AN756 -> 0.07363630691 | V19: =Correl!AO756 -> LevelNorval_S | W19: =Correl!AP756 -> 0.149284243 | X19: =Correl!AQ756 -> Snow_S
A20: Visibility (km) | B20: =Visblty!$C$3 -> 3.1 | C20: =Visblty!$D$3 -> 155 | D20: =Visblty!$G$5 -> 24.55593754 | E20: =Visblty!$H$5 -> 1 | F20: =Visblty!$G$4 -> 2 | G20: =Visblty!$E$5 -> 4.00074372 | H20: =Visblty!$F$5 -> 155 | I20: =Visblty!E$4 -> -0.25 | J20: =Visblty!L$4 -> 0.8425731372 | K20: =Visblty!L$5 -> 0.0464260531 | L20: =Visblty!L$6 -> 0.1110008097 | M20: -0.0246152563 | N20: -11.82763065 | O20: -15.26429647 | P20: -0.6044506962 | Q20: =Visblty!M$4 -> 0.8151262542 | R20: =Visblty!M$5 -> 0.04101216996 | S20: =Visblty!M$6 -> 0.1438615758 | U20: =Correl!AN757 -> 0.06354648484 | V20: =Correl!AO757 -> Humid_I | W20: =Correl!AP757 -> 0.1490058655 | X20: =Correl!AQ757 -> Temp_S
A21: Wind Dir (10's deg) | B21: =WinD!$C$3 -> 34 | C21: =WinD!$D$3 -> 164 | D21: =WinD!$G$5 -> 251.233929 | E21: =WinD!$H$5 -> 2 | F21: =WinD!$G$4 -> 2.6 | G21: =WinD!$E$5 -> 47.02848139 | H21: =WinD!$F$5 -> 153 | I21: =WinD!E$4 -> -0.15 | J21: =WinD!L$4 -> 0.8153567608 | K21: =WinD!L$5 -> 0.06477260476 | L21: =WinD!L$6 -> 0.1198706345 | M21: -0.01260169325 | N21: -70.26704156 | O21: -90.67368995 | P21: -6.331945813 | Q21: =WinD!M$4 -> 0.8380447589 | R21: =WinD!M$5 -> 0.04871523868 | S21: =WinD!M$6 -> 0.1132400024 | U21: =Correl!AN758 -> 0.06152724727 | V21: =Correl!AO758 -> Pressure_B | W21: =Correl!AP758 -> 0.1469234496 | X21: =Correl!AQ758 -> Wind_S
A22: Rel Hum (%) | B22: =Humid!$C$3 -> 2.3 | C22: =Humid!$D$3 -> 147 | D22: =Humid!$G$5 -> 40.90067933 | E22: =Humid!$H$5 -> 2 | F22: =Humid!$G$4 -> 3.2 | G22: =Humid!$E$5 -> 4.345836389 | H22: =Humid!$F$5 -> 138 | I22: =Humid!E$4 -> 0.3 | J22: =Humid!L$4 -> 0.6141810919 | K22: =Humid!L$5 -> 0.1245471106 | L22: =Humid!L$6 -> 0.2612717975 | M22: 0.06254171237 | N22: 21.14535295 | O22: 37.50785482 | P22: 5.115997044 | Q22: =Humid!M$4 -> 0.9113067921 | R22: =Humid!M$5 -> 0.03461471756 | S22: =Humid!M$6 -> 0.05407849038 | U22: =Correl!AN759 -> 0.05907467797 | V22: =Correl!AO759 -> Cl_c_S | W22: =Correl!AP759 -> 0.1434698532 | X22: =Correl!AQ759 -> WinDir_I
A23: Precipitation | B23: =Precip!$C$3 -> 0.14 | C23: =Precip!$D$3 -> 164 | D23: =Precip!$G$5 -> 38.89462069 | E23: =Precip!$H$5 -> 1 | F23: =Precip!$G$4 -> 7.5 | G23: =Precip!$E$5 -> 1.058116686 | H23: =Precip!$F$5 -> 125 | I23: =Precip!E$4 -> 2.3 | J23: =Precip!L$4 -> 0.02000998004 | K23: =Precip!L$5 -> 0.08326613593 | L23: =Precip!L$6 -> 0.896723884 | M23: 2.852754584 | N23: 65.49924524 | O23: 377.3184032 | P23: 110.9568075 | Q23: =Precip!M$4 -> 0.05022756729 | R23: =Precip!M$5 -> 0.1627101735 | S23: =Precip!M$6 -> 0.7870622592 | U23: =Correl!AN760 -> 0.05195580332 | V23: =Correl!AO760 -> Humid_S | W23: =Correl!AP760 -> 0.1348508665 | X23: =Correl!AQ760 -> Temp_I
A24: Wind Spd (km/h) | B24: =Win!$C$3 -> 0.47 | C24: =Win!$D$3 -> 166 | D24: =Win!$G$5 -> 6.87566251 | E24: =Win!$H$5 -> 2 | F24: =Win!$G$4 -> 3 | G24: =Win!$E$5 -> 1.034355893 | H24: =Win!$F$5 -> 145 | I24: =Win!E$4 -> 0.52 | J24: =Win!L$4 -> 0.5307142857 | K24: =Win!L$5 -> 0.1749426496 | L24: =Win!L$6 -> 0.2943430647 | M24: 0.09466964666 | N24: 7.386125832 | O24: 14.1987055 | P24: 1.301833081 | Q24: =Win!M$4 -> 0.7588268812 | R24: =Win!M$5 -> 0.1133938588 | S24: =Win!M$6 -> 0.12777926 | U24: =Correl!AN761 -> 0.05156024463 | V24: =Correl!AO761 -> Cl_c_I | W24: =Correl!AP761 -> 0.1345190754 | X24: =Correl!AQ761 -> WinDir_S
A25: Snow, cm | B25: =Snow!$C$3 -> 0.81 | C25: =Snow!$D$3 -> 33 | D25: =Snow!$G$5 -> 10.52736088 | E25: =Snow!$H$5 -> 1 | F25: =Snow!$G$4 -> 3.1 | G25: =Snow!$E$5 -> 1.530490206 | H25: =Snow!$F$5 -> 26 | I25: =Snow!E$4 -> 0.3 | J25: =Snow!L$4 -> 0.6101693784 | K25: =Snow!L$5 -> 0.1512511662 | L25: =Snow!L$6 -> 0.2385794554 | M25: 0.03994641255 | N25: 1.067767607 | O25: 1.589577423 | P25: 0.4205303008 | Q25: =Snow!M$4 -> 0.6513355408 | R25: =Snow!M$5 -> 0.1350616816 | S25: =Snow!M$6 -> 0.2136027776 | U25: =Correl!AN762 -> 0.05155800919 | V25: =Correl!AO762 -> Temp_I | W25: =Correl!AP762 -> 0.128243559 | X25: =Correl!AQ762 -> Cl_c_I
A26: HB018 flow | B26: =Flow!$C$3 -> 0.09 | C26: =Flow!$D$3 -> 67 | D26: =Flow!$G$5 -> 13.39914288 | E26: =Flow!$H$5 -> 1 | F26: =Flow!$G$4 -> 6.6 | G26: =Flow!$E$5 -> 0.4646024966 | H26: =Flow!$F$5 -> 46 | I26: =Flow!E$4 -> 1.75 | J26: =Flow!L$4 -> 0.1548553917 | K26: =Flow!L$5 -> 0.1668116491 | L26: =Flow!L$6 -> 0.6783329592 | M26: 1.364907926 | N26: 8.230394793 | O26: 29.17042298 | P26: 18.28859631 | Q26: =Flow!M$4 -> 0.7655921026 | R26: =Flow!M$5 -> 0.0937818993 | S26: =Flow!M$6 -> 0.1406259981 | U26: =Correl!AN763 -> 0.04804594807 | V26: =Correl!AO763 -> Pressure_S | W26: =Correl!AP763 -> 0.1274605733 | X26: =Correl!AQ763 -> LevelNorval_I
A27: HB018 level | B27: =Level!$C$3 -> 0.01 | C27: =Level!$D$3 -> 82 | D27: =Level!$G$5 -> 0.4582299972 | E27: =Level!$H$5 -> 1 | F27: =Level!$G$4 -> 4.9 | G27: =Level!$E$5 -> 0.03525920632 | H27: =Level!$F$5 -> 60 | I27: =Level!E$4 -> 1.2 | J27: =Level!L$4 -> 0.3106014886 | K27: =Level!L$5 -> 0.2208994867 | L27: =Level!L$6 -> 0.4684990247 | M27: 0.4530359349 | N27: 0.3714894666 | O27: 0.9584212498 | P27: 0.2075946552 | Q27: =Level!M$4 -> 0.9856441895 | R27: =Level!M$5 -> 0.007512421955 | S27: =Level!M$6 -> 0.006843388583 | U27: =Correl!AN764 -> 0.03149878014 | V27: =Correl!AO764 -> WinDir_B | W27: =Correl!AP764 -> 0.122978818 | X27: =Correl!AQ764 -> Cl_c_B
A28: Chlorides conc, mg/L | B28: =Conc_sep!$C$3 -> 1.55 | C28: =Conc_sep!$D$3 -> 69 | D28: =Conc_sep!$G$5 -> 38.06170318 | E28: =Conc_sep!$H$5 -> 1 | F28: =Conc_sep!$G$4 -> 4 | G28: =Conc_sep!$E$5 -> 2.297823865 | H28: =Conc_sep!$F$5 -> 59 | I28: =Conc_sep!E$4 -> -0.05 | J28: =Conc_sep!M$4 -> 0.7640169375 | K28: =Conc_sep!M$5 -> 0.05166921927 | L28: =Conc_sep!M$6 -> 0.1843138432 | M28: -0.01011256283 | N28: -1.081538594 | O28: -1.370976404 | P28: -0.3849013647 | Q28: =Conc_sep!N$4 -> 0.9100082156 | R28: =Conc_sep!N$5 -> 0.0305226704 | S28: =Conc_sep!N$6 -> 0.05946911403 | U28: =Correl!AN765 -> 0.02654530191 | V28: =Correl!AO765 -> Pressure_I | W28: =Correl!AP765 -> 0.1054768106 | X28: =Correl!AQ765 -> Cl_c_S
A29: Chlorides loads, tonns | B29: =Load_sep!$C$3 -> 0.38 | C29: =Load_sep!$D$3 -> 65 | D29: =Load_sep!$G$5 -> 37.32502505 | E29: =Load_sep!$H$5 -> 1 | F29: =Load_sep!$G$4 -> 6 | G29: =Load_sep!$E$4 -> 1.7 | H29: =Load_sep!$F$5 -> 51 | I29: =Load_sep!E$4 -> 1.7 | J29: =Load_sep!M$4 -> 0.1624085408 | K29: =Load_sep!M$5 -> 0.1273700427 | L29: =Load_sep!M$6 -> 0.7102214165 | M29: 1.51080468 | N29: 37.31687561 | O29: 130.9867658 | P29: 56.39082255 | Q29: =Load_sep!N$4 -> 0.8098050318 | R29: =Load_sep!N$5 -> 0.05692516653 | S29: =Load_sep!N$6 -> 0.1332698017 | U29: =Correl!AN766 -> 0.01587072877 | V29: =Correl!AO766 -> Cl_c_B | W29: =Correl!AP766 -> 0.09987855879 | X29: =Correl!AQ766 -> LevelNorval_S
I30: -0.62 | J30: 1 | K30: 0 | L30: 0 | M30: 0 | U30: =Correl!AN767 -> -0.1492106215 | V30: =Correl!AO767 -> Temp_B | W30: =Correl!AP767 -> 0.07332123766 | X30: =Correl!AQ767 -> Pressure_B
I31: 1 | J31: 0.38 | K31: 0.17 | L31: 0.45
U32: =Correl!M799 -> Ranged averages | W32: =Correl!O799 -> Ranged ABS averages
U33: =Correl!M800 -> 0.1761266625 | V33: =Correl!N800 -> Wind_T | W33: =Correl!O800 -> 0.3665396854 | X33: =Correl!P800 -> Temp_T
U34: =Correl!M801 -> 0.1746371715 | V34: =Correl!N801 -> Snow_T | W34: =Correl!O801 -> 0.3139950515 | X34: =Correl!P801 -> Snow_T
U35: =Correl!M802 -> 0.1639610189 | V35: =Correl!N802 -> Humid_T | W35: =Correl!O802 -> 0.2620056302 | X35: =Correl!P802 -> Wind_T
U36: =Correl!M803 -> 0.150365003 | V36: =Correl!N803 -> Press_T | W36: =Correl!O803 -> 0.2597471963 | X36: =Correl!P803 -> Cl_c_T
U37: =Correl!M804 -> 0.1350110871 | V37: =Correl!N804 -> Cl_c_T | W37: =Correl!O804 -> 0.2529356884 | X37: =Correl!P804 -> Humid_T
U38: =Correl!M805 -> 0.1277927034 | V38: =Correl!N805 -> Prec_T | W38: =Correl!O805 -> 0.2509459938 | X38: =Correl!P805 -> WD_T
U39: =Correl!M806 -> 0.121514524 | V39: =Correl!N806 -> WD_T | W39: =Correl!O806 -> 0.2406789436 | X39: =Correl!P806 -> Level_T
U40: =Correl!M807 -> 0.1081245427 | V40: =Correl!N807 -> Level_T | W40: =Correl!O807 -> 0.2139689262 | X40: =Correl!P807 -> Prec_T
U41: =Correl!M808 -> -0.1238860702 | V41: =Correl!N808 -> Temp_T | W41: =Correl!O808 -> 0.1633986762 | X41: =Correl!P808 -> Press_T

Sheet Sorted
A1: Date | B1: Time | C1: Concentr | D1: Discharge | E1: Season of Samples | G1: Flow | H1: =Qual_data!$H$1 -> CHLORIDES, mg/L
D2: Total | E2: Summer | F2: Winter | G2: component | I2: Base | J2: Inter+ | K2: Inter | L2: Storm
A3: 2004-01-08 | B3: 933 | C3: 89.4 | D3: =Flow!$B$15 -> 3.62 | F3: 89.4 | G3: =IF(D3=I3,"base",IF(AND(K3>0,L3>0),"storm","moderate")) -> base | H3: =IF(Temp!$G$15>Model!$O$19,"summer","winter") -> winter | I3: =Flow!$C$15 -> 3.62 | J3: =Flow!$E$15 -> 3.62 | K3: =J3-I3 -> 0 | L3: =D3-J3 -> 0
A4: 2004-02-25 | B4: 900 | C4: 135 | D4: =Flow!$B$63 -> 2.67 | F4: 135 | G4: base | H4: =IF(Temp!$G$63>Model!$O$19,"summer","winter") -> winter | I4: =Flow!$C$63 -> 2.67 | J4: =Flow!$E$63 -> 2.67 | K4: 0 | L4: 0
A5: 2004-04-28 | B5: 906 | C5: 71.1 | D5: =Flow!$B$126 -> 5.98 | E5: 71.1 | G5: base | H5: =IF(Temp!$G$126>Model!$O$19,"summer","winter") -> summer | I5: =Flow!$C$126 -> 5.98 | J5: =Flow!$E$126 -> 5.98 | K5: 0 | L5: 0
A6: 2004-06-29 | B6: 907 | C6: 80.9 | D6: =Flow!$B$188 -> 3.27 | E6: 80.9 | G6: base | H6: =IF(Temp!$G$188>Model!$O$19,"summer","winter") -> summer | I6: =Flow!$C$188 -> 3.27 | J6: =Flow!$E$188 -> 3.27 | K6: 0 | L6: 0
A7: 2004-09-23 | B7: 931 | C7: 93.4 | D7: =Flow!$B$274 -> 2.3 | E7: 93.4 | G7: base | H7: =IF(Temp!$G$274>Model!$O$19,"summer","winter") -> summer | I7: =Flow!$C$274 -> 2.3 | J7: =Flow!$E$274 -> 2.3 | K7: 0 | L7: 0
A8: 2004-10-27 | B8: 930 | C8: 84.2 | D8: =Flow!$B$308 -> 2.75 | E8: 84.2 | G8: base | H8: =IF(Temp!$G$308>Model!$O$19,"summer","winter") -> summer | I8: =Flow!$C$308 -> 2.75 | J8: =Flow!$E$308 -> 2.75 | K8: 0 | L8: 0 | M8: Base | O8: Inter Calc | Q8: Storm Calc
A9: 2005-01-27 | B9: 945 | C9: 93.7 | D9: =Flow!$B$400 -> 3.8 | F9: 93.7 | G9: base | H9: =IF(Temp!$G$400>Model!$O$19,"summer","winter") -> winter | I9: =Flow!$C$400 -> 3.8 | J9: =Flow!$E$400 -> 3.8 | K9: 0 | L9: 0 | M9: summer | N9: winter | O9: summer | P9: winter | Q9: summer | R9: winter
A10: 2005-02-24 | B10: 925 | C10: 95.1 | D10: =Flow!$B$428 -> 3.75 | F10: 95.1 | G10: base | H10: =IF(Temp!$G$428>Model!$O$19,"summer","winter") -> winter | I10: =Flow!$C$428 -> 3.75 | J10: =Flow!$E$428 -> 3.75 | K10: 0 | L10: 0 | M10: =Model!$O$17 -> 112 | N10: =Model!$O$16 -> 350 | O10: =Model!O13 -> 10 | P10: =Model!O12 -> 200
A11: 2005-05-26 | B11: 917 | C11: 80.4 | D11: =Flow!$B$519 -> 4.32 | E11: 80.4 | G11: base | H11: =IF(Temp!$G$519>Model!$O$19,"summer","winter") -> summer | I11: =Flow!$C$519 -> 4.32 | J11: =Flow!$E$519 -> 4.32 | K11: 0 | L11: 0 | M11: -0.25 | N11: =Model!$P$16 -> -1 | O11: =Model!P13 -> 0.7 | P11: =Model!P12 -> -0.1
A12: 2005-07-28 | B12: 915 | C12: 90 | D12: =Flow!$B$582 -> 2.47 | E12: 90 | G12: base | H12: =IF(Temp!$G$582>Model!$O$19,"summer","winter") -> summer | I12: =Flow!$C$582 -> 2.47 | J12: =Flow!$E$582 -> 2.47 | K12: 0 | L12: 0
A13: 2004-07-28 | B13: 910 | C13: 78.1 | D13: =Flow!$B$217 -> 3.37 | E13: 78.1 | G13: moderate | H13: =IF(Temp!$G$217>Model!$O$19,"summer","winter") -> summer | I13: =Flow!$C$217 -> 2.92 | J13: =Flow!$E$217 -> 3.37 | K13: 0.45 | L13: 0 | M13: =M$10*$I13^M$11 -> 85.67858981 | N13: 119.8630137 | O13: =IF(($D13*$C13-I13*M13)<0,M13,($D13*$C13-I13*M13)/$K13) -> 28.92337278
A14: 2004-08-31 | B14: 900 | C14: 64.4 | D14: =Flow!$B$251 -> 4.49 | E14: 64.4 | G14: moderate | H14: =IF(Temp!$G$251>Model!$O$19,"summer","winter") -> summer | I14: =Flow!$C$251 -> 2.64 | J14: =Flow!$E$251 -> 4.49 | K14: 1.85 | L14: 0 | M14: 87.86522813 | N14: 132.5757576 | O14: 30.91448526
A15: 2004-11-30 | B15: 921 | C15: 95.7 | D15: =Flow!$B$342 -> 3.85 | F15: 95.7 | G15: moderate | H15: =IF(Temp!$G$342>Model!$O$19,"summer","winter") -> summer | I15: =Flow!$C$342 -> 3.47 | J15: =Flow!$E$342 -> 3.85 | K15: 0.38 | L15: 0 | M15: 82.06078251 | N15: 100.8645533 | O15: 220.2475913
A16: 2005-01-10 | B16: 923 | C16: 86 | D16: =Flow!$B$383 -> 4.67 | F16: 86 | G16: moderate | H16: =IF(Temp!$G$383>Model!$O$19,"summer","winter") -> winter | I16: =Flow!$C$383 -> 4.4 | J16: =Flow!$E$383 -> 4.67 | K16: 0.27 | L16: 0 | M16: 77.33121853 | N16: 79.54545455 | O16: 227.2690313 | P16: =IF(($D16*$C16-J16*N16)<0,N16,($D16*$C16-J16*N16)/$K16) -> 111.6397306
A17: 2005-06-29 | B17: 923 | C17: 87.7 | D17: =Flow!$B$553 -> 2.85 | E17: 87.7 | G17: moderate | H17: =IF(Temp!$G$553>Model!$O$19,"summer","winter") -> summer | I17: =Flow!$C$553 -> 2.54 | J17: =Flow!$E$553 -> 2.85 | K17: 0.31 | L17: 0 | M17: 88.71756094 | N17: 137.7952756 | O17: 79.36256518
A18: 2005-10-27 | B18: 928 | C18: 81.3 | D18: =Flow!$B$673 -> 3.54 | E18: 81.3 | G18: moderate | H18: =IF(Temp!$G$673>Model!$O$19,"summer","winter") -> summer | I18: =Flow!$C$673 -> 3.38 | J18: =Flow!$E$673 -> 3.54 | K18: 0.16 | L18: 0 | M18: 82.60167377 | N18: 103.5502959 | O18: 53.80214154
A19: 2004-03-30 | B19: 910 | C19: 77.2 | D19: =Flow!$B$97 -> 14 | E19: 77.2 | G19: storm | H19: =IF(Temp!$G$97>Model!$O$19,"summer","winter") -> summer | I19: =Flow!$C$97 -> 5.2 | J19: =Flow!$E$97 -> 7.447614979 | K19: 2.247614979 | L19: 6.552385021 | M19: 74.16810566 | N19: 67.30769231 | O19: =O$10*$I19^O$11 -> 31.71044529 | P19: 169.6014892 | Q19: =($D19*$C19-$I19*M19-$K19*O19)/L19 -> 95.21006119
A20: 2004-05-26 | B20: 919 | C20: 51.5 | D20: =Flow!$B$154 -> 9.77 | E20: 51.5 | G20: storm | H20: =IF(Temp!$G$154>Model!$O$19,"summer","winter") -> summer | I20: =Flow!$C$154 -> 4.57 | J20: =Flow!$E$154 -> 6.068409986 | K20: 1.498409986 | L20: 3.701590014 | M20: 76.60179961 | N20: 76.58643326 | O20: 28.96952271 | P20: 171.8060194 | Q20: 29.62957898
A21: 2005-03-31 | B21: 917 | C21: 50.6 | D21: =Flow!$B$463 -> 17.8 | E21: 50.6 | G21: storm | H21: =IF(Temp!$G$463>Model!$O$19,"summer","winter") -> summer | I21: =Flow!$C$463 -> 4.88 | J21: =Flow!$E$463 -> 8.172217476 | K21: 3.292217476 | L21: 9.627782524 | M21: 75.3551723 | N21: 71.72131148 | O21: 30.3314991 | P21: 170.6821141 | Q21: 44.98324164
A22: 2005-04-28 | B22: 940 | C22: 64.6 | D22: =Flow!$B$491 -> 10.9 | E22: 64.6 | G22: storm | H22: =IF(Temp!$G$491>Model!$O$19,"summer","winter") -> summer | I22: =Flow!$C$491 -> 6.66 | J22: =Flow!$E$491 -> 8.907614979 | K22: 2.247614979 | L22: 1.992385021 | M22: =M$10*$I22^M$11 -> 69.71872968 | N22: =N$10*$I22^N$11 -> 52.55255255 | O22: =O$10*$I22^O$11 -> 37.70786646 | P22: 165.4560198 | Q22: 77.82657129
A23: 2005-08-31 | B23: 930 | C23: 74.1 | D23: =Flow!$B$616 -> 4.53 | E23: 74.1 | G23: storm | H23: =IF(Temp!$G$616>Model!$O$19,"summer","winter") -> summer | I23: =Flow!$C$616 -> 2.87 | J23: =Flow!$E$616 -> 3.244602497 | K23: 0.3746024966 | L23: 1.285397503 | M23: =M$10*$I23^M$11 -> 86.04934096 | N23: 121.9512195 | O23: =O$10*$I23^O$11 -> 20.91786365 | P23: 179.9872767 | Q23: 62.91867479
A24: 2005-09-29 | B24: 933 | C24: 71.6 | D24: =Flow!$B$645 -> 4.89 | E24: 71.6 | G24: storm | H24: =IF(Temp!$G$645>Model!$O$19,"summer","winter") -> summer | I24: =Flow!$C$645 -> 2.98 | J24: =Flow!$E$645 -> 4.354602497 | K24: 1.374602497 | L24: 0.5353975034 | M24: =M$10*$I24^M$11 -> 85.24402674 | N24: 117.4496644 | O24: =O$10*$I24^O$11 -> 21.47590058 | P24: 179.3115932 | Q24: 124.3486817
A25: 2005-11-30 | B25: 931 | C25: 59.5 | D25: =Flow!$B$707 -> 18.3 | F25: 59.5 | G25: storm | H25: =IF(Temp!$G$707>Model!$O$19,"summer","winter") -> winter | I25: =Flow!$C$707 -> 3.8 | J25: =Flow!$E$707 -> 5.09380749 | K25: 1.29380749 | L25: 13.20619251 | M25: =M$10*$I25^M$11 -> 80.21805423 | N25: 92.10526316 | O25: =O$10*$I25^O$11 -> 25.4594207 | P25: 175.0054751 | R25: =($D25*$C25-$I25*N25-$K25*P25)/M25 -> 6.387921154

Sheet Model
A1: =Data!A1 -> Credit R. at Norval
O2: Base | P2: Inter | Q2: Storm | R2: Total
N3: Max | O3: =MAX(I8:I738) -> 146.4435146 | P3: =MAX(J8:J738) -> 316.9786385 | Q3: =MAX(K8:K738) -> 656.484013 | R3: =MAX(L8:L738) -> 146.4435146
N4: Min | O4: =MIN(I8:I738) -> 64.33823529 | P4: =MIN(J8:J738) -> 0 | Q4: =MIN(K8:K738) -> 0 | R4: =MIN(L8:L738) -> 41.98075298
B6: 10-days | E6: Flow, c.m./s | I6: Concentrations, mg/l | N6: Calibration | Q6: R corr. | R6: Calculated | S6: Observed
B7: Temper. | C7: Precipit. | D7: Total | E7: Base | F7: Inter+ | G7: Inter. | H7: Storm | I7: Base | J7: Inter | K7: Storm | L7: Total | N7: Storm | Q7: =+S32 -> 0.909451497 | R7: =+AVERAGE(R8:R81) -> 78.91359206 | S7: =+AVERAGE(S8:S81) -> 77.35039381
A8: =Data!A8 -> 2004-01-01 | B8: =Temp!G8 -> 0.6 | C8: =Data!K8 -> 1 | D8: =Flow!B8 -> 5.8 | E8: =Flow!C8 -> 5.8 | F8: =Flow!E8 -> 5.8 | G8: =F8-E8 -> 0 | H8: =D8-F8 -> 0 | I8: =+(IF(B8>O$19,$O$17*E8^$P$17,$O$16*E8^$P$16)) -> 72.17071772 | J8: =+IF(G8=0,0,IF(B8>O$19,$O$13*G8^$P$13,O$12*G8^P$12)) -> 0 | K8: =+IF(H8=0,0,IF(B8>O$19,$O$9*H8^$P$9,$O$8*H8^$P$8)) -> 0 | L8: =+(E8*I8+G8*J8+H8*K8)/D8 -> 72.17071772 | N8: winter | O8: 150 | P8: -0.6 | R8: =+L15 -> 96.68508287 | S8: =Qual_data!C3 -> 89.4 | T8: =Qual_data!H3 -> winter
A9: =Data!A9 -> 2004-01-02 | B9: =Temp!G9 -> -4.05 | C9: =Data!K9 -> 0.15 | D9: =Flow!B9 -> 5.17 | E9: =Flow!C9 -> 5.17 | F9: =Flow!E9 -> 5.17 | G9: =F9-E9 -> 0 | H9: =D9-F9 -> 0 | I9: =+(IF(B9>O$19,$O$17*E9^$P$17,$O$16*E9^$P$16)) -> 67.69825919 | J9: =+IF(G9=0,0,IF(B9>O$19,$O$13*G9^$P$13,O$12*G9^P$12)) -> 0 | K9: =+IF(H9=0,0,IF(B9>O$19,$O$9*H9^$P$9,$O$8*H9^$P$8)) -> 0 | L9: 67.69825919 | N9: summer | O9: 100 | P9: -0.25 | R9: =+L63 -> 131.0861423 | S9: =Qual_data!C4 -> 135 | T9: =Qual_data!H4 -> winter
A10: =Data!A10 -> 2004-01-03 | B10: =Temp!G10 -> -6.9 | C10: =Data!K10 -> 1.4 | D10: =Flow!B10 -> 6.46 | E10: =Flow!C10 -> 5.26 | F10: =Flow!E10 -> 5.634602497 | G10: 0.3746024966 | H10: 0.8253975034 | I10: 66.53992395 | J10: 220.6342491 | K10: 168.3035856 | L10: 88.47794116 | R10: =+L97 -> 59.63131162 | S10: =Qual_data!C5 -> 77.2 | T10: =Qual_data!H5 -> summer
A11: =Data!A11 -> 2004-01-04 | B11: =Temp!G11 -> -5.467961165 | C11: =Data!K11 -> 0.15 | D11: =Flow!B11 -> 7.22 | E11: =Flow!C11 -> 5.35 | F11: =Flow!E11 -> 6.099204993 | G11: 0.7492049931 | H11: 1.120795007 | I11: 65.42056075 | J11: 205.8590335 | K11: 140.0798108 | L11: 91.583292 | N11: Inter | R11: =+L126 -> 71.62138692 | S11: =Qual_data!C6 -> 71.1 | T11: =Qual_data!H6 -> summer
A12: =Data!A12 -> 2004-01-05 | B12: =Temp!G12 -> -8.48 | C12: =Data!K12 -> 0.2 | D12: =Flow!B12 -> 5.89 | E12: =Flow!C12 -> 5.44 | F12: =Flow!E12 -> 5.89 | G12: 0.45 | H12: 0 | I12: 64.33823529 | J12: 216.6250841 | K12: 0 | L12: 75.97305396 | N12: winter | O12: 200 | P12: -0.1 | R12: =+L154 -> 65.18138377 | S12: =Qual_data!C7 -> 51.5 | T12: =Qual_data!H7 -> summer
A13: =Data!A13 -> 2004-01-06 | B13: =Temp!G13 -> -9.733333333 | C13: =Data!K13 -> 3 | D13: =Flow!B13 -> 4.82 | E13: =Flow!C13 -> 4.82 | F13: =Flow!E13 -> 4.82 | G13: 0 | H13: 0 | I13: 72.61410788 | J13: 0 | K13: 0 | L13: 72.61410788 | N13: summer | O13: 10 | P13: 0.7 | R13: =+L188 -> 83.2877413 | S13: =Qual_data!C8 -> 80.9 | T13: =Qual_data!H8 -> summer
A14: =Data!A14 -> 2004-01-07 | B14: =Temp!G14 -> -10.54285714 | C14: =Data!K14 -> 1.8 | D14: =Flow!B14 -> 4.11 | E14: =Flow!C14 -> 4.11 | F14: =Flow!E14 -> 4.11 | G14: 0 | H14: 0 | I14: 85.15815085 | J14: 0 | K14: 0 | L14: 85.15815085 | R14: =+L217 -> 75.00136782 | S14: =Qual_data!C9 -> 78.1 | T14: =Qual_data!H9 -> summer
A15: =Data!A15 -> 2004-01-08 | B15: =Temp!G15 -> -10.875 | C15: =Data!K15 -> 1.6 | D15: =Flow!B15 -> 3.62 | E15: =Flow!C15 -> 3.62 | F15: =Flow!E15 -> 3.62 | G15: 0 | H15: 0 | I15: 96.68508287 | J15: 0 | K15: 0 | L15: 96.68508287 | N15: Base | R15: =+L251 -> 58.00030898 | S15: =Qual_data!C10 -> 64.4 | T15: =Qual_data!H10 -> summer
A16: =Data!A16 -> 2004-01-09 | B16: =Temp!G16 -> -11.64444444 | C16: =Data!K16 -> 0 | D16: =Flow!B16 -> 3.25 | E16: =Flow!C16 -> 3.25 | F16: =Flow!E16 -> 3.25 | G16: 0 | H16: 0 | I16: 107.6923077 | J16: 0 | K16: 0 | L16: 107.6923077 | N16: winter | O16: 350 | P16: -1 | R16: =+L274 -> 90.94651537 | S16: =Qual_data!C11 -> 93.4 | T16: =Qual_data!H11 -> summer
A17: =Data!A17 -> 2004-01-10 | B17: =Temp!G17 -> -11.97 | C17: =Data!K17 -> 0.2 | D17: =Flow!B17 -> 3 | E17: =Flow!C17 -> 3 | F17: =Flow!E17 -> 3 | G17: 0 | H17: 0 | I17: 116.6666667 | J17: 0 | K17: 0 | L17: 116.6666667 | N17: summer | O17: 112 | P17: -0.25 | R17: =+L308 -> 86.97307982 | S17: =Qual_data!C12 -> 84.2 | T17: =Qual_data!H12 -> summer
A18: =Data!A18 -> 2004-01-11 | B18: =Temp!G18 -> -12.32 | C18: =Data!K18 -> 1.4 | D18: =Flow!B18 -> 2.9 | E18: =Flow!C18 -> 2.9 | F18: =Flow!E18 -> 2.9 | G18: 0 | H18: 0 | I18: 120.6896552 | J18: 0 | K18: 0 | L18: 120.6896552 | R18: =+L342 -> 74.46266176 | S18: =Qual_data!C13 -> 95.7 | T18: =Qual_data!H13 -> summer
A19: =Data!A19 -> 2004-01-12 | B19: =Temp!G19 -> -12.23 | C19: =Data!K19 -> 0.15 | D19: =Flow!B19 -> 2.92 | E19: =Flow!C19 -> 2.92 | F19: =Flow!E19 -> 2.92 | G19: 0 | H19: 0 | I19: 119.8630137 | J19: 0 | K19: 0 | L19: 119.8630137 | N19: Temper | O19: 0 | R19: =+L383 -> 88.12722834 | S19: =Qual_data!C14 -> 86 | T19: =Qual_data!H14 -> winter
A20: =Data!A20 -> 2004-01-13 | B20: =Temp!G20 -> -11.33 | C20: =Data!K20 -> 0.2 | D20: =Flow!B20 -> 2.95 | E20: =Flow!C20 -> 2.95 | F20: =Flow!E20 -> 2.95 | G20: 0 | H20: 0 | I20: 118.6440678 | J20: 0 | K20: 0 | L20: 118.6440678 | R20: =+L400 -> 92.10526316 | S20: =Qual_data!C15 -> 93.7 | T20: =Qual_data!H15 -> winter
A21: =Data!A21 -> 2004-01-14 | B21: =Temp!G21 -> -11.67 | C21: =Data!K21 -> 0.2 | D21: =Flow!B21 -> 2.9 | E21: =Flow!C21 -> 2.9 | F21: =Flow!E21 -> 2.9 | G21: 0 | H21: 0 | I21: 120.6896552 | J21: 0 | K21: 0 | L21: 120.6896552 | R21: =+L428 -> 93.33333333 | S21: =Qual_data!C16 -> 95.1 | T21: =Qual_data!H16 -> winter
A22: =Data!A22 -> 2004-01-15 | B22: =Temp!G22 -> -12.86 | C22: =Data!K22 -> 0 | D22: =Flow!B22 -> 2.87 | E22: =Flow!C22 -> 2.87 | F22: =Flow!E22 -> 2.87 | G22: 0 | H22: 0 | I22: 121.9512195 | J22: 0 | K22: 0 | L22: 121.9512195 | R22: =+L463 -> 55.62430157 | S22: =Qual_data!C17 -> 50.6 | T22: =Qual_data!H17 -> summer
A23: =Data!A23 -> 2004-01-16 | B23: =Temp!G23 -> -13.39 | C23: =Data!K23 -> 7.4 | D23: =Flow!B23 -> 2.83 | E23: =Flow!C23 -> 2.83 | F23: =Flow!E23 -> 2.83 | G23: 0 | H23: 0 | I23: 123.6749117 | J23: 0 | K23: 0 | L23: 123.6749117 | R23: =+L491 -> 61.61896375 | S23: =Qual_data!C18 -> 64.6 | T23: =Qual_data!H18 -> summer
